Workbook

Sheet State Summary
A1: Proposed 2015 NAAQS Budgets and Manual Rounding Correction
A3: (A) State | B3: (B) Final RCU 2023 Emission Budget | C3: (C) Final CSAPR Update 2023 Emission Budget | D3: (D) Proposed 2015 NAAQS Pro-Rated 2023 Emission Budget | E3: (E) Proposed 2015 NAAQS 2023 Emission Budget | F3: (F) Proposed 2015 NAAQS 2024 Emission Budget | G3: (G) Proposed Illustrative 2015 NAAQS 2026 Emission Budget | H3: Proposed 2015 NAAQS NUSA (%) for 2023 and 2024 | I3: Proposed 2015 NAAQS NUSA (%) for 2026 | J3: Pro-Rated 2023 Emission Budget for Existing Units (tons) | K3: 2023 Emission Budget for Existing Units (tons) | L3: 2024 Emission Budget for Existing Units (tons) | M3: Illustrative 2026 Emission Budget for Existing Units (tons) | N3: Pro-Rated 2023 NOx OS Allocation Before Rounding Correction (tons) | O3: 2023 NOx OS Allocation Before Rounding Correction (tons) | P3: 2024 NOx OS Allocation Before Rounding Correction (tons) | Q3: Illustrative 2026 NOx OS Allocation Before Rounding Correction (tons) | R3: Pro-Rated 2023 Manual Rounding Correction (tons) | S3: 2023 Manual Rounding Correction (tons) | T3: 2024 Manual Rounding Correction (tons) | U3: Illustrative 2026 Manual Rounding Correction (tons) | V3: Pro-Rated 2023 NOx OS Allocation with Rounding Correction (tons) | W3: 2023 NOx OS Allocation with Rounding Correction (tons) | X3: 2024 NOx OS Allocation with Rounding Correction (tons) | Y3: Illustrative 2026 NOx OS Allocation with Rounding Correction (tons)
A4: Alabama | C4: 13,211 | D4: 6,812 | E4: 6,364 | F4: 6,306 | G4: 6,306 | H4: 3% | I4: 2% | J4: =ROUND(((D4-E4) +(E4*(1-H4))),0) -> 6,621 | K4: =ROUND((E4*(1-H4)),0) -> 6,173 | L4: =ROUND((F4*(1-H4)),0) -> 6,117 | M4: =ROUND((G4*(1-I4)),0) -> 6,180 | N4: =SUMIF('Proposed 2015 NAAQS Allocations'!B:B,A4,'Proposed 2015 NAAQS Allocations'!E:E) -> 6,617 | O4: =SUMIF('Proposed 2015 NAAQS Allocations'!B:B,A4,'Proposed 2015 NAAQS Allocations'!F:F) -> 6,169 | P4: =SUMIF('Proposed 2015 NAAQS Allocations'!B:B,A4,'Proposed 2015 NAAQS Allocations'!G:G) -> 6,113 | Q4: =SUMIF('Proposed 2015 NAAQS Allocations'!B:B,A4,'Proposed 2015 NAAQS Allocations'!H:H) -> 6,181 | R4: =J4-N4 -> 4 | S4: =K4-O4 -> 4 | T4: =L4-P4 -> 4 | U4: =M4-Q4 -> -1 | V4: =SUMIF('Proposed 2015 NAAQS Allocations'!B:B,A4,'Proposed 2015 NAAQS Allocations'!M:M) -> 6,621 | W4: =SUMIF('Proposed 2015 NAAQS Allocations'!B:B,A4,'Proposed 2015 NAAQS Allocations'!N:N) -> 6,173 | X4: =SUMIF('Proposed 2015 NAAQS Allocations'!B:B,A4,'Proposed 2015 NAAQS Allocations'!O:O) -> 6,117 | Y4: =SUMIF('Proposed 2015 NAAQS Allocations'!B:B,A4,'Proposed 2015 NAAQS Allocations'!P:P) -> 6,180
A5: Arkansas | C5: 9,210 | D5: 8,910 | E5: 8,889 | F5: 8,889 | G5: 3,923 | H5: 2% | I5: 2% | J5: =ROUND(((D5-E5) +(E5*(1-H5))),0) -> 8,732 | K5: =ROUND((E5*(1-H5)),0) -> 8,711 | L5: =ROUND((F5*(1-H5)),0) -> 8,711 | M5: 3,845 | N5: =SUMIF('Proposed 2015 NAAQS Allocations'!B:B,A5,'Proposed 2015 NAAQS Allocations'!E:E) -> 8,734 | O5: =SUMIF('Proposed 2015 NAAQS Allocations'!B:B,A5,'Proposed 2015 NAAQS Allocations'!F:F) -> 8,715 | P5: =SUMIF('Proposed 2015 NAAQS Allocations'!B:B,A5,'Proposed 2015 NAAQS Allocations'!G:G) -> 8,715 | Q5: =SUMIF('Proposed 2015 NAAQS Allocations'!B:B,A5,'Proposed 2015 NAAQS Allocations'!H:H) -> 3,846 | R5: =J5-N5 -> -2 | S5: =K5-O5 -> -4 | T5: =L5-P5 -> -4 | U5: =M5-Q5 -> -1 | V5: =SUMIF('Proposed 2015 NAAQS Allocations'!B:B,A5,'Proposed 2015 NAAQS Allocations'!M:M) -> 8,732 | W5: =SUMIF('Proposed 2015 NAAQS Allocations'!B:B,A5,'Proposed 2015 NAAQS Allocations'!N:N) -> 8,711 | X5: =SUMIF('Proposed 2015 NAAQS Allocations'!B:B,A5,'Proposed 2015 NAAQS Allocations'!O:O) -> 8,711 | Y5: =SUMIF('Proposed 2015 NAAQS Allocations'!B:B,A5,'Proposed 2015 NAAQS Allocations'!P:P) -> 3,845
A6: Delaware | D6: 359 | E6: 384 | F6: 434 | G6: 434 | H6: 14% | I6: 2% | J6: 305 | K6: 330 | L6: 373 | M6: 425 | N6: =SUMIF('Proposed 2015 NAAQS Allocations'!B:B,A6,'Proposed 2015 NAAQS Allocations'!E:E) -> 305 | O6: =SUMIF('Proposed 2015 NAAQS Allocations'!B:B,A6,'Proposed 2015 NAAQS Allocations'!F:F) -> 329 | P6: =SUMIF('Proposed 2015 NAAQS Allocations'!B:B,A6,'Proposed 2015 NAAQS Allocations'!G:G) -> 373 | Q6: =SUMIF('Proposed 2015 NAAQS Allocations'!B:B,A6,'Proposed 2015 NAAQS Allocations'!H:H) -> 427 | R6: 0 | S6: 1 | T6: 0 | U6: -2 | V6: =SUMIF('Proposed 2015 NAAQS Allocations'!B:B,A6,'Proposed 2015 NAAQS Allocations'!M:M) -> 305 | W6: =SUMIF('Proposed 2015 NAAQS Allocations'!B:B,A6,'Proposed 2015 NAAQS Allocations'!N:N) -> 330 | X6: =SUMIF('Proposed 2015 NAAQS Allocations'!B:B,A6,'Proposed 2015 NAAQS Allocations'!O:O) -> 373 | Y6: =SUMIF('Proposed 2015 NAAQS Allocations'!B:B,A6,'Proposed 2015 NAAQS Allocations'!P:P) -> 425
A7: Illinois | B7: 8,179 | C7: 14,601 | D7: 7,417 | E7: 7,364 | F7: 7,463 | G7: 6,115 | H7: 5% | I7: 2% | J7: 7,049 | K7: 6,996 | L7: 7,090 | M7: 5,993 | N7: =SUMIF('Proposed 2015 NAAQS Allocations'!B:B,A7,'Proposed 2015 NAAQS Allocations'!E:E) -> 7,055 | O7: =SUMIF('Proposed 2015 NAAQS Allocations'!B:B,A7,'Proposed 2015 NAAQS Allocations'!F:F) -> 7,002 | P7: =SUMIF('Proposed 2015 NAAQS Allocations'!B:B,A7,'Proposed 2015 NAAQS Allocations'!G:G) -> 7,096 | Q7: =SUMIF('Proposed 2015 NAAQS Allocations'!B:B,A7,'Proposed 2015 NAAQS Allocations'!H:H) -> 5,994 | R7: -6 | S7: -6 | T7: -6 | U7: -1 | V7: =SUMIF('Proposed 2015 NAAQS Allocations'!B:B,A7,'Proposed 2015 NAAQS Allocations'!M:M) -> 7,049 | W7: =SUMIF('Proposed 2015 NAAQS Allocations'!B:B,A7,'Proposed 2015 NAAQS Allocations'!N:N) -> 6,996 | X7: =SUMIF('Proposed 2015 NAAQS Allocations'!B:B,A7,'Proposed 2015 NAAQS Allocations'!O:O) -> 7,090 | Y7: =SUMIF('Proposed 2015 NAAQS Allocations'!B:B,A7,'Proposed 2015 NAAQS Allocations'!P:P) -> 5,993
A8: Indiana | B8: 12,553 | C8: 23,303 | D8: 11,243 | E8: 11,151 | F8: 9,391 | G8: 7,791 | H8: 2% | I8: 2% | J8: 11,020 | K8: 10,928 | L8: 9,203 | M8: 7,635 | N8: =SUMIF('Proposed 2015 NAAQS Allocations'!B:B,A8,'Proposed 2015 NAAQS Allocations'!E:E) -> 11,020 | O8: =SUMIF('Proposed 2015 NAAQS Allocations'!B:B,A8,'Proposed 2015 NAAQS Allocations'!F:F) -> 10,930 | P8: =SUMIF('Proposed 2015 NAAQS Allocations'!B:B,A8,'Proposed 2015 NAAQS Allocations'!G:G) -> 9,205 | Q8: =SUMIF('Proposed 2015 NAAQS Allocations'!B:B,A8,'Proposed 2015 NAAQS Allocations'!H:H) -> 7,633 | R8: 0 | S8: -2 | T8: -2 | U8: 2 | V8: =SUMIF('Proposed 2015 NAAQS Allocations'!B:B,A8,'Proposed 2015 NAAQS Allocations'!M:M) -> 11,020 | W8: =SUMIF('Proposed 2015 NAAQS Allocations'!B:B,A8,'Proposed 2015 NAAQS Allocations'!N:N) -> 10,928 | X8: =SUMIF('Proposed 2015 NAAQS Allocations'!B:B,A8,'Proposed 2015 NAAQS Allocations'!O:O) -> 9,203 | Y8: =SUMIF('Proposed 2015 NAAQS Allocations'!B:B,A8,'Proposed 2015 NAAQS Allocations'!P:P) -> 7,635
A9: Kentucky | B9: 14,051 | C9: 21,115 | D9: 11,798 | E9: 11,640 | F9: 11,640 | G9: 7,573 | H9: 2% | I9: 2% | J9: 11,565 | K9: 11,407 | L9: 11,407 | M9: 7,422 | N9: =SUMIF('Proposed 2015 NAAQS Allocations'!B:B,A9,'Proposed 2015 NAAQS Allocations'!E:E) -> 11,567 | O9: =SUMIF('Proposed 2015 NAAQS Allocations'!B:B,A9,'Proposed 2015 NAAQS Allocations'!F:F) -> 11,406 | P9: =SUMIF('Proposed 2015 NAAQS Allocations'!B:B,A9,'Proposed 2015 NAAQS Allocations'!G:G) -> 11,406 | Q9: =SUMIF('Proposed 2015 NAAQS Allocations'!B:B,A9,'Proposed 2015 NAAQS Allocations'!H:H) -> 7,419 | R9: -2 | S9: 1 | T9: 1 | U9: 3 | V9: =SUMIF('Proposed 2015 NAAQS Allocations'!B:B,A9,'Proposed 2015 NAAQS Allocations'!M:M) -> 11,565 | W9: =SUMIF('Proposed 2015 NAAQS Allocations'!B:B,A9,'Proposed 2015 NAAQS Allocations'!N:N) -> 11,407 | X9: =SUMIF('Proposed 2015 NAAQS Allocations'!B:B,A9,'Proposed 2015 NAAQS Allocations'!O:O) -> 11,407 | Y9: =SUMIF('Proposed 2015 NAAQS Allocations'!B:B,A9,'Proposed 2015 NAAQS Allocations'!P:P) -> 7,422
A10: Louisiana | B10: 14,818 | C10: 18,639 | D10: 9,672 | E10: 9,312 | F10: 9,312 | G10: 3,752 | H10: 2% | I10: 2% | J10: 9,486 | K10: 9,126 | L10: 9,126 | M10: 3,677 | N10: =SUMIF('Proposed 2015 NAAQS Allocations'!B:B,A10,'Proposed 2015 NAAQS Allocations'!E:E) -> 9,482 | O10: =SUMIF('Proposed 2015 NAAQS Allocations'!B:B,A10,'Proposed 2015 NAAQS Allocations'!F:F) -> 9,123 | P10: =SUMIF('Proposed 2015 NAAQS Allocations'!B:B,A10,'Proposed 2015 NAAQS Allocations'!G:G) -> 9,123 | Q10: =SUMIF('Proposed 2015 NAAQS Allocations'!B:B,A10,'Proposed 2015 NAAQS Allocations'!H:H) -> 3,674 | R10: 4 | S10: 3 | T10: 3 | U10: 3 | V10: =SUMIF('Proposed 2015 NAAQS Allocations'!B:B,A10,'Proposed 2015 NAAQS Allocations'!M:M) -> 9,486 | W10: =SUMIF('Proposed 2015 NAAQS Allocations'!B:B,A10,'Proposed 2015 NAAQS Allocations'!N:N) -> 9,126 | X10: =SUMIF('Proposed 2015 NAAQS Allocations'!B:B,A10,'Proposed 2015 NAAQS Allocations'!O:O) -> 9,126 | Y10: =SUMIF('Proposed 2015 NAAQS Allocations'!B:B,A10,'Proposed 2015 NAAQS Allocations'!P:P) -> 3,677
A11: Maryland | B11: 1,266 | C11: 3,828 | D11: 1,192 | E11: 1,187 | F11: 1,187 | G11: 1,189 | H11: 2% | I11: 2% | J11: 1,168 | K11: 1,163 | L11: 1,163 | M11: 1,165 | N11: =SUMIF('Proposed 2015 NAAQS Allocations'!B:B,A11,'Proposed 2015 NAAQS Allocations'!E:E) -> 1,170 | O11: =SUMIF('Proposed 2015 NAAQS Allocations'!B:B,A11,'Proposed 2015 NAAQS Allocations'!F:F) -> 1,167 | P11: =SUMIF('Proposed 2015 NAAQS Allocations'!B:B,A11,'Proposed 2015 NAAQS Allocations'!G:G) -> 1,167 | Q11: =SUMIF('Proposed 2015 NAAQS Allocations'!B:B,A11,'Proposed 2015 NAAQS Allocations'!H:H) -> 1,168 | R11: -2 | S11: -4 | T11: -4 | U11: -3 | V11: =SUMIF('Proposed 2015 NAAQS Allocations'!B:B,A11,'Proposed 2015 NAAQS Allocations'!M:M) -> 1,168 | W11: =SUMIF('Proposed 2015 NAAQS Allocations'!B:B,A11,'Proposed 2015 NAAQS Allocations'!N:N) -> 1,163 | X11: =SUMIF('Proposed 2015 NAAQS Allocations'!B:B,A11,'Proposed 2015 NAAQS Allocations'!O:O) -> 1,163 | Y11: =SUMIF('Proposed 2015 NAAQS Allocations'!B:B,A11,'Proposed 2015 NAAQS Allocations'!P:P) -> 1,165
A12: Michigan | B12: 9,975 | C12: 17,023 | D12: 10,669 | E12: 10,718 | F12: 10,718 | G12: 6,114 | H12: 4% | I12: 2% | J12: 10,240 | K12: 10,289 | L12: 10,289 | M12: 5,992 | N12: =SUMIF('Proposed 2015 NAAQS Allocations'!B:B,A12,'Proposed 2015 NAAQS Allocations'!E:E) -> 10,238 | O12: =SUMIF('Proposed 2015 NAAQS Allocations'!B:B,A12,'Proposed 2015 NAAQS Allocations'!F:F) -> 10,289 | P12: =SUMIF('Proposed 2015 NAAQS Allocations'!B:B,A12,'Proposed 2015 NAAQS Allocations'!G:G) -> 10,289 | Q12: =SUMIF('Proposed 2015 NAAQS Allocations'!B:B,A12,'Proposed 2015 NAAQS Allocations'!H:H) -> 5,994 | R12: 2 | S12: 0 | T12: 0 | U12: -2 | V12: =SUMIF('Proposed 2015 NAAQS Allocations'!B:B,A12,'Proposed 2015 NAAQS Allocations'!M:M) -> 10,240 | W12: =SUMIF('Proposed 2015 NAAQS Allocations'!B:B,A12,'Proposed 2015 NAAQS Allocations'!N:N) -> 10,289 | X12: =SUMIF('Proposed 2015 NAAQS Allocations'!B:B,A12,'Proposed 2015 NAAQS Allocations'!O:O) -> 10,289 | Y12: =SUMIF('Proposed 2015 NAAQS Allocations'!B:B,A12,'Proposed 2015 NAAQS Allocations'!P:P) -> 5,992
A13: Minnesota | D13: 3,665 | E13: 3,921 | F13: 3,921 | G13: 2,536 | H13: 2% | I13: 2% | J13: 3,587 | K13: 3,843 | L13: 3,843 | M13: 2,485 | N13: =SUMIF('Proposed 2015 NAAQS Allocations'!B:B,A13,'Proposed 2015 NAAQS Allocations'!E:E) -> 3,586 | O13: =SUMIF('Proposed 2015 NAAQS Allocations'!B:B,A13,'Proposed 2015 NAAQS Allocations'!F:F) -> 3,841 | P13: =SUMIF('Proposed 2015 NAAQS Allocations'!B:B,A13,'Proposed 2015 NAAQS Allocations'!G:G) -> 3,841 | Q13: =SUMIF('Proposed 2015 NAAQS Allocations'!B:B,A13,'Proposed 2015 NAAQS Allocations'!H:H) -> 2,484 | R13: 1 | S13: 2 | T13: 2 | U13: 1 | V13: =SUMIF('Proposed 2015 NAAQS Allocations'!B:B,A13,'Proposed 2015 NAAQS Allocations'!M:M) -> 3,587 | W13: =SUMIF('Proposed 2015 NAAQS Allocations'!B:B,A13,'Proposed 2015 NAAQS Allocations'!N:N) -> 3,843 | X13: =SUMIF('Proposed 2015 NAAQS Allocations'!B:B,A13,'Proposed 2015 NAAQS Allocations'!O:O) -> 3,843 | Y13: =SUMIF('Proposed 2015 NAAQS Allocations'!B:B,A13,'Proposed 2015 NAAQS Allocations'!P:P) -> 2,485
A14: Mississippi | C14: 6,315 | D14: 5,108 | E14: 5,024 | F14: 4,400 | G14: 1,914 | H14: 2% | I14: 2% | J14: 5,008 | K14: 4,924 | L14: 4,312 | M14: 1,876 | N14: =SUMIF('Proposed 2015 NAAQS Allocations'!B:B,A14,'Proposed 2015 NAAQS Allocations'!E:E) -> 5,009 | O14: =SUMIF('Proposed 2015 NAAQS Allocations'!B:B,A14,'Proposed 2015 NAAQS Allocations'!F:F) -> 4,925 | P14: =SUMIF('Proposed 2015 NAAQS Allocations'!B:B,A14,'Proposed 2015 NAAQS Allocations'!G:G) -> 4,314 | Q14: =SUMIF('Proposed 2015 NAAQS Allocations'!B:B,A14,'Proposed 2015 NAAQS Allocations'!H:H) -> 1,879 | R14: -1 | S14: -1 | T14: -2 | U14: -3 | V14: =SUMIF('Proposed 2015 NAAQS Allocations'!B:B,A14,'Proposed 2015 NAAQS Allocations'!M:M) -> 5,008 | W14: =SUMIF('Proposed 2015 NAAQS Allocations'!B:B,A14,'Proposed 2015 NAAQS Allocations'!N:N) -> 4,924 | X14: =SUMIF('Proposed 2015 NAAQS Allocations'!B:B,A14,'Proposed 2015 NAAQS Allocations'!O:O) -> 4,312 | Y14: =SUMIF('Proposed 2015 NAAQS Allocations'!B:B,A14,'Proposed 2015 NAAQS Allocations'!P:P) -> 1,876
A15: Missouri | C15: 15,780 | D15: 12,113 | E15: 11,857 | F15: 11,857 | G15: 7,246 | H15: 2% | I15: 2% | J15: 11,876 | K15: 11,620 | L15: 11,620 | M15: 7,101 | N15: =SUMIF('Proposed 2015 NAAQS Allocations'!B:B,A15,'Proposed 2015 NAAQS Allocations'!E:E) -> 11,877 | O15: =SUMIF('Proposed 2015 NAAQS Allocations'!B:B,A15,'Proposed 2015 NAAQS Allocations'!F:F) -> 11,623 | P15: =SUMIF('Proposed 2015 NAAQS Allocations'!B:B,A15,'Proposed 2015 NAAQS Allocations'!G:G) -> 11,623 | Q15: =SUMIF('Proposed 2015 NAAQS Allocations'!B:B,A15,'Proposed 2015 NAAQS Allocations'!H:H) -> 7,099 | R15: -1 | S15: -3 | T15: -3 | U15: 2 | V15: =SUMIF('Proposed 2015 NAAQS Allocations'!B:B,A15,'Proposed 2015 NAAQS Allocations'!M:M) -> 11,876 | W15: =SUMIF('Proposed 2015 NAAQS Allocations'!B:B,A15,'Proposed 2015 NAAQS Allocations'!N:N) -> 11,620 | X15: =SUMIF('Proposed 2015 NAAQS Allocations'!B:B,A15,'Proposed 2015 NAAQS Allocations'!O:O) -> 11,620 | Y15: =SUMIF('Proposed 2015 NAAQS Allocations'!B:B,A15,'Proposed 2015 NAAQS Allocations'!P:P) -> 7,101
A16: Nevada | D16: 2,131 | E16: 2,280 | F16: 2,372 | G16: 1,211 | H16: 6% | I16: 2% | J16: 1,994 | K16: 2,143 | L16: 2,230 | M16: 1,187 | N16: =SUMIF('Proposed 2015 NAAQS Allocations'!B:B,A16,'Proposed 2015 NAAQS Allocations'!E:E) -> 1,994 | O16: =SUMIF('Proposed 2015 NAAQS Allocations'!B:B,A16,'Proposed 2015 NAAQS Allocations'!F:F) -> 2,141 | P16: =SUMIF('Proposed 2015 NAAQS Allocations'!B:B,A16,'Proposed 2015 NAAQS Allocations'!G:G) -> 2,228 | Q16: =SUMIF('Proposed 2015 NAAQS Allocations'!B:B,A16,'Proposed 2015 NAAQS Allocations'!H:H) -> 1,187 | R16: 0 | S16: 2 | T16: 2 | U16: 0 | V16: =SUMIF('Proposed 2015 NAAQS Allocations'!B:B,A16,'Proposed 2015 NAAQS Allocations'!M:M) -> 1,994 | W16: =SUMIF('Proposed 2015 NAAQS Allocations'!B:B,A16,'Proposed 2015 NAAQS Allocations'!N:N) -> 2,143 | X16: =SUMIF('Proposed 2015 NAAQS Allocations'!B:B,A16,'Proposed 2015 NAAQS Allocations'!O:O) -> 2,230 | Y16: =SUMIF('Proposed 2015 NAAQS Allocations'!B:B,A16,'Proposed 2015 NAAQS Allocations'!P:P) -> 1,187
A17: New Jersey | B17: 1,253 | C17: 2,062 | D17: 829 | E17: 799 | F17: 799 | G17: 799 | H17: 2% | I17: 2% | J17: 813 | K17: 783 | L17: 783 | M17: 783 | N17: =SUMIF('Proposed 2015 NAAQS Allocations'!B:B,A17,'Proposed 2015 NAAQS Allocations'!E:E) -> 818 | O17: =SUMIF('Proposed 2015 NAAQS Allocations'!B:B,A17,'Proposed 2015 NAAQS Allocations'!F:F) -> 788 | P17: =SUMIF('Proposed 2015 NAAQS Allocations'!B:B,A17,'Proposed 2015 NAAQS Allocations'!G:G) -> 788 | Q17: =SUMIF('Proposed 2015 NAAQS Allocations'!B:B,A17,'Proposed 2015 NAAQS Allocations'!H:H) -> 788 | R17: -5 | S17: -5 | T17: -5 | U17: -5 | V17: =SUMIF('Proposed 2015 NAAQS Allocations'!B:B,A17,'Proposed 2015 NAAQS Allocations'!M:M) -> 813 | W17: =SUMIF('Proposed 2015 NAAQS Allocations'!B:B,A17,'Proposed 2015 NAAQS Allocations'!N:N) -> 783 | X17: =SUMIF('Proposed 2015 NAAQS Allocations'!B:B,A17,'Proposed 2015 NAAQS Allocations'!O:O) -> 783 | Y17: =SUMIF('Proposed 2015 NAAQS Allocations'!B:B,A17,'Proposed 2015 NAAQS Allocations'!P:P) -> 783
A18: New York | B18: 3,421 | C18: 5,135 | D18: 3,741 | E18: 3,763 | F18: 3,763 | G18: 3,238 | H18: 5% | I18: 2% | J18: 3,553 | K18: 3,575 | L18: 3,575 | M18: 3,173 | N18: =SUMIF('Proposed 2015 NAAQS Allocations'!B:B,A18,'Proposed 2015 NAAQS Allocations'!E:E) -> 3,551 | O18: =SUMIF('Proposed 2015 NAAQS Allocations'!B:B,A18,'Proposed 2015 NAAQS Allocations'!F:F) -> 3,572 | P18: =SUMIF('Proposed 2015 NAAQS Allocations'!B:B,A18,'Proposed 2015 NAAQS Allocations'!G:G) -> 3,572 | Q18: =SUMIF('Proposed 2015 NAAQS Allocations'!B:B,A18,'Proposed 2015 NAAQS Allocations'!H:H) -> 3,170 | R18: 2 | S18: 3 | T18: 3 | U18: 3 | V18: =SUMIF('Proposed 2015 NAAQS Allocations'!B:B,A18,'Proposed 2015 NAAQS Allocations'!M:M) -> 3,553 | W18: =SUMIF('Proposed 2015 NAAQS Allocations'!B:B,A18,'Proposed 2015 NAAQS Allocations'!N:N) -> 3,575 | X18: =SUMIF('Proposed 2015 NAAQS Allocations'!B:B,A18,'Proposed 2015 NAAQS Allocations'!O:O) -> 3,575 | Y18: =SUMIF('Proposed 2015 NAAQS Allocations'!B:B,A18,'Proposed 2015 NAAQS Allocations'!P:P) -> 3,173
A19: Ohio | B19: 9,773 | C19: 19,522 | D19: 8,461 | E19: 8,369 | F19: 8,369 | G19: 8,586 | H19: 5% | I19: 2% | J19: 8,043 | K19: 7,951 | L19: 7,951 | M19: 8,414 | N19: =SUMIF('Proposed 2015 NAAQS Allocations'!B:B,A19,'Proposed 2015 NAAQS Allocations'!E:E) -> 8,040 | O19: =SUMIF('Proposed 2015 NAAQS Allocations'!B:B,A19,'Proposed 2015 NAAQS Allocations'!F:F) -> 7,949 | P19: =SUMIF('Proposed 2015 NAAQS Allocations'!B:B,A19,'Proposed 2015 NAAQS Allocations'!G:G) -> 7,949 | Q19: =SUMIF('Proposed 2015 NAAQS Allocations'!B:B,A19,'Proposed 2015 NAAQS Allocations'!H:H) -> 8,416 | R19: 3 | S19: 2 | T19: 2 | U19: -2 | V19: =SUMIF('Proposed 2015 NAAQS Allocations'!B:B,A19,'Proposed 2015 NAAQS Allocations'!M:M) -> 8,043 | W19: =SUMIF('Proposed 2015 NAAQS Allocations'!B:B,A19,'Proposed 2015 NAAQS Allocations'!N:N) -> 7,951 | X19: =SUMIF('Proposed 2015 NAAQS Allocations'!B:B,A19,'Proposed 2015 NAAQS Allocations'!O:O) -> 7,951 | Y19: =SUMIF('Proposed 2015 NAAQS Allocations'!B:B,A19,'Proposed 2015 NAAQS Allocations'!P:P) -> 8,414
A20: Oklahoma | C20: 11,641 | D20: 10,355 | E20: 10,265 | F20: 9,573 | G20: 4,275 | H20: 2% | I20: 2% | J20: 10,150 | K20: 10,060 | L20: 9,382 | M20: 4,190 | N20: =SUMIF('Proposed 2015 NAAQS Allocations'!B:B,A20,'Proposed 2015 NAAQS Allocations'!E:E) -> 10,152 | O20: =SUMIF('Proposed 2015 NAAQS Allocations'!B:B,A20,'Proposed 2015 NAAQS Allocations'!F:F) -> 10,061 | P20: =SUMIF('Proposed 2015 NAAQS Allocations'!B:B,A20,'Proposed 2015 NAAQS Allocations'!G:G) -> 9,382 | Q20: =SUMIF('Proposed 2015 NAAQS Allocations'!B:B,A20,'Proposed 2015 NAAQS Allocations'!H:H) -> 4,189 | R20: -2 | S20: -1 | T20: 0 | U20: 1 | V20: =SUMIF('Proposed 2015 NAAQS Allocations'!B:B,A20,'Proposed 2015 NAAQS Allocations'!M:M) -> 10,150 | W20: =SUMIF('Proposed 2015 NAAQS Allocations'!B:B,A20,'Proposed 2015 NAAQS Allocations'!N:N) -> 10,060 | X20: =SUMIF('Proposed 2015 NAAQS Allocations'!B:B,A20,'Proposed 2015 NAAQS Allocations'!O:O) -> 9,382 | Y20: =SUMIF('Proposed 2015 NAAQS Allocations'!B:B,A20,'Proposed 2015 NAAQS Allocations'!P:P) -> 4,190
A21: Pennsylvania | B21: 8,373 | C21: 17,952 | D21: 8,823 | E21: 8,855 | F21: 8,855 | G21: 6,819 | H21: 3% | I21: 2% | J21: 8,557 | K21: 8,589 | L21: 8,589 | M21: 6,683 | N21: =SUMIF('Proposed 2015 NAAQS Allocations'!B:B,A21,'Proposed 2015 NAAQS Allocations'!E:E) -> 8,557 | O21: =SUMIF('Proposed 2015 NAAQS Allocations'!B:B,A21,'Proposed 2015 NAAQS Allocations'!F:F) -> 8,588 | P21: =SUMIF('Proposed 2015 NAAQS Allocations'!B:B,A21,'Proposed 2015 NAAQS Allocations'!G:G) -> 8,588 | Q21: =SUMIF('Proposed 2015 NAAQS Allocations'!B:B,A21,'Proposed 2015 NAAQS Allocations'!H:H) -> 6,681 | R21: 0 | S21: 1 | T21: 1 | U21: 2 | V21: =SUMIF('Proposed 2015 NAAQS Allocations'!B:B,A21,'Proposed 2015 NAAQS Allocations'!M:M) -> 8,557 | W21: =SUMIF('Proposed 2015 NAAQS Allocations'!B:B,A21,'Proposed 2015 NAAQS Allocations'!N:N) -> 8,589 | X21: =SUMIF('Proposed 2015 NAAQS Allocations'!B:B,A21,'Proposed 2015 NAAQS Allocations'!O:O) -> 8,589 | Y21: =SUMIF('Proposed 2015 NAAQS Allocations'!B:B,A21,'Proposed 2015 NAAQS Allocations'!P:P) -> 6,683
A22: Tennessee | C22: 7,736 | D22: 4,463 | E22: 4,234 | F22: 4,234 | G22: 4,008 | H22: 2% | I22: 2% | J22: 4,378 | K22: 4,149 | L22: 4,149 | M22: 3,928 | N22: =SUMIF('Proposed 2015 NAAQS Allocations'!B:B,A22,'Proposed 2015 NAAQS Allocations'!E:E) -> 4,381 | O22: =SUMIF('Proposed 2015 NAAQS Allocations'!B:B,A22,'Proposed 2015 NAAQS Allocations'!F:F) -> 4,150 | P22: =SUMIF('Proposed 2015 NAAQS Allocations'!B:B,A22,'Proposed 2015 NAAQS Allocations'!G:G) -> 4,150 | Q22: =SUMIF('Proposed 2015 NAAQS Allocations'!B:B,A22,'Proposed 2015 NAAQS Allocations'!H:H) -> 3,933 | R22: -3 | S22: -1 | T22: -1 | U22: -5 | V22: =SUMIF('Proposed 2015 NAAQS Allocations'!B:B,A22,'Proposed 2015 NAAQS Allocations'!M:M) -> 4,378 | W22: =SUMIF('Proposed 2015 NAAQS Allocations'!B:B,A22,'Proposed 2015 NAAQS Allocations'!N:N) -> 4,149 | X22: =SUMIF('Proposed 2015 NAAQS Allocations'!B:B,A22,'Proposed 2015 NAAQS Allocations'!O:O) -> 4,149 | Y22: =SUMIF('Proposed 2015 NAAQS Allocations'!B:B,A22,'Proposed 2015 NAAQS Allocations'!P:P) -> 3,928
A23: Texas | C23: 52,301 | D23: 39,200 | E23: 38,284 | F23: 38,284 | G23: 21,946 | H23: 2% | I23: 2% | J23: 38,434 | K23: 37,518 | L23: 37,518 | M23: 21,507 | N23: =SUMIF('Proposed 2015 NAAQS Allocations'!B:B,A23,'Proposed 2015 NAAQS Allocations'!E:E) -> 38,436 | O23: =SUMIF('Proposed 2015 NAAQS Allocations'!B:B,A23,'Proposed 2015 NAAQS Allocations'!F:F) -> 37,520 | P23: =SUMIF('Proposed 2015 NAAQS Allocations'!B:B,A23,'Proposed 2015 NAAQS Allocations'!G:G) -> 37,520 | Q23: =SUMIF('Proposed 2015 NAAQS Allocations'!B:B,A23,'Proposed 2015 NAAQS Allocations'!H:H) -> 21,502 | R23: -2 | S23: -2 | T23: -2 | U23: 5 | V23: =SUMIF('Proposed 2015 NAAQS Allocations'!B:B,A23,'Proposed 2015 NAAQS Allocations'!M:M) -> 38,434 | W23: =SUMIF('Proposed 2015 NAAQS Allocations'!B:B,A23,'Proposed 2015 NAAQS Allocations'!N:N) -> 37,518 | X23: =SUMIF('Proposed 2015 NAAQS Allocations'!B:B,A23,'Proposed 2015 NAAQS Allocations'!O:O) -> 37,518 | Y23: =SUMIF('Proposed 2015 NAAQS Allocations'!B:B,A23,'Proposed 2015 NAAQS Allocations'!P:P) -> 21,507
A24: Utah | D24: 14,002 | E24: 14,981 | F24: 15,146 | G24: 2,620 | H24: 3% | I24: 2% | J24: 13,553 | K24: 14,532 | L24: 14,692 | M24: 2,568 | N24: =SUMIF('Proposed 2015 NAAQS Allocations'!B:B,A24,'Proposed 2015 NAAQS Allocations'!E:E) -> 13,550 | O24: =SUMIF('Proposed 2015 NAAQS Allocations'!B:B,A24,'Proposed 2015 NAAQS Allocations'!F:F) -> 14,531 | P24: =SUMIF('Proposed 2015 NAAQS Allocations'!B:B,A24,'Proposed 2015 NAAQS Allocations'!G:G) -> 14,691 | Q24: =SUMIF('Proposed 2015 NAAQS Allocations'!B:B,A24,'Proposed 2015 NAAQS Allocations'!H:H) -> 2,567 | R24: 3 | S24: 1 | T24: 1 | U24: 1 | V24: =SUMIF('Proposed 2015 NAAQS Allocations'!B:B,A24,'Proposed 2015 NAAQS Allocations'!M:M) -> 13,553 | W24: =SUMIF('Proposed 2015 NAAQS Allocations'!B:B,A24,'Proposed 2015 NAAQS Allocations'!N:N) -> 14,532 | X24: =SUMIF('Proposed 2015 NAAQS Allocations'!B:B,A24,'Proposed 2015 NAAQS Allocations'!O:O) -> 14,692 | Y24: =SUMIF('Proposed 2015 NAAQS Allocations'!B:B,A24,'Proposed 2015 NAAQS Allocations'!P:P) -> 2,568
A25: Virginia | B25: 3,980 | C25: 9,223 | D25: 3,148 | E25: 3,090 | F25: 2,814 | G25: 2,567 | H25: 5% | I25: 2% | J25: 2,994 | K25: 2,936 | L25: 2,673 | M25: 2,516 | N25: =SUMIF('Proposed 2015 NAAQS Allocations'!B:B,A25,'Proposed 2015 NAAQS Allocations'!E:E) -> 2,992 | O25: =SUMIF('Proposed 2015 NAAQS Allocations'!B:B,A25,'Proposed 2015 NAAQS Allocations'!F:F) -> 2,934 | P25: =SUMIF('Proposed 2015 NAAQS Allocations'!B:B,A25,'Proposed 2015 NAAQS Allocations'!G:G) -> 2,673 | Q25: =SUMIF('Proposed 2015 NAAQS Allocations'!B:B,A25,'Proposed 2015 NAAQS Allocations'!H:H) -> 2,516 | R25: 2 | S25: 2 | T25: 0 | U25: 0 | V25: =SUMIF('Proposed 2015 NAAQS Allocations'!B:B,A25,'Proposed 2015 NAAQS Allocations'!M:M) -> 2,994 | W25: =SUMIF('Proposed 2015 NAAQS Allocations'!B:B,A25,'Proposed 2015 NAAQS Allocations'!N:N) -> 2,936 | X25: =SUMIF('Proposed 2015 NAAQS Allocations'!B:B,A25,'Proposed 2015 NAAQS Allocations'!O:O) -> 2,673 | Y25: =SUMIF('Proposed 2015 NAAQS Allocations'!B:B,A25,'Proposed 2015 NAAQS Allocations'!P:P) -> 2,516
A26: West Virginia | B26: 12,884 | C26: 17,815 | D26: 12,505 | E26: 12,478 | F26: 12,478 | G26: 10,597 | H26: 2% | I26: 2% | J26: 12,255 | K26: 12,228 | L26: 12,228 | M26: 10,385 | N26: =SUMIF('Proposed 2015 NAAQS Allocations'!B:B,A26,'Proposed 2015 NAAQS Allocations'!E:E) -> 12,254 | O26: =SUMIF('Proposed 2015 NAAQS Allocations'!B:B,A26,'Proposed 2015 NAAQS Allocations'!F:F) -> 12,227 | P26: =SUMIF('Proposed 2015 NAAQS Allocations'!B:B,A26,'Proposed 2015 NAAQS Allocations'!G:G) -> 12,227 | Q26: =SUMIF('Proposed 2015 NAAQS Allocations'!B:B,A26,'Proposed 2015 NAAQS Allocations'!H:H) -> 10,388 | R26: 1 | S26: 1 | T26: 1 | U26: -3 | V26: =SUMIF('Proposed 2015 NAAQS Allocations'!B:B,A26,'Proposed 2015 NAAQS Allocations'!M:M) -> 12,255 | W26: =SUMIF('Proposed 2015 NAAQS Allocations'!B:B,A26,'Proposed 2015 NAAQS Allocations'!N:N) -> 12,228 | X26: =SUMIF('Proposed 2015 NAAQS Allocations'!B:B,A26,'Proposed 2015 NAAQS Allocations'!O:O) -> 12,228 | Y26: =SUMIF('Proposed 2015 NAAQS Allocations'!B:B,A26,'Proposed 2015 NAAQS Allocations'!P:P) -> 10,385
A27: Wisconsin | C27: 7,915 | D27: 6,091 | E27: 5,963 | F27: 5,057 | G27: 3,473 | H27: 2% | I27: 2% | J27: 5,972 | K27: 5,844 | L27: 4,956 | M27: 3,404 | N27: =SUMIF('Proposed 2015 NAAQS Allocations'!B:B,A27,'Proposed 2015 NAAQS Allocations'!E:E) -> 5,974 | O27: =SUMIF('Proposed 2015 NAAQS Allocations'!B:B,A27,'Proposed 2015 NAAQS Allocations'!F:F) -> 5,841 | P27: =SUMIF('Proposed 2015 NAAQS Allocations'!B:B,A27,'Proposed 2015 NAAQS Allocations'!G:G) -> 4,953 | Q27: =SUMIF('Proposed 2015 NAAQS Allocations'!B:B,A27,'Proposed 2015 NAAQS Allocations'!H:H) -> 3,401 | R27: -2 | S27: 3 | T27: 3 | U27: 3 | V27: =SUMIF('Proposed 2015 NAAQS Allocations'!B:B,A27,'Proposed 2015 NAAQS Allocations'!M:M) -> 5,972 | W27: =SUMIF('Proposed 2015 NAAQS Allocations'!B:B,A27,'Proposed 2015 NAAQS Allocations'!N:N) -> 5,844 | X27: =SUMIF('Proposed 2015 NAAQS Allocations'!B:B,A27,'Proposed 2015 NAAQS Allocations'!O:O) -> 4,956 | Y27: =SUMIF('Proposed 2015 NAAQS Allocations'!B:B,A27,'Proposed 2015 NAAQS Allocations'!P:P) -> 3,404
A28: Wyoming | D28: 8,529 | E28: 9,125 | F28: 8,573 | G28: 4,490 | H28: 3% | I28: 2% | J28: 8,255 | K28: 8,851 | L28: 8,316 | M28: 4,400 | N28: =SUMIF('Proposed 2015 NAAQS Allocations'!B:B,A28,'Proposed 2015 NAAQS Allocations'!E:E) -> 8,255 | O28: =SUMIF('Proposed 2015 NAAQS Allocations'!B:B,A28,'Proposed 2015 NAAQS Allocations'!F:F) -> 8,852 | P28: =SUMIF('Proposed 2015 NAAQS Allocations'!B:B,A28,'Proposed 2015 NAAQS Allocations'!G:G) -> 8,313 | Q28: =SUMIF('Proposed 2015 NAAQS Allocations'!B:B,A28,'Proposed 2015 NAAQS Allocations'!H:H) -> 4,399 | R28: 0 | S28: -1 | T28: 3 | U28: 1 | V28: =SUMIF('Proposed 2015 NAAQS Allocations'!B:B,A28,'Proposed 2015 NAAQS Allocations'!M:M) -> 8,255 | W28: =SUMIF('Proposed 2015 NAAQS Allocations'!B:B,A28,'Proposed 2015 NAAQS Allocations'!N:N) -> 8,851 | X28: =SUMIF('Proposed 2015 NAAQS Allocations'!B:B,A28,'Proposed 2015 NAAQS Allocations'!O:O) -> 8,316 | Y28: =SUMIF('Proposed 2015 NAAQS Allocations'!B:B,A28,'Proposed 2015 NAAQS Allocations'!P:P) -> 4,400
A30: Sources and computations:
A31: (B) RCU 2023 state budgets are from 40 CFR 97.1010(a), Table 1. Note that these amounts include the portions of the budgets set aside for new units.
A32: (C) CSAPR Update 2023 state budgets are from 40 CFR 97.810(a). Note that these amounts include the portions of the budgets set aside for new units.
A33: (D) Pro-Rated 2023 state budgets are computed as ( ( B or C ) * ( 10 of days before effective date / 153 ) + ( E * ( 143 of days after and including effective date / 153 ). See Preamble Section VII.B.11.a.
A34: (E & F) Proposed 2015 NAAQS 2023 and 2024 state budgets are from Preamble Table VII.B.4.c-1. Note that these amounts include the portions of the budgets set aside for new units.
A35: (G) Proposed Illustrative 2015 NAAQS 2026 state budgets are from Preamble Table VII.B.4.c-2. Note that these amounts include the portions of the budgets set aside for new units.

Sheet Proposed 2015 NAAQS Allocations
E1: Before Rounding Correction | I1: Manual Rounding Correction | M1: After Rounding Correction
A2: Plant Name | B2: State | C2: ORIS ID | D2: Boiler ID | E2: Pro-Rated 2023 NOx OS Allocation (tons) | F2: 2023 NOx OS Allocation (tons) | G2: 2024 NOx OS Allocation (tons) | H2: Illustrative 2026 NOx OS Allocation (tons) | I2: Pro-Rated 2023 NOx OS Allocation (tons) | J2: 2023 NOx OS Allocation (tons) | K2: 2024 NOx OS Allocation (tons) | L2: Illustrative 2026 NOx OS Allocation (tons) | M2: Pro-Rated 2023 NOx OS Allocation (tons) | N2: 2023 NOx OS Allocation (tons) | O2: 2024 NOx OS Allocation (tons) | P2: Illustrative 2026 NOx OS Allocation (tons)
A3: AMEA Sylacauga Plant | B3: Alabama | C3: 56018 | D3: 1 | E3: 6 | F3: 5 | G3: 5 | H3: 5 | I3: 0 | J3: 0 | K3: 0 | L3: 0 | M3: =E3+I3 -> 6 | N3: =F3+J3 -> 5 | O3: =G3+K3 -> 5 | P3: =H3+L3 -> 5
A4: AMEA Sylacauga Plant | B4: Alabama | C4: 56018 | D4: 2 | E4: 6 | F4: 5 | G4: 5 | H4: 6 | I4: 0 | J4: 0 | K4: 0 | L4: 0 | M4: =E4+I4 -> 6 | N4: =F4+J4 -> 5 | O4: =G4+K4 -> 5 | P4: 6
A5: Barry | B5: Alabama | C5: 3 | D5: 4 | E5: 144 | F5: 132 | G5: 130 | H5: 134 | I5: 0 | J5: 0 | K5: 0 | L5: 0 | M5: 144 | N5: 132 | O5: 130 | P5: 134
A6: Barry | B6: Alabama | C6: 3 | D6: 5 | E6: 611 | F6: 560 | G6: 554 | H6: 569 | I6: 0 | J6: 0 | K6: 0 | L6: 0 | M6: 611 | N6: 560 | O6: 554 | P6: 569
A7: Barry | B7: Alabama | C7: 3 | D7: 6A | E7: 26 | F7: 26 | G7: 26 | H7: 26 | I7: 0 | J7: 0 | K7: 0 | L7: 0 | M7: 26 | N7: 26 | O7: 26 | P7: 26
A8: Barry | B8: Alabama | C8: 3 | D8: 6B | E8: 30 | F8: 30 | G8: 30 | H8: 30 | I8: 0 | J8: 0 | K8: 0 | L8: 0 | M8: 30 | N8: 30 | O8: 30 | P8: 30
A9: Barry | B9: Alabama | C9: 3 | D9: 7A | E9: 31 | F9: 31 | G9: 31 | H9: 31 | I9: 0 | J9: 0 | K9: 0 | L9: 0 | M9: 31 | N9: 31 | O9: 31 | P9: 31
A10: Barry | B10: Alabama | C10: 3 | D10: 7B | E10: 29 | F10: 29 | G10: 29 | H10: 29 | I10: 0 | J10: 0 | K10: 0 | L10: 0 | M10: 29 | N10: 29 | O10: 29 | P10: 29
A11: Calhoun Energy Center | B11: Alabama | C11: 55409 | D11: CT1 | E11: 15 | F11: 15 | G11: 15 | H11: 15 | I11: 0 | J11: 0 | K11: 0 | L11: 0 | M11: 15 | N11: 15 | O11: 15 | P11: 15
A12: Calhoun Energy Center | B12: Alabama | C12: 55409 | D12: CT2 | E12: 13 | F12: 13 | G12: 13 | H12: 13 | I12: 0 | J12: 0 | K12: 0 | L12: 0 | M12: 13 | N12: 13 | O12: 13 | P12: 13
A13: Calhoun Energy Center | B13: Alabama | C13: 55409 | D13: CT3 | E13: 13 | F13: 13 | G13: 13 | H13: 13 | I13: 0 | J13: 0 | K13: 0 | L13: 0 | M13: 13 | N13: 13 | O13: 13 | P13: 13
A14: Calhoun Energy Center | B14: Alabama | C14: 55409 | D14: CT4 | E14: 13 | F14: 13 | G14: 13 | H14: 13 | I14: 0 | J14: 0 | K14: 0 | L14: 0 | M14: 13 | N14: 13 | O14: 13 | P14: 13
A15: Central Alabama Gen Station | B15: Alabama | C15: 55440 | D15: CTGDB1 | E15: 31 | F15: 31 | G15: 31 | H15: 31 | I15: 0 | J15: 0 | K15: 0 | L15: 0 | M15: 31 | N15: 31 | O15: 31 | P15: 31
A16: Central Alabama Gen Station | B16: Alabama | C16: 55440 | D16: CTGDB2 | E16: 32 | F16: 32 | G16: 32 | H16: 32 | I16: 0 | J16: 0 | K16: 0 | L16: 0 | M16: 32 | N16: 32 | O16: 32 | P16: 32
A17: Central Alabama Gen Station | B17: Alabama | C17: 55440 | D17: CTGDB3 | E17: 61 | F17: 61 | G17: 61 | H17: 61 | I17: 0 | J17: 0 | K17: 0 | L17: 0 | M17: 61 | N17: 61 | O17: 61 | P17: 61
A18: Colbert | B18: Alabama | C18: 47 | D18: CCT1 | E18: 0 | F18: 0 | G18: 0 | H18: 0 | I18: 0 | J18: 0 | K18: 0 | L18: 0 | M18: 0 | N18: 0 | O18: 0 | P18: 0
A19: Colbert | B19: Alabama | C19: 47 | D19: CCT2 | E19: 0 | F19: 0 | G19: 0 | H19: 0 | I19: 0 | J19: 0 | K19: 0 | L19: 0 | M19: 0 | N19: 0 | O19: 0 | P19: 0
A20: Colbert | B20: Alabama | C20: 47 | D20: CCT3 | E20: 0 | F20: 0 | G20: 0 | H20: 0 | I20: 0 | J20: 0 | K20: 0 | L20: 0 | M20: 0 | N20: 0 | O20: 0 | P20: 0
A21: Colbert | B21: Alabama | C21: 47 | D21: CCT4 | E21: 0 | F21: 0 | G21: 0 | H21: 0 | I21: 0 | J21: 0 | K21: 0 | L21: 0 | M21: 0 | N21: 0 | O21: 0 | P21: 0
A22: Colbert | B22: Alabama | C22: 47 | D22: CCT5 | E22: 0 | F22: 0 | G22: 0 | H22: 0 | I22: 0 | J22: 0 | K22: 0 | L22: 0 | M22: 0 | N22: 0 | O22: 0 | P22: 0
A23: Colbert | B23: Alabama | C23: 47 | D23: CCT6 | E23: 0 | F23: 0 | G23: 0 | H23: 0 | I23: 0 | J23: 0 | K23: 0 | L23: 0 | M23: 0 | N23: 0 | O23: 0 | P23: 0
A24: Colbert | B24: Alabama | C24: 47 | D24: CCT7 | E24: 0 | F24: 0 | G24: 0 | H24: 0 | I24: 0 | J24: 0 | K24: 0 | L24: 0 | M24: 0 | N24: 0 | O24: 0 | P24: 0
A25: Colbert | B25: Alabama | C25: 47 | D25: CCT8 | E25: 0 | F25: 0 | G25: 0 | H25: 0 | I25: 0 | J25: 0 | K25: 0 | L25: 0 | M25: 0 | N25: 0 | O25: 0 | P25: 0
A26: Decatur Energy Center | B26: Alabama | C26: 55292 | D26: CTG-1 | E26: 14 | F26: 14 | G26: 14 | H26: 11 | I26: 0 | J26: 0 | K26: 0 | L26: 0 | M26: 14 | N26: 14 | O26: 14 | P26: 11
A27: Decatur Energy Center | B27: Alabama | C27: 55292 | D27: CTG-2 | E27: 14 | F27: 14 | G27: 14 | H27: 13 | I27: 0 | J27: 0 | K27: 0 | L27: 0 | M27: 14 | N27: 14 | O27: 14 | P27: 13
A28: Decatur Energy Center | B28: Alabama | C28: 55292 | D28: CTG-3 | E28: 16 | F28: 16 | G28: 16 | H28: 14 | I28: 0 | J28: 0 | K28: 0 | L28: 0 | M28: 16 | N28: 16 | O28: 16 | P28: 14
A29: E B Harris Generating Plant | B29: Alabama | C29: 7897 | D29: 1A | E29: 29 | F29: 29 | G29: 29 | H29: 29 | I29: 0 | J29: 0 | K29: 0 | L29: 0 | M29: 29 | N29: 29 | O29: 29 | P29: 29
A30: E B Harris Generating Plant | B30: Alabama | C30: 7897 | D30: 1B | E30: 28 | F30: 28 | G30: 28 | H30: 27 | I30: 0 | J30: 0 | K30: 0 | L30: 0 | M30: 28 | N30: 28 | O30: 28 | P30: 27
A31: E B Harris Generating Plant | B31: Alabama | C31: 7897 | D31: 2A | E31: 27 | F31: 27 | G31: 27 | H31: 27 | I31: 0 | J31: 0 | K31: 0 | L31: 0 | M31: 27 | N31: 27 | O31: 27 | P31: 27
A32: E B Harris Generating Plant | B32: Alabama | C32: 7897 | D32: 2B | E32: 27 | F32: 27 | G32: 27 | H32: 27 | I32: 0 | J32: 0 | K32: 0 | L32: 0 | M32: 27 | N32: 27 | O32: 27 | P32: 27
A33: E C Gaston | B33: Alabama | C33: 26 | D33: 1 | E33: 138 | F33: 126 | G33: 125 | H33: 128 | I33: 0 | J33: 0 | K33: 0 | L33: 0 | M33: 138 | N33: 126 | O33: 125 | P33: 128
A34: E C Gaston | B34: Alabama | C34: 26 | D34: 2 | E34: 173 | F34: 159 | G34: 157 | H34: 162 | I34: 0 | J34: 0 | K34: 0 | L34: 0 | M34: 173 | N34: 159 | O34: 157 | P34: 162
A35: E C Gaston | B35: Alabama | C35: 26 | D35: 3 | E35: 152 | F35: 139 | G35: 138 | H35: 141 | I35: 0 | J35: 0 | K35: 0 | L35: 0 | M35: 152 | N35: 139 | O35: 138 | P35: 141
A36: E C Gaston | B36: Alabama | C36: 26 | D36: 4 | E36: 137 | F36: 126 | G36: 124 | H36: 128 | I36: 0 | J36: 0 | K36: 0 | L36: 0 | M36: 137 | N36: 126 | O36: 124 | P36: 128
A37: E C Gaston | B37: Alabama | C37: 26 | D37: 5 | E37: 598 | F37: 548 | G37: 542 | H37: 557 | I37: 0 | J37: 0 | K37: 0 | L37: 0 | M37: 598 | N37: 548 | O37: 542 | P37: 557
A38: Greene County | B38: Alabama | C38: 10 | D38: 1 | E38: 126 | F38: 116 | G38: 115 | H38: 118 | I38: 0 | J38: 0 | K38: 0 | L38: 0 | M38: 126 | N38: 116 | O38: 115 | P38: 118
A39: Greene County | B39: Alabama | C39: 10 | D39: 2 | E39: 122 | F39: 112 | G39: 111 | H39: 114 | I39: 0 | J39: 0 | K39: 0 | L39: 0 | M39: 122 | N39: 112 | O39: 111 | P39: 114
A40: Greene County | B40: Alabama | C40: 10 | D40: CT10 | E40: 2 | F40: 1 | G40: 1 | H40: 1 | I40: 0 | J40: 0 | K40: 0 | L40: 0 | M40: 2 | N40: 1 | O40: 1 | P40: 1
A41: Greene County | B41: Alabama | C41: 10 | D41: CT2 | E41: 2 | F41: 2 | G41: 2 | H41: 2 | I41: 0 | J41: 0 | K41: 0 | L41: 0 | M41: 2 | N41: 2 | O41: 2 | P41: 2
A42: Greene County | B42: Alabama | C42: 10 | D42: CT3 | E42: 2 | F42: 2 | G42: 2 | H42: 2 | I42: 0 | J42: 0 | K42: 0 | L42: 0 | M42: 2 | N42: 2 | O42: 2 | P42: 2
A43: Greene County | B43: Alabama | C43: 10 | D43: CT4 | E43: 3 | F43: 3 | G43: 3 | H43: 3 | I43: 0 | J43: 0 | K43: 0 | L43: 0 | M43: 3 | N43: 3 | O43: 3 | P43: 3
A44: Greene County | B44: Alabama | C44: 10 | D44: CT5 | E44: 2 | F44: 2 | G44: 2 | H44: 2 | I44: 0 | J44: 0 | K44: 0 | L44: 0 | M44: 2 | N44: 2 | O44: 2 | P44: 2
A45: Greene County | B45: Alabama | C45: 10 | D45: CT6 | E45: 3 | F45: 3 | G45: 3 | H45: 3 | I45: 0 | J45: 0 | K45: 0 | L45: 0 | M45: 3 | N45: 3 | O45: 3 | P45: 3
A46: Greene County | B46: Alabama | C46: 10 | D46: CT7 | E46: 3 | F46: 2 | G46: 2 | H46: 3 | I46: 0 | J46: 0 | K46: 0 | L46: 0 | M46: 3 | N46: 2 | O46: 2 | P46: 3
A47: Greene County | B47: Alabama | C47: 10 | D47: CT8 | E47: 1 | F47: 1 | G47: 1 | H47: 1 | I47: 0 | J47: 0 | K47: 0 | L47: 0 | M47: 1 | N47: 1 | O47: 1 | P47: 1
A48: Greene County | B48: Alabama | C48: 10 | D48: CT9 | E48: 1 | F48: 1 | G48: 1 | H48: 1 | I48: 0 | J48: 0 | K48: 0 | L48: 0 | M48: 1 | N48: 1 | O48: 1 | P48: 1
A49: Hillabee Energy Center | B49: Alabama | C49: 55411 | D49: CT1 | E49: 36 | F49: 36 | G49: 36 | H49: 32 | I49: 0 | J49: 0 | K49: 0 | L49: 0 | M49: 36 | N49: 36 | O49: 36 | P49: 32
A50: Hillabee Energy Center | B50: Alabama | C50: 55411 | D50: CT2 | E50: 37 | F50: 37 | G50: 37 | H50: 32 | I50: 0 | J50: 0 | K50: 0 | L50: 0 | M50: 37 | N50: 37 | O50: 37 | P50: 32
A51: Hog Bayou Energy Center | B51: Alabama | C51: 55241 | D51: COG01 | E51: 27 | F51: 27 | G51: 27 | H51: 27 | I51: 0 | J51: 0 | K51: 0 | L51: 0 | M51: 27 | N51: 27 | O51: 27 | P51: 27
A52: James H Miller Jr | B52: Alabama | C52: 6002 | D52: 1 | E52: 730 | F52: 670 | G52: 662 | H52: 680 | I52: 1 | J52: 1 | K52: 1 | L52: 0 | M52: 731 | N52: 671 | O52: 663 | P52: 680
A53: James H Miller Jr | B53: Alabama | C53: 6002 | D53: 2 | E53: 840 | F53: 771 | G53: 762 | H53: 783 | I53: 1 | J53: 1 | K53: 1 | L53: -1 | M53: 841 | N53: 772 | O53: 763 | P53: 782
A54: James H Miller Jr | B54: Alabama | C54: 6002 | D54: 3 | E54: 778 | F54: 714 | G54: 706 | H54: 725 | I54: 1 | J54: 1 | K54: 1 | L54: 0 | M54: 779 | N54: 715 | O54: 707 | P54: 725
A55: James H Miller Jr | B55: Alabama | C55: 6002 | D55: 4 | E55: 817 | F55: 750 | G55: 741 | H55: 761 | I55: 1 | J55: 1 | K55: 1 | L55: 0 | M55: 818 | N55: 751 | O55: 742 | P55: 761
A56: McIntosh (7063) | B56: Alabama | C56: 7063 | D56: **1 | E56: 1 | F56: 1 | G56: 1 | H56: 1 | I56: 0 | J56: 0 | K56: 0 | L56: 0 | M56: 1 | N56: 1 | O56: 1 | P56: 1
A57: McIntosh (7063) | B57: Alabama | C57: 7063 | D57: **2 | E57: 7 | F57: 7 | G57: 7 | H57: 7 | I57: 0 | J57: 0 | K57: 0 | L57: 0 | M57: 7 | N57: 7 | O57: 7 | P57: 7
A58: McIntosh (7063) | B58: Alabama | C58: 7063 | D58: **3 | E58: 12 | F58: 11 | G58: 11 | H58: 12 | I58: 0 | J58: 0 | K58: 0 | L58: 0 | M58: 12 | N58: 11 | O58: 11 | P58: 12
A59: McIntosh (7063) | B59: Alabama | C59: 7063 | D59: **4 | E59: 40 | F59: 40 | G59: 40 | H59: 40 | I59: 0 | J59: 0 | K59: 0 | L59: 0 | M59: 40 | N59: 40 | O59: 40 | P59: 40
A60: McIntosh (7063) | B60: Alabama | C60: 7063 | D60: **5 | E60: 29 | F60: 29 | G60: 29 | H60: 29 | I60: 0 | J60: 0 | K60: 0 | L60: 0 | M60: 29 | N60: 29 | O60: 29 | P60: 29
A61: McWilliams | B61: Alabama | C61: 533 | D61: **4 | E61: 50 | F61: 50 | G61: 50 | H61: 45 | I61: 0 | J61: 0 | K61: 0 | L61: 0 | M61: 50 | N61: 50 | O61: 50 | P61: 45
A62: McWilliams | B62: Alabama | C62: 533 | D62: **V1 | E62: 34 | F62: 34 | G62: 34 | H62: 34 | I62: 0 | J62: 0 | K62: 0 | L62: 0 | M62: 34 | N62: 34 | O62: 34 | P62: 34
A63: McWilliams | B63: Alabama | C63: 533 | D63: **V2 | E63: 36 | F63: 36 | G63: 36 | H63: 36 | I63: 0 | J63: 0 | K63: 0 | L63: 0 | M63: 36 | N63: 36 | O63: 36 | P63: 36
A64: Morgan Energy Center | B64: Alabama | C64: 55293 | D64: CT-1 | E64: 19 | F64: 19 | G64: 19 | H64: 19 | I64: 0 | J64: 0 | K64: 0 | L64: 0 | M64: 19 | N64: 19 | O64: 19 | P64: 19
A65: Morgan Energy Center | B65: Alabama | C65: 55293 | D65: CT-2 | E65: 21 | F65: 21 | G65: 21 | H65: 20 | I65: 0 | J65: 0 | K65: 0 | L65: 0 | M65: 21 | N65: 21 | O65: 21 | P65: 20
A66: Morgan Energy Center | B66: Alabama | C66: 55293 | D66: CT-3 | E66: 24 | F66: 24 | G66: 24 | H66: 19 | I66: 0 | J66: 0 | K66: 0 | L66: 0 | M66: 24 | N66: 24 | O66: 24 | P66: 19
A67: Plant H. Allen Franklin | B67: Alabama | C67: 7710 | D67: 1A | E67: 30 | F67: 30 | G67: 30 | H67: 27 | I67: 0 | J67: 0 | K67: 0 | L67: 0 | M67: 30 | N67: 30 | O67: 30 | P67: 27
A68: Plant H. Allen Franklin | B68: Alabama | C68: 7710 | D68: 1B | E68: 27 | F68: 27 | G68: 27 | H68: 27 | I68: 0 | J68: 0 | K68: 0 | L68: 0 | M68: =E68+I68 -> 27 | N68: =F68+J68 -> 27 | O68: =G68+K68 -> 27 | P68: 27
A69: Plant H. Allen Franklin | B69: Alabama | C69: 7710 | D69: 2A | E69: 30 | F69: 30 | G69: 30 | H69: 30 | I69: 0 | J69: 0 | K69: 0 | L69: 0 | M69: 30 | N69: 30 | O69: 30 | P69: 30
A70: Plant H. Allen Franklin | B70: Alabama | C70: 7710 | D70: 2B | E70: 29 | F70: 29 | G70: 29 | H70: 29 | I70: 0 | J70: 0 | K70: 0 | L70: 0 | M70: 29 | N70: 29 | O70: 29 | P70: 29
A71: Plant H. Allen Franklin | B71: Alabama | C71: 7710 | D71: 3A | E71: 31 | F71: 31 | G71: 31 | H71: 31 | I71: 0 | J71: 0 | K71: 0 | L71: 0 | M71: 31 | N71: 31 | O71: 31 | P71: 31
A72: Plant H. Allen Franklin | B72: Alabama | C72: 7710 | D72: 3B | E72: 32 | F72: 32 | G72: 32 | H72: 32 | I72: 0 | J72: 0 | K72: 0 | L72: 0 | M72: 32 | N72: 32 | O72: 32 | P72: 32
A73: SABIC Innovative Plastics - Burkville | B73: Alabama | C73: 7698 | D73: CC1 | E73: 37 | F73: 37 | G73: 37 | H73: 37 | I73: 0 | J73: 0 | K73: 0 | L73: 0 | M73: 37 | N73: 37 | O73: 37 | P73: 37
A74: Tenaska Lindsay Hill Generating Station | B74: Alabama | C74: 55271 | D74: CT1 | E74: 20 | F74: 20 | G74: 20 | H74: 10 | I74: 0 | J74: 0 | K74: 0 | L74: 0 | M74: 20 | N74: 20 | O74: 20 | P74: 10
A75: Tenaska Lindsay Hill Generating Station | B75: Alabama | C75: 55271 | D75: CT2 | E75: 25 | F75: 25 | G75: 25 | H75: 14 | I75: 0 | J75: 0 | K75: 0 | L75: 0 | M75: 25 | N75: 25 | O75: 25 | P75: 14
A76: Tenaska Lindsay Hill Generating Station | B76: Alabama | C76: 55271 | D76: CT3 | E76: 24 | F76: 24 | G76: 24 | H76: 24 | I76: 0 | J76: 0 | K76: 0 | L76: 0 | M76: 24 | N76: 24 | O76: 24 | P76: 24
A77: Theodore Cogeneration | B77: Alabama | C77: 7721 | D77: CC1 | E77: 23 | F77: 23 | G77: 23 | H77: 23 | I77: 0 | J77: 0 | K77: 0 | L77: 0 | M77: 23 | N77: 23 | O77: 23 | P77: 23
A78: Washington County Cogen (Olin) | B78: Alabama | C78: 7697 | D78: CC1 | E78: 90 | F78: 90 | G78: 90 | H78: 73 | I78: 0 | J78: 0 | K78: 0 | L78: 0 | M78: 90 | N78: 90 | O78: 90 | P78: 73
A79: City Water & Light - City of Jonesboro | B79: Arkansas | C79: 56505 | D79: SN04 | E79: 4 | F79: 4 | G79: 4 | H79: 1 | I79: 0 | J79: 0 | K79: 0 | L79: 0 | M79: 4 | N79: 4 | O79: 4 | P79: 1
A80: City Water & Light - City of Jonesboro | B80: Arkansas | C80: 56505 | D80: SN06 | E80: 4 | F80: 4 | G80: 4 | H80: 2 | I80: 0 | J80: 0 | K80: 0 | L80: 0 | M80: 4 | N80: 4 | O80: 4 | P80: 2
A81: City Water & Light - City of Jonesboro | B81: Arkansas | C81: 56505 | D81: SN07 | E81: 4 | F81: 4 | G81: 4 | H81: 2 | I81: 0 | J81: 0 | K81: 0 | L81: 0 | M81: 4 | N81: 4 | O81: 4 | P81: 2
A82: Dell Power Plant | B82: Arkansas | C82: 55340 | D82: 1 | E82: 24 | F82: 24 | G82: 24 | H82: 24 | I82: 0 | J82: 0 | K82: 0 | L82: 0 | M82: 24 | N82: 24 | O82: 24 | P82: 24
A83: Dell Power Plant | B83: Arkansas | C83: 55340 | D83: 2 | E83: 25 | F83: 25 | G83: 25 | H83: 25 | I83: 0 | J83: 0 | K83: 0 | L83: 0 | M83: 25 | N83: 25 | O83: 25 | P83: 25
A84: Flint Creek Power Plant | B84: Arkansas | C84: 6138 | D84: 1 | E84: 864 | F84: 862 | G84: 862 | H84: 313 | I84: 0 | J84: 0 | K84: 0 | L84: 0 | M84: 864 | N84: 862 | O84: 862 | P84: 313
A85: Fulton | B85: Arkansas | C85: 7825 | D85: CT1 | E85: 29 | F85: 29 | G85: 29 | H85: 18 | I85: 0 | J85: 0 | K85: 0 | L85: 0 | M85: 29 | N85: 29 | O85: 29 | P85: 18
A86: Harry D. Mattison Power Plant | B86: Arkansas | C86: 56328 | D86: 1 | E86: 6 | F86: 6 | G86: 6 | H86: 3 | I86: 0 | J86: 0 | K86: 0 | L86: 0 | M86: 6 | N86: 6 | O86: 6 | P86: 3
A87: Harry D. Mattison Power Plant | B87: Arkansas | C87: 56328 | D87: 2 | E87: 7 | F87: 7 | G87: 7 | H87: 4 | I87: 0 | J87: 0 | K87: 0 | L87: 0 | M87: 7 | N87: 7 | O87: 7 | P87: 4
A88: Harry D. Mattison Power Plant | B88: Arkansas | C88: 56328 | D88: 3 | E88: 11 | F88: 11 | G88: 11 | H88: 4 | I88: 0 | J88: 0 | K88: 0 | L88: 0 | M88: 11 | N88: 11 | O88: 11 | P88: 4
A89: Harry D. Mattison Power Plant | B89: Arkansas | C89: 56328 | D89: 4 | E89: 13 | F89: 13 | G89: 13 | H89: 5 | I89: 0 | J89: 0 | K89: 0 | L89: 0 | M89: 13 | N89: 13 | O89: 13 | P89: 5
A90: Hot Spring Energy Facility | B90: Arkansas | C90: 55418 | D90: CT-1 | E90: 34 | F90: 34 | G90: 34 | H90: 34 | I90: 0 | J90: 0 | K90: 0 | L90: 0 | M90: 34 | N90: 34 | O90: 34 | P90: 34
A91: Hot Spring Energy Facility | B91: Arkansas | C91: 55418 | D91: CT-2 | E91: 34 | F91: 34 | G91: 34 | H91: 34 | I91: 0 | J91: 0 | K91: 0 | L91: 0 | M91: 34 | N91: 34 | O91: 34 | P91: 34
A92: Independence | B92: Arkansas | C92: 6641 | D92: 1 | E92: 1,267 | F92: 1,263 | G92: 1,263 | H92: 459 | I92: 0 | J92: -1 | K92: -1 | L92: 0 | M92: 1,267 | N92: 1,262 | O92: 1,262 | P92: 459
A93: Independence | B93: Arkansas | C93: 6641 | D93: 2 | E93: 1,520 | F93: 1,515 | G93: 1,515 | H93: 550 | I93: -1 | J93: -1 | K93: -1 | L93: -1 | M93: 1,519 | N93: 1,514 | O93: 1,514 | P93: 549
A94: John W. Turk Jr. Power Plant | B94: Arkansas | C94: 56564 | D94: SN-01 | E94: 364 | F94: 364 | G94: 364 | H94: 364 | I94: 0 | J94: 0 | K94: 0 | L94: 0 | M94: 364 | N94: 364 | O94: 364 | P94: 364
A95: Lake Catherine | B95: Arkansas | C95: 170 | D95: 4 | E95: 182 | F95: 182 | G95: 182 | I95: 0 | J95: 0 | K95: 0 | L95: 0 | M95: 182 | N95: 182 | O95: 182 | P95: 0
A96: Magnet Cove Generating Station | B96: Arkansas | C96: 55714 | D96: SN-01 | E96: 31 | F96: 31 | G96: 31 | H96: 31 | I96: 0 | J96: 0 | K96: 0 | L96: 0 | M96: 31 | N96: 31 | O96: 31 | P96: 31
A97: Magnet Cove Generating Station | B97: Arkansas | C97: 55714 | D97: SN-02 | E97: 34 | F97: 34 | G97: 34 | H97: 34 | I97: 0 | J97: 0 | K97: 0 | L97: 0 | M97: 34 | N97: 34 | O97: 34 | P97: 34
A98: McClellan | B98: Arkansas | C98: 203 | D98: 01 | E98: 30 | F98: 30 | G98: 30 | H98: 11 | I98: 0 | J98: 0 | K98: 0 | L98: 0 | M98: 30 | N98: 30 | O98: 30 | P98: 11
A99: Oswald Generating Station | B99: Arkansas | C99: 55221 | D99: G1 | E99: 24 | F99: 24 | G99: 24 | H99: 9 | I99: 0 | J99: 0 | K99: 0 | L99: 0 | M99: 24 | N99: 24 | O99: 24 | P99: 9
A100: Oswald Generating Station | B100: Arkansas | C100: 55221 | D100: G2 | E100: 23 | F100: 23 | G100: 23 | H100: 8 | I100: 0 | J100: 0 | K100: 0 | L100: 0 | M100: 23 | N100: 23 | O100: 23 | P100: 8
A101: Oswald Generating Station | B101: Arkansas | C101: 55221 | D101: G3 | E101: 24 | F101: 24 | G101: 24 | H101: 9 | I101: 0 | J101: 0 | K101: 0 | L101: 0 | M101: 24 | N101: 24 | O101: 24 | P101: 9
A102: Oswald Generating Station | B102: Arkansas | C102: 55221 | D102: G4 | E102: 25 | F102: 25 | G102: 25 | H102: 9 | I102: 0 | J102: 0 | K102: 0 | L102: 0 | M102: 25 | N102: 25 | O102: 25 | P102: 9
A103: Oswald Generating Station | B103: Arkansas | C103: 55221 | D103: G5 | E103: 25 | F103: 25 | G103: 25 | H103: 9 | I103: 0 | J103: 0 | K103: 0 | L103: 0 | M103: 25 | N103: 25 | O103: 25 | P103: 9
A104: Oswald Generating Station | B104: Arkansas | C104: 55221 | D104: G6 | E104: 25 | F104: 25 | G104: 25 | H104: 9 | I104: 0 | J104: 0 | K104: 0 | L104: 0 | M104: 25 | N104: 25 | O104: 25 | P104: 9
A105: Oswald Generating Station | B105: Arkansas | C105: 55221 | D105: G7 | E105: 55 | F105: 55 | G105: 55 | H105: 20 | I105: 0 | J105: 0 | K105: 0 | L105: 0 | M105: 55 | N105: 55 | O105: 55 | P105: 20
A106: Pine Bluff Energy Center | B106: Arkansas | C106: 55075 | D106: CT-1 | E106: 92 | F106: 92 | G106: 92 | H106: 92 | I106: 0 | J106: 0 | K106: 0 | L106: 0 | M106: 92 | N106: 92 | O106: 92 | P106: 92
A107: Plum Point Energy Station | B107: Arkansas | C107: 56456 | D107: 1 | E107: 914 | F107: 914 | G107: 914 | H107: 490 | I107: 0 | J107: 0 | K107: 0 | L107: 0 | M107: 914 | N107: 914 | O107: 914 | P107: 490
A108: Thomas Fitzhugh | B108: Arkansas | C108: 201 | D108: 2 | E108: 79 | F108: 79 | G108: 79 | H108: 40 | I108: 0 | J108: 0 | K108: 0 | L108: 0 | M108: 79 | N108: 79 | O108: 79 | P108: 40
A109: Union Power Station | B109: Arkansas | C109: 55380 | D109: CTG-1 | E109: 34 | F109: 34 | G109: 34 | H109: 34 | I109: 0 | J109: 0 | K109: 0 | L109: 0 | M109: 34 | N109: 34 | O109: 34 | P109: 34
A110: Union Power Station | B110: Arkansas | C110: 55380 | D110: CTG-2 | E110: 35 | F110: 35 | G110: 35 | H110: 35 | I110: 0 | J110: 0 | K110: 0 | L110: 0 | M110: 35 | N110: 35 | O110: 35 | P110: 35
A111: Union Power Station | B111: Arkansas | C111: 55380 | D111: CTG-3 | E111: 31 | F111: 31 | G111: 31 | H111: 31 | I111: 0 | J111: 0 | K111: 0 | L111: 0 | M111: 31 | N111: 31 | O111: 31 | P111: 31
A112: Union Power Station | B112: Arkansas | C112: 55380 | D112: CTG-4 | E112: 30 | F112: 30 | G112: 30 | H112: 30 | I112: 0 | J112: 0 | K112: 0 | L112: 0 | M112: 30 | N112: 30 | O112: 30 | P112: 30
A113: Union Power Station | B113: Arkansas | C113: 55380 | D113: CTG-5 | E113: 31 | F113: 31 | G113: 31 | H113: 31 | I113: 0 | J113: 0 | K113: 0 | L113: 0 | M113: 31 | N113: 31 | O113: 31 | P113: 31
A114: Union Power Station | B114: Arkansas | C114: 55380 | D114: CTG-6 | E114: 30 | F114: 30 | G114: 30 | H114: 30 | I114: 0 | J114: 0 | K114: 0 | L114: 0 | M114: 30 | N114: 30 | O114: 30 | P114: 30
A115: Union Power Station | B115: Arkansas | C115: 55380 | D115: CTG-7 | E115: 31 | F115: 31 | G115: 31 | H115: 31 | I115: 0 | J115: 0 | K115: 0 | L115: 0 | M115: 31 | N115: 31 | O115: 31 | P115: 31
A116: Union Power Station | B116: Arkansas | C116: 55380 | D116: CTG-8 | E116: 30 | F116: 30 | G116: 30 | H116: 30 | I116: 0 | J116: 0 | K116: 0 | L116: 0 | M116: 30 | N116: 30 | O116: 30 | P116: 30
A117: White Bluff | B117: Arkansas | C117: 6009 | D117: 1 | E117: 1,448 | F117: 1,444 | G117: 1,444 | H117: 524 | I117: -1 | J117: -1 | K117: -1 | L117: 0 | M117: 1,447 | N117: 1,443 | O117: 1,443 | P117: 524
A118: White Bluff | B118: Arkansas | C118: 6009 | D118: 2 | E118: 1,261 | F118: 1,257 | G118: 1,257 | H118: 457 | I118: 0 | J118: -1 | K118: -1 | L118: 0 | M118: 1,261 | N118: 1,256 | O118: 1,256 | P118: 457
A119: Christiana Substation | B119: Delaware | C119: 591 | D119: 11 | E119: 0 | F119: 0 | G119: 0 | H119: 0 | I119: 0 | J119: 0 | K119: 0 | L119: 0 | M119: 0 | N119: 0 | O119: 0 | P119: 0
A120: Christiana Substation | B120: Delaware | C120: 591 | D120: 14 | E120: 0 | F120: 0 | G120: 0 | H120: 0 | I120: 0 | J120: 0 | K120: 0 | L120: 0 | M120: 0 | N120: 0 | O120: 0 | P120: 0
A121: Delaware City Refinery | B121: Delaware | C121: 52193 | D121: DCPP4 | E121: 25 | F121: 27 | G121: 30 | H121: 30 | I121: 0 | J121: 0 | K121: 0 | L121: 0 | M121: 25 | N121: 27 | O121: 30 | P121: 30
A122: Edge Moor | B122: Delaware | C122: 593 | D122: 3 | E122: 8 | F122: 9 | G122: 11 | H122: 13 | I122: 0 | J122: 0 | K122: 0 | L122: 0 | M122: 8 | N122: 9 | O122: 11 | P122: 13
A123: Edge Moor | B123: Delaware | C123: 593 | D123: 4 | E123: 12 | F123: 14 | G123: 16 | H123: 20 | I123: 0 | J123: 0 | K123: 0 | L123: 0 | M123: 12 | N123: 14 | O123: 16 | P123: 20
A124: Edge Moor | B124: Delaware | C124: 593 | D124: 5 | E124: 26 | F124: 29 | G124: 35 | H124: 43 | I124: 0 | J124: 0 | K124: 0 | L124: 0 | M124: 26 | N124: 29 | O124: 35 | P124: 43
A125: Energy Center Dover LLC | B125: Delaware | C125: 10030 | D125: 2 | E125: 2 | F125: 2 | G125: 2 | H125: 2 | I125: 0 | J125: 0 | K125: 0 | L125: 0 | M125: 2 | N125: 2 | O125: 2 | P125: 2
A126: Energy Center Dover LLC | B126: Delaware | C126: 10030 | D126: 3 | E126: 3 | F126: 3 | G126: 4 | H126: 5 | I126: 0 | J126: 0 | K126: 0 | L126: 0 | M126: 3 | N126: 3 | O126: 4 | P126: 5
A127: Garrison Energy Center | B127: Delaware | C127: 57349 | D127: 1 | E127: 19 | F127: 19 | G127: 19 | H127: 19 | I127: 0 | J127: 0 | K127: 0 | L127: 0 | M127: 19 | N127: 19 | O127: 19 | P127: 19
A128: Hay Road | B128: Delaware | C128: 7153 | D128: **3 | E128: 37 | F128: 41 | G128: 49 | H128: 54 | I128: 0 | J128: 0 | K128: 0 | L128: 0 | M128: 37 | N128: 41 | O128: 49 | P128: 54
A129: Hay Road | B129: Delaware | C129: 7153 | D129: 1 | E129: 38 | F129: 42 | G129: 50 | H129: 61 | I129: 0 | J129: 1 | K129: 0 | L129: -1 | M129: 38 | N129: 43 | O129: 50 | P129: 60
A130: Hay Road | B130: Delaware | C130: 7153 | D130: 2 | E130: 36 | F130: 40 | G130: 47 | H130: 58 | I130: 0 | J130: 0 | K130: 0 | L130: -1 | M130: 36 | N130: 40 | O130: 47 | P130: 57
A131: Hay Road | B131: Delaware | C131: 7153 | D131: 5 | E131: 20 | F131: 20 | G131: 20 | H131: 20 | I131: 0 | J131: 0 | K131: 0 | L131: 0 | M131: 20 | N131: 20 | O131: 20 | P131: 20
A132: Hay Road | B132: Delaware | C132: 7153 | D132: 6 | E132: 18 | F132: 18 | G132: 18 | H132: 18 | I132: 0 | J132: 0 | K132: 0 | L132: 0 | M132: =E132+I132 -> 18 | N132: =F132+J132 -> 18 | O132: =G132+K132 -> 18 | P132: 18
A133: Hay Road | B133: Delaware | C133: 7153 | D133: 7 | E133: 22 | F133: 22 | G133: 22 | H133: 22 | I133: 0 | J133: 0 | K133: 0 | L133: 0 | M133: 22 | N133: 22 | O133: 22 | P133: 22
A134: Indian River | B134: Delaware | C134: 594 | D134: 4 | E134: 36 | F134: 40 | G134: 47 | H134: 58 | I134: 0 | J134: 0 | K134: 0 | L134: 0 | M134: 36 | N134: 40 | O134: 47 | P134: 58
A135: Van Sant | B135: Delaware | C135: 7318 | D135: **11 | E135: 1 | F135: 1 | G135: 1 | H135: 2 | I135: 0 | J135: 0 | K135: 0 | L135: 0 | M135: 1 | N135: 1 | O135: 1 | P135: 2
A136: Warren F. Sam Beasley Pwr Station | B136: Delaware | C136: 7962 | D136: 1 | E136: 1 | F136: 1 | G136: 1 | H136: 1 | I136: 0 | J136: 0 | K136: 0 | L136: 0 | M136: 1 | N136: 1 | O136: 1 | P136: 1
A137: Warren F. Sam Beasley Pwr Station | B137: Delaware | C137: 7962 | D137: 2 | E137: 1 | F137: 1 | G137: 1 | H137: 1 | I137: 0 | J137: 0 | K137: 0 | L137: 0 | M137: 1 | N137: 1 | O137: 1 | P137: 1
A138: Alsey Station | B138: Illinois | C138: 7818 | D138: ACT1 | E138: 1 | F138: 1 | G138: 1 | H138: 1 | I138: 0 | J138: 0 | K138: 0 | L138: 0 | M138: 1 | N138: 1 | O138: 1 | P138: 1
A139: Alsey Station | B139: Illinois | C139: 7818 | D139: ACT2 | E139: 1 | F139: 1 | G139: 1 | H139: 1 | I139: 0 | J139: 0 | K139: 0 | L139: 0 | M139: 1 | N139: 1 | O139: 1 | P139: 1
A140: Alsey Station | B140: Illinois | C140: 7818 | D140: ACT5 | E140: 1 | F140: 1 | G140: 1 | H140: 1 | I140: 0 | J140: 0 | K140: 0 | L140: 0 | M140: 1 | N140: 1 | O140: 1 | P140: 1
A141: Alsey Station | B141: Illinois | C141: 7818 | D141: ACT6 | E141: 4 | F141: 4 | G141: 4 | H141: 4 | I141: 0 | J141: 0 | K141: 0 | L141: 0 | M141: 4 | N141: 4 | O141: 4 | P141: 4
A142: Aurora | B142: Illinois | C142: 55279 | D142: AGS01 | E142: 25 | F142: 25 | G142: 25 | H142: 25 | I142: 0 | J142: 0 | K142: 0 | L142: 0 | M142: 25 | N142: 25 | O142: 25 | P142: 25
A143: Aurora | B143: Illinois | C143: 55279 | D143: AGS02 | E143: 18 | F143: 18 | G143: 18 | H143: 18 | I143: 0 | J143: 0 | K143: 0 | L143: 0 | M143: 18 | N143: 18 | O143: 18 | P143: 18
A144: Aurora | B144: Illinois | C144: 55279 | D144: AGS03 | E144: 19 | F144: 19 | G144: 19 | H144: 19 | I144: 0 | J144: 0 | K144: 0 | L144: 0 | M144: 19 | N144: 19 | O144: 19 | P144: 19
A145: Aurora | B145: Illinois | C145: 55279 | D145: AGS04 | E145: 22 | F145: 22 | G145: 22 | H145: 22 | I145: 0 | J145: 0 | K145: 0 | L145: 0 | M145: 22 | N145: 22 | O145: 22 | P145: 22
A146: Aurora | B146: Illinois | C146: 55279 | D146: AGS05 | E146: 14 | F146: 14 | G146: 14 | H146: 11 | I146: 0 | J146: 0 | K146: 0 | L146: 0 | M146: 14 | N146: 14 | O146: 14 | P146: 11
A147: Aurora | B147: Illinois | C147: 55279 | D147: AGS06 | E147: 14 | F147: 14 | G147: 14 | H147: 12 | I147: 0 | J147: 0 | K147: 0 | L147: 0 | M147: 14 | N147: 14 | O147: 14 | P147: 12
A148: Aurora | B148: Illinois | C148: 55279 | D148: AGS07 | E148: 14 | F148: 14 | G148: 14 | H148: 12 | I148: 0 | J148: 0 | K148: 0 | L148: 0 | M148: 14 | N148: 14 | O148: 14 | P148: 12
A149: Aurora | B149: Illinois | C149: 55279 | D149: AGS08 | E149: 13 | F149: 13 | G149: 14 | H149: 11 | I149: 0 | J149: 0 | K149: 0 | L149: 0 | M149: 13 | N149: 13 | O149: 14 | P149: 11
A150: Aurora | B150: Illinois | C150: 55279 | D150: AGS09 | E150: 14 | F150: 14 | G150: 14 | H150: 11 | I150: 0 | J150: 0 | K150: 0 | L150: 0 | M150: 14 | N150: 14 | O150: 14 | P150: 11
A151: Aurora | B151: Illinois | C151: 55279 | D151: AGS10 | E151: 14 | F151: 14 | G151: 14 | H151: 11 | I151: 0 | J151: 0 | K151: 0 | L151: 0 | M151: 14 | N151: 14 | O151: 14 | P151: 11
A152: Baldwin Energy Complex | B152: Illinois | C152: 889 | D152: 1 | E152: 519 | F152: 514 | G152: 523 | H152: 428 | I152: -1 | J152: -1 | K152: -1 | L152: 0 | M152: 518 | N152: 513 | O152: 522 | P152: 428
A153: Baldwin Energy Complex | B153: Illinois | C153: 889 | D153: 2 | E153: 549 | F153: 544 | G153: 554 | H153: 453 | I153: -1 | J153: -1 | K153: -1 | L153: 0 | M153: 548 | N153: 543 | O153: 553 | P153: 453
A154: Calumet Energy Team, LLC | B154: Illinois | C154: 55296 | D154: **1 | E154: 4 | F154: 4 | G154: 4 | H154: 3 | I154: 0 | J154: 0 | K154: 0 | L154: 0 | M154: 4 | N154: 4 | O154: 4 | P154: 3
A155: Calumet Energy Team, LLC | B155: Illinois | C155: 55296 | D155: **2 | E155: 4 | F155: 3 | G155: 4 | H155: 3 | I155: 0 | J155: 0 | K155: 0 | L155: 0 | M155: 4 | N155: 3 | O155: 4 | P155: 3
A156: Cordova Energy Company | B156: Illinois | C156: 55188 | D156: 1 | E156: 31 | F156: 31 | G156: 31 | H156: 31 | I156: 0 | J156: 0 | K156: 0 | L156: 0 | M156: 31 | N156: 31 | O156: 31 | P156: 31
A157: Cordova Energy Company | B157: Illinois | C157: 55188 | D157: 2 | E157: 29 | F157: 29 | G157: 29 | H157: 29 | I157: 0 | J157: 0 | K157: 0 | L157: 0 | M157: 29 | N157: 29 | O157: 29 | P157: 29
A158: Crete Energy Park | B158: Illinois | C158: 55253 | D158: GT1 | E158: 3 | F158: 3 | G158: 3 | H158: 3 | I158: 0 | J158: 0 | K158: 0 | L158: 0 | M158: 3 | N158: 3 | O158: 3 | P158: 3
A159: Crete Energy Park | B159: Illinois | C159: 55253 | D159: GT2 | E159: 4 | F159: 4 | G159: 4 | H159: 4 | I159: 0 | J159: 0 | K159: 0 | L159: 0 | M159: 4 | N159: 4 | O159: 4 | P159: 4
A160: Crete Energy Park | B160: Illinois | C160: 55253 | D160: GT3 | E160: 3 | F160: 3 | G160: 3 | H160: 3 | I160: 0 | J160: 0 | K160: 0 | L160: 0 | M160: 3 | N160: 3 | O160: 3 | P160: 3
A161: Crete Energy Park | B161: Illinois | C161: 55253 | D161: GT4 | E161: 3 | F161: 3 | G161: 3 | H161: 3 | I161: 0 | J161: 0 | K161: 0 | L161: 0 | M161: 3 | N161: 3 | O161: 3 | P161: 3
A162: Dallman | B162: Illinois | C162: 963 | D162: 4 | E162: 190 | F162: 188 | G162: 192 | H162: 157 | I162: 0 | J162: 0 | K162: 0 | L162: 0 | M162: 190 | N162: 188 | O162: 192 | P162: 157
A163: Elgin Energy Center, LLC | B163: Illinois | C163: 55438 | D163: CT01 | E163: 26 | F163: 26 | G163: 26 | H163: 22 | I163: 0 | J163: 0 | K163: 0 | L163: 0 | M163: 26 | N163: 26 | O163: 26 | P163: 22
A164: Elgin Energy Center, LLC | B164: Illinois | C164: 55438 | D164: CT02 | E164: 32 | F164: 32 | G164: 32 | H164: 26 | I164: 0 | J164: 0 | K164: 0 | L164: 0 | M164: 32 | N164: 32 | O164: 32 | P164: 26
A165: Elgin Energy Center, LLC | B165: Illinois | C165: 55438 | D165: CT03 | E165: 25 | F165: 25 | G165: 25 | H165: 21 | I165: 0 | J165: 0 | K165: 0 | L165: 0 | M165: 25 | N165: 25 | O165: 25 | P165: 21
A166: Elgin Energy Center, LLC | B166: Illinois | C166: 55438 | D166: CT04 | E166: 29 | F166: 29 | G166: 29 | H166: 24 | I166: 0 | J166: 0 | K166: 0 | L166: 0 | M166: 29 | N166: 29 | O166: 29 | P166: 24
A167: Elwood Energy Facility | B167: Illinois | C167: 55199 | D167: 1 | E167: 16 | F167: 16 | G167: 16 | H167: 15 | I167: 0 | J167: 0 | K167: 0 | L167: 0 | M167: 16 | N167: 16 | O167: 16 | P167: 15
A168: Elwood Energy Facility | B168: Illinois | C168: 55199 | D168: 2 | E168: 8 | F168: 8 | G168: 8 | H168: 8 | I168: 0 | J168: 0 | K168: 0 | L168: 0 | M168: 8 | N168: 8 | O168: 8 | P168: 8
A169: Elwood Energy Facility | B169: Illinois | C169: 55199 | D169: 3 | E169: 11 | F169: 11 | G169: 11 | H169: 11 | I169: 0 | J169: 0 | K169: 0 | L169: 0 | M169: 11 | N169: 11 | O169: 11 | P169: 11
A170: Elwood Energy Facility | B170: Illinois | C170: 55199 | D170: 4 | E170: 9 | F170: 9 | G170: 9 | H170: 9 | I170: 0 | J170: 0 | K170: 0 | L170: 0 | M170: 9 | N170: 9 | O170: 9 | P170: 9
A171: Elwood Energy Facility | B171: Illinois | C171: 55199 | D171: 5 | E171: 15 | F171: 15 | G171: 15 | H171: 14 | I171: 0 | J171: 0 | K171: 0 | L171: 0 | M171: 15 | N171: 15 | O171: 15 | P171: 14
A172: Elwood Energy Facility | B172: Illinois | C172: 55199 | D172: 6 | E172: 8 | F172: 8 | G172: 8 | H172: 8 | I172: 0 | J172: 0 | K172: 0 | L172: 0 | M172: 8 | N172: 8 | O172: 8 | P172: 8
A173: Elwood Energy Facility | B173: Illinois | C173: 55199 | D173: 7 | E173: 15 | F173: 15 | G173: 15 | H173: 15 | I173: 0 | J173: 0 | K173: 0 | L173: 0 | M173: 15 | N173: 15 | O173: 15 | P173: 15
A174: Elwood Energy Facility | B174: Illinois | C174: 55199 | D174: 8 | E174: 13 | F174: 13 | G174: 13 | H174: 13 | I174: 0 | J174: 0 | K174: 0 | L174: 0 | M174: 13 | N174: 13 | O174: 13 | P174: 13
A175: Elwood Energy Facility | B175: Illinois | C175: 55199 | D175: 9 | E175: 9 | F175: 9 | G175: 9 | H175: 9 | I175: 0 | J175: 0 | K175: 0 | L175: 0 | M175: 9 | N175: 9 | O175: 9 | P175: 9
A176: Factory Gas Turbine | B176: Illinois | C176: 8016 | D176: 2 | E176: 0 | F176: 0 | G176: 0 | H176: 0 | I176: 0 | J176: 0 | K176: 0 | L176: 0 | M176: 0 | N176: 0 | O176: 0 | P176: 0
A177: Fisk | B177: Illinois | C177: 886 | D177: 311 | E177: 0 | F177: 0 | G177: 0 | H177: 0 | I177: 0 | J177: 0 | K177: 0 | L177: 0 | M177: 0 | N177: 0 | O177: 0 | P177: 0
A178: Fisk | B178: Illinois | C178: 886 | D178: 312 | E178: 0 | F178: 0 | G178: 0 | H178: 0 | I178: 0 | J178: 0 | K178: 0 | L178: 0 | M178: 0 | N178: 0 | O178: 0 | P178: 0
A179: Fisk | B179: Illinois | C179: 886 | D179: 321 | E179: 0 | F179: 0 | G179: 0 | H179: 0 | I179: 0 | J179: 0 | K179: 0 | L179: 0 | M179: 0 | N179: 0 | O179: 0 | P179: 0
A180: Fisk | B180: Illinois | C180: 886 | D180: 322 | E180: 0 | F180: 0 | G180: 0 | H180: 0 | I180: 0 | J180: 0 | K180: 0 | L180: 0 | M180: 0 | N180: 0 | O180: 0 | P180: 0
A181: Fisk | B181: Illinois | C181: 886 | D181: 331 | E181: 0 | F181: 0 | G181: 0 | H181: 0 | I181: 0 | J181: 0 | K181: 0 | L181: 0 | M181: 0 | N181: 0 | O181: 0 | P181: 0
A182: Fisk | B182: Illinois | C182: 886 | D182: 332 | E182: 0 | F182: 0 | G182: 0 | H182: 0 | I182: 0 | J182: 0 | K182: 0 | L182: 0 | M182: 0 | N182: 0 | O182: 0 | P182: 0
A183: Fisk | B183: Illinois | C183: 886 | D183: 342 | E183: 0 | F183: 0 | G183: 0 | H183: 0 | I183: 0 | J183: 0 | K183: 0 | L183: 0 | M183: 0 | N183: 0 | O183: 0 | P183: 0
A184: Freedom Power Project | B184: Illinois | C184: 7842 | D184: CT1 | E184: 1 | F184: 0 | G184: 1 | H184: 0 | I184: 0 | J184: 0 | K184: 0 | L184: 0 | M184: 1 | N184: 0 | O184: 1 | P184: 0
A185: Gibson City Energy Center, LLC | B185: Illinois | C185: 55201 | D185: GCTG1 | E185: 23 | F185: 22 | G185: 23 | H185: 19 | I185: 0 | J185: 0 | K185: 0 | L185: 0 | M185: 23 | N185: 22 | O185: 23 | P185: 19
A186: Gibson City Energy Center, LLC | B186: Illinois | C186: 55201 | D186: GCTG2 | E186: 23 | F186: 23 | G186: 24 | H186: 19 | I186: 0 | J186: 0 | K186: 0 | L186: 0 | M186: 23 | N186: 23 | O186: 24 | P186: 19
A187: Goose Creek Power Plant | B187: Illinois | C187: 55496 | D187: CT-01 | E187: 1 | F187: 1 | G187: 1 | H187: 1 | I187: 0 | J187: 0 | K187: 0 | L187: 0 | M187: 1 | N187: 1 | O187: 1 | P187: 1
A188: Goose Creek Power Plant | B188: Illinois | C188: 55496 | D188: CT-02 | E188: 1 | F188: 1 | G188: 1 | H188: 1 | I188: 0 | J188: 0 | K188: 0 | L188: 0 | M188: 1 | N188: 1 | O188: 1 | P188: 1
A189: Goose Creek Power Plant | B189: Illinois | C189: 55496 | D189: CT-03 | E189: 1 | F189: 1 | G189: 1 | H189: 1 | I189: 0 | J189: 0 | K189: 0 | L189: 0 | M189: 1 | N189: 1 | O189: 1 | P189: 1
A190: Goose Creek Power Plant | B190: Illinois | C190: 55496 | D190: CT-04 | E190: 1 | F190: 1 | G190: 1 | H190: 1 | I190: 0 | J190: 0 | K190: 0 | L190: 0 | M190: 1 | N190: 1 | O190: 1 | P190: 1
A191: Goose Creek Power Plant | B191: Illinois | C191: 55496 | D191: CT-05 | E191: 1 | F191: 1 | G191: 1 | H191: 1 | I191: 0 | J191: 0 | K191: 0 | L191: 0 | M191: 1 | N191: 1 | O191: 1 | P191: 1
A192: Goose Creek Power Plant | B192: Illinois | C192: 55496 | D192: CT-06 | E192: 0 | F192: 0 | G192: 0 | H192: 0 | I192: 0 | J192: 0 | K192: 0 | L192: 0 | M192: 0 | N192: 0 | O192: 0 | P192: 0
A193: Holland Energy Facility | B193: Illinois | C193: 55334 | D193: CTG1 | E193: 25 | F193: 25 | G193: 25 | H193: 25 | I193: 0 | J193: 0 | K193: 0 | L193: 0 | M193: 25 | N193: 25 | O193: 25 | P193: 25
A194: Holland Energy Facility | B194: Illinois | C194: 55334 | D194: CTG2 | E194: 24 | F194: 24 | G194: 24 | H194: 24 | I194: 0 | J194: 0 | K194: 0 | L194: 0 | M194: 24 | N194: 24 | O194: 24 | P194: 24
A195: Joliet 29 | B195: Illinois | C195: 384 | D195: 71 | E195: 80 | F195: 80 | G195: 81 | H195: 66 | I195: 0 | J195: 0 | K195: 0 | L195: 0 | M195: 80 | N195: 80 | O195: 81 | P195: 66
A196: Joliet 29 | B196: Illinois | C196: 384 | D196: 72 | E196: 77 | F196: 76 | G196: 78 | H196: 64 | I196: 0 | J196: 0 | K196: 0 | L196: 0 | M196: =E196+I196 -> 77 | N196: =F196+J196 -> 76 | O196: =G196+K196 -> 78 | P196: 64
A197: Joliet 29 | B197: Illinois | C197: 384 | D197: 81 | E197: 72 | F197: 71 | G197: 72 | H197: 59 | I197: 0 | J197: 0 | K197: 0 | L197: 0 | M197: 72 | N197: 71 | O197: 72 | P197: 59
A198: Joliet 29 | B198: Illinois | C198: 384 | D198: 82 | E198: 78 | F198: 77 | G198: 78 | H198: 64 | I198: 0 | J198: 0 | K198: 0 | L198: 0 | M198: 78 | N198: 77 | O198: 78 | P198: 64
A199: Joliet 9 | B199: Illinois | C199: 874 | D199: 5 | E199: 7 | F199: 7 | G199: 7 | H199: 5 | I199: 0 | J199: 0 | K199: 0 | L199: 0 | M199: 7 | N199: 7 | O199: 7 | P199: 5
A200: Kendall Energy Facility | B200: Illinois | C200: 55131 | D200: GTG-1 | E200: 44 | F200: 44 | G200: 44 | H200: 44 | I200: 0 | J200: 0 | K200: 0 | L200: 0 | M200: 44 | N200: 44 | O200: 44 | P200: 44
... 2047 more rows

Sheet Underlying Data for FIP
F1: Step 1 | K1: Steps 2 & 3 | N1: Step 4 | Q1: Step 5 | T1: Step 6 | AB1: Step 7 | AG1: Step 8 | AH1: Steps 9 & 10 | AL1: Data Flags
A2: Plant Name | B2: State | C2: ORIS ID | D2: Boiler ID | E2: CAMD Unit ID | F2: 2017 Ozone Season Heat Input (mmBtu) | G2: 2018 Ozone Season Heat Input (mmBtu) | H2: 2019 Ozone Season Heat Input (mmBtu) | I2: 2020 Ozone Season Heat Input (mmBtu) | J2: 2021 Ozone Season Heat Input (mmBtu) | K2: Unit Level Average of 3 Highest Non-Zero Ozone Season Heat Inputs from 2017 to 2021 (mmBtu) for 2023 | L2: Unit Level Average of 3 Highest Non-Zero Ozone Season Heat Inputs from 2017 to 2021 (mmBtu) for 2024 | M2: Unit Level Average of 3 Highest Non-Zero Ozone Season Heat Inputs from 2017 to 2021 (mmBtu) for 2026 | N2: State Level Summation of Unit Level Three Year Average Ozone Season Heat Input (mmBtu) for 2023 | O2: State Level Summation of Unit Level Three Year Average Ozone Season Heat Input (mmBtu) for 2024 | P2: State Level Summation of Unit Level Three Year Average Ozone Season Heat Input (mmBtu) for 2026 | Q2: Unit 's Percentage Share of State's Ozone Season Heat Input for 2023 | R2: Unit 's Percentage Share of State's Ozone Season Heat Input for 2024 | S2: Unit 's Percentage Share of State's Ozone Season Heat Input for 2026 | T2: Ozone Season NOX Pro-Rated 2023 State Budget for Existing Units (tons) | U2: Ozone Season NOX 2023 State Budget for Existing Units (tons) | V2: Ozone Season NOX 2024 State Budget for Existing Units (tons) | W2: Ozone Season NOX Illustrative 2026 State Budget for Existing Units (tons) | X2: Tentative Heat Input Based Pro-Rated 2023 Ozone Season NOX Allocation (tons) | Y2: Tentative Heat Input Based 2023 Ozone Season NOX Allocation (tons) | Z2: Tentative Heat Input Based 2024 Ozone Season NOX Allocation (tons) | AA2: Tentative Heat Input Based Illustrative 2026 Ozone Season NOX Allocation (tons) | AB2: 2017 Ozone Season NOX Emissions (tons) | AC2: 2018 Ozone Season NOX Emissions (tons) | AD2: 2019 Ozone Season NOX Emissions (tons) | AE2: 2020 Ozone Season NOX Emissions (tons) | AF2: 2021 Ozone Season NOX Emissions (tons) | AG2: Ozone Season NOX Maximum Historic Baseline (tons) | AH2: Unit Level NOX Ozone Season Allocation Pro-Rated 2023 (tons) | AI2: Unit Level NOX Ozone Season Allocation 2023 (tons) | AJ2: Unit Level NOX Ozone Season Allocation 2024 (tons) | AK2: Illustrative Unit Level NOX Ozone Season Allocation 2026 (tons) | AL2: Existing Unit or Retired in 2023 | AM2: Existing Unit or Retired in 2024 | AN2: Existing Unit or Retired in 2026 | AO2: Additional (Not ARP or CSAPR) Unit? | AP2: Unit Not Subject to State's SIP Authority?
A3: Calculation | K3: Average of three highest non-zero values in columns F - J for Operating units | N3: Sum column K values to get State level totals | O3: Sum column L values to get State level totals | P3: Sum column M values to get State level totals | Q3: Column K divided by column N | R3: Column L divided by column O | S3: Column M divided by column P | X3: Column Q x column T | Y3: Column Q x column U | Z3: Column R x column V | AA3: Column S x column W | AG3: Highest value of columns AB - AF | AH3: (Lesser of columns AG and X + reapportionment if X < AG | AI3: (Lesser of columns AG and Y + reapportionment if Y < AG | AJ3: (Lesser of columns AG and Z + reapportionment if Z < AG | AK3: (Lesser of columns AG and AA + reapportionment if AA < AG
A4: AMEA Sylacauga Plant | B4: Alabama | C4: 56018 | D4: 1 | E4: 89313 | F4: 86,736 | G4: 129,234 | H4: 214,463 | I4: 135,283 | J4: 185,597 | K4: 178,448 | L4: 178,448 | M4: 178,448 | N4: 357,190,858 | O4: 357,190,858 | P4: 357,190,858 | Q4: 0.000500 | R4: 0.000500 | S4: 0.000500 | T4: 6,621 | U4: 6,173 | V4: 6,117 | W4: 6,180 | X4: 3 | Y4: 3 | Z4: 3 | AA4: 3 | AB4: 3 | AC4: 5 | AD4: 9 | AE4: 6 | AF4: 8 | AG4: 9 | AH4: 6 | AI4: 5 | AJ4: 5 | AK4: 5 | AL4: Existing Unit | AM4: Existing Unit | AN4: Existing Unit
A5: AMEA Sylacauga Plant | B5: Alabama | C5: 56018 | D5: 2 | E5: 89314 | F5: 92,254 | G5: 134,269 | H5: 219,533 | I5: 138,854 | J5: 186,691 | K5: 181,693 | L5: 181,693 | M5: 181,693 | N5: 357,190,858 | O5: 357,190,858 | P5: 357,190,858 | Q5: 0.000509 | R5: 0.000509 | S5: 0.000509 | T5: 6,621 | U5: 6,173 | V5: 6,117 | W5: 6,180 | X5: 3 | Y5: 3 | Z5: 3 | AA5: 3 | AB5: 4 | AC5: 5 | AD5: 9 | AE5: 6 | AF5: 8 | AG5: 9 | AH5: 6 | AI5: 5 | AJ5: 5 | AK5: 6 | AL5: Existing Unit | AM5: Existing Unit | AN5: Existing Unit
A6: Barry | B6: Alabama | C6: 3 | D6: 4 | E6: 4 | F6: 4,014,794 | G6: 5,720,072 | H6: 2,776,737 | I6: 153,023 | J6: 3,513,717 | K6: 4,416,194 | L6: 4,416,194 | M6: 4,416,194 | N6: 357,190,858 | O6: 357,190,858 | P6: 357,190,858 | Q6: 0.012364 | R6: 0.012364 | S6: 0.012364 | T6: 6,621 | U6: 6,173 | V6: 6,117 | W6: 6,180 | X6: 82 | Y6: 76 | Z6: 76 | AA6: 76 | AB6: 527 | AC6: 614 | AD6: 369 | AE6: 23 | AF6: 473 | AG6: 614 | AH6: 146 | AI6: 134 | AJ6: 132 | AK6: 134 | AL6: Existing Unit | AM6: Existing Unit | AN6: Existing Unit
A7: Barry | B7: Alabama | C7: 3 | D7: 5 | E7: 5 | F7: 16,298,133 | G7: 19,058,744 | H7: 16,604,503 | I7: 15,021,463 | J7: 20,662,771 | K7: 18,775,339 | L7: 18,775,339 | M7: 18,775,339 | N7: 357,190,858 | O7: 357,190,858 | P7: 357,190,858 | Q7: 0.052564 | R7: 0.052564 | S7: 0.052564 | T7: 6,621 | U7: 6,173 | V7: 6,117 | W7: 6,180 | X7: 348 | Y7: 324 | Z7: 322 | AA7: 325 | AB7: 536 | AC7: 562 | AD7: 564 | AE7: 541 | AF7: 698 | AG7: 698 | AH7: 619 | AI7: 568 | AJ7: 562 | AK7: 569 | AL7: Existing Unit | AM7: Existing Unit | AN7: Existing Unit
A8: Barry | B8: Alabama | C8: 3 | D8: 6A | E8: 6 | F8: 6,558,039 | G8: 6,251,771 | H8: 6,594,639 | I8: 5,459,204 | J8: 5,071,075 | K8: 6,468,150 | L8: 6,468,150 | M8: 6,468,150 | N8: 357,190,858 | O8: 357,190,858 | P8: 357,190,858 | Q8: 0.018108 | R8: 0.018108 | S8: 0.018108 | T8: 6,621 | U8: 6,173 | V8: 6,117 | W8: 6,180 | X8: 120 | Y8: 112 | Z8: 111 | AA8: 112 | AB8: 26 | AC8: 24 | AD8: 26 | AE8: 22 | AF8: 23 | AG8: 26 | AH8: 26 | AI8: 26 | AJ8: 26 | AK8: 26 | AL8: Existing Unit | AM8: Existing Unit | AN8: Existing Unit
A9: Barry | B9: Alabama | C9: 3 | D9: 6B | E9: 7 | F9: 6,541,814 | G9: 6,279,479 | H9: 6,761,765 | I9: 6,718,678 | J9: 6,566,771 | K9: 6,682,404 | L9: 6,682,404 | M9: 6,682,404 | N9: 357,190,858 | O9: 357,190,858 | P9: 357,190,858 | Q9: 0.018708 | R9: 0.018708 | S9: 0.018708 | T9: 6,621 | U9: 6,173 | V9: 6,117 | W9: 6,180 | X9: 124 | Y9: 115 | Z9: 114 | AA9: 116 | AB9: 29 | AC9: 26 | AD9: 24 | AE9: 27 | AF9: 30 | AG9: 30 | AH9: 30 | AI9: 30 | AJ9: 30 | AK9: 30 | AL9: Existing Unit | AM9: Existing Unit | AN9: Existing Unit
A10: Barry | B10: Alabama | C10: 3 | D10: 7A | E10: 8 | F10: 6,579,770 | G10: 5,335,824 | H10: 6,704,527 | I10: 7,094,424 | J10: 6,777,467 | K10: 6,858,806 | L10: 6,858,806 | M10: 6,858,806 | N10: 357,190,858 | O10: 357,190,858 | P10: 357,190,858 | Q10: 0.019202 | R10: 0.019202 | S10: 0.019202 | T10: 6,621 | U10: 6,173 | V10: 6,117 | W10: 6,180 | X10: 127 | Y10: 119 | Z10: 117 | AA10: 119 | AB10: 26 | AC10: 22 | AD10: 27 | AE10: 29 | AF10: 31 | AG10: 31 | AH10: 31 | AI10: 31 | AJ10: 31 | AK10: 31 | AL10: Existing Unit | AM10: Existing Unit | AN10: Existing Unit
A11: Barry | B11: Alabama | C11: 3 | D11: 7B | E11: 9 | F11: 6,484,485 | G11: 5,201,432 | H11: 6,907,843 | I11: 7,171,257 | J11: 6,717,795 | K11: 6,932,298 | L11: 6,932,298 | M11: 6,932,298 | N11: 357,190,858 | O11: 357,190,858 | P11: 357,190,858 | Q11: 0.019408 | R11: 0.019408 | S11: 0.019408 | T11: 6,621 | U11: 6,173 | V11: 6,117 | W11: 6,180 | X11: 129 | Y11: 120 | Z11: 119 | AA11: 120 | AB11: 26 | AC11: 22 | AD11: 28 | AE11: 29 | AF11: 28 | AG11: 29 | AH11: 29 | AI11: 29 | AJ11: 29 | AK11: 29 | AL11: Existing Unit | AM11: Existing Unit | AN11: Existing Unit
A12: Calhoun Energy Center | B12: Alabama | C12: 55409 | D12: CT1 | E12: 4688 | F12: 436,672 | G12: 461,658 | H12: 810,823 | I12: 118,715 | J12: 125,246 | K12: 569,718 | L12: 569,718 | M12: 569,718 | N12: 357,190,858 | O12: 357,190,858 | P12: 357,190,858 | Q12: 0.001595 | R12: 0.001595 | S12: 0.001595 | T12: 6,621 | U12: 6,173 | V12: 6,117 | W12: 6,180 | X12: 11 | Y12: 10 | Z12: 10 | AA12: 10 | AB12: 8 | AC12: 9 | AD12: 15 | AE12: 2 | AF12: 2 | AG12: 15 | AH12: 15 | AI12: 15 | AJ12: 15 | AK12: 15 | AL12: Existing Unit | AM12: Existing Unit | AN12: Existing Unit
A13: Calhoun Energy Center | B13: Alabama | C13: 55409 | D13: CT2 | E13: 4689 | F13: 319,859 | G13: 297,794 | H13: 848,598 | I13: 31,030 | J13: 58,243 | K13: 488,751 | L13: 488,751 | M13: 488,751 | N13: 357,190,858 | O13: 357,190,858 | P13: 357,190,858 | Q13: 0.001368 | R13: 0.001368 | S13: 0.001368 | T13: 6,621 | U13: 6,173 | V13: 6,117 | W13: 6,180 | X13: 9 | Y13: 8 | Z13: 8 | AA13: 8 | AB13: 5 | AC13: 5 | AD13: 13 | AE13: 1 | AF13: 1 | AG13: 13 | AH13: 13 | AI13: 13 | AJ13: 13 | AK13: 13 | AL13: Existing Unit | AM13: Existing Unit | AN13: Existing Unit
A14: Calhoun Energy Center | B14: Alabama | C14: 55409 | D14: CT3 | E14: 4690 | F14: 369,783 | G14: 406,791 | H14: 794,662 | I14: 24,020 | J14: 54,667 | K14: 523,745 | L14: 523,745 | M14: 523,745 | N14: 357,190,858 | O14: 357,190,858 | P14: 357,190,858 | Q14: 0.001466 | R14: 0.001466 | S14: 0.001466 | T14: 6,621 | U14: 6,173 | V14: 6,117 | W14: 6,180 | X14: 10 | Y14: 9 | Z14: 9 | AA14: 9 | AB14: 6 | AC14: 7 | AD14: 13 | AE14: 0 | AF14: 1 | AG14: 13 | AH14: 13 | AI14: 13 | AJ14: 13 | AK14: 13 | AL14: Existing Unit | AM14: Existing Unit | AN14: Existing Unit
A15: Calhoun Energy Center | B15: Alabama | C15: 55409 | D15: CT4 | E15: 4691 | F15: 430,332 | G15: 493,805 | H15: 779,767 | I15: 127,646 | J15: 128,934 | K15: 567,968 | L15: 567,968 | M15: 567,968 | N15: 357,190,858 | O15: 357,190,858 | P15: 357,190,858 | Q15: 0.001590 | R15: 0.001590 | S15: 0.001590 | T15: 6,621 | U15: 6,173 | V15: 6,117 | W15: 6,180 | X15: 11 | Y15: 10 | Z15: 10 | AA15: 10 | AB15: 7 | AC15: 8 | AD15: 13 | AE15: 2 | AF15: 2 | AG15: 13 | AH15: 13 | AI15: 13 | AJ15: 13 | AK15: 13 | AL15: Existing Unit | AM15: Existing Unit | AN15: Existing Unit
A16: Central Alabama Gen Station | B16: Alabama | C16: 55440 | D16: CTGDB1 | E16: 4758 | F16: 6,119,408 | G16: 5,734,456 | H16: 6,612,045 | I16: 6,445,372 | J16: 4,347,066 | K16: 6,392,275 | L16: 6,392,275 | M16: 6,392,275 | N16: 357,190,858 | O16: 357,190,858 | P16: 357,190,858 | Q16: 0.017896 | R16: 0.017896 | S16: 0.017896 | T16: 6,621 | U16: 6,173 | V16: 6,117 | W16: 6,180 | X16: 118 | Y16: 110 | Z16: 109 | AA16: 111 | AB16: 31 | AC16: 28 | AD16: 31 | AE16: 27 | AF16: 20 | AG16: 31 | AH16: 31 | AI16: 31 | AJ16: 31 | AK16: 31 | AL16: Existing Unit | AM16: Existing Unit | AN16: Existing Unit
A17: Central Alabama Gen Station | B17: Alabama | C17: 55440 | D17: CTGDB2 | E17: 4759 | F17: 5,056,473 | G17: 5,303,794 | H17: 6,800,997 | I17: 6,921,908 | J17: 5,511,402 | K17: 6,411,436 | L17: 6,411,436 | M17: 6,411,436 | N17: 357,190,858 | O17: 357,190,858 | P17: 357,190,858 | Q17: 0.017950 | R17: 0.017950 | S17: 0.017950 | T17: 6,621 | U17: 6,173 | V17: 6,117 | W17: 6,180 | X17: 119 | Y17: 111 | Z17: 110 | AA17: 111 | AB17: 22 | AC17: 23 | AD17: 32 | AE17: 29 | AF17: 22 | AG17: 32 | AH17: 32 | AI17: 32 | AJ17: 32 | AK17: 32 | AL17: Existing Unit | AM17: Existing Unit | AN17: Existing Unit
A18: Central Alabama Gen Station | B18: Alabama | C18: 55440 | D18: CTGDB3 | E18: 4760 | F18: 5,628,746 | G18: 4,997,377 | H18: 6,135,558 | I18: 6,071,221 | J18: 4,205,115 | K18: 5,945,175 | L18: 5,945,175 | M18: 5,945,175 | N18: 357,190,858 | O18: 357,190,858 | P18: 357,190,858 | Q18: 0.016644 | R18: 0.016644 | S18: 0.016644 | T18: 6,621 | U18: 6,173 | V18: 6,117 | W18: 6,180 | X18: 110 | Y18: 103 | Z18: 102 | AA18: 103 | AB18: 25 | AC18: 24 | AD18: 29 | AE18: 61 | AF18: 16 | AG18: 61 | AH18: 61 | AI18: 61 | AJ18: 61 | AK18: 61 | AL18: Existing Unit | AM18: Existing Unit | AN18: Existing Unit
A19: Colbert | B19: Alabama | C19: 47 | D19: CCT1 | E19: 88150 | F19: 3,009 | G19: 8,328 | H19: 5,009 | I19: 5,191 | J19: 7,823 | K19: 7,114 | L19: 7,114 | M19: 7,114 | N19: 357,190,858 | O19: 357,190,858 | P19: 357,190,858 | Q19: 0.000020 | R19: 0.000020 | S19: 0.000020 | T19: 6,621 | U19: 6,173 | V19: 6,117 | W19: 6,180 | X19: 0 | Y19: 0 | Z19: 0 | AA19: 0 | AB19: 1 | AC19: 3 | AD19: 1 | AE19: 1 | AF19: 2 | AG19: 3 | AH19: 0 | AI19: 0 | AJ19: 0 | AK19: 0 | AL19: Existing Unit | AM19: Existing Unit | AN19: Existing Unit
A20: Colbert | B20: Alabama | C20: 47 | D20: CCT2 | E20: 88151 | F20: 2,996 | G20: 7,813 | H20: 4,961 | I20: 5,517 | J20: 7,659 | K20: 6,996 | L20: 6,996 | M20: 6,996 | N20: 357,190,858 | O20: 357,190,858 | P20: 357,190,858 | Q20: 0.000020 | R20: 0.000020 | S20: 0.000020 | T20: 6,621 | U20: 6,173 | V20: 6,117 | W20: 6,180 | X20: 0 | Y20: 0 | Z20: 0 | AA20: 0 | AB20: 1 | AC20: 3 | AD20: 1 | AE20: 1 | AF20: 2 | AG20: 3 | AH20: 0 | AI20: 0 | AJ20: 0 | AK20: 0 | AL20: Existing Unit | AM20: Existing Unit | AN20: Existing Unit
A21: Colbert | B21: Alabama | C21: 47 | D21: CCT3 | E21: 88152 | F21: 3,073 | G21: 6 | J21: 11,681 | K21: 4,920 | L21: 4,920 | M21: 4,920 | N21: 357,190,858 | O21: 357,190,858 | P21: 357,190,858 | Q21: 0.000014 | R21: 0.000014 | S21: 0.000014 | T21: 6,621 | U21: 6,173 | V21: 6,117 | W21: 6,180 | X21: 0 | Y21: 0 | Z21: 0 | AA21: 0 | AB21: 1 | AC21: 0 | AF21: 2 | AG21: 2 | AH21: 0 | AI21: 0 | AJ21: 0 | AK21: 0 | AL21: Existing Unit | AM21: Existing Unit | AN21: Existing Unit
A22: Colbert | B22: Alabama | C22: 47 | D22: CCT4 | E22: 88153 | F22: 3,130 | G22: 7,616 | H22: 5,230 | I22: 4,949 | J22: 7,163 | K22: 6,670 | L22: 6,670 | M22: 6,670 | N22: 357,190,858 | O22: 357,190,858 | P22: 357,190,858 | Q22: 0.000019 | R22: 0.000019 | S22: 0.000019 | T22: 6,621 | U22: 6,173 | V22: 6,117 | W22: 6,180 | X22: 0 | Y22: 0 | Z22: 0 | AA22: 0 | AB22: 1 | AC22: 3 | AD22: 1 | AE22: 1 | AF22: 1 | AG22: 3 | AH22: 0 | AI22: 0 | AJ22: 0 | AK22: 0 | AL22: Existing Unit | AM22: Existing Unit | AN22: Existing Unit
A23: Colbert | B23: Alabama | C23: 47 | D23: CCT5 | E23: 88154 | F23: 7,217 | G23: 3,537 | H23: 6,390 | I23: 4,889 | J23: 13,096 | K23: 8,901 | L23: 8,901 | M23: 8,901 | N23: 357,190,858 | O23: 357,190,858 | P23: 357,190,858 | Q23: 0.000025 | R23: 0.000025 | S23: 0.000025 | T23: 6,621 | U23: 6,173 | V23: 6,117 | W23: 6,180 | X23: 0 | Y23: 0 | Z23: 0 | AA23: 0 | AB23: 2 | AC23: 1 | AD23: 1 | AE23: 1 | AF23: 3 | AG23: 3 | AH23: 0 | AI23: 0 | AJ23: 0 | AK23: 0 | AL23: Existing Unit | AM23: Existing Unit | AN23: Existing Unit
A24: Colbert | B24: Alabama | C24: 47 | D24: CCT6 | E24: 88155 | F24: 7,615 | G24: 2,749 | H24: 6,364 | I24: 4,903 | J24: 13,835 | K24: 9,271 | L24: 9,271 | M24: 9,271 | N24: 357,190,858 | O24: 357,190,858 | P24: 357,190,858 | Q24: 0.000026 | R24: 0.000026 | S24: 0.000026 | T24: 6,621 | U24: 6,173 | V24: 6,117 | W24: 6,180 | X24: 0 | Y24: 0 | Z24: 0 | AA24: 0 | AB24: 2 | AC24: 1 | AD24: 1 | AE24: 1 | AF24: 3 | AG24: 3 | AH24: 0 | AI24: 0 | AJ24: 0 | AK24: 0 | AL24: Existing Unit | AM24: Existing Unit | AN24: Existing Unit
A25: Colbert | B25: Alabama | C25: 47 | D25: CCT7 | E25: 88156 | F25: 7,009 | I25: 8,725 | J25: 14,341 | K25: 10,025 | L25: 10,025 | M25: 10,025 | N25: 357,190,858 | O25: 357,190,858 | P25: 357,190,858 | Q25: 0.000028 | R25: 0.000028 | S25: 0.000028 | T25: 6,621 | U25: 6,173 | V25: 6,117 | W25: 6,180 | X25: 0 | Y25: 0 | Z25: 0 | AA25: 0 | AB25: 2 | AE25: 2 | AF25: 3 | AG25: 3 | AH25: 0 | AI25: 0 | AJ25: 0 | AK25: 0 | AL25: Existing Unit | AM25: Existing Unit | AN25: Existing Unit
A26: Colbert | B26: Alabama | C26: 47 | D26: CCT8 | E26: 88157 | F26: 6,961 | I26: 8,153 | J26: 14,142 | K26: 9,752 | L26: 9,752 | M26: 9,752 | N26: 357,190,858 | O26: 357,190,858 | P26: 357,190,858 | Q26: 0.000027 | R26: 0.000027 | S26: 0.000027 | T26: 6,621 | U26: 6,173 | V26: 6,117 | W26: 6,180 | X26: 0 | Y26: 0 | Z26: 0 | AA26: 0 | AB26: 2 | AE26: 2 | AF26: 3 | AG26: 3 | AH26: 0 | AI26: 0 | AJ26: 0 | AK26: 0 | AL26: Existing Unit | AM26: Existing Unit | AN26: Existing Unit
A27: Decatur Energy Center | B27: Alabama | C27: 55292 | D27: CTG-1 | E27: 4459 | F27: 2,302,689 | G27: 2,711,293 | H27: 2,498,433 | I27: 2,385,600 | J27: 1,549,360 | K27: 2,531,775 | L27: 2,531,775 | M27: 2,531,775 | N27: 357,190,858 | O27: 357,190,858 | P27: 357,190,858 | Q27: 0.007088 | R27: 0.007088 | S27: 0.007088 | T27: 6,621 | U27: 6,173 | V27: 6,117 | W27: 6,180 | X27: 47 | Y27: 44 | Z27: 43 | AA27: 44 | AB27: 11 | AC27: 11 | AD27: 11 | AE27: 10 | AF27: 9 | AG27: 11 | AH27: 11 | AI27: 11 | AJ27: 11 | AK27: 11 | AL27: Existing Unit | AM27: Existing Unit | AN27: Existing Unit
A28: Decatur Energy Center | B28: Alabama | C28: 55292 | D28: CTG-2 | E28: 4460 | F28: 2,425,012 | G28: 3,103,241 | H28: 2,732,594 | I28: 2,491,270 | J28: 1,612,639 | K28: 2,775,702 | L28: 2,775,702 | M28: 2,775,702 | N28: 357,190,858 | O28: 357,190,858 | P28: 357,190,858 | Q28: 0.007771 | R28: 0.007771 | S28: 0.007771 | T28: 6,621 | U28: 6,173 | V28: 6,117 | W28: 6,180 | X28: 51 | Y28: 48 | Z28: 48 | AA28: 48 | AB28: 9 | AC28: 11 | AD28: 13 | AE28: 11 | AF28: 9 | AG28: 13 | AH28: 13 | AI28: 13 | AJ28: 13 | AK28: 13 | AL28: Existing Unit | AM28: Existing Unit | AN28: Existing Unit
A29: Decatur Energy Center | B29: Alabama | C29: 55292 | D29: CTG-3 | E29: 4461 | F29: 2,463,723 | G29: 2,971,084 | H29: 2,747,036 | I29: 2,496,649 | J29: 1,729,017 | K29: 2,738,256 | L29: 2,738,256 | M29: 2,738,256 | N29: 357,190,858 | O29: 357,190,858 | P29: 357,190,858 | Q29: 0.007666 | R29: 0.007666 | S29: 0.007666 | T29: 6,621 | U29: 6,173 | V29: 6,117 | W29: 6,180 | X29: 51 | Y29: 47 | Z29: 47 | AA29: 47 | AB29: 12 | AC29: 14 | AD29: 14 | AE29: 12 | AF29: 10 | AG29: 14 | AH29: 14 | AI29: 14 | AJ29: 14 | AK29: 14 | AL29: Existing Unit | AM29: Existing Unit | AN29: Existing Unit
A30: E B Harris Generating Plant | B30: Alabama | C30: 7897 | D30: 1A | E30: 3355 | F30: 4,534,068 | G30: 5,487,585 | H30: 4,617,312 | I30: 4,589,427 | J30: 4,018,790 | K30: 4,898,108 | L30: 4,898,108 | M30: 4,898,108 | N30: 357,190,858 | O30: 357,190,858 | P30: 357,190,858 | Q30: 0.013713 | R30: 0.013713 | S30: 0.013713 | T30: 6,621 | U30: 6,173 | V30: 6,117 | W30: 6,180 | X30: 91 | Y30: 85 | Z30: 84 | AA30: 85 | AB30: 26 | AC30: 27 | AD30: 23 | AE30: 23 | AF30: 29 | AG30: 29 | AH30: 29 | AI30: 29 | AJ30: 29 | AK30: 29 | AL30: Existing Unit | AM30: Existing Unit | AN30: Existing Unit
A31: E B Harris Generating Plant | B31: Alabama | C31: 7897 | D31: 1B | E31: 3356 | F31: 4,503,481 | G31: 5,581,434 | H31: 4,746,809 | I31: 4,483,749 | J31: 5,006,870 | K31: 5,111,704 | L31: 5,111,704 | M31: 5,111,704 | N31: 357,190,858 | O31: 357,190,858 | P31: 357,190,858 | Q31: 0.014311 | R31: 0.014311 | S31: 0.014311 | T31: 6,621 | U31: 6,173 | V31: 6,117 | W31: 6,180 | X31: 95 | Y31: 88 | Z31: 88 | AA31: 88 | AB31: 25 | AC31: 27 | AD31: 22 | AE31: 24 | AF31: 25 | AG31: 27 | AH31: 27 | AI31: 27 | AJ31: 27 | AK31: 27 | AL31: Existing Unit | AM31: Existing Unit | AN31: Existing Unit
A32: E B Harris Generating Plant | B32: Alabama | C32: 7897 | D32: 2A | E32: 3357 | F32: 4,781,622 | G32: 6,244,556 | H32: 2,380,409 | I32: 4,676,078 | J32: 2,030,950 | K32: 5,234,086 | L32: 5,234,086 | M32: 5,234,086 | N32: 357,190,858 | O32: 357,190,858 | P32: 357,190,858 | Q32: 0.014653 | R32: 0.014653 | S32: 0.014653 | T32: 6,621 | U32: 6,173 | V32: 6,117 | W32: 6,180 | X32: 97 | Y32: 90 | Z32: 90 | AA32: 91 | AB32: 26 | AC32: 27 | AD32: 12 | AE32: 21 | AF32: 8 | AG32: 27 | AH32: 27 | AI32: 27 | AJ32: 27 | AK32: 27 | AL32: Existing Unit | AM32: Existing Unit | AN32: Existing Unit
A33: E B Harris Generating Plant | B33: Alabama | C33: 7897 | D33: 2B | E33: 3358 | F33: 4,669,860 | G33: 6,188,858 | H33: 2,332,956 | I33: 4,459,577 | J33: 3,768,467 | K33: 5,106,098 | L33: 5,106,098 | M33: 5,106,098 | N33: 357,190,858 | O33: 357,190,858 | P33: 357,190,858 | Q33: 0.014295 | R33: 0.014295 | S33: 0.014295 | T33: 6,621 | U33: 6,173 | V33: 6,117 | W33: 6,180 | X33: 95 | Y33: 88 | Z33: 87 | AA33: 88 | AB33: 25 | AC33: 27 | AD33: 12 | AE33: 19 | AF33: 15 | AG33: 27 | AH33: 27 | AI33: 27 | AJ33: 27 | AK33: 27 | AL33: Existing Unit | AM33: Existing Unit | AN33: Existing Unit
A34: E C Gaston | B34: Alabama | C34: 26 | D34: 1 | E34: 30 | F34: 2,235,727 | G34: 4,401,451 | H34: 5,003,839 | I34: 3,311,418 | J34: 2,331,795 | K34: 4,238,903 | L34: 4,238,903 | M34: 4,238,903 | N34: 357,190,858 | O34: 357,190,858 | P34: 357,190,858 | Q34: 0.011867 | R34: 0.011867 | S34: 0.011867 | T34: 6,621 | U34: 6,173 | V34: 6,117 | W34: 6,180 | X34: 79 | Y34: 73 | Z34: 73 | AA34: 73 | AB34: 143 | AC34: 307 | AD34: 278 | AE34: 166 | AF34: 108 | AG34: 307 | AH34: 140 | AI34: 128 | AJ34: 127 | AK34: 128 | AL34: Existing Unit | AM34: Existing Unit | AN34: Existing Unit
A35: E C Gaston | B35: Alabama | C35: 26 | D35: 2 | E35: 31 | F35: 3,504,243 | G35: 6,671,503 | H35: 5,776,349 | I35: 3,552,092 | J35: 2,193,061 | K35: 5,333,315 | L35: 5,333,315 | M35: 5,333,315 | N35: 357,190,858 | O35: 357,190,858 | P35: 357,190,858 | Q35: 0.014931 | R35: 0.014931 | S35: 0.014931 | T35: 6,621 | U35: 6,173 | V35: 6,117 | W35: 6,180 | X35: 99 | Y35: 92 | Z35: 91 | AA35: 92 | AB35: 234 | AC35: 477 | AD35: 311 | AE35: 177 | AF35: 106 | AG35: 477 | AH35: 176 | AI35: 161 | AJ35: 160 | AK35: 162 | AL35: Existing Unit | AM35: Existing Unit | AN35: Existing Unit
A36: E C Gaston | B36: Alabama | C36: 26 | D36: 3 | E36: 32 | F36: 2,815,886 | G36: 5,670,527 | H36: 4,647,176 | I36: 3,666,805 | J36: 2,775,938 | K36: 4,661,502 | L36: 4,661,502 | M36: 4,661,502 | N36: 357,190,858 | O36: 357,190,858 | P36: 357,190,858 | Q36: 0.013050 | R36: 0.013050 | S36: 0.013050 | T36: 6,621 | U36: 6,173 | V36: 6,117 | W36: 6,180 | X36: 86 | Y36: 81 | Z36: 80 | AA36: 81 | AB36: 181 | AC36: 400 | AD36: 307 | AE36: 199 | AF36: 146 | AG36: 400 | AH36: 154 | AI36: 141 | AJ36: 139 | AK36: 141 | AL36: Existing Unit | AM36: Existing Unit | AN36: Existing Unit
A37: E C Gaston | B37: Alabama | C37: 26 | D37: 4 | E37: 33 | F37: 1,724,156 | G37: 5,039,987 | H37: 4,773,808 | I37: 2,833,976 | J37: 1,514,556 | K37: 4,215,924 | L37: 4,215,924 | M37: 4,215,924 | N37: 357,190,858 | O37: 357,190,858 | P37: 357,190,858 | Q37: 0.011803 | R37: 0.011803 | S37: 0.011803 | T37: 6,621 | U37: 6,173 | V37: 6,117 | W37: 6,180 | X37: 78 | Y37: 73 | Z37: 72 | AA37: 73 | AB37: 113 | AC37: 357 | AD37: 295 | AE37: 156 | AF37: 83 | AG37: 357 | AH37: 139 | AI37: 128 | AJ37: 126 | AK37: 128 | AL37: Existing Unit | AM37: Existing Unit | AN37: Existing Unit
A38: E C Gaston | B38: Alabama | C38: 26 | D38: 5 | E38: 34 | F38: 18,546,330 | G38: 15,339,142 | H38: 17,155,292 | I38: 19,260,569 | J38: 17,304,088 | K38: 18,370,329 | L38: 18,370,329 | M38: 18,370,329 | N38: 357,190,858 | O38: 357,190,858 | P38: 357,190,858 | Q38: 0.051430 | R38: 0.051430 | S38: 0.051430 | T38: 6,621 | U38: 6,173 | V38: 6,117 | W38: 6,180 | X38: 341 | Y38: 317 | Z38: 315 | AA38: 318 | AB38: 613 | AC38: 715 | AD38: 682 | AE38: 1,031 | AF38: 720 | AG38: 1,031 | AH38: 605 | AI38: 556 | AJ38: 550 | AK38: 557 | AL38: Existing Unit | AM38: Existing Unit | AN38: Existing Unit
A39: Greene County | B39: Alabama | C39: 10 | D39: 1 | E39: 19 | F39: 1,675,746 | G39: 3,015,213 | H39: 5,621,977 | I39: 3,009,562 | J39: 2,634,645 | K39: 3,882,251 | L39: 3,882,251 | M39: 3,882,251 | N39: 357,190,858 | O39: 357,190,858 | P39: 357,190,858 | Q39: 0.010869 | R39: 0.010869 | S39: 0.010869 | T39: 6,621 | U39: 6,173 | V39: 6,117 | W39: 6,180 | X39: 72 | Y39: 67 | Z39: 66 | AA39: 67 | AB39: 104 | AC39: 210 | AD39: 502 | AE39: 235 | AF39: 150 | AG39: 502 | AH39: 128 | AI39: 117 | AJ39: 116 | AK39: 118 | AL39: Existing Unit | AM39: Existing Unit | AN39: Existing Unit
A40: Greene County | B40: Alabama | C40: 10 | D40: 2 | E40: 20 | F40: 2,561,235 | G40: 2,797,208 | H40: 5,118,029 | I40: 3,352,256 | J40: 1,745,393 | K40: 3,755,831 | L40: 3,755,831 | M40: 3,755,831 | N40: 357,190,858 | O40: 357,190,858 | P40: 357,190,858 | Q40: 0.010515 | R40: 0.010515 | S40: 0.010515 | T40: 6,621 | U40: 6,173 | V40: 6,117 | W40: 6,180 | X40: 70 | Y40: 65 | Z40: 64 | AA40: 65 | AB40: 176 | AC40: 193 | AD40: 463 | AE40: 252 | AF40: 103 | AG40: 463 | AH40: 124 | AI40: 114 | AJ40: 112 | AK40: 114 | AL40: Existing Unit | AM40: Existing Unit | AN40: Existing Unit
A41: Greene County | B41: Alabama | C41: 10 | D41: CT10 | E41: 21 | F41: 41,382 | G41: 30,052 | H41: 58,654 | I41: 23,836 | J41: 42,285 | K41: 47,440 | L41: 47,440 | M41: 47,440 | N41: 357,190,858 | O41: 357,190,858 | P41: 357,190,858 | Q41: 0.000133 | R41: 0.000133 | S41: 0.000133 | T41: 6,621 | U41: 6,173 | V41: 6,117 | W41: 6,180 | X41: 1 | Y41: 1 | Z41: 1 | AA41: 1 | AB41: 2 | AC41: 1 | AD41: 2 | AE41: 1 | AF41: 2 | AG41: 2 | AH41: 2 | AI41: 1 | AJ41: 1 | AK41: 1 | AL41: Existing Unit | AM41: Existing Unit | AN41: Existing Unit
A42: Greene County | B42: Alabama | C42: 10 | D42: CT2 | E42: 22 | F42: 52,128 | G42: 37,892 | H42: 51,018 | I42: 48,152 | J42: 119,398 | K42: 74,181 | L42: 74,181 | M42: 74,181 | N42: 357,190,858 | O42: 357,190,858 | P42: 357,190,858 | Q42: 0.000208 | R42: 0.000208 | S42: 0.000208 | T42: 6,621 | U42: 6,173 | V42: 6,117 | W42: 6,180 | X42: 1 | Y42: 1 | Z42: 1 | AA42: 1 | AB42: 2 | AC42: 1 | AD42: 2 | AE42: 2 | AF42: 4 | AG42: 4 | AH42: 2 | AI42: 2 | AJ42: 2 | AK42: 2 | AL42: Existing Unit | AM42: Existing Unit | AN42: Existing Unit
A43: Greene County | B43: Alabama | C43: 10 | D43: CT3 | E43: 23 | F43: 16,866 | G43: 26,713 | H43: 48,915 | I43: 67,651 | J43: 55,380 | K43: 57,315 | L43: 57,315 | M43: 57,315 | N43: 357,190,858 | O43: 357,190,858 | P43: 357,190,858 | Q43: 0.000160 | R43: 0.000160 | S43: 0.000160 | T43: 6,621 | U43: 6,173 | V43: 6,117 | W43: 6,180 | X43: 1 | Y43: 1 | Z43: 1 | AA43: 1 | AB43: 1 | AC43: 1 | AD43: 2 | AE43: 2 | AF43: 2 | AG43: 2 | AH43: 2 | AI43: 2 | AJ43: 2 | AK43: 2 | AL43: Existing Unit | AM43: Existing Unit | AN43: Existing Unit
A44: Greene County | B44: Alabama | C44: 10 | D44: CT4 | E44: 24 | F44: 136,958 | G44: 72,420 | H44: 48,651 | I44: 63,084 | J44: 36,616 | K44: 90,821 | L44: 90,821 | M44: 90,821 | N44: 357,190,858 | O44: 357,190,858 | P44: 357,190,858 | Q44: 0.000254 | R44: 0.000254 | S44: 0.000254 | T44: 6,621 | U44: 6,173 | V44: 6,117 | W44: 6,180 | X44: 2 | Y44: 2 | Z44: 2 | AA44: 2 | AB44: 6 | AC44: 3 | AD44: 2 | AE44: 3 | AF44: 1 | AG44: 6 | AH44: 3 | AI44: 3 | AJ44: 3 | AK44: 3 | AL44: Existing Unit | AM44: Existing Unit | AN44: Existing Unit
A45: Greene County | B45: Alabama | C45: 10 | D45: CT5 | E45: 25 | F45: 47,565 | G45: 50,515 | H45: 57,453 | I45: 62,019 | J45: 72,496 | K45: 63,989 | L45: 63,989 | M45: 63,989 | N45: 357,190,858 | O45: 357,190,858 | P45: 357,190,858 | Q45: 0.000179 | R45: 0.000179 | S45: 0.000179 | T45: 6,621 | U45: 6,173 | V45: 6,117 | W45: 6,180 | X45: 1 | Y45: 1 | Z45: 1 | AA45: 1 | AB45: 2 | AC45: 2 | AD45: 2 | AE45: 2 | AF45: 2 | AG45: 2 | AH45: 2 | AI45: 2 | AJ45: 2 | AK45: 2 | AL45: Existing Unit | AM45: Existing Unit | AN45: Existing Unit
A46: Greene County | B46: Alabama | C46: 10 | D46: CT6 | E46: 26 | F46: 137,544 | G46: 77,255 | H46: 70,173 | I46: 23,800 | J46: 6,700 | K46: 94,991 | L46: 94,991 | M46: 94,991 | N46: 357,190,858 | O46: 357,190,858 | P46: 357,190,858 | Q46: 0.000266 | R46: 0.000266 | S46: 0.000266 | T46: 6,621 | U46: 6,173 | V46: 6,117 | W46: 6,180 | X46: 2 | Y46: 2 | Z46: 2 | AA46: 2 | AB46: 5 | AC46: 3 | AD46: 2 | AE46: 1 | AF46: 0 | AG46: 5 | AH46: 3 | AI46: 3 | AJ46: 3 | AK46: 3 | AL46: Existing Unit | AM46: Existing Unit | AN46: Existing Unit
A47: Greene County | B47: Alabama | C47: 10 | D47: CT7 | E47: 27 | F47: 108,648 | G47: 68,864 | H47: 65,757 | I47: 72,878 | J47: 4,791 | K47: 83,464 | L47: 83,464 | M47: 83,464 | N47: 357,190,858 | O47: 357,190,858 | P47: 357,190,858 | Q47: 0.000234 | R47: 0.000234 | S47: 0.000234 | T47: 6,621 | U47: 6,173 | V47: 6,117 | W47: 6,180 | X47: 2 | Y47: 1 | Z47: 1 | AA47: 1 | AB47: 4 | AC47: 3 | AD47: 3 | AE47: 3 | AF47: 0 | AG47: 4 | AH47: 3 | AI47: 3 | AJ47: 2 | AK47: 3 | AL47: Existing Unit | AM47: Existing Unit | AN47: Existing Unit
A48: Greene County | B48: Alabama | C48: 10 | D48: CT8 | E48: 28 | F48: 32,605 | G48: 21,036 | H48: 37,677 | I48: 18,059 | J48: 5,065 | K48: 30,439 | L48: 30,439 | M48: 30,439 | N48: 357,190,858 | O48: 357,190,858 | P48: 357,190,858 | Q48: 0.000085 | R48: 0.000085 | S48: 0.000085 | T48: 6,621 | U48: 6,173 | V48: 6,117 | W48: 6,180 | X48: 1 | Y48: 1 | Z48: 1 | AA48: 1 | AB48: 1 | AC48: 1 | AD48: 1 | AE48: 1 | AF48: 0 | AG48: 1 | AH48: 1 | AI48: 1 | AJ48: 1 | AK48: 1 | AL48: Existing Unit | AM48: Existing Unit | AN48: Existing Unit
A49: Greene County | B49: Alabama | C49: 10 | D49: CT9 | E49: 29 | F49: 8,223 | G49: 32,039 | H49: 45,136 | I49: 16,589 | J49: 5,437 | K49: 31,255 | L49: 31,255 | M49: 31,255 | N49: 357,190,858 | O49: 357,190,858 | P49: 357,190,858 | Q49: 0.000088 | R49: 0.000088 | S49: 0.000088 | T49: 6,621 | U49: 6,173 | V49: 6,117 | W49: 6,180 | X49: 1 | Y49: 1 | Z49: 1 | AA49: 1 | AB49: 0 | AC49: 1 | AD49: 2 | AE49: 1 | AF49: 0 | AG49: 2 | AH49: 1 | AI49: 1 | AJ49: 1 | AK49: 1 | AL49: Existing Unit | AM49: Existing Unit | AN49: Existing Unit
A50: Hillabee Energy Center | B50: Alabama | C50: 55411 | D50: CT1 | E50: 4695 | F50: 7,330,290 | G50: 8,124,094 | H50: 7,647,830 | I50: 8,607,654 | J50: 8,678,935 | K50: 8,470,227 | L50: 8,470,227 | M50: 8,470,227 | N50: 357,190,858 | O50: 357,190,858 | P50: 357,190,858 | Q50: 0.023713 | R50: 0.023713 | S50: 0.023713 | T50: 6,621 | U50: 6,173 | V50: 6,117 | W50: 6,180 | X50: 157 | Y50: 146 | Z50: 145 | AA50: 147 | AB50: 29 | AC50: 32 | AD50: 30 | AE50: 31 | AF50: 31 | AG50: 32 | AH50: 32 | AI50: 32 | AJ50: 32 | AK50: 32 | AL50: Existing Unit | AM50: Existing Unit | AN50: Existing Unit
A51: Hillabee Energy Center | B51: Alabama | C51: 55411 | D51: CT2 | E51: 4696 | F51: 7,482,038 | G51: 8,361,858 | H51: 7,509,128 | I51: 8,536,761 | J51: 8,142,191 | K51: 8,346,937 | L51: 8,346,937 | M51: 8,346,937 | N51: 357,190,858 | O51: 357,190,858 | P51: 357,190,858 | Q51: 0.023368 | R51: 0.023368 | S51: 0.023368 | T51: 6,621 | U51: 6,173 | V51: 6,117 | W51: 6,180 | X51: 155 | Y51: 144 | Z51: 143 | AA51: 144 | AB51: 30 | AC51: 32 | AD51: 29 | AE51: 32 | AF51: 30 | AG51: 32 | AH51: 32 | AI51: 32 | AJ51: 32 | AK51: 32 | AL51: Existing Unit | AM51: Existing Unit | AN51: Existing Unit
A52: Hog Bayou Energy Center | B52: Alabama | C52: 55241 | D52: COG01 | E52: 4286 | F52: 1,570,751 | G52: 3,371,886 | H52: 5,416,698 | I52: 5,544,621 | J52: 5,331,554 | K52: 5,430,957 | L52: 5,430,957 | M52: 5,430,957 | N52: 357,190,858 | O52: 357,190,858 | P52: 357,190,858 | Q52: 0.015205 | R52: 0.015205 | S52: 0.015205 | T52: 6,621 | U52: 6,173 | V52: 6,117 | W52: 6,180 | X52: 101 | Y52: 94 | Z52: 93 | AA52: 94 | AB52: 10 | AC52: 19 | AD52: 27 | AE52: 27 | AF52: 22 | AG52: 27 | AH52: 27 | AI52: 27 | AJ52: 27 | AK52: 27 | AL52: Existing Unit | AM52: Existing Unit | AN52: Existing Unit
A53: James H Miller Jr | B53: Alabama | C53: 6002 | D53: 1 | E53: 2669 | F53: 25,328,072 | G53: 20,176,252 | H53: 21,841,687 | I53: 19,330,797 | J53: 17,926,122 | K53: 22,448,670 | L53: 22,448,670 | M53: 22,448,670 | N53: 357,190,858 | O53: 357,190,858 | P53: 357,190,858 | Q53: 0.062848 | R53: 0.062848 | S53: 0.062848 | T53: 6,621 | U53: 6,173 | V53: 6,117 | W53: 6,180 | X53: 416 | Y53: 388 | Z53: 384 | AA53: 388 | AB53: 768 | AC53: 660 | AD53: 681 | AE53: 755 | AF53: 628 | AG53: 768 | AH53: 740 | AI53: 679 | AJ53: 672 | AK53: 680 | AL53: Existing Unit | AM53: Existing Unit | AN53: Existing Unit
A54: James H Miller Jr | B54: Alabama | C54: 6002 | D54: 2 | E54: 2670 | F54: 30,308,574 | G54: 19,327,438 | H54: 21,873,389 | I54: 19,355,347 | J54: 25,301,758 | K54: 25,827,907 | L54: 25,827,907 | M54: 25,827,907 | N54: 357,190,858 | O54: 357,190,858 | P54: 357,190,858 | Q54: 0.072308 | R54: 0.072308 | S54: 0.072308 | T54: 6,621 | U54: 6,173 | V54: 6,117 | W54: 6,180 | X54: 479 | Y54: 446 | Z54: 442 | AA54: 447 | AB54: 988 | AC54: 621 | AD54: 697 | AE54: 619 | AF54: 835 | AG54: 988 | AH54: 851 | AI54: 782 | AJ54: 773 | AK54: 783 | AL54: Existing Unit | AM54: Existing Unit | AN54: Existing Unit
A55: James H Miller Jr | B55: Alabama | C55: 6002 | D55: 3 | E55: 2671 | F55: 17,779,236 | G55: 23,543,417 | H55: 22,923,709 | I55: 20,185,941 | J55: 25,321,700 | K55: 23,929,609 | L55: 23,929,609 | M55: 23,929,609 | N55: 357,190,858 | O55: 357,190,858 | P55: 357,190,858 | Q55: 0.066994 | R55: 0.066994 | S55: 0.066994 | T55: 6,621 | U55: 6,173 | V55: 6,117 | W55: 6,180 | X55: 444 | Y55: 414 | Z55: 410 | AA55: 414 | AB55: 655 | AC55: 832 | AD55: 831 | AE55: 711 | AF55: 908 | AG55: 908 | AH55: 788 | AI55: 724 | AJ55: 716 | AK55: 725 | AL55: Existing Unit | AM55: Existing Unit | AN55: Existing Unit
A56: James H Miller Jr | B56: Alabama | C56: 6002 | D56: 4 | E56: 2672 | F56: 22,125,809 | G56: 26,290,170 | H56: 21,211,119 | I56: 20,734,669 | J56: 26,945,179 | K56: 25,120,386 | L56: 25,120,386 | M56: 25,120,386 | N56: 357,190,858 | O56: 357,190,858 | P56: 357,190,858 | Q56: 0.070328 | R56: 0.070328 | S56: 0.070328 | T56: 6,621 | U56: 6,173 | V56: 6,117 | W56: 6,180 | X56: 466 | Y56: 434 | Z56: 430 | AA56: 435 | AB56: 710 | AC56: 894 | AD56: 687 | AE56: 782 | AF56: 797 | AG56: 894 | AH56: 828 | AI56: 760 | AJ56: 752 | AK56: 761 | AL56: Existing Unit | AM56: Existing Unit | AN56: Existing Unit
A57: McIntosh (7063) | B57: Alabama | C57: 7063 | D57: **1 | E57: 2924 | F57: 31,226 | G57: 21,479 | H57: 7,578 | I57: 15,591 | J57: 56,741 | K57: 36,482 | L57: 36,482 | M57: 36,482 | N57: 357,190,858 | O57: 357,190,858 | P57: 357,190,858 | Q57: 0.000102 | R57: 0.000102 | S57: 0.000102 | T57: 6,621 | U57: 6,173 | V57: 6,117 | W57: 6,180 | X57: 1 | Y57: 1 | Z57: 1 | AA57: 1 | AB57: 3 | AC57: 2 | AD57: 1 | AE57: 2 | AF57: 6 | AG57: 6 | AH57: 1 | AI57: 1 | AJ57: 1 | AK57: 1 | AL57: Existing Unit | AM57: Existing Unit | AN57: Existing Unit
A58: McIntosh (7063) | B58: Alabama | C58: 7063 | D58: **2 | E58: 2925 | F58: 127,323 | G58: 222,186 | H58: 192,858 | I58: 174,523 | J58: 265,466 | K58: 226,837 | L58: 226,837 | M58: 226,837 | N58: 357,190,858 | O58: 357,190,858 | P58: 357,190,858 | Q58: 0.000635 | R58: 0.000635 | S58: 0.000635 | T58: 6,621 | U58: 6,173 | V58: 6,117 | W58: 6,180 | X58: 4 | Y58: 4 | Z58: 4 | AA58: 4 | AB58: 3 | AC58: 6 | AD58: 6 | AE58: 5 | AF58: 8 | AG58: 8 | AH58: 7 | AI58: 7 | AJ58: 7 | AK58: 7 | AL58: Existing Unit | AM58: Existing Unit | AN58: Existing Unit
A59: McIntosh (7063) | B59: Alabama | C59: 7063 | D59: **3 | E59: 2926 | F59: 142,168 | G59: 268,374 | H59: 496,794 | I59: 357,104 | J59: 285,331 | K59: 379,743 | L59: 379,743 | M59: 379,743 | N59: 357,190,858 | O59: 357,190,858 | P59: 357,190,858 | Q59: 0.001063 | R59: 0.001063 | S59: 0.001063 | T59: 6,621 | U59: 6,173 | V59: 6,117 | W59: 6,180 | X59: 7 | Y59: 7 | Z59: 7 | AA59: 7 | AB59: 4 | AC59: 7 | AD59: 13 | AE59: 9 | AF59: 9 | AG59: 13 | AH59: 13 | AI59: 11 | AJ59: 11 | AK59: 12 | AL59: Existing Unit | AM59: Existing Unit | AN59: Existing Unit
A60: McIntosh (7063) | B60: Alabama | C60: 7063 | D60: **4 | E60: 90423 | F60: 371,541 | G60: 1,098,523 | H60: 2,313,597 | I60: 922,427 | J60: 1,467,500 | K60: 1,626,540 | L60: 1,626,540 | M60: 1,626,540 | N60: 357,190,858 | O60: 357,190,858 | P60: 357,190,858 | Q60: 0.004554 | R60: 0.004554 | S60: 0.004554 | T60: 6,621 | U60: 6,173 | V60: 6,117 | W60: 6,180 | X60: 30 | Y60: 28 | Z60: 28 | AA60: 28 | AB60: 6 | AC60: 20 | AD60: 40 | AE60: 16 | AF60: 25 | AG60: 40 | AH60: 40 | AI60: 40 | AJ60: 40 | AK60: 40 | AL60: Existing Unit | AM60: Existing Unit | AN60: Existing Unit
A61: McIntosh (7063) | B61: Alabama | C61: 7063 | D61: **5 | E61: 90424 | F61: 239,158 | G61: 1,055,771 | H61: 1,679,204 | I61: 1,016,531 | J61: 1,514,613 | K61: 1,416,529 | L61: 1,416,529 | M61: 1,416,529 | N61: 357,190,858 | O61: 357,190,858 | P61: 357,190,858 | Q61: 0.003966 | R61: 0.003966 | S61: 0.003966 | T61: 6,621 | U61: 6,173 | V61: 6,117 | W61: 6,180 | X61: 26 | Y61: 24 | Z61: 24 | AA61: 25 | AB61: 4 | AC61: 17 | AD61: 29 | AE61: 17 | AF61: 26 | AG61: 29 | AH61: 29 | AI61: 29 | AJ61: 29 | AK61: 29 | AL61: Existing Unit | AM61: Existing Unit | AN61: Existing Unit
A62: McWilliams | B62: Alabama | C62: 533 | D62: **4 | E62: 320 | F62: 1,414,602 | G62: 1,584,557 | H62: 1,195,638 | I62: 1,922,493 | J62: 1,590,754 | K62: 1,699,268 | L62: 1,699,268 | M62: 1,699,268 | N62: 357,190,858 | O62: 357,190,858 | P62: 357,190,858 | Q62: 0.004757 | R62: 0.004757 | S62: 0.004757 | T62: 6,621 | U62: 6,173 | V62: 6,117 | W62: 6,180 | X62: 31 | Y62: 29 | Z62: 29 | AA62: 29 | AB62: 41 | AC62: 45 | AD62: 27 | AE62: 38 | AF62: 31 | AG62: 45 | AH62: 45 | AI62: 45 | AJ62: 45 | AK62: 45 | AL62: Existing Unit | AM62: Existing Unit | AN62: Existing Unit
A63: McWilliams | B63: Alabama | C63: 533 | D63: **V1 | E63: 324 | F63: 5,611,437 | G63: 5,573,160 | H63: 5,909,380 | I63: 6,219,213 | J63: 5,529,428 | K63: 5,913,343 | L63: 5,913,343 | M63: 5,913,343 | N63: 357,190,858 | O63: 357,190,858 | P63: 357,190,858 | Q63: 0.016555 | R63: 0.016555 | S63: 0.016555 | T63: 6,621 | U63: 6,173 | V63: 6,117 | W63: 6,180 | X63: 110 | Y63: 102 | Z63: 101 | AA63: 102 | AB63: 30 | AC63: 31 | AD63: 33 | AE63: 34 | AF63: 31 | AG63: 34 | AH63: 34 | AI63: 34 | AJ63: 34 | AK63: 34 | AL63: Existing Unit | AM63: Existing Unit | AN63: Existing Unit
A64: McWilliams | B64: Alabama | C64: 533 | D64: **V2 | E64: 325 | F64: 5,623,085 | G64: 5,503,561 | H64: 6,392,736 | I64: 6,319,913 | J64: 6,081,831 | K64: 6,264,827 | L64: 6,264,827 | M64: 6,264,827 | N64: 357,190,858 | O64: 357,190,858 | P64: 357,190,858 | Q64: 0.017539 | R64: 0.017539 | S64: 0.017539 | T64: 6,621 | U64: 6,173 | V64: 6,117 | W64: 6,180 | X64: 116 | Y64: 108 | Z64: 107 | AA64: 108 | AB64: 30 | AC64: 30 | AD64: 36 | AE64: 35 | AF64: 34 | AG64: 36 | AH64: 36 | AI64: 36 | AJ64: 36 | AK64: 36 | AL64: Existing Unit | AM64: Existing Unit | AN64: Existing Unit
A65: Morgan Energy Center | B65: Alabama | C65: 55293 | D65: CT-1 | E65: 4462 | F65: 4,092,458 | G65: 5,295,470 | H65: 3,938,858 | I65: 3,120,962 | J65: 4,273,228 | K65: 4,553,719 | L65: 4,553,719 | M65: 4,553,719 | N65: 357,190,858 | O65: 357,190,858 | P65: 357,190,858 | Q65: 0.012749 | R65: 0.012749 | S65: 0.012749 | T65: 6,621 | U65: 6,173 | V65: 6,117 | W65: 6,180 | X65: 84 | Y65: 79 | Z65: 78 | AA65: 79 | AB65: 16 | AC65: 19 | AD65: 17 | AE65: 10 | AF65: 11 | AG65: 19 | AH65: 19 | AI65: 19 | AJ65: 19 | AK65: 19 | AL65: Existing Unit | AM65: Existing Unit | AN65: Existing Unit
A66: Morgan Energy Center | B66: Alabama | C66: 55293 | D66: CT-2 | E66: 4463 | F66: 5,273,807 | G66: 3,882,804 | H66: 4,261,718 | I66: 3,359,057 | J66: 4,278,585 | K66: 4,604,703 | L66: 4,604,703 | M66: 4,604,703 | N66: 357,190,858 | O66: 357,190,858 | P66: 357,190,858 | Q66: 0.012891 | R66: 0.012891 | S66: 0.012891 | T66: 6,621 | U66: 6,173 | V66: 6,117 | W66: 6,180 | X66: 85 | Y66: 80 | Z66: 79 | AA66: 80 | AB66: 20 | AC66: 16 | AD66: 16 | AE66: 13 | AF66: 15 | AG66: 20 | AH66: 20 | AI66: 20 | AJ66: 20 | AK66: 20 | AL66: Existing Unit | AM66: Existing Unit | AN66: Existing Unit
A67: Morgan Energy Center | B67: Alabama | C67: 55293 | D67: CT-3 | E67: 4464 | F67: 3,436,508 | G67: 5,707,636 | H67: 3,194,857 | I67: 3,449,963 | J67: 3,980,535 | K67: 4,379,378 | L67: 4,379,378 | M67: 4,379,378 | N67: 357,190,858 | O67: 357,190,858 | P67: 357,190,858 | Q67: 0.012261 | R67: 0.012261 | S67: 0.012261 | T67: 6,621 | U67: 6,173 | V67: 6,117 | W67: 6,180 | X67: 81 | Y67: 76 | Z67: 75 | AA67: 76 | AB67: 13 | AC67: 19 | AD67: 13 | AE67: 12 | AF67: 14 | AG67: 19 | AH67: 19 | AI67: 19 | AJ67: 19 | AK67: 19 | AL67: Existing Unit | AM67: Existing Unit | AN67: Existing Unit
A68: Plant H. Allen Franklin | B68: Alabama | C68: 7710 | D68: 1A | E68: 3285 | F68: 5,820,063 | G68: 5,976,134 | H68: 6,521,608 | I68: 6,267,288 | J68: 5,683,094 | K68: 6,255,010 | L68: 6,255,010 | M68: 6,255,010 | N68: 357,190,858 | O68: 357,190,858 | P68: 357,190,858 | Q68: 0.017512 | R68: 0.017512 | S68: 0.017512 | T68: 6,621 | U68: 6,173 | V68: 6,117 | W68: 6,180 | X68: 116 | Y68: 108 | Z68: 107 | AA68: 108 | AB68: 26 | AC68: 27 | AD68: 27 | AE68: 26 | AF68: 27 | AG68: 27 | AH68: 27 | AI68: 27 | AJ68: 27 | AK68: 27 | AL68: Existing Unit | AM68: Existing Unit | AN68: Existing Unit
A69: Plant H. Allen Franklin | B69: Alabama | C69: 7710 | D69: 1B | E69: 3286 | F69: 5,975,272 | G69: 5,918,323 | H69: 6,668,149 | I69: 6,255,351 | J69: 5,811,106 | K69: 6,299,591 | L69: 6,299,591 | M69: 6,299,591 | N69: 357,190,858 | O69: 357,190,858 | P69: 357,190,858 | Q69: 0.017636 | R69: 0.017636 | S69: 0.017636 | T69: 6,621 | U69: 6,173 | V69: 6,117 | W69: 6,180 | X69: 117 | Y69: 109 | Z69: 108 | AA69: 109 | AB69: 25 | AC69: 25 | AD69: 27 | AE69: 26 | AF69: 27 | AG69: 27 | AH69: 27 | AI69: 27 | AJ69: 27 | AK69: 27 | AL69: Existing Unit | AM69: Existing Unit | AN69: Existing Unit
A70: Plant H. Allen Franklin | B70: Alabama | C70: 7710 | D70: 2A | E70: 3287 | F70: 5,445,185 | G70: 6,837,262 | H70: 7,044,244 | I70: 6,967,337 | J70: 4,712,040 | K70: 6,949,614 | L70: 6,949,614 | M70: 6,949,614 | N70: 357,190,858 | O70: 357,190,858 | P70: 357,190,858 | Q70: 0.019456 | R70: 0.019456 | S70: 0.019456 | T70: 6,621 | U70: 6,173 | V70: 6,117 | W70: 6,180 | X70: 129 | Y70: 120 | Z70: 119 | AA70: 120 | AB70: 24 | AC70: 29 | AD70: 30 | AE70: 29 | AF70: 22 | AG70: 30 | AH70: 30 | AI70: 30 | AJ70: 30 | AK70: 30 | AL70: Existing Unit | AM70: Existing Unit | AN70: Existing Unit
A71: Plant H. Allen Franklin | B71: Alabama | C71: 7710 | D71: 2B | E71: 3288 | F71: 5,623,538 | G71: 6,821,636 | H71: 7,009,113 | I71: 6,926,272 | J71: 4,641,663 | K71: 6,919,007 | L71: 6,919,007 | M71: 6,919,007 | N71: 357,190,858 | O71: 357,190,858 | P71: 357,190,858 | Q71: 0.019371 | R71: 0.019371 | S71: 0.019371 | T71: 6,621 | U71: 6,173 | V71: 6,117 | W71: 6,180 | X71: 128 | Y71: 120 | Z71: 118 | AA71: 120 | AB71: 24 | AC71: 28 | AD71: 29 | AE71: 29 | AF71: 21 | AG71: 29 | AH71: 29 | AI71: 29 | AJ71: 29 | AK71: 29 | AL71: Existing Unit | AM71: Existing Unit | AN71: Existing Unit
A72: Plant H. Allen Franklin | B72: Alabama | C72: 7710 | D72: 3A | E72: 3289 | F72: 6,681,770 | G72: 6,812,554 | H72: 6,321,941 | I72: 7,078,992 | J72: 6,251,194 | K72: 6,857,772 | L72: 6,857,772 | M72: 6,857,772 | N72: 357,190,858 | O72: 357,190,858 | P72: 357,190,858 | Q72: 0.019199 | R72: 0.019199 | S72: 0.019199 | T72: 6,621 | U72: 6,173 | V72: 6,117 | W72: 6,180 | X72: 127 | Y72: 119 | Z72: 117 | AA72: 119 | AB72: 31 | AC72: 30 | AD72: 27 | AE72: 29 | AF72: 26 | AG72: 31 | AH72: 31 | AI72: 31 | AJ72: 31 | AK72: 31 | AL72: Existing Unit | AM72: Existing Unit | AN72: Existing Unit
A73: Plant H. Allen Franklin | B73: Alabama | C73: 7710 | D73: 3B | E73: 3290 | F73: 6,583,863 | G73: 6,731,290 | H73: 6,195,674 | I73: 6,899,343 | J73: 5,849,573 | K73: 6,738,166 | L73: 6,738,166 | M73: 6,738,166 | N73: 357,190,858 | O73: 357,190,858 | P73: 357,190,858 | Q73: 0.018864 | R73: 0.018864 | S73: 0.018864 | T73: 6,621 | U73: 6,173 | V73: 6,117 | W73: 6,180 | X73: 125 | Y73: 116 | Z73: 115 | AA73: 117 | AB73: 31 | AC73: 32 | AD73: 27 | AE73: 29 | AF73: 28 | AG73: 32 | AH73: 32 | AI73: 32 | AJ73: 32 | AK73: 32 | AL73: Existing Unit | AM73: Existing Unit | AN73: Existing Unit
A74: SABIC Innovative Plastics - Burkville | B74: Alabama | C74: 7698 | D74: CC1 | E74: 3140 | F74: 1,986,924 | G74: 2,791,065 | H74: 1,200,789 | I74: 2,524,401 | J74: 2,368,504 | K74: 2,561,323 | L74: 2,561,323 | M74: 2,561,323 | N74: 357,190,858 | O74: 357,190,858 | P74: 357,190,858 | Q74: 0.007171 | R74: 0.007171 | S74: 0.007171 | T74: 6,621 | U74: 6,173 | V74: 6,117 | W74: 6,180 | X74: 47 | Y74: 44 | Z74: 44 | AA74: 44 | AB74: 23 | AC74: 35 | AD74: 18 | AE74: 37 | AF74: 32 | AG74: 37 | AH74: 37 | AI74: 37 | AJ74: 37 | AK74: 37 | AL74: Existing Unit | AM74: Existing Unit | AN74: Existing Unit
A75: Tenaska Lindsay Hill Generating Station | B75: Alabama | C75: 55271 | D75: CT1 | E75: 4383 | F75: 1,389,544 | G75: 2,756,290 | H75: 2,824,792 | I75: 2,041,114 | J75: 381,101 | K75: 2,540,732 | L75: 2,540,732 | M75: 2,540,732 | N75: 357,190,858 | O75: 357,190,858 | P75: 357,190,858 | Q75: 0.007113 | R75: 0.007113 | S75: 0.007113 | T75: 6,621 | U75: 6,173 | V75: 6,117 | W75: 6,180 | X75: 47 | Y75: 44 | Z75: 44 | AA75: 44 | AB75: 6 | AC75: 10 | AD75: 10 | AE75: 7 | AF75: 2 | AG75: 10 | AH75: 10 | AI75: 10 | AJ75: 10 | AK75: 10 | AL75: Existing Unit | AM75: Existing Unit | AN75: Existing Unit
A76: Tenaska Lindsay Hill Generating Station | B76: Alabama | C76: 55271 | D76: CT2 | E76: 4384 | F76: 3,508,417 | G76: 2,695,413 | H76: 2,892,135 | I76: 2,419,743 | J76: 411,876 | K76: 3,031,988 | L76: 3,031,988 | M76: 3,031,988 | N76: 357,190,858 | O76: 357,190,858 | P76: 357,190,858 | Q76: 0.008488 | R76: 0.008488 | S76: 0.008488 | T76: 6,621 | U76: 6,173 | V76: 6,117 | W76: 6,180 | X76: 56 | Y76: 52 | Z76: 52 | AA76: 52 | AB76: 14 | AC76: 10 | AD76: 11 | AE76: 9 | AF76: 2 | AG76: 14 | AH76: 14 | AI76: 14 | AJ76: 14 | AK76: 14 | AL76: Existing Unit | AM76: Existing Unit | AN76: Existing Unit
A77: Tenaska Lindsay Hill Generating Station | B77: Alabama | C77: 55271 | D77: CT3 | E77: 4385 | F77: 1,384,028 | G77: 2,790,740 | H77: 1,607,592 | I77: 2,951,405 | J77: 6,665,235 | K77: 4,135,794 | L77: 4,135,794 | M77: 4,135,794 | N77: 357,190,858 | O77: 357,190,858 | P77: 357,190,858 | Q77: 0.011579 | R77: 0.011579 | S77: 0.011579 | T77: 6,621 | U77: 6,173 | V77: 6,117 | W77: 6,180 | X77: 77 | Y77: 71 | Z77: 71 | AA77: 72 | AB77: 6 | AC77: 11 | AD77: 6 | AE77: 11 | AF77: 24 | AG77: 24 | AH77: 24 | AI77: 24 | AJ77: 24 | AK77: 24 | AL77: Existing Unit | AM77: Existing Unit | AN77: Existing Unit
A78: Theodore Cogeneration | B78: Alabama | C78: 7721 | D78: CC1 | E78: 3151 | F78: 5,061,774 | G78: 5,649,861 | H78: 5,793,406 | I78: 5,344,014 | J78: 5,096,523 | K78: 5,595,760 | L78: 5,595,760 | M78: 5,595,760 | N78: 357,190,858 | O78: 357,190,858 | P78: 357,190,858 | Q78: 0.015666 | R78: 0.015666 | S78: 0.015666 | T78: 6,621 | U78: 6,173 | V78: 6,117 | W78: 6,180 | X78: 104 | Y78: 97 | Z78: 96 | AA78: 97 | AB78: 19 | AC78: 21 | AD78: 23 | AE78: 20 | AF78: 18 | AG78: 23 | AH78: 23 | AI78: 23 | AJ78: 23 | AK78: 23 | AL78: Existing Unit | AM78: Existing Unit | AN78: Existing Unit
A79: Washington County Cogen (Olin) | B79: Alabama | C79: 7697 | D79: CC1 | E79: 3139 | F79: 3,744,171 | G79: 3,438,128 | H79: 3,681,583 | I79: 3,813,175 | J79: 3,428,147 | K79: 3,746,310 | L79: 3,746,310 | M79: 3,746,310 | N79: 357,190,858 | O79: 357,190,858 | P79: 357,190,858 | Q79: 0.010488 | R79: 0.010488 | S79: 0.010488 | T79: 6,621 | U79: 6,173 | V79: 6,117 | W79: 6,180 | X79: 69 | Y79: 65 | Z79: 64 | AA79: 65 | AB79: 73 | AC79: 62 | AD79: 73 | AE79: 70 | AF79: 42 | AG79: 73 | AH79: 73 | AI79: 73 | AJ79: 73 | AK79: 73 | AL79: Existing Unit | AM79: Existing Unit | AN79: Existing Unit
A80: City Water & Light - City of Jonesboro | B80: Arkansas | C80: 56505 | D80: SN04 | E80: 89827 | F80: 42,165 | G80: 106,853 | H80: 27,733 | I80: 6,191 | J80: 25,653 | K80: 58,917 | L80: 58,917 | M80: 58,917 | N80: 223,615,701 | O80: 223,615,701 | P80: 220,687,037 | Q80: 0.000263 | R80: 0.000263 | S80: 0.000267 | T80: 8,732 | U80: 8,711 | V80: 8,711 | W80: 3,845 | X80: 2 | Y80: 2 | Z80: 2 | AA80: 1 | AB80: 2 | AC80: 5 | AD80: 2 | AE80: 0 | AF80: 1 | AG80: 5 | AH80: 4 | AI80: 4 | AJ80: 4 | AK80: 1 | AL80: Existing Unit | AM80: Existing Unit | AN80: Existing Unit
A81: City Water & Light - City of Jonesboro | B81: Arkansas | C81: 56505 | D81: SN06 | E81: 89828 | F81: 54,665 | G81: 5,849 | H81: 83,820 | I81: 27,480 | J81: 68,614 | K81: 69,033 | L81: 69,033 | M81: 69,033 | N81: 223,615,701 | O81: 223,615,701 | P81: 220,687,037 | Q81: 0.000309 | R81: 0.000309 | S81: 0.000313 | T81: 8,732 | U81: 8,711 | V81: 8,711 | W81: 3,845 | X81: 3 | Y81: 3 | Z81: 3 | AA81: 1 | AB81: 3 | AC81: 0 | AD81: 5 | AE81: 2 | AF81: 4 | AG81: 5 | AH81: 4 | AI81: 4 | AJ81: 4 | AK81: 2 | AL81: Existing Unit | AM81: Existing Unit | AN81: Existing Unit
A82: City Water & Light - City of Jonesboro | B82: Arkansas | C82: 56505 | D82: SN07 | E82: 89829 | F82: 107,514 | G82: 98,755 | H82: 46,718 | I82: 4,888 | J82: 93,591 | K82: 99,953 | L82: 99,953 | M82: 99,953 | N82: 223,615,701 | O82: 223,615,701 | P82: 220,687,037 | Q82: 0.000447 | R82: 0.000447 | S82: 0.000453 | T82: 8,732 | U82: 8,711 | V82: 8,711 | W82: 3,845 | X82: 4 | Y82: 4 | Z82: 4 | AA82: 2 | AB82: 4 | AC82: 4 | AD82: 2 | AE82: 0 | AF82: 4 | AG82: 4 | AH82: 4 | AI82: 4 | AJ82: 4 | AK82: 2 | AL82: Existing Unit | AM82: Existing Unit | AN82: Existing Unit
A83: Dell Power Plant | B83: Arkansas | C83: 55340 | D83: 1 | E83: 4517 | F83: 776,203 | G83: 4,747,480 | H83: 4,996,904 | I83: 5,283,017 | J83: 5,634,951 | K83: 5,304,957 | L83: 5,304,957 | M83: 5,304,957 | N83: 223,615,701 | O83: 223,615,701 | P83: 220,687,037 | Q83: 0.023724 | R83: 0.023724 | S83: 0.024038 | T83: 8,732 | U83: 8,711 | V83: 8,711 | W83: 3,845 | X83: 207 | Y83: 207 | Z83: 207 | AA83: 92 | AB83: 4 | AC83: 20 | AD83: 17 | AE83: 22 | AF83: 24 | AG83: 24 | AH83: 24 | AI83: 24 | AJ83: 24 | AK83: 24 | AL83: Existing Unit | AM83: Existing Unit | AN83: Existing Unit
A84: Dell Power Plant | B84: Arkansas | C84: 55340 | D84: 2 | E84: 4518 | F84: 680,089 | G84: 4,668,096 | H84: 5,791,356 | I84: 5,265,965 | J84: 5,679,273 | K84: 5,578,865 | L84: 5,578,865 | M84: 5,578,865 | N84: 223,615,701 | O84: 223,615,701 | P84: 220,687,037 | Q84: 0.024948 | R84: 0.024948 | S84: 0.025280 | T84: 8,732 | U84: 8,711 | V84: 8,711 | W84: 3,845 | X84: 218 | Y84: 217 | Z84: 217 | AA84: 97 | AB84: 3 | AC84: 19 | AD84: 19 | AE84: 19 | AF84: 25 | AG84: 25 | AH84: 25 | AI84: 25 | AJ84: 25 | AK84: 25 | AL84: Existing Unit | AM84: Existing Unit | AN84: Existing Unit
A85: Flint Creek Power Plant | B85: Arkansas | C85: 6138 | D85: 1 | E85: 2800 | F85: 9,827,431 | G85: 13,221,821 | H85: 12,676,998 | I85: 9,958,482 | J85: 15,768,804 | K85: 13,889,208 | L85: 13,889,208 | M85: 13,889,208 | N85: 223,615,701 | O85: 223,615,701 | P85: 220,687,037 | Q85: 0.062112 | R85: 0.062112 | S85: 0.062936 | T85: 8,732 | U85: 8,711 | V85: 8,711 | W85: 3,845 | X85: 542 | Y85: 541 | Z85: 541 | AA85: 242 | AB85: 1,227 | AC85: 1,317 | AD85: 1,167 | AE85: 921 | AF85: 1,495 | AG85: 1,495 | AH85: 864 | AI85: 862 | AJ85: 862 | AK85: 313 | AL85: Existing Unit | AM85: Existing Unit | AN85: Existing Unit
A86: Fulton | B86: Arkansas | C86: 7825 | D86: CT1 | E86: 3247 | F86: 171,578 | G86: 821,753 | H86: 961,138 | I86: 415,597 | J86: 597,449 | K86: 793,446 | L86: 793,446 | M86: 793,446 | N86: 223,615,701 | O86: 223,615,701 | P86: 220,687,037 | Q86: 0.003548 | R86: 0.003548 | S86: 0.003595 | T86: 8,732 | U86: 8,711 | V86: 8,711 | W86: 3,845 | X86: 31 | Y86: 31 | Z86: 31 | AA86: 14 | AB86: 5 | AC86: 23 | AD86: 29 | AE86: 11 | AF86: 16 | AG86: 29 | AH86: 29 | AI86: 29 | AJ86: 29 | AK86: 18 | AL86: Existing Unit | AM86: Existing Unit | AN86: Existing Unit
A87: Harry D. Mattison Power Plant | B87: Arkansas | C87: 56328 | D87: 1 | E87: 89740 | F87: 62,752 | G87: 73,321 | H87: 271,522 | I87: 91,818 | J87: 94,266 | K87: 152,535 | L87: 152,535 | M87: 152,535 | N87: 223,615,701 | O87: 223,615,701 | P87: 220,687,037 | Q87: 0.000682 | R87: 0.000682 | S87: 0.000691 | T87: 8,732 | U87: 8,711 | V87: 8,711 | W87: 3,845 | X87: 6 | Y87: 6 | Z87: 6 | AA87: 3 | AB87: 2 | AC87: 2 | AD87: 6 | AE87: 3 | AF87: 3 | AG87: 6 | AH87: 6 | AI87: 6 | AJ87: 6 | AK87: 3 | AL87: Existing Unit | AM87: Existing Unit | AN87: Existing Unit
A88: Harry D. Mattison Power Plant | B88: Arkansas | C88: 56328 | D88: 2 | E88: 89741 | F88: 80,958 | G88: 110,299 | H88: 320,896 | I88: 83,730 | J88: 33,949 | K88: 171,642 | L88: 171,642 | M88: 171,642 | N88: 223,615,701 | O88: 223,615,701 | P88: 220,687,037 | Q88: 0.000768 | R88: 0.000768 | S88: 0.000778 | T88: 8,732 | U88: 8,711 | V88: 8,711 | W88: 3,845 | X88: 7 | Y88: 7 | Z88: 7 | AA88: 3 | AB88: 3 | AC88: 3 | AD88: 7 | AE88: 3 | AF88: 1 | AG88: 7 | AH88: 7 | AI88: 7 | AJ88: 7 | AK88: 4 | AL88: Existing Unit | AM88: Existing Unit | AN88: Existing Unit
A89: Harry D. Mattison Power Plant | B89: Arkansas | C89: 56328 | D89: 3 | E89: 91249 | F89: 126,955 | G89: 93,200 | H89: 322,531 | I89: 96,378 | J89: 83,976 | K89: 181,955 | L89: 181,955 | M89: 181,955 | N89: 223,615,701 | O89: 223,615,701 | P89: 220,687,037 | Q89: 0.000814 | R89: 0.000814 | S89: 0.000824 | T89: 8,732 | U89: 8,711 | V89: 8,711 | W89: 3,845 | X89: 7 | Y89: 7 | Z89: 7 | AA89: 3 | AB89: 4 | AC89: 3 | AD89: 13 | AE89: 4 | AF89: 4 | AG89: 13 | AH89: 11 | AI89: 11 | AJ89: 11 | AK89: 4 | AL89: Existing Unit | AM89: Existing Unit | AN89: Existing Unit
A90: Harry D. Mattison Power Plant | B90: Arkansas | C90: 56328 | D90: 4 | E90: 91250 | F90: 196,003 | G90: 102,922 | H90: 312,286 | I90: 116,719 | J90: 79,820 | K90: 208,336 | L90: 208,336 | M90: 208,336 | N90: 223,615,701 | O90: 223,615,701 | P90: 220,687,037 | Q90: 0.000932 | R90: 0.000932 | S90: 0.000944 | T90: 8,732 | U90: 8,711 | V90: 8,711 | W90: 3,845 | X90: 8 | Y90: 8 | Z90: 8 | AA90: 4 | AB90: 5 | AC90: 3 | AD90: 13 | AE90: 5 | AF90: 4 | AG90: 13 | AH90: 13 | AI90: 13 | AJ90: 13 | AK90: 5 | AL90: Existing Unit | AM90: Existing Unit | AN90: Existing Unit
A91: Hot Spring Energy Facility | B91: Arkansas | C91: 55418 | D91: CT-1 | E91: 4705 | F91: 4,106,288 | G91: 6,148,969 | H91: 5,812,146 | I91: 1,728,221 | J91: 2,701,410 | K91: 5,355,801 | L91: 5,355,801 | M91: 5,355,801 | N91: 223,615,701 | O91: 223,615,701 | P91: 220,687,037 | Q91: 0.023951 | R91: 0.023951 | S91: 0.024269 | T91: 8,732 | U91: 8,711 | V91: 8,711 | W91: 3,845 | X91: 209 | Y91: 209 | Z91: 209 | AA91: 93 | AB91: 19 | AC91: 34 | AD91: 32 | AE91: 10 | AF91: 16 | AG91: 34 | AH91: 34 | AI91: 34 | AJ91: 34 | AK91: 34 | AL91: Existing Unit | AM91: Existing Unit | AN91: Existing Unit
A92: Hot Spring Energy Facility | B92: Arkansas | C92: 55418 | D92: CT-2 | E92: 4706 | F92: 4,208,507 | G92: 6,112,924 | H92: 5,824,735 | I92: 1,704,720 | J92: 2,650,790 | K92: 5,382,055 | L92: 5,382,055 | M92: 5,382,055 | N92: 223,615,701 | O92: 223,615,701 | P92: 220,687,037 | Q92: 0.024068 | R92: 0.024068 | S92: 0.024388 | T92: 8,732 | U92: 8,711 | V92: 8,711 | W92: 3,845 | X92: 210 | Y92: 210 | Z92: 210 | AA92: 94 | AB92: 20 | AC92: 34 | AD92: 32 | AE92: 10 | AF92: 15 | AG92: 34 | AH92: 34 | AI92: 34 | AJ92: 34 | AK92: 34 | AL92: Existing Unit | AM92: Existing Unit | AN92: Existing Unit
A93: Independence | B93: Arkansas | C93: 6641 | D93: 1 | E93: 2898 | F93: 14,312,484 | G93: 23,782,430 | H93: 15,523,468 | I93: 13,765,616 | J93: 21,771,726 | K93: 20,359,208 | L93: 20,359,208 | M93: 20,359,208 | N93: 223,615,701 | O93: 223,615,701 | P93: 220,687,037 | Q93: 0.091046 | R93: 0.091046 | S93: 0.092254 | T93: 8,732 | U93: 8,711 | V93: 8,711 | W93: 3,845 | X93: 795 | Y93: 793 | Z93: 793 | AA93: 355 | AB93: 1,671 | AC93: 1,960 | AD93: 1,298 | AE93: 1,210 | AF93: 1,585 | AG93: 1,960 | AH93: 1,267 | AI93: 1,263 | AJ93: 1,263 | AK93: 459 | AL93: Existing Unit | AM93: Existing Unit | AN93: Existing Unit
A94: Independence | B94: Arkansas | C94: 6641 | D94: 2 | E94: 2899 | F94: 24,772,980 | G94: 27,720,499 | H94: 20,768,464 | I94: 9,393,450 | J94: 4,806,052 | K94: 24,420,647 | L94: 24,420,647 | M94: 24,420,647 | N94: 223,615,701 | O94: 223,615,701 | P94: 220,687,037 | Q94: 0.109208 | R94: 0.109208 | S94: 0.110657 | T94: 8,732 | U94: 8,711 | V94: 8,711 | W94: 3,845 | X94: 954 | Y94: 951 | Z94: 951 | AA94: 425 | AB94: 3,009 | AC94: 1,968 | AD94: 1,546 | AE94: 773 | AF94: 318 | AG94: 3,009 | AH94: 1,520 | AI94: 1,515 | AJ94: 1,515 | AK94: 550 | AL94: Existing Unit | AM94: Existing Unit | AN94: Existing Unit
A95: John W. Turk Jr. Power Plant | B95: Arkansas | C95: 56564 | D95: SN-01 | E95: 90325 | F95: 17,168,725 | G95: 15,442,277 | H95: 14,345,876 | I95: 13,188,947 | J95: 16,488,574 | K95: 16,366,525 | L95: 16,366,525 | M95: 16,366,525 | N95: 223,615,701 | O95: 223,615,701 | P95: 220,687,037 | Q95: 0.073190 | R95: 0.073190 | S95: 0.074162 | T95: 8,732 | U95: 8,711 | V95: 8,711 | W95: 3,845 | X95: 639 | Y95: 638 | Z95: 638 | AA95: 285 | AB95: 351 | AC95: 349 | AD95: 261 | AE95: 289 | AF95: 364 | AG95: 364 | AH95: 364 | AI95: 364 | AJ95: 364 | AK95: 364 | AL95: Existing Unit | AM95: Existing Unit | AN95: Existing Unit
A96: Lake Catherine | B96: Arkansas | C96: 170 | D96: 4 | E96: 107 | F96: 630,058 | G96: 2,432,662 | H96: 1,574,530 | I96: 4,430,821 | J96: 1,922,509 | K96: 2,928,664 | L96: 2,928,664 | N96: 223,615,701 | O96: 223,615,701 | P96: 220,687,037 | Q96: 0.013097 | R96: 0.013097 | T96: 8,732 | U96: 8,711 | V96: 8,711 | W96: 3,845 | X96: 114 | Y96: 114 | Z96: 114 | AB96: 71 | AC96: 301 | AD96: 173 | AE96: 587 | AF96: 227 | AG96: 587 | AH96: 182 | AI96: 182 | AJ96: 182 | AL96: Existing Unit | AM96: Existing Unit | AN96: Retired
A97: Magnet Cove Generating Station | B97: Arkansas | C97: 55714 | D97: SN-01 | E97: 9298 | F97: 3,079,570 | G97: 2,940,424 | H97: 4,885,888 | I97: 1,301,498 | J97: 1,396,943 | K97: 3,635,294 | L97: 3,635,294 | M97: 3,635,294 | N97: 223,615,701 | O97: 223,615,701 | P97: 220,687,037 | Q97: 0.016257 | R97: 0.016257 | S97: 0.016473 | T97: 8,732 | U97: 8,711 | V97: 8,711 | W97: 3,845 | X97: 142 | Y97: 142 | Z97: 142 | AA97: 63 | AB97: 20 | AC97: 19 | AD97: 31 | AE97: 9 | AF97: 11 | AG97: 31 | AH97: 31 | AI97: 31 | AJ97: 31 | AK97: 31 | AL97: Existing Unit | AM97: Existing Unit | AN97: Existing Unit
A98: Magnet Cove Generating Station | B98: Arkansas | C98: 55714 | D98: SN-02 | E98: 9299 | F98: 2,746,919 | G98: 3,925,845 | H98: 5,573,245 | I98: 2,793,403 | J98: 2,278,141 | K98: 4,097,497 | L98: 4,097,497 | M98: 4,097,497 | N98: 223,615,701 | O98: 223,615,701 | P98: 220,687,037 | Q98: 0.018324 | R98: 0.018324 | S98: 0.018567 | T98: 8,732 | U98: 8,711 | V98: 8,711 | W98: 3,845 | X98: 160 | Y98: 160 | Z98: 160 | AA98: 71 | AB98: 26 | AC98: 25 | AD98: 34 | AE98: 20 | AF98: 16 | AG98: 34 | AH98: 34 | AI98: 34 | AJ98: 34 | AK98: 34 | AL98: Existing Unit | AM98: Existing Unit | AN98: Existing Unit
A99: McClellan | B99: Arkansas | C99: 203 | D99: 01 | E99: 112 | F99: 702,031 | G99: 397,546 | H99: 335,362 | I99: 240,032 | J99: 114,282 | K99: 478,313 | L99: 478,313 | M99: 478,313 | N99: 223,615,701 | O99: 223,615,701 | P99: 220,687,037 | Q99: 0.002139 | R99: 0.002139 | S99: 0.002167 | T99: 8,732 | U99: 8,711 | V99: 8,711 | W99: 3,845 | X99: 19 | Y99: 19 | Z99: 19 | AA99: 8 | AB99: 84 | AC99: 41 | AD99: 29 | AE99: 30 | AF99: 11 | AG99: 84 | AH99: 30 | AI99: 30 | AJ99: 30 | AK99: 11 | AL99: Existing Unit | AM99: Existing Unit | AN99: Existing Unit
A100: Oswald Generating Station | B100: Arkansas | C100: 55221 | D100: G1 | E100: 4167 | F100: 227,808 | G100: 464,754 | H100: 284,076 | I100: 304,768 | J100: 367,998 | K100: 379,173 | L100: 379,173 | M100: 379,173 | N100: 223,615,701 | O100: 223,615,701 | P100: 220,687,037 | Q100: 0.001696 | R100: 0.001696 | S100: 0.001718 | T100: 8,732 | U100: 8,711 | V100: 8,711 | W100: 3,845 | X100: 15 | Y100: 15 | Z100: 15 | AA100: 7 | AB100: 13 | AC100: 29 | AD100: 16 | AE100: 17 | AF100: 23 | AG100: 29 | AH100: 24 | AI100: 24 | AJ100: 24 | AK100: 9 | AL100: Existing Unit | AM100: Existing Unit | AN100: Existing Unit
A101: Oswald Generating Station | B101: Arkansas | C101: 55221 | D101: G2 | E101: 4168 | F101: 169,505 | G101: 431,475 | H101: 282,024 | I101: 292,202 | J101: 381,756 | K101: 368,478 | L101: 368,478 | M101: 368,478 | N101: 223,615,701 | O101: 223,615,701 | P101: 220,687,037 | Q101: 0.001648 | R101: 0.001648 | S101: 0.001670 | T101: 8,732 | U101: 8,711 | V101: 8,711 | W101: 3,845 | X101: 14 | Y101: 14 | Z101: 14 | AA101: 6 | AB101: 11 | AC101: 26 | AD101: 16 | AE101: 16 | AF101: 21 | AG101: 26 | AH101: 23 | AI101: 23 | AJ101: 23 | AK101: 8 | AL101: Existing Unit | AM101: Existing Unit | AN101: Existing Unit
A102: Oswald Generating Station | B102: Arkansas | C102: 55221 | D102: G3 | E102: 4169 | F102: 201,374 | G102: 457,000 | H102: 308,535 | I102: 308,501 | J102: 403,367 | K102: 389,634 | L102: 389,634 | M102: 389,634 | N102: 223,615,701 | O102: 223,615,701 | P102: 220,687,037 | Q102: 0.001742 | R102: 0.001742 | S102: 0.001766 | T102: 8,732 | U102: 8,711 | V102: 8,711 | W102: 3,845 | X102: 15 | Y102: 15 | Z102: 15 | AA102: 7 | AB102: 12 | AC102: 27 | AD102: 18 | AE102: 17 | AF102: 23 | AG102: 27 | AH102: 24 | AI102: 24 | AJ102: 24 | AK102: 9 | AL102: Existing Unit | AM102: Existing Unit | AN102: Existing Unit
A103: Oswald Generating Station | B103: Arkansas | C103: 55221 | D103: G4 | E103: 4170 | F103: 212,546 | G103: 473,264 | H103: 301,441 | I103: 317,716 | J103: 397,342 | K103: 396,107 | L103: 396,107 | M103: 396,107 | N103: 223,615,701 | O103: 223,615,701 | P103: 220,687,037 | Q103: 0.001771 | R103: 0.001771 | S103: 0.001795 | T103: 8,732 | U103: 8,711 | V103: 8,711 | W103: 3,845 | X103: 15 | Y103: 15 | Z103: 15 | AA103: 7 | AB103: 13 | AC103: 29 | AD103: 18 | AE103: 17 | AF103: 23 | AG103: 29 | AH103: 25 | AI103: 25 | AJ103: 25 | AK103: 9 | AL103: Existing Unit | AM103: Existing Unit | AN103: Existing Unit
A104: Oswald Generating Station | B104: Arkansas | C104: 55221 | D104: G5 | E104: 4171 | F104: 233,275 | G104: 502,610 | H104: 324,439 | I104: 275,644 | J104: 393,152 | K104: 406,734 | L104: 406,734 | M104: 406,734 | N104: 223,615,701 | O104: 223,615,701 | P104: 220,687,037 | Q104: 0.001819 | R104: 0.001819 | S104: 0.001843 | T104: 8,732 | U104: 8,711 | V104: 8,711 | W104: 3,845 | X104: 16 | Y104: 16 | Z104: 16 | AA104: 7 | AB104: 13 | AC104: 30 | AD104: 22 | AE104: 15 | AF104: 23 | AG104: 30 | AH104: 25 | AI104: 25 | AJ104: 25 | AK104: 9 | AL104: Existing Unit | AM104: Existing Unit | AN104: Existing Unit
A105: Oswald Generating Station | B105: Arkansas | C105: 55221 | D105: G6 | E105: 4172 | F105: 219,948 | G105: 486,157 | H105: 314,616 | I105: 291,847 | J105: 393,780 | K105: 398,184 | L105: 398,184 | M105: 398,184 | N105: 223,615,701 | O105: 223,615,701 | P105: 220,687,037 | Q105: 0.001781 | R105: 0.001781 | S105: 0.001804 | T105: 8,732 | U105: 8,711 | V105: 8,711 | W105: 3,845 | X105: 16 | Y105: 16 | Z105: 16 | AA105: 7 | AB105: 13 | AC105: 30 | AD105: 21 | AE105: 15 | AF105: 22 | AG105: 30 | AH105: 25 | AI105: 25 | AJ105: 25 | AK105: 9 | AL105: Existing Unit | AM105: Existing Unit | AN105: Existing Unit
A106: Oswald Generating Station | B106: Arkansas | C106: 55221 | D106: G7 | E106: 4173 | F106: 569,860 | G106: 1,083,667 | H106: 686,539 | I106: 726,251 | J106: 839,766 | K106: 883,228 | L106: 883,228 | M106: 883,228 | N106: 223,615,701 | O106: 223,615,701 | P106: 220,687,037 | Q106: 0.003950 | R106: 0.003950 | S106: 0.004002 | T106: 8,732 | U106: 8,711 | V106: 8,711 | W106: 3,845 | X106: 34 | Y106: 34 | Z106: 34 | AA106: 15 | AB106: 31 | AC106: 70 | AD106: 42 | AE106: 22 | AF106: 28 | AG106: 70 | AH106: 55 | AI106: 55 | AJ106: 55 | AK106: 20 | AL106: Existing Unit | AM106: Existing Unit | AN106: Existing Unit
A107: Pine Bluff Energy Center | B107: Arkansas | C107: 55075 | D107: CT-1 | E107: 3855 | F107: 5,571,973 | G107: 5,170,716 | H107: 5,394,462 | I107: 5,298,396 | J107: 2,949,612 | K107: 5,421,610 | L107: 5,421,610 | M107: 5,421,610 | N107: 223,615,701 | O107: 223,615,701 | P107: 220,687,037 | Q107: 0.024245 | R107: 0.024245 | S107: 0.024567 | T107: 8,732 | U107: 8,711 | V107: 8,711 | W107: 3,845 | X107: 212 | Y107: 211 | Z107: 211 | AA107: 94 | AB107: 81 | AC107: 85 | AD107: 92 | AE107: 87 | AF107: 64 | AG107: 92 | AH107: 92 | AI107: 92 | AJ107: 92 | AK107: 92 | AL107: Existing Unit | AM107: Existing Unit | AN107: Existing Unit
A108: Plum Point Energy Station | B108: Arkansas | C108: 56456 | D108: 1 | E108: 90208 | F108: 19,242,299 | G108: 23,956,346 | H108: 20,016,471 | I108: 14,690,548 | J108: 21,295,492 | K108: 21,756,103 | L108: 21,756,103 | M108: 21,756,103 | N108: 223,615,701 | O108: 223,615,701 | P108: 220,687,037 | Q108: 0.097292 | R108: 0.097292 | S108: 0.098584 | T108: 8,732 | U108: 8,711 | V108: 8,711 | W108: 3,845 | X108: 850 | Y108: 848 | Z108: 848 | AA108: 379 | AB108: 717 | AC108: 914 | AD108: 743 | AE108: 547 | AF108: 871 | AG108: 914 | AH108: 914 | AI108: 914 | AJ108: 914 | AK108: 490 | AL108: Existing Unit | AM108: Existing Unit | AN108: Existing Unit
A109: Thomas Fitzhugh | B109: Arkansas | C109: 201 | D109: 2 | E109: 88375 | F109: 940,252 | G109: 1,735,995 | H109: 1,495,731 | I109: 2,111,541 | J109: 1,088,341 | K109: 1,781,089 | L109: 1,781,089 | M109: 1,781,089 | N109: 223,615,701 | O109: 223,615,701 | P109: 220,687,037 | Q109: 0.007965 | R109: 0.007965 | S109: 0.008071 | T109: 8,732 | U109: 8,711 | V109: 8,711 | W109: 3,845 | X109: 70 | Y109: 69 | Z109: 69 | AA109: 31 | AB109: 41 | AC109: 73 | AD109: 52 | AE109: 79 | AF109: 37 | AG109: 79 | AH109: 79 | AI109: 79 | AJ109: 79 | AK109: 40 | AL109: Existing Unit | AM109: Existing Unit | AN109: Existing Unit
A110: Union Power Station | B110: Arkansas | C110: 55380 | D110: CTG-1 | E110: 4590 | F110: 4,085,392 | G110: 4,378,420 | H110: 5,411,692 | I110: 6,009,804 | J110: 4,424,166 | K110: 5,281,888 | L110: 5,281,888 | M110: 5,281,888 | N110: 223,615,701 | O110: 223,615,701 | P110: 220,687,037 | Q110: 0.023620 | R110: 0.023620 | S110: 0.023934 | T110: 8,732 | U110: 8,711 | V110: 8,711 | W110: 3,845 | X110: 206 | Y110: 206 | Z110: 206 | AA110: 92 | AB110: 25 | AC110: 25 | AD110: 30 | AE110: 34 | AF110: 27 | AG110: 34 | AH110: 34 | AI110: 34 | AJ110: 34 | AK110: 34 | AL110: Existing Unit | AM110: Existing Unit | AN110: Existing Unit
A111: Union Power Station | B111: Arkansas | C111: 55380 | D111: CTG-2 | E111: 4592 | F111: 3,889,187 | G111: 4,506,725 | H111: 5,425,587 | I111: 6,115,171 | J111: 4,653,776 | K111: 5,398,178 | L111: 5,398,178 | M111: 5,398,178 | N111: 223,615,701 | O111: 223,615,701 | P111: 220,687,037 | Q111: 0.024140 | R111: 0.024140 | S111: 0.024461 | T111: 8,732 | U111: 8,711 | V111: 8,711 | W111: 3,845 | X111: 211 | Y111: 210 | Z111: 210 | AA111: 94 | AB111: 22 | AC111: 28 | AD111: 33 | AE111: 35 | AF111: 28 | AG111: 35 | AH111: 35 | AI111: 35 | AJ111: 35 | AK111: 35 | AL111: Existing Unit | AM111: Existing Unit | AN111: Existing Unit
A112: Union Power Station | B112: Arkansas | C112: 55380 | D112: CTG-3 | E112: 4593 | F112: 2,850,503 | G112: 4,034,432 | H112: 4,826,316 | I112: 5,143,768 | J112: 5,215,302 | K112: 5,061,795 | L112: 5,061,795 | M112: 5,061,795 | N112: 223,615,701 | O112: 223,615,701 | P112: 220,687,037 | Q112: 0.022636 | R112: 0.022636 | S112: 0.022937 | T112: 8,732 | U112: 8,711 | V112: 8,711 | W112: 3,845 | X112: 198 | Y112: 197 | Z112: 197 | AA112: 88 | AB112: 20 | AC112: 30 | AD112: 29 | AE112: 31 | AF112: 30 | AG112: 31 | AH112: 31 | AI112: 31 | AJ112: 31 | AK112: 31 | AL112: Existing Unit | AM112: Existing Unit | AN112: Existing Unit
A113: Union Power Station | B113: Arkansas | C113: 55380 | D113: CTG-4 | E113: 4594 | F113: 2,963,608 | G113: 4,060,441 | H113: 4,927,469 | I113: 5,103,980 | J113: 5,168,943 | K113: 5,066,797 | L113: 5,066,797 | M113: 5,066,797 | N113: 223,615,701 | O113: 223,615,701 | P113: 220,687,037 | Q113: 0.022659 | R113: 0.022659 | S113: 0.022959 | T113: 8,732 | U113: 8,711 | V113: 8,711 | W113: 3,845 | X113: 198 | Y113: 197 | Z113: 197 | AA113: 88 | AB113: 17 | AC113: 27 | AD113: 29 | AE113: 30 | AF113: 30 | AG113: 30 | AH113: 30 | AI113: 30 | AJ113: 30 | AK113: 30 | AL113: Existing Unit | AM113: Existing Unit | AN113: Existing Unit
A114: Union Power Station | B114: Arkansas | C114: 55380 | D114: CTG-5 | E114: 4595 | F114: 4,318,869 | G114: 2,338,851 | H114: 2,259,917 | I114: 2,859,013 | J114: 4,818,552 | K114: 3,998,811 | L114: 3,998,811 | M114: 3,998,811 | N114: 223,615,701 | O114: 223,615,701 | P114: 220,687,037 | Q114: 0.017883 | R114: 0.017883 | S114: 0.018120 | T114: 8,732 | U114: 8,711 | V114: 8,711 | W114: 3,845 | X114: 156 | Y114: 156 | Z114: 156 | AA114: 70 | AB114: 27 | AC114: 19 | AD114: 15 | AE114: 17 | AF114: 31 | AG114: 31 | AH114: 31 | AI114: 31 | AJ114: 31 | AK114: 31 | AL114: Existing Unit | AM114: Existing Unit | AN114: Existing Unit
A115: Union Power Station | B115: Arkansas | C115: 55380 | D115: CTG-6 | E115: 4596 | F115: 4,374,565 | G115: 4,413,296 | H115: 2,691,484 | I115: 2,906,060 | J115: 4,853,362 | K115: 4,547,075 | L115: 4,547,075 | M115: 4,547,075 | N115: 223,615,701 | O115: 223,615,701 | P115: 220,687,037 | Q115: 0.020334 | R115: 0.020334 | S115: 0.020604 | T115: 8,732 | U115: 8,711 | V115: 8,711 | W115: 3,845 | X115: 178 | Y115: 177 | Z115: 177 | AA115: 79 | AB115: 27 | AC115: 30 | AD115: 17 | AE115: 17 | AF115: 30 | AG115: 30 | AH115: 30 | AI115: 30 | AJ115: 30 | AK115: 30 | AL115: Existing Unit | AM115: Existing Unit | AN115: Existing Unit
A116: Union Power Station | B116: Arkansas | C116: 55380 | D116: CTG-7 | E116: 4597 | F116: 4,811,925 | G116: 3,793,897 | H116: 4,687,812 | I116: 3,239,198 | J116: 4,000,147 | K116: 4,499,961 | L116: 4,499,961 | M116: 4,499,961 | N116: 223,615,701 | O116: 223,615,701 | P116: 220,687,037 | Q116: 0.020124 | R116: 0.020124 | S116: 0.020391 | T116: 8,732 | U116: 8,711 | V116: 8,711 | W116: 3,845 | X116: 176 | Y116: 175 | Z116: 175 | AA116: 78 | AB116: 31 | AC116: 24 | AD116: 31 | AE116: 19 | AF116: 25 | AG116: 31 | AH116: 31 | AI116: 31 | AJ116: 31 | AK116: 31 | AL116: Existing Unit | AM116: Existing Unit | AN116: Existing Unit
A117: Union Power Station | B117: Arkansas | C117: 55380 | D117: CTG-8 | E117: 4598 | F117: 4,867,003 | G117: 3,587,457 | H117: 4,700,851 | I117: 3,378,102 | J117: 3,996,435 | K117: 4,521,430 | L117: 4,521,430 | M117: 4,521,430 | N117: 223,615,701 | O117: 223,615,701 | P117: 220,687,037 | Q117: 0.020220 | R117: 0.020220 | S117: 0.020488 | T117: 8,732 | U117: 8,711 | V117: 8,711 | W117: 3,845 | X117: 177 | Y117: 176 | Z117: 176 | AA117: 79 | AB117: 30 | AC117: 22 | AD117: 28 | AE117: 20 | AF117: 23 | AG117: 30 | AH117: 30 | AI117: 30 | AJ117: 30 | AK117: 30 | AL117: Existing Unit | AM117: Existing Unit | AN117: Existing Unit
A118: White Bluff | B118: Arkansas | C118: 6009 | D118: 1 | E118: 2675 | F118: 25,839,018 | G118: 19,169,752 | H118: 21,216,892 | I118: 18,053,967 | J118: 22,747,548 | K118: 23,267,819 | L118: 23,267,819 | M118: 23,267,819 | N118: 223,615,701 | O118: 223,615,701 | P118: 220,687,037 | Q118: 0.104053 | R118: 0.104053 | S118: 0.105434 | T118: 8,732 | U118: 8,711 | V118: 8,711 | W118: 3,845 | X118: 909 | Y118: 906 | Z118: 906 | AA118: 405 | AB118: 3,748 | AC118: 1,699 | AD118: 1,573 | AE118: 1,581 | AF118: 1,819 | AG118: 3,748 | AH118: 1,448 | AI118: 1,444 | AJ118: 1,444 | AK118: 524 | AL118: Existing Unit | AM118: Existing Unit | AN118: Existing Unit
A119: White Bluff | B119: Arkansas | C119: 6009 | D119: 2 | E119: 2676 | F119: 16,126,194 | G119: 22,132,961 | H119: 16,479,348 | I119: 12,694,536 | J119: 22,163,951 | K119: 20,258,753 | L119: 20,258,753 | M119: 20,258,753 | N119: 223,615,701 | O119: 223,615,701 | P119: 220,687,037 | Q119: 0.090596 | R119: 0.090596 | S119: 0.091799 | T119: 8,732 | U119: 8,711 | V119: 8,711 | W119: 3,845 | X119: 791 | Y119: 789 | Z119: 789 | AA119: 353 | AB119: 1,368 | AC119: 1,596 | AD119: 1,336 | AE119: 1,002 | AF119: 1,634 | AG119: 1,634 | AH119: 1,261 | AI119: 1,257 | AJ119: 1,257 | AK119: 457 | AL119: Existing Unit | AM119: Existing Unit | AN119: Existing Unit
A120: Christiana Substation | B120: Delaware | C120: 591 | D120: 11 | E120: 378 | F120: 1,575 | G120: 596 | H120: 2,966 | I120: 985 | J120: 1,974 | K120: 2,172 | L120: 2,172 | M120: 2,172 | N120: 26,124,897 | O120: 26,124,897 | P120: 26,124,897 | Q120: 0.000083 | R120: 0.000083 | S120: 0.000083 | T120: 305 | U120: 330 | V120: 373 | W120: 425 | X120: 0 | Y120: 0 | Z120: 0 | AA120: 0 | AB120: 0 | AC120: 0 | AD120: 0 | AE120: 0 | AF120: 0 | AG120: 0 | AH120: 0 | AI120: 0 | AJ120: 0 | AK120: 0 | AL120: Existing Unit | AM120: Existing Unit | AN120: Existing Unit | AO120: Y
A121: Christiana Substation | B121: Delaware | C121: 591 | D121: 14 | E121: 379 | F121: 1,797 | G121: 1,111 | H121: 2,208 | I121: 653 | J121: 1,816 | K121: 1,940 | L121: 1,940 | M121: 1,940 | N121: 26,124,897 | O121: 26,124,897 | P121: 26,124,897 | Q121: 0.000074 | R121: 0.000074 | S121: 0.000074 | T121: 305 | U121: 330 | V121: 373 | W121: 425 | X121: 0 | Y121: 0 | Z121: 0 | AA121: 0 | AB121: 0 | AC121: 0 | AD121: 0 | AE121: 0 | AF121: 0 | AG121: 0 | AH121: 0 | AI121: 0 | AJ121: 0 | AK121: 0 | AL121: Existing Unit | AM121: Existing Unit | AN121: Existing Unit | AO121: Y
A122: Delaware City Refinery | B122: Delaware | C122: 52193 | D122: DCPP4 | E122: 3736 | F122: 1,181,552 | G122: 1,435,185 | H122: 1,361,326 | I122: 1,084,526 | J122: 1,374,817 | K122: 1,390,443 | L122: 1,390,443 | M122: 1,390,443 | N122: 26,124,897 | O122: 26,124,897 | P122: 26,124,897 | Q122: 0.053223 | R122: 0.053223 | S122: 0.053223 | T122: 305 | U122: 330 | V122: 373 | W122: 425 | X122: 16 | Y122: 18 | Z122: 20 | AA122: 23 | AB122: 27 | AC122: 28 | AD122: 26 | AE122: 23 | AF122: 30 | AG122: 30 | AH122: 25 | AI122: 27 | AJ122: 30 | AK122: 30 | AL122: Existing Unit | AM122: Existing Unit | AN122: Existing Unit
A123: Edge Moor | B123: Delaware | C123: 593 | D123: 3 | E123: 382 | F123: 343,423 | G123: 416,394 | H123: 232,455 | I123: 248,971 | J123: 614,678 | K123: 458,165 | L123: 458,165 | M123: 458,165 | N123: 26,124,897 | O123: 26,124,897 | P123: 26,124,897 | Q123: 0.017537 | R123: 0.017537 | S123: 0.017537 | T123: 305 | U123: 330 | V123: 373 | W123: 425 | X123: 5 | Y123: 6 | Z123: 7 | AA123: 7 | AB123: 11 | AC123: 12 | AD123: 7 | AE123: 8 | AF123: 18 | AG123: 18 | AH123: 8 | AI123: 9 | AJ123: 11 | AK123: 13 | AL123: Existing Unit | AM123: Existing Unit | AN123: Existing Unit
A124: Edge Moor | B124: Delaware | C124: 593 | D124: 4 | E124: 383 | F124: 531,682 | G124: 582,304 | H124: 493,850 | I124: 648,165 | J124: 834,641 | K124: 688,370 | L124: 688,370 | M124: 688,370 | N124: 26,124,897 | O124: 26,124,897 | P124: 26,124,897 | Q124: 0.026349 | R124: 0.026349 | S124: 0.026349 | T124: 305 | U124: 330 | V124: 373 | W124: 425 | X124: 8 | Y124: 9 | Z124: 10 | AA124: 11 | AB124: 15 | AC124: 15 | AD124: 12 | AE124: 16 | AF124: 21 | AG124: 21 | AH124: 12 | AI124: 14 | AJ124: 16 | AK124: 20 | AL124: Existing Unit | AM124: Existing Unit | AN124: Existing Unit
A125: Edge Moor | B125: Delaware | C125: 593 | D125: 5 | E125: 384 | F125: 1,210,753 | G125: 1,489,556 | H125: 767,725 | I125: 1,070,144 | J125: 1,805,149 | K125: 1,501,819 | L125: 1,501,819 | M125: 1,501,819 | N125: 26,124,897 | O125: 26,124,897 | P125: 26,124,897 | Q125: 0.057486 | R125: 0.057486 | S125: 0.057486 | T125: 305 | U125: 330 | V125: 373 | W125: 425 | X125: 18 | Y125: 19 | Z125: 21 | AA125: 24 | AB125: 41 | AC125: 50 | AD125: 27 | AE125: 40 | AF125: 58 | AG125: 58 | AH125: 26 | AI125: 29 | AJ125: 35 | AK125: 43 | AL125: Existing Unit | AM125: Existing Unit | AN125: Existing Unit
A126: Energy Center Dover LLC | B126: Delaware | C126: 10030 | D126: 2 | E126: 5046 | F126: 313,742 | G126: 403,999 | H126: 507,961 | I126: 342,279 | J126: 382,799 | K126: 431,586 | L126: 431,586 | M126: 431,586 | N126: 26,124,897 | O126: 26,124,897 | P126: 26,124,897 | Q126: 0.016520 | R126: 0.016520 | S126: 0.016520 | T126: 305 | U126: 330 | V126: 373 | W126: 425 | X126: 5 | Y126: 5 | Z126: 6 | AA126: 7 | AB126: 1 | AC126: 2 | AD126: 2 | AE126: 1 | AF126: 2 | AG126: 2 | AH126: 2 | AI126: 2 | AJ126: 2 | AK126: 2 | AL126: Existing Unit | AM126: Existing Unit | AN126: Existing Unit
A127: Energy Center Dover LLC | B127: Delaware | C127: 10030 | D127: 3 | E127: 5047 | F127: 65,228 | G127: 113,617 | H127: 158,837 | I127: 146,288 | J127: 223,916 | K127: 176,347 | L127: 176,347 | M127: 176,347 | N127: 26,124,897 | O127: 26,124,897 | P127: 26,124,897 | Q127: 0.006750 | R127: 0.006750 | S127: 0.006750 | T127: 305 | U127: 330 | V127: 373 | W127: 425 | X127: 2 | Y127: 2 | Z127: 3 | AA127: 3 | AB127: 2 | AC127: 4 | AD127: 6 | AE127: 5 | AF127: 8 | AG127: 8 | AH127: 3 | AI127: 3 | AJ127: 4 | AK127: 5 | AL127: Existing Unit | AM127: Existing Unit | AN127: Existing Unit
A128: Garrison Energy Center | B128: Delaware | C128: 57349 | D128: 1 | E128: 90682 | F128: 6,652,093 | G128: 2,556,066 | H128: 5,952,070 | I128: 5,514,270 | J128: 4,313,886 | K128: 6,039,478 | L128: 6,039,478 | M128: 6,039,478 | N128: 26,124,897 | O128: 26,124,897 | P128: 26,124,897 | Q128: 0.231177 | R128: 0.231177 | S128: 0.231177 | T128: 305 | U128: 330 | V128: 373 | W128: 425 | X128: 71 | Y128: 76 | Z128: 86 | AA128: 98 | AB128: 19 | AC128: 8 | AD128: 17 | AE128: 15 | AF128: 17 | AG128: 19 | AH128: 19 | AI128: 19 | AJ128: 19 | AK128: 19 | AL128: Existing Unit | AM128: Existing Unit | AN128: Existing Unit
A129: Hay Road | B129: Delaware | C129: 7153 | D129: **3 | E129: 2963 | F129: 2,492,602 | G129: 2,026,285 | H129: 1,405,406 | I129: 1,772,206 | J129: 1,446,293 | K129: 2,097,031 | L129: 2,097,031 | M129: 2,097,031 | N129: 26,124,897 | O129: 26,124,897 | P129: 26,124,897 | Q129: 0.080269 | R129: 0.080269 | S129: 0.080269 | T129: 305 | U129: 330 | V129: 373 | W129: 425 | X129: 25 | Y129: 27 | Z129: 30 | AA129: 34 | AB129: 52 | AC129: 54 | AD129: 32 | AE129: 43 | AF129: 45 | AG129: 54 | AH129: 37 | AI129: 41 | AJ129: 49 | AK129: 54 | AL129: Existing Unit | AM129: Existing Unit | AN129: Existing Unit
A130: Hay Road | B130: Delaware | C130: 7153 | D130: 1 | E130: 2964 | F130: 2,565,486 | G130: 2,103,079 | H130: 1,504,679 | I130: 1,739,953 | J130: 1,354,272 | K130: 2,136,173 | L130: 2,136,173 | M130: 2,136,173 | N130: 26,124,897 | O130: 26,124,897 | P130: 26,124,897 | Q130: 0.081768 | R130: 0.081768 | S130: 0.081768 | T130: 305 | U130: 330 | V130: 373 | W130: 425 | X130: 25 | Y130: 27 | Z130: 31 | AA130: 35 | AB130: 67 | AC130: 56 | AD130: 36 | AE130: 43 | AF130: 46 | AG130: 67 | AH130: 38 | AI130: 42 | AJ130: 50 | AK130: 61 | AL130: Existing Unit | AM130: Existing Unit | AN130: Existing Unit | AO130: Y
A131: Hay Road | B131: Delaware | C131: 7153 | D131: 2 | E131: 2965 | F131: 2,546,260 | G131: 2,028,848 | H131: 1,537,083 | I131: 1,414,706 | J131: 1,311,286 | K131: 2,037,397 | L131: 2,037,397 | M131: 2,037,397 | N131: 26,124,897 | O131: 26,124,897 | P131: 26,124,897 | Q131: 0.077987 | R131: 0.077987 | S131: 0.077987 | T131: 305 | U131: 330 | V131: 373 | W131: 425 | X131: 24 | Y131: 26 | Z131: 29 | AA131: 33 | AB131: 67 | AC131: 55 | AD131: 43 | AE131: 59 | AF131: 43 | AG131: 67 | AH131: 36 | AI131: 40 | AJ131: 47 | AK131: 58 | AL131: Existing Unit | AM131: Existing Unit | AN131: Existing Unit | AO131: Y
A132: Hay Road | B132: Delaware | C132: 7153 | D132: 5 | E132: 2966 | F132: 2,902,504 | G132: 2,012,921 | H132: 1,432,790 | I132: 1,956,269 | J132: 1,379,800 | K132: 2,290,565 | L132: 2,290,565 | M132: 2,290,565 | N132: 26,124,897 | O132: 26,124,897 | P132: 26,124,897 | Q132: 0.087677 | R132: 0.087677 | S132: 0.087677 | T132: 305 | U132: 330 | V132: 373 | W132: 425 | X132: 27 | Y132: 29 | Z132: 33 | AA132: 37 | AB132: 19 | AC132: 19 | AD132: 13 | AE132: 12 | AF132: 20 | AG132: 20 | AH132: 20 | AI132: 20 | AJ132: 20 | AK132: 20 | AL132: Existing Unit | AM132: Existing Unit | AN132: Existing Unit
A133: Hay Road | B133: Delaware | C133: 7153 | D133: 6 | E133: 2967 | F133: 2,790,230 | G133: 2,048,245 | H133: 1,354,474 | I133: 1,933,868 | J133: 324,462 | K133: 2,257,448 | L133: 2,257,448 | M133: 2,257,448 | N133: 26,124,897 | O133: 26,124,897 | P133: 26,124,897 | Q133: 0.086410 | R133: 0.086410 | S133: 0.086410 | T133: 305 | U133: 330 | V133: 373 | W133: 425 | X133: 26 | Y133: 29 | Z133: 32 | AA133: 37 | AB133: 15 | AC133: 18 | AD133: 13 | AE133: 13 | AF133: 2 | AG133: 18 | AH133: 18 | AI133: 18 | AJ133: 18 | AK133: 18 | AL133: Existing Unit | AM133: Existing Unit | AN133: Existing Unit
A134: Hay Road | B134: Delaware | C134: 7153 | D134: 7 | E134: 2968 | F134: 2,777,285 | G134: 2,057,342 | H134: 1,366,826 | I134: 1,986,036 | J134: 1,284,679 | K134: 2,273,554 | L134: 2,273,554 | M134: 2,273,554 | N134: 26,124,897 | O134: 26,124,897 | P134: 26,124,897 | Q134: 0.087026 | R134: 0.087026 | S134: 0.087026 | T134: 305 | U134: 330 | V134: 373 | W134: 425 | X134: 27 | Y134: 29 | Z134: 32 | AA134: 37 | AB134: 20 | AC134: 20 | AD134: 12 | AE134: 16 | AF134: 22 | AG134: 22 | AH134: 22 | AI134: 22 | AJ134: 22 | AK134: 22 | AL134: Existing Unit | AM134: Existing Unit | AN134: Existing Unit
A135: Indian River | B135: Delaware | C135: 594 | D135: 4 | E135: 389 | F135: 2,105,722 | G135: 2,125,454 | H135: 1,184,631 | I135: 1,106,840 | J135: 1,898,027 | K135: 2,043,068 | L135: 2,043,068 | M135: 2,043,068 | N135: 26,124,897 | O135: 26,124,897 | P135: 26,124,897 | Q135: 0.078204 | R135: 0.078204 | S135: 0.078204 | T135: 305 | U135: 330 | V135: 373 | W135: 425 | X135: 24 | Y135: 26 | Z135: 29 | AA135: 33 | AB135: 89 | AC135: 92 | AD135: 48 | AE135: 53 | AF135: 84 | AG135: 92 | AH135: 36 | AI135: 40 | AJ135: 47 | AK135: 58 | AL135: Existing Unit | AM135: Existing Unit | AN135: Existing Unit
A136: Van Sant | B136: Delaware | C136: 7318 | D136: **11 | E136: 3094 | F136: 30,500 | G136: 55,596 | H136: 36,383 | I136: 74,456 | J136: 62,709 | K136: 64,254 | L136: 64,254 | M136: 64,254 | N136: 26,124,897 | O136: 26,124,897 | P136: 26,124,897 | Q136: 0.002459 | R136: 0.002459 | S136: 0.002459 | T136: 305 | U136: 330 | V136: 373 | W136: 425 | X136: 1 | Y136: 1 | Z136: 1 | AA136: 1 | AB136: 2 | AC136: 4 | AD136: 3 | AE136: 5 | AF136: 4 | AG136: 5 | AH136: 1 | AI136: 1 | AJ136: 1 | AK136: 2 | AL136: Existing Unit | AM136: Existing Unit | AN136: Existing Unit
A137: Warren F. Sam Beasley Pwr Station | B137: Delaware | C137: 7962 | D137: 1 | E137: 8426 | F137: 64,884 | G137: 109,190 | H137: 156,442 | I137: 108,202 | J137: 84,073 | K137: 124,611 | L137: 124,611 | M137: 124,611 | N137: 26,124,897 | O137: 26,124,897 | P137: 26,124,897 | Q137: 0.004770 | R137: 0.004770 | S137: 0.004770 | T137: 305 | U137: 330 | V137: 373 | W137: 425 | X137: 1 | Y137: 2 | Z137: 2 | AA137: 2 | AB137: 1 | AC137: 1 | AD137: 1 | AE137: 1 | AF137: 1 | AG137: 1 | AH137: 1 | AI137: 1 | AJ137: 1 | AK137: 1 | AL137: Existing Unit | AM137: Existing Unit | AN137: Existing Unit
A138: Warren F. Sam Beasley Pwr Station | B138: Delaware | C138: 7962 | D138: 2 | E138: 90703 | F138: 62,208 | G138: 85,196 | H138: 115,403 | I138: 130,830 | J138: 76,683 | K138: 110,476 | L138: 110,476 | M138: 110,476 | N138: 26,124,897 | O138: 26,124,897 | P138: 26,124,897 | Q138: 0.004229 | R138: 0.004229 | S138: 0.004229 | T138: 305 | U138: 330 | V138: 373 | W138: 425 | X138: 1 | Y138: 1 | Z138: 2 | AA138: 2 | AB138: 1 | AC138: 1 | AD138: 1 | AE138: 1 | AF138: 0 | AG138: 1 | AH138: 1 | AI138: 1 | AJ138: 1 | AK138: 1 | AL138: Existing Unit | AM138: Existing Unit | AN138: Existing Unit
A139: Alsey Station | B139: Illinois | C139: 7818 | D139: ACT1 | E139: 89336 | F139: 7,597 | G139: 12,482 | H139: 19,309 | I139: 40,641 | J139: 36,595 | K139: 32,182 | L139: 32,182 | M139: 32,182 | N139: 266,926,648 | O139: 266,926,648 | P139: 266,926,648 | Q139: 0.000121 | R139: 0.000121 | S139: 0.000121 | T139: 7,049 | U139: 6,996 | V139: 7,090 | W139: 5,993 | X139: 1 | Y139: 1 | Z139: 1 | AA139: 1 | AB139: 1 | AC139: 1 | AD139: 2 | AE139: 5 | AF139: 3 | AG139: 5 | AH139: 1 | AI139: 1 | AJ139: 1 | AK139: 1 | AL139: Existing Unit | AM139: Existing Unit | AN139: Existing Unit
A140: Alsey Station | B140: Illinois | C140: 7818 | D140: ACT2 | E140: 89337 | F140: 10,993 | G140: 13,422 | H140: 9,652 | I140: 41,226 | J140: 26,119 | K140: 26,922 | L140: 26,922 | M140: 26,922 | N140: 266,926,648 | O140: 266,926,648 | P140: 266,926,648 | Q140: 0.000101 | R140: 0.000101 | S140: 0.000101 | T140: 7,049 | U140: 6,996 | V140: 7,090 | W140: 5,993 | X140: 1 | Y140: 1 | Z140: 1 | AA140: 1 | AB140: 1 | AC140: 2 | AD140: 1 | AE140: 4 | AF140: 3 | AG140: 4 | AH140: 1 | AI140: 1 | AJ140: 1 | AK140: 1 | AL140: Existing Unit | AM140: Existing Unit | AN140: Existing Unit
A141: Alsey Station | B141: Illinois | C141: 7818 | D141: ACT5 | E141: 89338 | F141: 7,889 | G141: 8,104 | H141: 8,605 | I141: 26,725 | J141: 23,126 | K141: 19,485 | L141: 19,485 | M141: 19,485 | N141: 266,926,648 | O141: 266,926,648 | P141: 266,926,648 | Q141: 0.000073 | R141: 0.000073 | S141: 0.000073 | T141: 7,049 | U141: 6,996 | V141: 7,090 | W141: 5,993 | X141: 1 | Y141: 1 | Z141: 1 | AA141: 0 | AB141: 1 | AC141: 1 | AD141: 1 | AE141: 4 | AF141: 3 | AG141: 4 | AH141: 1 | AI141: 1 | AJ141: 1 | AK141: 1 | AL141: Existing Unit | AM141: Existing Unit | AN141: Existing Unit
A142: Alsey Station | B142: Illinois | C142: 7818 | D142: ACT6 | E142: 91126 | F142: 97,459 | G142: 138,068 | H142: 62,151 | I142: 38,882 | J142: 170,360 | K142: 135,296 | L142: 135,296 | M142: 135,296 | N142: 266,926,648 | O142: 266,926,648 | P142: 266,926,648 | Q142: 0.000507 | R142: 0.000507 | S142: 0.000507 | T142: 7,049 | U142: 6,996 | V142: 7,090 | W142: 5,993 | X142: 4 | Y142: 4 | Z142: 4 | AA142: 3 | AB142: 4 | AC142: 5 | AD142: 2 | AE142: 1 | AF142: 7 | AG142: 7 | AH142: 4 | AI142: 4 | AJ142: 4 | AK142: 4 | AL142: Existing Unit | AM142: Existing Unit | AN142: Existing Unit
A143: Aurora | B143: Illinois | C143: 55279 | D143: AGS01 | E143: 4407 | F143: 455,943 | G143: 838,361 | H143: 898,978 | I143: 1,028,203 | J143: 1,234,422 | K143: 1,053,867 | L143: 1,053,867 | M143: 1,053,867 | N143: 266,926,648 | O143: 266,926,648 | P143: 266,926,648 | Q143: 0.003948 | R143: 0.003948 | S143: 0.003948 | T143: 7,049 | U143: 6,996 | V143: 7,090 | W143: 5,993 | X143: 28 | Y143: 28 | Z143: 28 | AA143: 24 | AB143: 9 | AC143: 16 | AD143: 19 | AE143: 22 | AF143: 25 | AG143: 25 | AH143: 25 | AI143: 25 | AJ143: 25 | AK143: 25 | AL143: Existing Unit | AM143: Existing Unit | AN143: Existing Unit
A144: Aurora | B144: Illinois | C144: 55279 | D144: AGS02 | E144: 4409 | F144: 422,809 | G144: 799,835 | H144: 857,675 | I144: 1,033,439 | J144: 1,100,225 | K144: 997,113 | L144: 997,113 | M144: 997,113 | N144: 266,926,648 | O144: 266,926,648 | P144: 266,926,648 | Q144: 0.003736 | R144: 0.003736 | S144: 0.003736 | T144: 7,049 | U144: 6,996 | V144: 7,090 | W144: 5,993 | X144: 26 | Y144: 26 | Z144: 26 | AA144: 22 | AB144: 7 | AC144: 15 | AD144: 16 | AE144: 18 | AF144: 18 | AG144: 18 | AH144: 18 | AI144: 18 | AJ144: 18 | AK144: 18 | AL144: Existing Unit | AM144: Existing Unit | AN144: Existing Unit
A145: Aurora | B145: Illinois | C145: 55279 | D145: AGS03 | E145: 4410 | F145: 360,446 | G145: 871,070 | H145: 701,354 | I145: 788,370 | J145: 1,095,314 | K145: 918,251 | L145: 918,251 | M145: 918,251 | N145: 266,926,648 | O145: 266,926,648 | P145: 266,926,648 | Q145: 0.003440 | R145: 0.003440 | S145: 0.003440 | T145: 7,049 | U145: 6,996 | V145: 7,090 | W145: 5,993 | X145: 24 | Y145: 24 | Z145: 24 | AA145: 21 | AB145: 6 | AC145: 15 | AD145: 14 | AE145: 16 | AF145: 19 | AG145: 19 | AH145: 19 | AI145: 19 | AJ145: 19 | AK145: 19 | AL145: Existing Unit | AM145: Existing Unit | AN145: Existing Unit
A146: Aurora | B146: Illinois | C146: 55279 | D146: AGS04 | E146: 4411 | F146: 341,065 | G146: 845,356 | H146: 664,545 | I146: 933,562 | J146: 1,093,911 | K146: 957,610 | L146: 957,610 | M146: 957,610 | N146: 266,926,648 | O146: 266,926,648 | P146: 266,926,648 | Q146: 0.003588 | R146: 0.003588 | S146: 0.003588 | T146: 7,049 | U146: 6,996 | V146: 7,090 | W146: 5,993 | X146: 25 | Y146: 25 | Z146: 25 | AA146: 21 | AB146: 6 | AC146: 14 | AD146: 11 | AE146: 17 | AF146: 22 | AG146: 22 | AH146: 22 | AI146: 22 | AJ146: 22 | AK146: 22 | AL146: Existing Unit | AM146: Existing Unit | AN146: Existing Unit
A147: Aurora | B147: Illinois | C147: 55279 | D147: AGS05 | E147: 4412 | F147: 245,089 | G147: 389,279 | H147: 345,704 | I147: 457,131 | J147: 432,238 | K147: 426,216 | L147: 426,216 | M147: 426,216 | N147: 266,926,648 | O147: 266,926,648 | P147: 266,926,648 | Q147: 0.001597 | R147: 0.001597 | S147: 0.001597 | T147: 7,049 | U147: 6,996 | V147: 7,090 | W147: 5,993 | X147: 11 | Y147: 11 | Z147: 11 | AA147: 10 | AB147: 9 | AC147: 16 | AD147: 16 | AE147: 19 | AF147: 19 | AG147: 19 | AH147: 14 | AI147: 14 | AJ147: 14 | AK147: 11 | AL147: Existing Unit | AM147: Existing Unit | AN147: Existing Unit
A148: Aurora | B148: Illinois | C148: 55279 | D148: AGS06 | E148: 4413 | F148: 252,824 | G148: 416,239 | H148: 327,503 | I148: 464,140 | J148: 430,751 | K148: 437,043 | L148: 437,043 | M148: 437,043 | N148: 266,926,648 | O148: 266,926,648 | P148: 266,926,648 | Q148: 0.001637 | R148: 0.001637 | S148: 0.001637 | T148: 7,049 | U148: 6,996 | V148: 7,090 | W148: 5,993 | X148: 12 | Y148: 11 | Z148: 12 | AA148: 10 | AB148: 9 | AC148: 17 | AD148: 15 | AE148: 20 | AF148: 18 | AG148: 20 | AH148: 14 | AI148: 14 | AJ148: 14 | AK148: 12 | AL148: Existing Unit | AM148: Existing Unit | AN148: Existing Unit
A149: Aurora | B149: Illinois | C149: 55279 | D149: AGS07 | E149: 4414 | F149: 260,645 | G149: 436,859 | H149: 380,466 | I149: 454,831 | J149: 441,858 | K149: 444,516 | L149: 444,516 | M149: 444,516 | N149: 266,926,648 | O149: 266,926,648 | P149: 266,926,648 | Q149: 0.001665 | R149: 0.001665 | S149: 0.001665 | T149: 7,049 | U149: 6,996 | V149: 7,090 | W149: 5,993 | X149: 12 | Y149: 12 | Z149: 12 | AA149: 10 | AB149: 11 | AC149: 18 | AD149: 17 | AE149: 19 | AF149: 18 | AG149: 19 | AH149: 14 | AI149: 14 | AJ149: 14 | AK149: 12 | AL149: Existing Unit | AM149: Existing Unit | AN149: Existing Unit
A150: Aurora | B150: Illinois | C150: 55279 | D150: AGS08 | E150: 4415 | F150: 257,425 | G150: 389,138 | H150: 358,092 | I150: 466,207 | J150: 397,231 | K150: 417,525 | L150: 417,525 | M150: 417,525 | N150: 266,926,648 | O150: 266,926,648 | P150: 266,926,648 | Q150: 0.001564 | R150: 0.001564 | S150: 0.001564 | T150: 7,049 | U150: 6,996 | V150: 7,090 | W150: 5,993 | X150: 11 | Y150: 11 | Z150: 11 | AA150: 9 | AB150: 10 | AC150: 15 | AD150: 16 | AE150: 20 | AF150: 16 | AG150: 20 | AH150: 13 | AI150: 13 | AJ150: 14 | AK150: 11 | AL150: Existing Unit | AM150: Existing Unit | AN150: Existing Unit
A151: Aurora | B151: Illinois | C151: 55279 | D151: AGS09 | E151: 4416 | F151: 262,548 | G151: 389,545 | H151: 364,662 | I151: 448,590 | J151: 460,269 | K151: 432,801 | L151: 432,801 | M151: 432,801 | N151: 266,926,648 | O151: 266,926,648 | P151: 266,926,648 | Q151: 0.001621 | R151: 0.001621 | S151: 0.001621 | T151: 7,049 | U151: 6,996 | V151: 7,090 | W151: 5,993 | X151: 11 | Y151: 11 | Z151: 11 | AA151: 10 | AB151: 9 | AC151: 16 | AD151: 15 | AE151: 18 | AF151: 18 | AG151: 18 | AH151: 14 | AI151: 14 | AJ151: 14 | AK151: 11 | AL151: Existing Unit | AM151: Existing Unit | AN151: Existing Unit
A152: Aurora | B152: Illinois | C152: 55279 | D152: AGS10 | E152: 4408 | F152: 254,391 | G152: 341,772 | H152: 385,461 | I152: 438,303 | J152: 464,776 | K152: 429,513 | L152: 429,513 | M152: 429,513 | N152: 266,926,648 | O152: 266,926,648 | P152: 266,926,648 | Q152: 0.001609 | R152: 0.001609 | S152: 0.001609 | T152: 7,049 | U152: 6,996 | V152: 7,090 | W152: 5,993 | X152: 11 | Y152: 11 | Z152: 11 | AA152: 10 | AB152: 9 | AC152: 13 | AD152: 15 | AE152: 18 | AF152: 18 | AG152: 18 | AH152: 14 | AI152: 14 | AJ152: 14 | AK152: 11 | AL152: Existing Unit | AM152: Existing Unit | AN152: Existing Unit
A153: Baldwin Energy Complex | B153: Illinois | C153: 889 | D153: 1 | E153: 611 | F153: 17,067,998 | G153: 14,495,068 | H153: 13,165,351 | I153: 10,675,690 | J153: 16,875,004 | K153: 16,146,023 | L153: 16,146,023 | M153: 16,146,023 | N153: 266,926,648 | O153: 266,926,648 | P153: 266,926,648 | Q153: 0.060489 | R153: 0.060489 | S153: 0.060489 | T153: 7,049 | U153: 6,996 | V153: 7,090 | W153: 5,993 | X153: 426 | Y153: 423 | Z153: 429 | AA153: 362 | AB153: 710 | AC153: 619 | AD153: 575 | AE153: 434 | AF153: 390 | AG153: 710 | AH153: 519 | AI153: 514 | AJ153: 523 | AK153: 428 | AL153: Existing Unit | AM153: Existing Unit | AN153: Existing Unit
A154: Baldwin Energy Complex | B154: Illinois | C154: 889 | D154: 2 | E154: 612 | F154: 18,080,345 | G154: 16,675,005 | H154: 13,684,320 | I154: 8,776,373 | J154: 16,473,645 | K154: 17,076,332 | L154: 17,076,332 | M154: 17,076,332 | N154: 266,926,648 | O154: 266,926,648 | P154: 266,926,648 | Q154: 0.063974 | R154: 0.063974 | S154: 0.063974 | T154: 7,049 | U154: 6,996 | V154: 7,090 | W154: 5,993 | X154: 451 | Y154: 448 | Z154: 454 | AA154: 383 | AB154: 748 | AC154: 717 | AD154: 585 | AE154: 345 | AF154: 521 | AG154: 748 | AH154: 549 | AI154: 544 | AJ154: 554 | AK154: 453 | AL154: Existing Unit | AM154: Existing Unit | AN154: Existing Unit
A155: Calumet Energy Team, LLC | B155: Illinois | C155: 55296 | D155: **1 | E155: 4469 | F155: 125,724 | G155: 59,192 | H155: 65,627 | I155: 77,245 | J155: 166,893 | K155: 123,287 | L155: 123,287 | M155: 123,287 | N155: 266,926,648 | O155: 266,926,648 | P155: 266,926,648 | Q155: 0.000462 | R155: 0.000462 | S155: 0.000462 | T155: 7,049 | U155: 6,996 | V155: 7,090 | W155: 5,993 | X155: 3 | Y155: 3 | Z155: 3 | AA155: 3 | AB155: 5 | AC155: 3 | AD155: 3 | AE155: 4 | AF155: 7 | AG155: 7 | AH155: 4 | AI155: 4 | AJ155: 4 | AK155: 3 | AL155: Existing Unit | AM155: Existing Unit | AN155: Existing Unit
A156: Calumet Energy Team, LLC | B156: Illinois | C156: 55296 | D156: **2 | E156: 4470 | F156: 124,276 | G156: 63,460 | H156: 52,681 | I156: 67,965 | J156: 136,120 | K156: 109,454 | L156: 109,454 | M156: 109,454 | N156: 266,926,648 | O156: 266,926,648 | P156: 266,926,648 | Q156: 0.000410 | R156: 0.000410 | S156: 0.000410 | T156: 7,049 | U156: 6,996 | V156: 7,090 | W156: 5,993 | X156: 3 | Y156: 3 | Z156: 3 | AA156: 2 | AB156: 5 | AC156: 3 | AD156: 2 | AE156: 3 | AF156: 6 | AG156: 6 | AH156: 4 | AI156: 3 | AJ156: 4 | AK156: 3 | AL156: Existing Unit | AM156: Existing Unit | AN156: Existing Unit
A157: Cordova Energy Company | B157: Illinois | C157: 55188 | D157: 1 | E157: 4081 | F157: 96,798 | G157: 203,800 | H157: 3,802,059 | I157: 2,795,799 | J157: 4,685,893 | K157: 3,761,250 | L157: 3,761,250 | M157: 3,761,250 | N157: 266,926,648 | O157: 266,926,648 | P157: 266,926,648 | Q157: 0.014091 | R157: 0.014091 | S157: 0.014091 | T157: 7,049 | U157: 6,996 | V157: 7,090 | W157: 5,993 | X157: 99 | Y157: 99 | Z157: 100 | AA157: 84 | AB157: 1 | AC157: 1 | AD157: 17 | AE157: 19 | AF157: 31 | AG157: 31 | AH157: 31 | AI157: 31 | AJ157: 31 | AK157: 31 | AL157: Existing Unit | AM157: Existing Unit | AN157: Existing Unit
A158: Cordova Energy Company | B158: Illinois | C158: 55188 | D158: 2 | E158: 4082 | F158: 93,581 | G158: 206,195 | H158: 3,755,719 | I158: 2,791,743 | J158: 4,838,226 | K158: 3,795,229 | L158: 3,795,229 | M158: 3,795,229 | N158: 266,926,648 | O158: 266,926,648 | P158: 266,926,648 | Q158: 0.014218 | R158: 0.014218 | S158: 0.014218 | T158: 7,049 | U158: 6,996 | V158: 7,090 | W158: 5,993 | X158: 100 | Y158: 99 | Z158: 101 | AA158: 85 | AB158: 1 | AC158: 1 | AD158: 17 | AE158: 18 | AF158: 29 | AG158: 29 | AH158: 29 | AI158: 29 | AJ158: 29 | AK158: 29 | AL158: Existing Unit | AM158: Existing Unit | AN158: Existing Unit
A159: Crete Energy Park | B159: Illinois | C159: 55253 | D159: GT1 | E159: 4339 | F159: 102,560 | G159: 240,337 | H159: 236,496 | I159: 77,201 | J159: 46,519 | K159: 193,131 | L159: 193,131 | M159: 193,131 | N159: 266,926,648 | O159: 266,926,648 | P159: 266,926,648 | Q159: 0.000724 | R159: 0.000724 | S159: 0.000724 | T159: 7,049 | U159: 6,996 | V159: 7,090 | W159: 5,993 | X159: 5 | Y159: 5 | Z159: 5 | AA159: 4 | AB159: 1 | AC159: 3 | AD159: 3 | AE159: 1 | AF159: 1 | AG159: 3 | AH159: 3 | AI159: 3 | AJ159: 3 | AK159: 3 | AL159: Existing Unit | AM159: Existing Unit | AN159: Existing Unit
A160: Crete Energy Park | B160: Illinois | C160: 55253 | D160: GT2 | E160: 4340 | F160: 104,681 | G160: 305,309 | H160: 225,475 | I160: 188,215 | J160: 87,307 | K160: 239,666 | L160: 239,666 | M160: 239,666 | N160: 266,926,648 | O160: 266,926,648 | P160: 266,926,648 | Q160: 0.000898 | R160: 0.000898 | S160: 0.000898 | T160: 7,049 | U160: 6,996 | V160: 7,090 | W160: 5,993 | X160: 6 | Y160: 6 | Z160: 6 | AA160: 5 | AB160: 1 | AC160: 4 | AD160: 3 | AE160: 2 | AF160: 1 | AG160: 4 | AH160: 4 | AI160: 4 | AJ160: 4 | AK160: 4 | AL160: Existing Unit | AM160: Existing Unit | AN160: Existing Unit
A161: Crete Energy Park | B161: Illinois | C161: 55253 | D161: GT3 | E161: 4341 | F161: 100,441 | G161: 241,292 | H161: 192,235 | I161: 168,070 | J161: 79,923 | K161: 200,532 | L161: 200,532 | M161: 200,532 | N161: 266,926,648 | O161: 266,926,648 | P161: 266,926,648 | Q161: 0.000751 | R161: 0.000751 | S161: 0.000751 | T161: 7,049 | U161: 6,996 | V161: 7,090 | W161: 5,993 | X161: 5 | Y161: 5 | Z161: 5 | AA161: 5 | AB161: 1 | AC161: 3 | AD161: 3 | AE161: 2 | AF161: 2 | AG161: 3 | AH161: 3 | AI161: 3 | AJ161: 3 | AK161: 3 | AL161: Existing Unit | AM161: Existing Unit | AN161: Existing Unit
A162: Crete Energy Park | B162: Illinois | C162: 55253 | D162: GT4 | E162: 4342 | F162: 78,886 | G162: 241,037 | H162: 183,624 | I162: 61,802 | J162: 91,679 | K162: 172,113 | L162: 172,113 | M162: 172,113 | N162: 266,926,648 | O162: 266,926,648 | P162: 266,926,648 | Q162: 0.000645 | R162: 0.000645 | S162: 0.000645 | T162: 7,049 | U162: 6,996 | V162: 7,090 | W162: 5,993 | X162: 5 | Y162: 5 | Z162: 5 | AA162: 4 | AB162: 1 | AC162: 3 | AD162: 2 | AE162: 1 | AF162: 1 | AG162: 3 | AH162: 3 | AI162: 3 | AJ162: 3 | AK162: 3 | AL162: Existing Unit | AM162: Existing Unit | AN162: Existing Unit
A163: Dallman | B163: Illinois | C163: 963 | D163: 33 | E163: 647 | F163: 3,552,062 | G163: 3,493,743 | H163: 3,559,904 | I163: 12,024 | J163: 1,192,333 | N163: 266,926,648 | O163: 266,926,648 | P163: 266,926,648 | T163: 7,049 | U163: 6,996 | V163: 7,090 | W163: 5,993 | AB163: 118 | AC163: 112 | AD163: 121 | AE163: 0 | AF163: 37 | AG163: 121 | AL163: Retired | AM163: Retired | AN163: Retired
A164: Dallman | B164: Illinois | C164: 963 | D164: 4 | E164: 89910 | F164: 6,223,469 | G164: 6,008,522 | H164: 5,035,893 | I164: 3,696,688 | J164: 5,506,421 | K164: 5,912,804 | L164: 5,912,804 | M164: 5,912,804 | N164: 266,926,648 | O164: 266,926,648 | P164: 266,926,648 | Q164: 0.022151 | R164: 0.022151 | S164: 0.022151 | T164: 7,049 | U164: 6,996 | V164: 7,090 | W164: 5,993 | X164: 156 | Y164: 155 | Z164: 157 | AA164: 133 | AB164: 193 | AC164: 180 | AD164: 146 | AE164: 115 | AF164: 159 | AG164: 193 | AH164: 190 | AI164: 188 | AJ164: 192 | AK164: 157 | AL164: Existing Unit | AM164: Existing Unit | AN164: Existing Unit
A165: E D Edwards | B165: Illinois | C165: 856 | D165: 2 | E165: 569 | F165: 6,405,887 | G165: 7,416,046 | H165: 6,473,651 | I165: 6,264,545 | J165: 5,920,388 | N165: 266,926,648 | O165: 266,926,648 | P165: 266,926,648 | T165: 7,049 | U165: 6,996 | V165: 7,090 | W165: 5,993 | AB165: 656 | AC165: 749 | AD165: 673 | AE165: 649 | AF165: 597 | AG165: 749 | AL165: Retired | AM165: Retired | AN165: Retired
A166: E D Edwards | B166: Illinois | C166: 856 | D166: 3 | E166: 570 | F166: 7,237,203 | G166: 6,002,894 | H166: 8,689,438 | I166: 7,420,812 | J166: 7,074,865 | N166: 266,926,648 | O166: 266,926,648 | P166: 266,926,648 | T166: 7,049 | U166: 6,996 | V166: 7,090 | W166: 5,993 | AB166: 323 | AC166: 307 | AD166: 380 | AE166: 387 | AF166: 432 | AG166: 432 | AL166: Retired | AM166: Retired | AN166: Retired
A167: Elgin Energy Center, LLC | B167: Illinois | C167: 55438 | D167: CT01 | E167: 4751 | F167: 367,317 | G167: 378,131 | H167: 600,331 | I167: 946,170 | J167: 968,047 | K167: 838,183 | L167: 838,183 | M167: 838,183 | N167: 266,926,648 | O167: 266,926,648 | P167: 266,926,648 | Q167: 0.003140 | R167: 0.003140 | S167: 0.003140 | T167: 7,049 | U167: 6,996 | V167: 7,090 | W167: 5,993 | X167: 22 | Y167: 22 | Z167: 22 | AA167: 19 | AB167: 12 | AC167: 12 | AD167: 17 | AE167: 26 | AF167: 26 | AG167: 26 | AH167: 26 | AI167: 26 | AJ167: 26 | AK167: 22 | AL167: Existing Unit | AM167: Existing Unit | AN167: Existing Unit
A168: Elgin Energy Center, LLC | B168: Illinois | C168: 55438 | D168: CT02 | E168: 4752 | F168: 383,103 | G168: 661,920 | H168: 599,756 | I168: 1,153,534 | J168: 1,179,408 | K168: 998,287 | L168: 998,287 | M168: 998,287 | N168: 266,926,648 | O168: 266,926,648 | P168: 266,926,648 | Q168: 0.003740 | R168: 0.003740 | S168: 0.003740 | T168: 7,049 | U168: 6,996 | V168: 7,090 | W168: 5,993 | X168: 26 | Y168: 26 | Z168: 27 | AA168: 22 | AB168: 12 | AC168: 18 | AD168: 17 | AE168: 34 | AF168: 34 | AG168: 34 | AH168: 32 | AI168: 32 | AJ168: 32 | AK168: 26 | AL168: Existing Unit | AM168: Existing Unit | AN168: Existing Unit
A169: Elgin Energy Center, LLC | B169: Illinois | C169: 55438 | D169: CT03 | E169: 4753 | F169: 327,384 | G169: 372,752 | H169: 576,148 | I169: 929,526 | J169: 816,915 | K169: 774,196 | L169: 774,196 | M169: 774,196 | N169: 266,926,648 | O169: 266,926,648 | P169: 266,926,648 | Q169: 0.002900 | R169: 0.002900 | S169: 0.002900 | T169: 7,049 | U169: 6,996 | V169: 7,090 | W169: 5,993 | X169: 20 | Y169: 20 | Z169: 21 | AA169: 17 | AB169: 11 | AC169: 12 | AD169: 17 | AE169: 25 | AF169: 22 | AG169: 25 | AH169: 25 | AI169: 25 | AJ169: 25 | AK169: 21 | AL169: Existing Unit | AM169: Existing Unit | AN169: Existing Unit
A170: Elgin Energy Center, LLC | B170: Illinois | C170: 55438 | D170: CT04 | E170: 4754 | F170: 247,309 | G170: 675,120 | H170: 578,742 | I170: 827,404 | J170: 1,199,754 | K170: 900,759 | L170: 900,759 | M170: 900,759 | N170: 266,926,648 | O170: 266,926,648 | P170: 266,926,648 | Q170: 0.003375 | R170: 0.003375 | S170: 0.003375 | T170: 7,049 | U170: 6,996 | V170: 7,090 | W170: 5,993 | X170: 24 | Y170: 24 | Z170: 24 | AA170: 20 | AB170: 8 | AC170: 20 | AD170: 17 | AE170: 26 | AF170: 37 | AG170: 37 | AH170: 29 | AI170: 29 | AJ170: 29 | AK170: 24 | AL170: Existing Unit | AM170: Existing Unit | AN170: Existing Unit
A171: Elwood Energy Facility | B171: Illinois | C171: 55199 | D171: 1 | E171: 4110 | F171: 355,501 | G171: 319,134 | H171: 132,811 | I171: 367,773 | J171: 932,103 | K171: 551,792 | L171: 551,792 | M171: 551,792 | N171: 266,926,648 | O171: 266,926,648 | P171: 266,926,648 | Q171: 0.002067 | R171: 0.002067 | S171: 0.002067 | T171: 7,049 | U171: 6,996 | V171: 7,090 | W171: 5,993 | X171: 15 | Y171: 14 | Z171: 15 | AA171: 12 | AB171: 7 | AC171: 8 | AD171: 3 | AE171: 8 | AF171: 16 | AG171: 16 | AH171: 16 | AI171: 16 | AJ171: 16 | AK171: 15 | AL171: Existing Unit | AM171: Existing Unit | AN171: Existing Unit
A172: Elwood Energy Facility | B172: Illinois | C172: 55199 | D172: 2 | E172: 4116 | F172: 298,152 | G172: 303,714 | H172: 145,314 | I172: 298,058 | J172: 408,426 | K172: 336,764 | L172: 336,764 | M172: 336,764 | N172: 266,926,648 | O172: 266,926,648 | P172: 266,926,648 | Q172: 0.001262 | R172: 0.001262 | S172: 0.001262 | T172: 7,049 | U172: 6,996 | V172: 7,090 | W172: 5,993 | X172: 9 | Y172: 9 | Z172: 9 | AA172: 8 | AB172: 5 | AC172: 6 | AD172: 4 | AE172: 5 | AF172: 8 | AG172: 8 | AH172: 8 | AI172: 8 | AJ172: 8 | AK172: 8 | AL172: Existing Unit | AM172: Existing Unit | AN172: Existing Unit
A173: Elwood Energy Facility | B173: Illinois | C173: 55199 | D173: 3 | E173: 4117 | F173: 258,953 | G173: 345,847 | H173: 146,734 | I173: 538,021 | J173: 610,601 | K173: 498,156 | L173: 498,156 | M173: 498,156 | N173: 266,926,648 | O173: 266,926,648 | P173: 266,926,648 | Q173: 0.001866 | R173: 0.001866 | S173: 0.001866 | T173: 7,049 | U173: 6,996 | V173: 7,090 | W173: 5,993 | X173: 13 | Y173: 13 | Z173: 13 | AA173: 11 | AB173: 5 | AC173: 7 | AD173: 3 | AE173: 10 | AF173: 11 | AG173: 11 | AH173: 11 | AI173: 11 | AJ173: 11 | AK173: 11 | AL173: Existing Unit | AM173: Existing Unit | AN173: Existing Unit
A174: Elwood Energy Facility | B174: Illinois | C174: 55199 | D174: 4 | E174: 4118 | F174: 215,371 | G174: 292,350 | H174: 141,546 | I174: 403,559 | J174: 516,118 | K174: 404,009 | L174: 404,009 | M174: 404,009 | N174: 266,926,648 | O174: 266,926,648 | P174: 266,926,648 | Q174: 0.001514 | R174: 0.001514 | S174: 0.001514 | T174: 7,049 | U174: 6,996 | V174: 7,090 | W174: 5,993 | X174: 11 | Y174: 11 | Z174: 11 | AA174: 9 | AB174: 4 | AC174: 6 | AD174: 3 | AE174: 7 | AF174: 9 | AG174: 9 | AH174: 9 | AI174: 9 | AJ174: 9 | AK174: 9 | AL174: Existing Unit | AM174: Existing Unit | AN174: Existing Unit
A175: Elwood Energy Facility | B175: Illinois | C175: 55199 | D175: 5 | E175: 4119 | F175: 237,112 | G175: 216,663 | H175: 290,096 | I175: 342,111 | J175: 919,885 | K175: 517,364 | L175: 517,364 | M175: 517,364 | N175: 266,926,648 | O175: 266,926,648 | P175: 266,926,648 | Q175: 0.001938 | R175: 0.001938 | S175: 0.001938 | T175: 7,049 | U175: 6,996 | V175: 7,090 | W175: 5,993 | X175: 14 | Y175: 14 | Z175: 14 | AA175: 12 | AB175: 5 | AC175: 4 | AD175: 6 | AE175: 6 | AF175: 15 | AG175: 15 | AH175: 15 | AI175: 15 | AJ175: 15 | AK175: 14 | AL175: Existing Unit | AM175: Existing Unit | AN175: Existing Unit
A176: Elwood Energy Facility | B176: Illinois | C176: 55199 | D176: 6 | E176: 4120 | F176: 160,334 | G176: 249,237 | H176: 238,999 | I176: 445,945 | J176: 484,943 | K176: 393,375 | L176: 393,375 | M176: 393,375 | N176: 266,926,648 | O176: 266,926,648 | P176: 266,926,648 | Q176: 0.001474 | R176: 0.001474 | S176: 0.001474 | T176: 7,049 | U176: 6,996 | V176: 7,090 | W176: 5,993 | X176: 10 | Y176: 10 | Z176: 10 | AA176: 9 | AB176: 3 | AC176: 4 | AD176: 4 | AE176: 8 | AF176: 8 | AG176: 8 | AH176: 8 | AI176: 8 | AJ176: 8 | AK176: 8 | AL176: Existing Unit | AM176: Existing Unit | AN176: Existing Unit
A177: Elwood Energy Facility | B177: Illinois | C177: 55199 | D177: 7 | E177: 4121 | F177: 792,671 | G177: 375,720 | H177: 273,035 | I177: 341,297 | J177: 917,920 | K177: 695,437 | L177: 695,437 | M177: 695,437 | N177: 266,926,648 | O177: 266,926,648 | P177: 266,926,648 | Q177: 0.002605 | R177: 0.002605 | S177: 0.002605 | T177: 7,049 | U177: 6,996 | V177: 7,090 | W177: 5,993 | X177: 18 | Y177: 18 | Z177: 18 | AA177: 16 | AB177: 14 | AC177: 7 | AD177: 5 | AE177: 5 | AF177: 15 | AG177: 15 | AH177: 15 | AI177: 15 | AJ177: 15 | AK177: 15 | AL177: Existing Unit | AM177: Existing Unit | AN177: Existing Unit
A178: Elwood Energy Facility | B178: Illinois | C178: 55199 | D178: 8 | E178: 4122 | F178: 758,404 | G178: 393,406 | H178: 184,617 | I178: 601,230 | J178: 675,080 | K178: 678,238 | L178: 678,238 | M178: 678,238 | N178: 266,926,648 | O178: 266,926,648 | P178: 266,926,648 | Q178: 0.002541 | R178: 0.002541 | S178: 0.002541 | T178: 7,049 | U178: 6,996 | V178: 7,090 | W178: 5,993 | X178: 18 | Y178: 18 | Z178: 18 | AA178: 15 | AB178: 12 | AC178: 7 | AD178: 3 | AE178: 9 | AF178: 13 | AG178: 13 | AH178: 13 | AI178: 13 | AJ178: 13 | AK178: 13 | AL178: Existing Unit | AM178: Existing Unit | AN178: Existing Unit
A179: Elwood Energy Facility | B179: Illinois | C179: 55199 | D179: 9 | E179: 4123 | F179: 396,902 | G179: 461,244 | H179: 251,347 | I179: 562,953 | J179: 551,834 | K179: 525,344 | L179: 525,344 | M179: 525,344 | N179: 266,926,648 | O179: 266,926,648 | P179: 266,926,648 | Q179: 0.001968 | R179: 0.001968 | S179: 0.001968 | T179: 7,049 | U179: 6,996 | V179: 7,090 | W179: 5,993 | X179: 14 | Y179: 14 | Z179: 14 | AA179: 12 | AB179: 7 | AC179: 8 | AD179: 5 | AE179: 9 | AF179: 9 | AG179: 9 | AH179: 9 | AI179: 9 | AJ179: 9 | AK179: 9 | AL179: Existing Unit | AM179: Existing Unit | AN179: Existing Unit
A180: Factory Gas Turbine | B180: Illinois | C180: 8016 | D180: 2 | E180: 9200 | F180: 2,004 | G180: 2,341 | H180: 483 | I180: 4,862 | J180: 1,898 | K180: 3,069 | L180: 3,069 | M180: 3,069 | N180: 266,926,648 | O180: 266,926,648 | P180: 266,926,648 | Q180: 0.000011 | R180: 0.000011 | S180: 0.000011 | T180: 7,049 | U180: 6,996 | V180: 7,090 | W180: 5,993 | X180: 0 | Y180: 0 | Z180: 0 | AA180: 0 | AB180: 1 | AC180: 1 | AD180: 0 | AE180: 3 | AF180: 1 | AG180: 3 | AH180: 0 | AI180: 0 | AJ180: 0 | AK180: 0 | AL180: Existing Unit | AM180: Existing Unit | AN180: Existing Unit
A181: Fisk | B181: Illinois | C181: 886 | D181: 311 | E181: 9165 | F181: 11,369 | G181: 3,240 | H181: 1,218 | I181: 968 | J181: 3,556 | K181: 6,055 | L181: 6,055 | M181: 6,055 | N181: 266,926,648 | O181: 266,926,648 | P181: 266,926,648 | Q181: 0.000023 | R181: 0.000023 | S181: 0.000023 | T181: 7,049 | U181: 6,996 | V181: 7,090 | W181: 5,993 | X181: 0 | Y181: 0 | Z181: 0 | AA181: 0 | AB181: 7 | AC181: 2 | AD181: 1 | AE181: 1 | AF181: 2 | AG181: 7 | AH181: 0 | AI181: 0 | AJ181: 0 | AK181: 0 | AL181: Existing Unit | AM181: Existing Unit | AN181: Existing Unit
A182: Fisk | B182: Illinois | C182: 886 | D182: 312 | E182: 9166 | F182: 11,201 | G182: 2,473 | H182: 1,146 | I182: 887 | J182: 3,599 | K182: 5,758 | L182: 5,758 | M182: 5,758 | N182: 266,926,648 | O182: 266,926,648 | P182: 266,926,648 | Q182: 0.000022 | R182: 0.000022 | S182: 0.000022 | T182: 7,049 | U182: 6,996 | V182: 7,090 | W182: 5,993 | X182: 0 | Y182: 0 | Z182: 0 | AA182: 0 | AB182: 7 | AC182: 1 | AD182: 1 | AE182: 1 | AF182: 2 | AG182: 7 | AH182: 0 | AI182: 0 | AJ182: 0 | AK182: 0 | AL182: Existing Unit | AM182: Existing Unit | AN182: Existing Unit
A183: Fisk | B183: Illinois | C183: 886 | D183: 321 | E183: 9167 | F183: 36,216 | G183: 1,280 | H183: 1,414 | I183: 954 | J183: 3,274 | K183: 13,635 | L183: 13,635 | M183: 13,635 | N183: 266,926,648 | O183: 266,926,648 | P183: 266,926,648 | Q183: 0.000051 | R183: 0.000051 | S183: 0.000051 | T183: 7,049 | U183: 6,996 | V183: 7,090 | W183: 5,993 | X183: 0 | Y183: 0 | Z183: 0 | AA183: 0 | AB183: 22 | AC183: 1 | AD183: 1 | AE183: 1 | AF183: 2 | AG183: 22 | AH183: 0 | AI183: 0 | AJ183: 0 | AK183: 0 | AL183: Existing Unit | AM183: Existing Unit | AN183: Existing Unit
A184: Fisk | B184: Illinois | C184: 886 | D184: 322 | E184: 9168 | F184: 35,766 | G184: 1,237 | H184: 1,141 | I184: 2,157 | J184: 3,504 | K184: 13,809 | L184: 13,809 | M184: 13,809 | N184: 266,926,648 | O184: 266,926,648 | P184: 266,926,648 | Q184: 0.000052 | R184: 0.000052 | S184: 0.000052 | T184: 7,049 | U184: 6,996 | V184: 7,090 | W184: 5,993 | X184: 0 | Y184: 0 | Z184: 0 | AA184: 0 | AB184: 21 | AC184: 1 | AD184: 1 | AE184: 1 | AF184: 2 | AG184: 21 | AH184: 0 | AI184: 0 | AJ184: 0 | AK184: 0 | AL184: Existing Unit | AM184: Existing Unit | AN184: Existing Unit
A185: Fisk | B185: Illinois | C185: 886 | D185: 331 | E185: 9169 | F185: 1,361 | G185: 1,467 | H185: 671 | I185: 2,449 | J185: 2,018 | K185: 1,978 | L185: 1,978 | M185: 1,978 | N185: 266,926,648 | O185: 266,926,648 | P185: 266,926,648 | Q185: 0.000007 | R185: 0.000007 | S185: 0.000007 | T185: 7,049 | U185: 6,996 | V185: 7,090 | W185: 5,993 | X185: 0 | Y185: 0 | Z185: 0 | AA185: 0 | AB185: 1 | AC185: 1 | AD185: 0 | AE185: 1 | AF185: 1 | AG185: 1 | AH185: 0 | AI185: 0 | AJ185: 0 | AK185: 0 | AL185: Existing Unit | AM185: Existing Unit | AN185: Existing Unit
A186: Fisk | B186: Illinois | C186: 886 | D186: 332 | E186: 9170 | F186: 1,936 | G186: 1,956 | H186: 657 | I186: 1,476 | J186: 3,485 | K186: 2,459 | L186: 2,459 | M186: 2,459 | N186: 266,926,648 | O186: 266,926,648 | P186: 266,926,648 | Q186: 0.000009 | R186: 0.000009 | S186: 0.000009 | T186: 7,049 | U186: 6,996 | V186: 7,090 | W186: 5,993 | X186: 0 | Y186: 0 | Z186: 0 | AA186: 0 | AB186: 1 | AC186: 1 | AD186: 0 | AE186: 1 | AF186: 2 | AG186: 2 | AH186: 0 | AI186: 0 | AJ186: 0 | AK186: 0 | AL186: Existing Unit | AM186: Existing Unit | AN186: Existing Unit
A187: Fisk | B187: Illinois | C187: 886 | D187: 342 | E187: 9172 | F187: 1,251 | G187: 1,486 | H187: 647 | I187: 714 | J187: 1,371 | K187: 1,369 | L187: 1,369 | M187: 1,369 | N187: 266,926,648 | O187: 266,926,648 | P187: 266,926,648 | Q187: 0.000005 | R187: 0.000005 | S187: 0.000005 | T187: 7,049 | U187: 6,996 | V187: 7,090 | W187: 5,993 | X187: 0 | Y187: 0 | Z187: 0 | AA187: 0 | AB187: 1 | AC187: 1 | AD187: 0 | AE187: 0 | AF187: 1 | AG187: 1 | AH187: 0 | AI187: 0 | AJ187: 0 | AK187: 0 | AL187: Existing Unit | AM187: Existing Unit | AN187: Existing Unit
A188: Freedom Power Project | B188: Illinois | C188: 7842 | D188: CT1 | E188: 3293 | F188: 20,101 | G188: 4,212 | H188: 1,576 | I188: 9,231 | J188: 17,373 | K188: 15,568 | L188: 15,568 | M188: 15,568 | N188: 266,926,648 | O188: 266,926,648 | P188: 266,926,648 | Q188: 0.000058 | R188: 0.000058 | S188: 0.000058 | T188: 7,049 | U188: 6,996 | V188: 7,090 | W188: 5,993 | X188: 0 | Y188: 0 | Z188: 0 | AA188: 0 | AB188: 1 | AC188: 0 | AD188: 0 | AE188: 0 | AF188: 1 | AG188: 1 | AH188: 1 | AI188: 0 | AJ188: 1 | AK188: 0 | AL188: Existing Unit | AM188: Existing Unit | AN188: Existing Unit
A189: Gibson City Energy Center, LLC | B189: Illinois | C189: 55201 | D189: GCTG1 | E189: 4126 | F189: 240,946 | G189: 473,182 | H189: 255,990 | I189: 981,538 | J189: 663,590 | K189: 706,104 | L189: 706,104 | M189: 706,104 | N189: 266,926,648 | O189: 266,926,648 | P189: 266,926,648 | Q189: 0.002645 | R189: 0.002645 | S189: 0.002645 | T189: 7,049 | U189: 6,996 | V189: 7,090 | W189: 5,993 | X189: 19 | Y189: 19 | Z189: 19 | AA189: 16 | AB189: 8 | AC189: 17 | AD189: 9 | AE189: 31 | AF189: 22 | AG189: 31 | AH189: 23 | AI189: 22 | AJ189: 23 | AK189: 19 | AL189: Existing Unit | AM189: Existing Unit | AN189: Existing Unit
A190: Gibson City Energy Center, LLC | B190: Illinois | C190: 55201 | D190: GCTG2 | E190: 4127 | F190: 247,143 | G190: 528,704 | H190: 421,730 | I190: 953,860 | J190: 693,243 | K190: 725,269 | L190: 725,269 | M190: 725,269 | N190: 266,926,648 | O190: 266,926,648 | P190: 266,926,648 | Q190: 0.002717 | R190: 0.002717 | S190: 0.002717 | T190: 7,049 | U190: 6,996 | V190: 7,090 | W190: 5,993 | X190: 19 | Y190: 19 | Z190: 19 | AA190: 16 | AB190: 9 | AC190: 20 | AD190: 16 | AE190: 37 | AF190: 22 | AG190: 37 | AH190: 23 | AI190: 23 | AJ190: 24 | AK190: 19 | AL190: Existing Unit | AM190: Existing Unit | AN190: Existing Unit
A191: Goose Creek Power Plant | B191: Illinois | C191: 55496 | D191: CT-01 | E191: 10123 | F191: 38,817 | G191: 66,930 | H191: 8,445 | I191: 37,959 | J191: 69,253 | K191: 58,334 | L191: 58,334 | M191: 58,334 | N191: 266,926,648 | O191: 266,926,648 | P191: 266,926,648 | Q191: 0.000219 | R191: 0.000219 | S191: 0.000219 | T191: 7,049 | U191: 6,996 | V191: 7,090 | W191: 5,993 | X191: 2 | Y191: 2 | Z191: 2 | AA191: 1 | AB191: 0 | AC191: 1 | AD191: 0 | AE191: 0 | AF191: 1 | AG191: 1 | AH191: 1 | AI191: 1 | AJ191: 1 | AK191: 1 | AL191: Existing Unit | AM191: Existing Unit | AN191: Existing Unit
A192: Goose Creek Power Plant | B192: Illinois | C192: 55496 | D192: CT-02 | E192: 10124 | F192: 41,508 | G192: 64,185 | H192: 5,565 | I192: 33,438 | J192: 79,729 | K192: 61,807 | L192: 61,807 | M192: 61,807 | N192: 266,926,648 | O192: 266,926,648 | P192: 266,926,648 | Q192: 0.000232 | R192: 0.000232 | S192: 0.000232 | T192: 7,049 | U192: 6,996 | V192: 7,090 | W192: 5,993 | X192: 2 | Y192: 2 | Z192: 2 | AA192: 1 | AB192: 0 | AC192: 1 | AD192: 0 | AE192: 0 | AF192: 1 | AG192: 1 | AH192: 1 | AI192: 1 | AJ192: 1 | AK192: 1 | AL192: Existing Unit | AM192: Existing Unit | AN192: Existing Unit
A193: Goose Creek Power Plant | B193: Illinois | C193: 55496 | D193: CT-03 | E193: 10125 | F193: 44,881 | G193: 54,522 | H193: 9,166 | I193: 37,822 | J193: 65,628 | K193: 55,010 | L193: 55,010 | M193: 55,010 | N193: 266,926,648 | O193: 266,926,648 | P193: 266,926,648 | Q193: 0.000206 | R193: 0.000206 | S193: 0.000206 | T193: 7,049 | U193: 6,996 | V193: 7,090 | W193: 5,993 | X193: 1 | Y193: 1 | Z193: 1 | AA193: 1 | AB193: 0 | AC193: 1 | AD193: 0 | AE193: 0 | AF193: 1 | AG193: 1 | AH193: 1 | AI193: 1 | AJ193: 1 | AK193: 1 | AL193: Existing Unit | AM193: Existing Unit | AN193: Existing Unit
A194: Goose Creek Power Plant | B194: Illinois | C194: 55496 | D194: CT-04 | E194: 10126 | F194: 44,236 | G194: 64,330 | H194: 5,434 | I194: 41,475 | J194: 73,212 | K194: 60,593 | L194: 60,593 | M194: 60,593 | N194: 266,926,648 | O194: 266,926,648 | P194: 266,926,648 | Q194: 0.000227 | R194: 0.000227 | S194: 0.000227 | T194: 7,049 | U194: 6,996 | V194: 7,090 | W194: 5,993 | X194: 2 | Y194: 2 | Z194: 2 | AA194: 1 | AB194: 1 | AC194: 1 | AD194: 0 | AE194: 0 | AF194: 1 | AG194: 1 | AH194: 1 | AI194: 1 | AJ194: 1 | AK194: 1 | AL194: Existing Unit | AM194: Existing Unit | AN194: Existing Unit
A195: Goose Creek Power Plant | B195: Illinois | C195: 55496 | D195: CT-05 | E195: 10127 | F195: 44,907 | G195: 46,838 | H195: 5,422 | I195: 38,542 | J195: 64,737 | K195: 52,161 | L195: 52,161 | M195: 52,161 | N195: 266,926,648 | O195: 266,926,648 | P195: 266,926,648 | Q195: 0.000195 | R195: 0.000195 | S195: 0.000195 | T195: 7,049 | U195: 6,996 | V195: 7,090 | W195: 5,993 | X195: 1 | Y195: 1 | Z195: 1 | AA195: 1 | AB195: 1 | AC195: 1 | AD195: 0 | AE195: 0 | AF195: 1 | AG195: 1 | AH195: 1 | AI195: 1 | AJ195: 1 | AK195: 1 | AL195: Existing Unit | AM195: Existing Unit | AN195: Existing Unit
A196: Goose Creek Power Plant | B196: Illinois | C196: 55496 | D196: CT-06 | E196: 10128 | F196: 35,579 | G196: 24,257 | H196: 9,345 | I196: 41,872 | J196: 42,934 | K196: 40,128 | L196: 40,128 | M196: 40,128 | N196: 266,926,648 | O196: 266,926,648 | P196: 266,926,648 | Q196: 0.000150 | R196: 0.000150 | S196: 0.000150 | T196: 7,049 | U196: 6,996 | V196: 7,090 | W196: 5,993 | X196: 1 | Y196: 1 | Z196: 1 | AA196: 1 | AB196: 0 | AC196: 0 | AD196: 0 | AE196: 0 | AF196: 0 | AG196: 0 | AH196: 0 | AI196: 0 | AJ196: 0 | AK196: 0 | AL196: Existing Unit | AM196: Existing Unit | AN196: Existing Unit
A197: Holland Energy Facility | B197: Illinois | C197: 55334 | D197: CTG1 | E197: 4508 | F197: 1,871,879 | G197: 2,888,513 | H197: 2,712,173 | I197: 3,599,638 | J197: 2,605,858 | K197: 3,066,775 | L197: 3,066,775 | M197: 3,066,775 | N197: 266,926,648 | O197: 266,926,648 | P197: 266,926,648 | Q197: 0.011489 | R197: 0.011489 | S197: 0.011489 | T197: 7,049 | U197: 6,996 | V197: 7,090 | W197: 5,993 | X197: 81 | Y197: 80 | Z197: 81 | AA197: 69 | AB197: 15 | AC197: 21 | AD197: 20 | AE197: 25 | AF197: 19 | AG197: 25 | AH197: 25 | AI197: 25 | AJ197: 25 | AK197: 25 | AL197: Existing Unit | AM197: Existing Unit | AN197: Existing Unit
A198: Holland Energy Facility | B198: Illinois | C198: 55334 | D198: CTG2 | E198: 4509 | F198: 1,875,474 | G198: 2,903,705 | H198: 2,709,931 | I198: 3,567,580 | J198: 2,403,229 | K198: 3,060,405 | L198: 3,060,405 | M198: 3,060,405 | N198: 266,926,648 | O198: 266,926,648 | P198: 266,926,648 | Q198: 0.011465 | R198: 0.011465 | S198: 0.011465 | T198: 7,049 | U198: 6,996 | V198: 7,090 | W198: 5,993 | X198: 81 | Y198: 80 | Z198: 81 | AA198: 69 | AB198: 14 | AC198: 21 | AD198: 19 | AE198: 24 | AF198: 17 | AG198: 24 | AH198: 24 | AI198: 24 | AJ198: 24 | AK198: 24 | AL198: Existing Unit | AM198: Existing Unit | AN198: Existing Unit
A199: Joliet 29 | B199: Illinois | C199: 384 | D199: 71 | E199: 250 | F199: 751,005 | G199: 1,528,391 | H199: 3,013,228 | I199: 2,814,849 | J199: 1,662,048 | K199: 2,496,709 | L199: 2,496,709 | M199: 2,496,709 | N199: 266,926,648 | O199: 266,926,648 | P199: 266,926,648 | Q199: 0.009354 | R199: 0.009354 | S199: 0.009354 | T199: 7,049 | U199: 6,996 | V199: 7,090 | W199: 5,993 | X199: 66 | Y199: 65 | Z199: 66 | AA199: 56 | AB199: 24 | AC199: 52 | AD199: 120 | AE199: 124 | AF199: 70 | AG199: 124 | AH199: 80 | AI199: 80 | AJ199: 81 | AK199: 66 | AL199: Existing Unit | AM199: Existing Unit | AN199: Existing Unit
A200: Joliet 29 | B200: Illinois | C200: 384 | D200: 72 | E200: 251 | F200: 729,834 | G200: 1,488,195 | H200: 2,733,455 | I200: 2,766,817 | J200: 1,681,025 | K200: 2,393,766 | L200: 2,393,766 | M200: 2,393,766 | N200: 266,926,648 | O200: 266,926,648 | P200: 266,926,648 | Q200: 0.008968 | R200: 0.008968 | S200: 0.008968 | T200: 7,049 | U200: 6,996 | V200: 7,090 | W200: 5,993 | X200: 63 | Y200: 63 | Z200: 64 | AA200: 54 | AB200: 23 | AC200: 51 | AD200: 110 | AE200: 122 | AF200: 71 | AG200: 122 | AH200: 77 | AI200: 76 | AJ200: 78 | AK200: 64 | AL200: Existing Unit | AM200: Existing Unit | AN200: Existing Unit
... 2140 more rows

Sheet Underlying Data for AL SIP
F1: Step 1 | K1: Steps 2 & 3 | M1: Step 4 | O1: Step 5 | Q1: Step 6 | W1: Step 7 | AE1: Step 8 | AF1: Steps 9 & 10 | AI1: Data Flags
A2: Plant Name | B2: State | C2: ORIS ID | D2: Boiler ID | E2: CAMD Unit ID | F2: 2017 Ozone Season Heat Input (mmBtu) | G2: 2018 Ozone Season Heat Input (mmBtu) | H2: 2019 Ozone Season Heat Input (mmBtu) | I2: 2020 Ozone Season Heat Input (mmBtu) | J2: 2021 Ozone Season Heat Input (mmBtu) | K2: Unit Level Average of 3 Highest Non-Zero Ozone Season Heat Inputs from 2017 to 2021 (mmBtu) for 2023 | L2: Unit Level Average of 3 Highest Non-Zero Ozone Season Heat Inputs from 2017 to 2021 (mmBtu) for 2024 | M2: State Level Summation of Unit Level Three Year Average Ozone Season Heat Input (mmBtu) for 2023 | N2: State Level Summation of Unit Level Three Year Average Ozone Season Heat Input (mmBtu) for 2024 | O2: Unit 's Percentage Share of State's Ozone Season Heat Input for 2023 | P2: Unit 's Percentage Share of State's Ozone Season Heat Input for 2024 | Q2: Ozone Season NOX Pro-Rated 2023 State Budget for Existing Units (tons) | R2: Ozone Season NOX 2023 State Budget for Existing Units (tons) | S2: Ozone Season NOX 2024 State Budget for Existing Units (tons) | T2: Tentative Heat Input Based Pro-Rated 2023 Ozone Season NOX Allocation (tons) | U2: Tentative Heat Input Based 2023 Ozone Season NOX Allocation (tons) | V2: Tentative Heat Input Based 2024 Ozone Season NOX Allocation (tons) | W2: 2014 Ozone Season NOX Emissions (tons) | X2: 2015 Ozone Season NOX Emissions (tons) | Y2: 2016 Ozone Season NOX Emissions (tons) | Z2: 2017 Ozone Season NOX Emissions (tons) | AA2: 2018 Ozone Season NOX Emissions (tons) | AB2: 2019 Ozone Season NOX Emissions (tons) | AC2: 2020 Ozone Season NOX Emissions (tons) | AD2: 2021 Ozone Season NOX Emissions (tons) | AE2: Ozone Season NOX Maximum Historic Baseline (tons) | AF2: Unit Level NOX Ozone Season Allocation Pro-Rated 2023 (tons) | AG2: Unit Level NOX Ozone Season Allocation 2023 (tons) | AH2: Unit Level NOX Ozone Season Allocation 2024 (tons) | AI2: Existing Unit or Retired in 2023 | AJ2: Existing Unit or Retired in 2024 | AK2: Additional (Not ARP or CSAPR) Unit? | AL2: Unit Not Subject to State's SIP Authority?
A3: Calculation | K3: Average of three highest non-zero values in columns F - J for Operating units | M3: Sum column K values to get State level totals | N3: Sum column L values to get State level totals | O3: Column K divided by column M | P3: Column L divided by column N | T3: Column O x column Q | U3: Column O x column R | V3: Column P x column S | AE3: Highest value of columns W - AD | AF3: (Lesser of columns AE and T + reapportionment if T < AE | AG3: (Lesser of columns AE and U + reapportionment if U < AE | AH3: (Lesser of columns AE and V + reapportionment if V < AE
A4: AMEA Sylacauga Plant | B4: Alabama | C4: 56018 | D4: 1 | E4: 89313 | F4: 86,736 | G4: 129,234 | H4: 214,463 | I4: 135,283 | J4: 185,597 | K4: 178,448 | L4: 178,448 | M4: 357,190,858 | N4: 357,190,858 | O4: 0.000500 | P4: 0.000500 | Q4: 6,621 | R4: 6,173 | S4: 6,117 | T4: 3 | U4: 3 | V4: 3 | W4: 4 | X4: 11 | Y4: 7 | Z4: 3 | AA4: 5 | AB4: 9 | AC4: 6 | AD4: 8 | AE4: 11 | AF4: 6 | AG4: 5 | AH4: 5 | AI4: Existing Unit | AJ4: Existing Unit
A5: AMEA Sylacauga Plant | B5: Alabama | C5: 56018 | D5: 2 | E5: 89314 | F5: 92,254 | G5: 134,269 | H5: 219,533 | I5: 138,854 | J5: 186,691 | K5: 181,693 | L5: 181,693 | M5: 357,190,858 | N5: 357,190,858 | O5: 0.000509 | P5: 0.000509 | Q5: 6,621 | R5: 6,173 | S5: 6,117 | T5: 3 | U5: 3 | V5: 3 | W5: 5 | X5: 11 | Y5: 7 | Z5: 4 | AA5: 5 | AB5: 9 | AC5: 6 | AD5: 8 | AE5: 11 | AF5: 6 | AG5: 5 | AH5: 5 | AI5: Existing Unit | AJ5: Existing Unit
A6: Barry | B6: Alabama | C6: 3 | D6: 4 | E6: 4 | F6: 4,014,794 | G6: 5,720,072 | H6: 2,776,737 | I6: 153,023 | J6: 3,513,717 | K6: 4,416,194 | L6: 4,416,194 | M6: 357,190,858 | N6: 357,190,858 | O6: 0.012364 | P6: 0.012364 | Q6: 6,621 | R6: 6,173 | S6: 6,117 | T6: 82 | U6: 76 | V6: 76 | W6: 952 | X6: 1,196 | Y6: 1,189 | Z6: 527 | AA6: 614 | AB6: 369 | AC6: 23 | AD6: 473 | AE6: 1,196 | AF6: 144 | AG6: 132 | AH6: 130 | AI6: Existing Unit | AJ6: Existing Unit
A7: Barry | B7: Alabama | C7: 3 | D7: 5 | E7: 5 | F7: 16,298,133 | G7: 19,058,744 | H7: 16,604,503 | I7: 15,021,463 | J7: 20,662,771 | K7: 18,775,339 | L7: 18,775,339 | M7: 357,190,858 | N7: 357,190,858 | O7: 0.052564 | P7: 0.052564 | Q7: 6,621 | R7: 6,173 | S7: 6,117 | T7: 348 | U7: 324 | V7: 322 | W7: 785 | X7: 726 | Y7: 740 | Z7: 536 | AA7: 562 | AB7: 564 | AC7: 541 | AD7: 698 | AE7: 785 | AF7: 611 | AG7: 560 | AH7: 554 | AI7: Existing Unit | AJ7: Existing Unit
A8: Barry | B8: Alabama | C8: 3 | D8: 6A | E8: 6 | F8: 6,558,039 | G8: 6,251,771 | H8: 6,594,639 | I8: 5,459,204 | J8: 5,071,075 | K8: 6,468,150 | L8: 6,468,150 | M8: 357,190,858 | N8: 357,190,858 | O8: 0.018108 | P8: 0.018108 | Q8: 6,621 | R8: 6,173 | S8: 6,117 | T8: 120 | U8: 112 | V8: 111 | W8: 26 | X8: 22 | Y8: 26 | Z8: 26 | AA8: 24 | AB8: 26 | AC8: 22 | AD8: 23 | AE8: 26 | AF8: 26 | AG8: 26 | AH8: 26 | AI8: Existing Unit | AJ8: Existing Unit
A9: Barry | B9: Alabama | C9: 3 | D9: 6B | E9: 7 | F9: 6,541,814 | G9: 6,279,479 | H9: 6,761,765 | I9: 6,718,678 | J9: 6,566,771 | K9: 6,682,404 | L9: 6,682,404 | M9: 357,190,858 | N9: 357,190,858 | O9: 0.018708 | P9: 0.018708 | Q9: 6,621 | R9: 6,173 | S9: 6,117 | T9: 124 | U9: 115 | V9: 114 | W9: 22 | X9: 23 | Y9: 22 | Z9: 29 | AA9: 26 | AB9: 24 | AC9: 27 | AD9: 30 | AE9: 30 | AF9: 30 | AG9: 30 | AH9: 30 | AI9: Existing Unit | AJ9: Existing Unit
A10: Barry | B10: Alabama | C10: 3 | D10: 7A | E10: 8 | F10: 6,579,770 | G10: 5,335,824 | H10: 6,704,527 | I10: 7,094,424 | J10: 6,777,467 | K10: 6,858,806 | L10: 6,858,806 | M10: 357,190,858 | N10: 357,190,858 | O10: 0.019202 | P10: 0.019202 | Q10: 6,621 | R10: 6,173 | S10: 6,117 | T10: 127 | U10: 119 | V10: 117 | W10: 26 | X10: 21 | Y10: 24 | Z10: 26 | AA10: 22 | AB10: 27 | AC10: 29 | AD10: 31 | AE10: 31 | AF10: 31 | AG10: 31 | AH10: 31 | AI10: Existing Unit | AJ10: Existing Unit
A11: Barry | B11: Alabama | C11: 3 | D11: 7B | E11: 9 | F11: 6,484,485 | G11: 5,201,432 | H11: 6,907,843 | I11: 7,171,257 | J11: 6,717,795 | K11: 6,932,298 | L11: 6,932,298 | M11: 357,190,858 | N11: 357,190,858 | O11: 0.019408 | P11: 0.019408 | Q11: 6,621 | R11: 6,173 | S11: 6,117 | T11: 129 | U11: 120 | V11: 119 | W11: 25 | X11: 18 | Y11: 26 | Z11: 26 | AA11: 22 | AB11: 28 | AC11: 29 | AD11: 28 | AE11: 29 | AF11: 29 | AG11: 29 | AH11: 29 | AI11: Existing Unit | AJ11: Existing Unit
A12: Calhoun Energy Center | B12: Alabama | C12: 55409 | D12: CT1 | E12: 4688 | F12: 436,672 | G12: 461,658 | H12: 810,823 | I12: 118,715 | J12: 125,246 | K12: 569,718 | L12: 569,718 | M12: 357,190,858 | N12: 357,190,858 | O12: 0.001595 | P12: 0.001595 | Q12: 6,621 | R12: 6,173 | S12: 6,117 | T12: 11 | U12: 10 | V12: 10 | W12: 0 | X12: 2 | Y12: 10 | Z12: 8 | AA12: 9 | AB12: 15 | AC12: 2 | AD12: 2 | AE12: 15 | AF12: 15 | AG12: 15 | AH12: 15 | AI12: Existing Unit | AJ12: Existing Unit
A13: Calhoun Energy Center | B13: Alabama | C13: 55409 | D13: CT2 | E13: 4689 | F13: 319,859 | G13: 297,794 | H13: 848,598 | I13: 31,030 | J13: 58,243 | K13: 488,751 | L13: 488,751 | M13: 357,190,858 | N13: 357,190,858 | O13: 0.001368 | P13: 0.001368 | Q13: 6,621 | R13: 6,173 | S13: 6,117 | T13: 9 | U13: 8 | V13: 8 | X13: 0 | Y13: 4 | Z13: 5 | AA13: 5 | AB13: 13 | AC13: 1 | AD13: 1 | AE13: 13 | AF13: 13 | AG13: 13 | AH13: 13 | AI13: Existing Unit | AJ13: Existing Unit
A14: Calhoun Energy Center | B14: Alabama | C14: 55409 | D14: CT3 | E14: 4690 | F14: 369,783 | G14: 406,791 | H14: 794,662 | I14: 24,020 | J14: 54,667 | K14: 523,745 | L14: 523,745 | M14: 357,190,858 | N14: 357,190,858 | O14: 0.001466 | P14: 0.001466 | Q14: 6,621 | R14: 6,173 | S14: 6,117 | T14: 10 | U14: 9 | V14: 9 | X14: 1 | Y14: 7 | Z14: 6 | AA14: 7 | AB14: 13 | AC14: 0 | AD14: 1 | AE14: 13 | AF14: 13 | AG14: 13 | AH14: 13 | AI14: Existing Unit | AJ14: Existing Unit
A15: Calhoun Energy Center | B15: Alabama | C15: 55409 | D15: CT4 | E15: 4691 | F15: 430,332 | G15: 493,805 | H15: 779,767 | I15: 127,646 | J15: 128,934 | K15: 567,968 | L15: 567,968 | M15: 357,190,858 | N15: 357,190,858 | O15: 0.001590 | P15: 0.001590 | Q15: 6,621 | R15: 6,173 | S15: 6,117 | T15: 11 | U15: 10 | V15: 10 | W15: 0 | X15: 3 | Y15: 11 | Z15: 7 | AA15: 8 | AB15: 13 | AC15: 2 | AD15: 2 | AE15: 13 | AF15: 13 | AG15: 13 | AH15: 13 | AI15: Existing Unit | AJ15: Existing Unit
A16: Central Alabama Gen Station | B16: Alabama | C16: 55440 | D16: CTGDB1 | E16: 4758 | F16: 6,119,408 | G16: 5,734,456 | H16: 6,612,045 | I16: 6,445,372 | J16: 4,347,066 | K16: 6,392,275 | L16: 6,392,275 | M16: 357,190,858 | N16: 357,190,858 | O16: 0.017896 | P16: 0.017896 | Q16: 6,621 | R16: 6,173 | S16: 6,117 | T16: 118 | U16: 110 | V16: 109 | W16: 26 | X16: 29 | Y16: 28 | Z16: 31 | AA16: 28 | AB16: 31 | AC16: 27 | AD16: 20 | AE16: 31 | AF16: 31 | AG16: 31 | AH16: 31 | AI16: Existing Unit | AJ16: Existing Unit
A17: Central Alabama Gen Station | B17: Alabama | C17: 55440 | D17: CTGDB2 | E17: 4759 | F17: 5,056,473 | G17: 5,303,794 | H17: 6,800,997 | I17: 6,921,908 | J17: 5,511,402 | K17: 6,411,436 | L17: 6,411,436 | M17: 357,190,858 | N17: 357,190,858 | O17: 0.017950 | P17: 0.017950 | Q17: 6,621 | R17: 6,173 | S17: 6,117 | T17: 119 | U17: 111 | V17: 110 | W17: 24 | X17: 23 | Y17: 28 | Z17: 22 | AA17: 23 | AB17: 32 | AC17: 29 | AD17: 22 | AE17: 32 | AF17: 32 | AG17: 32 | AH17: 32 | AI17: Existing Unit | AJ17: Existing Unit
A18: Central Alabama Gen Station | B18: Alabama | C18: 55440 | D18: CTGDB3 | E18: 4760 | F18: 5,628,746 | G18: 4,997,377 | H18: 6,135,558 | I18: 6,071,221 | J18: 4,205,115 | K18: 5,945,175 | L18: 5,945,175 | M18: 357,190,858 | N18: 357,190,858 | O18: 0.016644 | P18: 0.016644 | Q18: 6,621 | R18: 6,173 | S18: 6,117 | T18: 110 | U18: 103 | V18: 102 | W18: 23 | X18: 23 | Y18: 26 | Z18: 25 | AA18: 24 | AB18: 29 | AC18: 61 | AD18: 16 | AE18: 61 | AF18: 61 | AG18: 61 | AH18: 61 | AI18: Existing Unit | AJ18: Existing Unit
A19: Colbert | B19: Alabama | C19: 47 | D19: CCT1 | E19: 88150 | F19: 3,009 | G19: 8,328 | H19: 5,009 | I19: 5,191 | J19: 7,823 | K19: 7,114 | L19: 7,114 | M19: 357,190,858 | N19: 357,190,858 | O19: 0.000020 | P19: 0.000020 | Q19: 6,621 | R19: 6,173 | S19: 6,117 | T19: 0 | U19: 0 | V19: 0 | W19: 2 | X19: 1 | Y19: 0 | Z19: 1 | AA19: 3 | AB19: 1 | AC19: 1 | AD19: 2 | AE19: 3 | AF19: 0 | AG19: 0 | AH19: 0 | AI19: Existing Unit | AJ19: Existing Unit
A20: Colbert | B20: Alabama | C20: 47 | D20: CCT2 | E20: 88151 | F20: 2,996 | G20: 7,813 | H20: 4,961 | I20: 5,517 | J20: 7,659 | K20: 6,996 | L20: 6,996 | M20: 357,190,858 | N20: 357,190,858 | O20: 0.000020 | P20: 0.000020 | Q20: 6,621 | R20: 6,173 | S20: 6,117 | T20: 0 | U20: 0 | V20: 0 | W20: 3 | X20: 1 | Y20: 0 | Z20: 1 | AA20: 3 | AB20: 1 | AC20: 1 | AD20: 2 | AE20: 3 | AF20: 0 | AG20: 0 | AH20: 0 | AI20: Existing Unit | AJ20: Existing Unit
A21: Colbert | B21: Alabama | C21: 47 | D21: CCT3 | E21: 88152 | F21: 3,073 | G21: 6 | J21: 11,681 | K21: 4,920 | L21: 4,920 | M21: 357,190,858 | N21: 357,190,858 | O21: 0.000014 | P21: 0.000014 | Q21: 6,621 | R21: 6,173 | S21: 6,117 | T21: 0 | U21: 0 | V21: 0 | W21: 3 | X21: 1 | Y21: 0 | Z21: 1 | AA21: 0 | AD21: 2 | AE21: 3 | AF21: 0 | AG21: 0 | AH21: 0 | AI21: Existing Unit | AJ21: Existing Unit
A22: Colbert | B22: Alabama | C22: 47 | D22: CCT4 | E22: 88153 | F22: 3,130 | G22: 7,616 | H22: 5,230 | I22: 4,949 | J22: 7,163 | K22: 6,670 | L22: 6,670 | M22: 357,190,858 | N22: 357,190,858 | O22: 0.000019 | P22: 0.000019 | Q22: 6,621 | R22: 6,173 | S22: 6,117 | T22: 0 | U22: 0 | V22: 0 | W22: 3 | X22: 1 | Y22: 0 | Z22: 1 | AA22: 3 | AB22: 1 | AC22: 1 | AD22: 1 | AE22: 3 | AF22: 0 | AG22: 0 | AH22: 0 | AI22: Existing Unit | AJ22: Existing Unit
A23: Colbert | B23: Alabama | C23: 47 | D23: CCT5 | E23: 88154 | F23: 7,217 | G23: 3,537 | H23: 6,390 | I23: 4,889 | J23: 13,096 | K23: 8,901 | L23: 8,901 | M23: 357,190,858 | N23: 357,190,858 | O23: 0.000025 | P23: 0.000025 | Q23: 6,621 | R23: 6,173 | S23: 6,117 | T23: 0 | U23: 0 | V23: 0 | X23: 1 | Y23: 0 | Z23: 2 | AA23: 1 | AB23: 1 | AC23: 1 | AD23: 3 | AE23: 3 | AF23: 0 | AG23: 0 | AH23: 0 | AI23: Existing Unit | AJ23: Existing Unit
A24: Colbert | B24: Alabama | C24: 47 | D24: CCT6 | E24: 88155 | F24: 7,615 | G24: 2,749 | H24: 6,364 | I24: 4,903 | J24: 13,835 | K24: 9,271 | L24: 9,271 | M24: 357,190,858 | N24: 357,190,858 | O24: 0.000026 | P24: 0.000026 | Q24: 6,621 | R24: 6,173 | S24: 6,117 | T24: 0 | U24: 0 | V24: 0 | X24: 0 | Y24: 1 | Z24: 2 | AA24: 1 | AB24: 1 | AC24: 1 | AD24: 3 | AE24: 3 | AF24: 0 | AG24: 0 | AH24: 0 | AI24: Existing Unit | AJ24: Existing Unit
A25: Colbert | B25: Alabama | C25: 47 | D25: CCT7 | E25: 88156 | F25: 7,009 | I25: 8,725 | J25: 14,341 | K25: 10,025 | L25: 10,025 | M25: 357,190,858 | N25: 357,190,858 | O25: 0.000028 | P25: 0.000028 | Q25: 6,621 | R25: 6,173 | S25: 6,117 | T25: 0 | U25: 0 | V25: 0 | W25: 2 | X25: 2 | Y25: 0 | Z25: 2 | AC25: 2 | AD25: 3 | AE25: 3 | AF25: 0 | AG25: 0 | AH25: 0 | AI25: Existing Unit | AJ25: Existing Unit
A26: Colbert | B26: Alabama | C26: 47 | D26: CCT8 | E26: 88157 | F26: 6,961 | I26: 8,153 | J26: 14,142 | K26: 9,752 | L26: 9,752 | M26: 357,190,858 | N26: 357,190,858 | O26: 0.000027 | P26: 0.000027 | Q26: 6,621 | R26: 6,173 | S26: 6,117 | T26: 0 | U26: 0 | V26: 0 | W26: 3 | X26: 0 | Y26: 0 | Z26: 2 | AC26: 2 | AD26: 3 | AE26: 3 | AF26: 0 | AG26: 0 | AH26: 0 | AI26: Existing Unit | AJ26: Existing Unit
A27: Decatur Energy Center | B27: Alabama | C27: 55292 | D27: CTG-1 | E27: 4459 | F27: 2,302,689 | G27: 2,711,293 | H27: 2,498,433 | I27: 2,385,600 | J27: 1,549,360 | K27: 2,531,775 | L27: 2,531,775 | M27: 357,190,858 | N27: 357,190,858 | O27: 0.007088 | P27: 0.007088 | Q27: 6,621 | R27: 6,173 | S27: 6,117 | T27: 47 | U27: 44 | V27: 43 | W27: 7 | X27: 10 | Y27: 14 | Z27: 11 | AA27: 11 | AB27: 11 | AC27: 10 | AD27: 9 | AE27: 14 | AF27: 14 | AG27: 14 | AH27: 14 | AI27: Existing Unit | AJ27: Existing Unit
A28: Decatur Energy Center | B28: Alabama | C28: 55292 | D28: CTG-2 | E28: 4460 | F28: 2,425,012 | G28: 3,103,241 | H28: 2,732,594 | I28: 2,491,270 | J28: 1,612,639 | K28: 2,775,702 | L28: 2,775,702 | M28: 357,190,858 | N28: 357,190,858 | O28: 0.007771 | P28: 0.007771 | Q28: 6,621 | R28: 6,173 | S28: 6,117 | T28: 51 | U28: 48 | V28: 48 | W28: 8 | X28: 10 | Y28: 14 | Z28: 9 | AA28: 11 | AB28: 13 | AC28: 11 | AD28: 9 | AE28: 14 | AF28: 14 | AG28: 14 | AH28: 14 | AI28: Existing Unit | AJ28: Existing Unit
A29: Decatur Energy Center | B29: Alabama | C29: 55292 | D29: CTG-3 | E29: 4461 | F29: 2,463,723 | G29: 2,971,084 | H29: 2,747,036 | I29: 2,496,649 | J29: 1,729,017 | K29: 2,738,256 | L29: 2,738,256 | M29: 357,190,858 | N29: 357,190,858 | O29: 0.007666 | P29: 0.007666 | Q29: 6,621 | R29: 6,173 | S29: 6,117 | T29: 51 | U29: 47 | V29: 47 | W29: 7 | X29: 11 | Y29: 16 | Z29: 12 | AA29: 14 | AB29: 14 | AC29: 12 | AD29: 10 | AE29: 16 | AF29: 16 | AG29: 16 | AH29: 16 | AI29: Existing Unit | AJ29: Existing Unit
A30: E B Harris Generating Plant | B30: Alabama | C30: 7897 | D30: 1A | E30: 3355 | F30: 4,534,068 | G30: 5,487,585 | H30: 4,617,312 | I30: 4,589,427 | J30: 4,018,790 | K30: 4,898,108 | L30: 4,898,108 | M30: 357,190,858 | N30: 357,190,858 | O30: 0.013713 | P30: 0.013713 | Q30: 6,621 | R30: 6,173 | S30: 6,117 | T30: 91 | U30: 85 | V30: 84 | W30: 23 | X30: 28 | Y30: 29 | Z30: 26 | AA30: 27 | AB30: 23 | AC30: 23 | AD30: 29 | AE30: 29 | AF30: 29 | AG30: 29 | AH30: 29 | AI30: Existing Unit | AJ30: Existing Unit
A31: E B Harris Generating Plant | B31: Alabama | C31: 7897 | D31: 1B | E31: 3356 | F31: 4,503,481 | G31: 5,581,434 | H31: 4,746,809 | I31: 4,483,749 | J31: 5,006,870 | K31: 5,111,704 | L31: 5,111,704 | M31: 357,190,858 | N31: 357,190,858 | O31: 0.014311 | P31: 0.014311 | Q31: 6,621 | R31: 6,173 | S31: 6,117 | T31: 95 | U31: 88 | V31: 88 | W31: 22 | X31: 28 | Y31: 27 | Z31: 25 | AA31: 27 | AB31: 22 | AC31: 24 | AD31: 25 | AE31: 28 | AF31: 28 | AG31: 28 | AH31: 28 | AI31: Existing Unit | AJ31: Existing Unit
A32: E B Harris Generating Plant | B32: Alabama | C32: 7897 | D32: 2A | E32: 3357 | F32: 4,781,622 | G32: 6,244,556 | H32: 2,380,409 | I32: 4,676,078 | J32: 2,030,950 | K32: 5,234,086 | L32: 5,234,086 | M32: 357,190,858 | N32: 357,190,858 | O32: 0.014653 | P32: 0.014653 | Q32: 6,621 | R32: 6,173 | S32: 6,117 | T32: 97 | U32: 90 | V32: 90 | W32: 23 | X32: 27 | Y32: 27 | Z32: 26 | AA32: 27 | AB32: 12 | AC32: 21 | AD32: 8 | AE32: 27 | AF32: 27 | AG32: 27 | AH32: 27 | AI32: Existing Unit | AJ32: Existing Unit
A33: E B Harris Generating Plant | B33: Alabama | C33: 7897 | D33: 2B | E33: 3358 | F33: 4,669,860 | G33: 6,188,858 | H33: 2,332,956 | I33: 4,459,577 | J33: 3,768,467 | K33: 5,106,098 | L33: 5,106,098 | M33: 357,190,858 | N33: 357,190,858 | O33: 0.014295 | P33: 0.014295 | Q33: 6,621 | R33: 6,173 | S33: 6,117 | T33: 95 | U33: 88 | V33: 87 | W33: 20 | X33: 26 | Y33: 26 | Z33: 25 | AA33: 27 | AB33: 12 | AC33: 19 | AD33: 15 | AE33: 27 | AF33: 27 | AG33: 27 | AH33: 27 | AI33: Existing Unit | AJ33: Existing Unit
A34: E C Gaston | B34: Alabama | C34: 26 | D34: 1 | E34: 30 | F34: 2,235,727 | G34: 4,401,451 | H34: 5,003,839 | I34: 3,311,418 | J34: 2,331,795 | K34: 4,238,903 | L34: 4,238,903 | M34: 357,190,858 | N34: 357,190,858 | O34: 0.011867 | P34: 0.011867 | Q34: 6,621 | R34: 6,173 | S34: 6,117 | T34: 79 | U34: 73 | V34: 73 | W34: 456 | X34: 102 | Y34: 36 | Z34: 143 | AA34: 307 | AB34: 278 | AC34: 166 | AD34: 108 | AE34: 456 | AF34: 138 | AG34: 126 | AH34: 125 | AI34: Existing Unit | AJ34: Existing Unit
A35: E C Gaston | B35: Alabama | C35: 26 | D35: 2 | E35: 31 | F35: 3,504,243 | G35: 6,671,503 | H35: 5,776,349 | I35: 3,552,092 | J35: 2,193,061 | K35: 5,333,315 | L35: 5,333,315 | M35: 357,190,858 | N35: 357,190,858 | O35: 0.014931 | P35: 0.014931 | Q35: 6,621 | R35: 6,173 | S35: 6,117 | T35: 99 | U35: 92 | V35: 91 | W35: 436 | X35: 591 | Y35: 41 | Z35: 234 | AA35: 477 | AB35: 311 | AC35: 177 | AD35: 106 | AE35: 591 | AF35: 173 | AG35: 159 | AH35: 157 | AI35: Existing Unit | AJ35: Existing Unit
A36: E C Gaston | B36: Alabama | C36: 26 | D36: 3 | E36: 32 | F36: 2,815,886 | G36: 5,670,527 | H36: 4,647,176 | I36: 3,666,805 | J36: 2,775,938 | K36: 4,661,502 | L36: 4,661,502 | M36: 357,190,858 | N36: 357,190,858 | O36: 0.013050 | P36: 0.013050 | Q36: 6,621 | R36: 6,173 | S36: 6,117 | T36: 86 | U36: 81 | V36: 80 | W36: 841 | X36: 522 | Y36: 68 | Z36: 181 | AA36: 400 | AB36: 307 | AC36: 199 | AD36: 146 | AE36: 841 | AF36: 152 | AG36: 139 | AH36: 138 | AI36: Existing Unit | AJ36: Existing Unit
A37: E C Gaston | B37: Alabama | C37: 26 | D37: 4 | E37: 33 | F37: 1,724,156 | G37: 5,039,987 | H37: 4,773,808 | I37: 2,833,976 | J37: 1,514,556 | K37: 4,215,924 | L37: 4,215,924 | M37: 357,190,858 | N37: 357,190,858 | O37: 0.011803 | P37: 0.011803 | Q37: 6,621 | R37: 6,173 | S37: 6,117 | T37: 78 | U37: 73 | V37: 72 | W37: 328 | X37: 279 | Y37: 43 | Z37: 113 | AA37: 357 | AB37: 295 | AC37: 156 | AD37: 83 | AE37: 357 | AF37: 137 | AG37: 126 | AH37: 124 | AI37: Existing Unit | AJ37: Existing Unit
A38: E C Gaston | B38: Alabama | C38: 26 | D38: 5 | E38: 34 | F38: 18,546,330 | G38: 15,339,142 | H38: 17,155,292 | I38: 19,260,569 | J38: 17,304,088 | K38: 18,370,329 | L38: 18,370,329 | M38: 357,190,858 | N38: 357,190,858 | O38: 0.051430 | P38: 0.051430 | Q38: 6,621 | R38: 6,173 | S38: 6,117 | T38: 341 | U38: 317 | V38: 315 | W38: 1,687 | X38: 1,500 | Y38: 883 | Z38: 613 | AA38: 715 | AB38: 682 | AC38: 1,031 | AD38: 720 | AE38: 1,687 | AF38: 598 | AG38: 548 | AH38: 542 | AI38: Existing Unit | AJ38: Existing Unit
A39: Greene County | B39: Alabama | C39: 10 | D39: 1 | E39: 19 | F39: 1,675,746 | G39: 3,015,213 | H39: 5,621,977 | I39: 3,009,562 | J39: 2,634,645 | K39: 3,882,251 | L39: 3,882,251 | M39: 357,190,858 | N39: 357,190,858 | O39: 0.010869 | P39: 0.010869 | Q39: 6,621 | R39: 6,173 | S39: 6,117 | T39: 72 | U39: 67 | V39: 66 | W39: 1,190 | X39: 1,321 | Y39: 177 | Z39: 104 | AA39: 210 | AB39: 502 | AC39: 235 | AD39: 150 | AE39: 1,321 | AF39: 126 | AG39: 116 | AH39: 115 | AI39: Existing Unit | AJ39: Existing Unit
A40: Greene County | B40: Alabama | C40: 10 | D40: 2 | E40: 20 | F40: 2,561,235 | G40: 2,797,208 | H40: 5,118,029 | I40: 3,352,256 | J40: 1,745,393 | K40: 3,755,831 | L40: 3,755,831 | M40: 357,190,858 | N40: 357,190,858 | O40: 0.010515 | P40: 0.010515 | Q40: 6,621 | R40: 6,173 | S40: 6,117 | T40: 70 | U40: 65 | V40: 64 | W40: 1,357 | X40: 1,317 | Y40: 130 | Z40: 176 | AA40: 193 | AB40: 463 | AC40: 252 | AD40: 103 | AE40: 1,357 | AF40: 122 | AG40: 112 | AH40: 111 | AI40: Existing Unit | AJ40: Existing Unit
A41: Greene County | B41: Alabama | C41: 10 | D41: CT10 | E41: 21 | F41: 41,382 | G41: 30,052 | H41: 58,654 | I41: 23,836 | J41: 42,285 | K41: 47,440 | L41: 47,440 | M41: 357,190,858 | N41: 357,190,858 | O41: 0.000133 | P41: 0.000133 | Q41: 6,621 | R41: 6,173 | S41: 6,117 | T41: 1 | U41: 1 | V41: 1 | W41: 1 | X41: 0 | Y41: 2 | Z41: 2 | AA41: 1 | AB41: 2 | AC41: 1 | AD41: 2 | AE41: 2 | AF41: 2 | AG41: 1 | AH41: 1 | AI41: Existing Unit | AJ41: Existing Unit
A42: Greene County | B42: Alabama | C42: 10 | D42: CT2 | E42: 22 | F42: 52,128 | G42: 37,892 | H42: 51,018 | I42: 48,152 | J42: 119,398 | K42: 74,181 | L42: 74,181 | M42: 357,190,858 | N42: 357,190,858 | O42: 0.000208 | P42: 0.000208 | Q42: 6,621 | R42: 6,173 | S42: 6,117 | T42: 1 | U42: 1 | V42: 1 | W42: 3 | X42: 1 | Y42: 5 | Z42: 2 | AA42: 1 | AB42: 2 | AC42: 2 | AD42: 4 | AE42: 5 | AF42: 2 | AG42: 2 | AH42: 2 | AI42: Existing Unit | AJ42: Existing Unit
A43: Greene County | B43: Alabama | C43: 10 | D43: CT3 | E43: 23 | F43: 16,866 | G43: 26,713 | H43: 48,915 | I43: 67,651 | J43: 55,380 | K43: 57,315 | L43: 57,315 | M43: 357,190,858 | N43: 357,190,858 | O43: 0.000160 | P43: 0.000160 | Q43: 6,621 | R43: 6,173 | S43: 6,117 | T43: 1 | U43: 1 | V43: 1 | W43: 3 | X43: 3 | Y43: 7 | Z43: 1 | AA43: 1 | AB43: 2 | AC43: 2 | AD43: 2 | AE43: 7 | AF43: 2 | AG43: 2 | AH43: 2 | AI43: Existing Unit | AJ43: Existing Unit
A44: Greene County | B44: Alabama | C44: 10 | D44: CT4 | E44: 24 | F44: 136,958 | G44: 72,420 | H44: 48,651 | I44: 63,084 | J44: 36,616 | K44: 90,821 | L44: 90,821 | M44: 357,190,858 | N44: 357,190,858 | O44: 0.000254 | P44: 0.000254 | Q44: 6,621 | R44: 6,173 | S44: 6,117 | T44: 2 | U44: 2 | V44: 2 | W44: 4 | X44: 2 | Y44: 8 | Z44: 6 | AA44: 3 | AB44: 2 | AC44: 3 | AD44: 1 | AE44: 8 | AF44: 3 | AG44: 3 | AH44: 3 | AI44: Existing Unit | AJ44: Existing Unit
A45: Greene County | B45: Alabama | C45: 10 | D45: CT5 | E45: 25 | F45: 47,565 | G45: 50,515 | H45: 57,453 | I45: 62,019 | J45: 72,496 | K45: 63,989 | L45: 63,989 | M45: 357,190,858 | N45: 357,190,858 | O45: 0.000179 | P45: 0.000179 | Q45: 6,621 | R45: 6,173 | S45: 6,117 | T45: 1 | U45: 1 | V45: 1 | W45: 3 | X45: 1 | Y45: 6 | Z45: 2 | AA45: 2 | AB45: 2 | AC45: 2 | AD45: 2 | AE45: 6 | AF45: 2 | AG45: 2 | AH45: 2 | AI45: Existing Unit | AJ45: Existing Unit
A46: Greene County | B46: Alabama | C46: 10 | D46: CT6 | E46: 26 | F46: 137,544 | G46: 77,255 | H46: 70,173 | I46: 23,800 | J46: 6,700 | K46: 94,991 | L46: 94,991 | M46: 357,190,858 | N46: 357,190,858 | O46: 0.000266 | P46: 0.000266 | Q46: 6,621 | R46: 6,173 | S46: 6,117 | T46: 2 | U46: 2 | V46: 2 | W46: 4 | X46: 2 | Y46: 9 | Z46: 5 | AA46: 3 | AB46: 2 | AC46: 1 | AD46: 0 | AE46: 9 | AF46: 3 | AG46: 3 | AH46: 3 | AI46: Existing Unit | AJ46: Existing Unit
A47: Greene County | B47: Alabama | C47: 10 | D47: CT7 | E47: 27 | F47: 108,648 | G47: 68,864 | H47: 65,757 | I47: 72,878 | J47: 4,791 | K47: 83,464 | L47: 83,464 | M47: 357,190,858 | N47: 357,190,858 | O47: 0.000234 | P47: 0.000234 | Q47: 6,621 | R47: 6,173 | S47: 6,117 | T47: 2 | U47: 1 | V47: 1 | W47: 4 | X47: 1 | Y47: 5 | Z47: 4 | AA47: 3 | AB47: 3 | AC47: 3 | AD47: 0 | AE47: 5 | AF47: 3 | AG47: 2 | AH47: 2 | AI47: Existing Unit | AJ47: Existing Unit
A48: Greene County | B48: Alabama | C48: 10 | D48: CT8 | E48: 28 | F48: 32,605 | G48: 21,036 | H48: 37,677 | I48: 18,059 | J48: 5,065 | K48: 30,439 | L48: 30,439 | M48: 357,190,858 | N48: 357,190,858 | O48: 0.000085 | P48: 0.000085 | Q48: 6,621 | R48: 6,173 | S48: 6,117 | T48: 1 | U48: 1 | V48: 1 | W48: 2 | X48: 0 | Y48: 6 | Z48: 1 | AA48: 1 | AB48: 1 | AC48: 1 | AD48: 0 | AE48: 6 | AF48: 1 | AG48: 1 | AH48: 1 | AI48: Existing Unit | AJ48: Existing Unit
A49: Greene County | B49: Alabama | C49: 10 | D49: CT9 | E49: 29 | F49: 8,223 | G49: 32,039 | H49: 45,136 | I49: 16,589 | J49: 5,437 | K49: 31,255 | L49: 31,255 | M49: 357,190,858 | N49: 357,190,858 | O49: 0.000088 | P49: 0.000088 | Q49: 6,621 | R49: 6,173 | S49: 6,117 | T49: 1 | U49: 1 | V49: 1 | W49: 2 | X49: 0 | Y49: 8 | Z49: 0 | AA49: 1 | AB49: 2 | AC49: 1 | AD49: 0 | AE49: 8 | AF49: 1 | AG49: 1 | AH49: 1 | AI49: Existing Unit | AJ49: Existing Unit
A50: Hillabee Energy Center | B50: Alabama | C50: 55411 | D50: CT1 | E50: 4695 | F50: 7,330,290 | G50: 8,124,094 | H50: 7,647,830 | I50: 8,607,654 | J50: 8,678,935 | K50: 8,470,227 | L50: 8,470,227 | M50: 357,190,858 | N50: 357,190,858 | O50: 0.023713 | P50: 0.023713 | Q50: 6,621 | R50: 6,173 | S50: 6,117 | T50: 157 | U50: 146 | V50: 145 | W50: 35 | X50: 35 | Y50: 36 | Z50: 29 | AA50: 32 | AB50: 30 | AC50: 31 | AD50: 31 | AE50: 36 | AF50: 36 | AG50: 36 | AH50: 36 | AI50: Existing Unit | AJ50: Existing Unit
A51: Hillabee Energy Center | B51: Alabama | C51: 55411 | D51: CT2 | E51: 4696 | F51: 7,482,038 | G51: 8,361,858 | H51: 7,509,128 | I51: 8,536,761 | J51: 8,142,191 | K51: 8,346,937 | L51: 8,346,937 | M51: 357,190,858 | N51: 357,190,858 | O51: 0.023368 | P51: 0.023368 | Q51: 6,621 | R51: 6,173 | S51: 6,117 | T51: 155 | U51: 144 | V51: 143 | W51: 36 | X51: 37 | Y51: 34 | Z51: 30 | AA51: 32 | AB51: 29 | AC51: 32 | AD51: 30 | AE51: 37 | AF51: 37 | AG51: 37 | AH51: 37 | AI51: Existing Unit | AJ51: Existing Unit
A52: Hog Bayou Energy Center | B52: Alabama | C52: 55241 | D52: COG01 | E52: 4286 | F52: 1,570,751 | G52: 3,371,886 | H52: 5,416,698 | I52: 5,544,621 | J52: 5,331,554 | K52: 5,430,957 | L52: 5,430,957 | M52: 357,190,858 | N52: 357,190,858 | O52: 0.015205 | P52: 0.015205 | Q52: 6,621 | R52: 6,173 | S52: 6,117 | T52: 101 | U52: 94 | V52: 93 | W52: 8 | X52: 27 | Y52: 27 | Z52: 10 | AA52: 19 | AB52: 27 | AC52: 27 | AD52: 22 | AE52: 27 | AF52: 27 | AG52: 27 | AH52: 27 | AI52: Existing Unit | AJ52: Existing Unit
A53: James H Miller Jr | B53: Alabama | C53: 6002 | D53: 1 | E53: 2669 | F53: 25,328,072 | G53: 20,176,252 | H53: 21,841,687 | I53: 19,330,797 | J53: 17,926,122 | K53: 22,448,670 | L53: 22,448,670 | M53: 357,190,858 | N53: 357,190,858 | O53: 0.062848 | P53: 0.062848 | Q53: 6,621 | R53: 6,173 | S53: 6,117 | T53: 416 | U53: 388 | V53: 384 | W53: 617 | X53: 817 | Y53: 802 | Z53: 768 | AA53: 660 | AB53: 681 | AC53: 755 | AD53: 628 | AE53: 817 | AF53: 730 | AG53: 670 | AH53: 662 | AI53: Existing Unit | AJ53: Existing Unit
A54: James H Miller Jr | B54: Alabama | C54: 6002 | D54: 2 | E54: 2670 | F54: 30,308,574 | G54: 19,327,438 | H54: 21,873,389 | I54: 19,355,347 | J54: 25,301,758 | K54: 25,827,907 | L54: 25,827,907 | M54: 357,190,858 | N54: 357,190,858 | O54: 0.072308 | P54: 0.072308 | Q54: 6,621 | R54: 6,173 | S54: 6,117 | T54: 479 | U54: 446 | V54: 442 | W54: 767 | X54: 747 | Y54: 863 | Z54: 988 | AA54: 621 | AB54: 697 | AC54: 619 | AD54: 835 | AE54: 988 | AF54: 840 | AG54: 771 | AH54: 762 | AI54: Existing Unit | AJ54: Existing Unit
A55: James H Miller Jr | B55: Alabama | C55: 6002 | D55: 3 | E55: 2671 | F55: 17,779,236 | G55: 23,543,417 | H55: 22,923,709 | I55: 20,185,941 | J55: 25,321,700 | K55: 23,929,609 | L55: 23,929,609 | M55: 357,190,858 | N55: 357,190,858 | O55: 0.066994 | P55: 0.066994 | Q55: 6,621 | R55: 6,173 | S55: 6,117 | T55: 444 | U55: 414 | V55: 410 | W55: 830 | X55: 906 | Y55: 690 | Z55: 655 | AA55: 832 | AB55: 831 | AC55: 711 | AD55: 908 | AE55: 908 | AF55: 778 | AG55: 714 | AH55: 706 | AI55: Existing Unit | AJ55: Existing Unit
A56: James H Miller Jr | B56: Alabama | C56: 6002 | D56: 4 | E56: 2672 | F56: 22,125,809 | G56: 26,290,170 | H56: 21,211,119 | I56: 20,734,669 | J56: 26,945,179 | K56: 25,120,386 | L56: 25,120,386 | M56: 357,190,858 | N56: 357,190,858 | O56: 0.070328 | P56: 0.070328 | Q56: 6,621 | R56: 6,173 | S56: 6,117 | T56: 466 | U56: 434 | V56: 430 | W56: 952 | X56: 906 | Y56: 871 | Z56: 710 | AA56: 894 | AB56: 687 | AC56: 782 | AD56: 797 | AE56: 952 | AF56: 817 | AG56: 750 | AH56: 741 | AI56: Existing Unit | AJ56: Existing Unit
A57: McIntosh (7063) | B57: Alabama | C57: 7063 | D57: **1 | E57: 2924 | F57: 31,226 | G57: 21,479 | H57: 7,578 | I57: 15,591 | J57: 56,741 | K57: 36,482 | L57: 36,482 | M57: 357,190,858 | N57: 357,190,858 | O57: 0.000102 | P57: 0.000102 | Q57: 6,621 | R57: 6,173 | S57: 6,117 | T57: 1 | U57: 1 | V57: 1 | W57: 3 | X57: 6 | Y57: 6 | Z57: 3 | AA57: 2 | AB57: 1 | AC57: 2 | AD57: 6 | AE57: 6 | AF57: 1 | AG57: 1 | AH57: 1 | AI57: Existing Unit | AJ57: Existing Unit
A58: McIntosh (7063) | B58: Alabama | C58: 7063 | D58: **2 | E58: 2925 | F58: 127,323 | G58: 222,186 | H58: 192,858 | I58: 174,523 | J58: 265,466 | K58: 226,837 | L58: 226,837 | M58: 357,190,858 | N58: 357,190,858 | O58: 0.000635 | P58: 0.000635 | Q58: 6,621 | R58: 6,173 | S58: 6,117 | T58: 4 | U58: 4 | V58: 4 | W58: 1 | X58: 8 | Y58: 5 | Z58: 3 | AA58: 6 | AB58: 6 | AC58: 5 | AD58: 8 | AE58: 8 | AF58: 7 | AG58: 7 | AH58: 7 | AI58: Existing Unit | AJ58: Existing Unit
A59: McIntosh (7063) | B59: Alabama | C59: 7063 | D59: **3 | E59: 2926 | F59: 142,168 | G59: 268,374 | H59: 496,794 | I59: 357,104 | J59: 285,331 | K59: 379,743 | L59: 379,743 | M59: 357,190,858 | N59: 357,190,858 | O59: 0.001063 | P59: 0.001063 | Q59: 6,621 | R59: 6,173 | S59: 6,117 | T59: 7 | U59: 7 | V59: 7 | W59: 3 | X59: 4 | Y59: 8 | Z59: 4 | AA59: 7 | AB59: 13 | AC59: 9 | AD59: 9 | AE59: 13 | AF59: 12 | AG59: 11 | AH59: 11 | AI59: Existing Unit | AJ59: Existing Unit
A60: McIntosh (7063) | B60: Alabama | C60: 7063 | D60: **4 | E60: 90423 | F60: 371,541 | G60: 1,098,523 | H60: 2,313,597 | I60: 922,427 | J60: 1,467,500 | K60: 1,626,540 | L60: 1,626,540 | M60: 357,190,858 | N60: 357,190,858 | O60: 0.004554 | P60: 0.004554 | Q60: 6,621 | R60: 6,173 | S60: 6,117 | T60: 30 | U60: 28 | V60: 28 | W60: 2 | X60: 7 | Y60: 12 | Z60: 6 | AA60: 20 | AB60: 40 | AC60: 16 | AD60: 25 | AE60: 40 | AF60: 40 | AG60: 40 | AH60: 40 | AI60: Existing Unit | AJ60: Existing Unit
A61: McIntosh (7063) | B61: Alabama | C61: 7063 | D61: **5 | E61: 90424 | F61: 239,158 | G61: 1,055,771 | H61: 1,679,204 | I61: 1,016,531 | J61: 1,514,613 | K61: 1,416,529 | L61: 1,416,529 | M61: 357,190,858 | N61: 357,190,858 | O61: 0.003966 | P61: 0.003966 | Q61: 6,621 | R61: 6,173 | S61: 6,117 | T61: 26 | U61: 24 | V61: 24 | W61: 3 | X61: 7 | Y61: 16 | Z61: 4 | AA61: 17 | AB61: 29 | AC61: 17 | AD61: 26 | AE61: 29 | AF61: 29 | AG61: 29 | AH61: 29 | AI61: Existing Unit | AJ61: Existing Unit
A62: McWilliams | B62: Alabama | C62: 533 | D62: **4 | E62: 320 | F62: 1,414,602 | G62: 1,584,557 | H62: 1,195,638 | I62: 1,922,493 | J62: 1,590,754 | K62: 1,699,268 | L62: 1,699,268 | M62: 357,190,858 | N62: 357,190,858 | O62: 0.004757 | P62: 0.004757 | Q62: 6,621 | R62: 6,173 | S62: 6,117 | T62: 31 | U62: 29 | V62: 29 | W62: 28 | X62: 41 | Y62: 50 | Z62: 41 | AA62: 45 | AB62: 27 | AC62: 38 | AD62: 31 | AE62: 50 | AF62: 50 | AG62: 50 | AH62: 50 | AI62: Existing Unit | AJ62: Existing Unit
A63: McWilliams | B63: Alabama | C63: 533 | D63: **V1 | E63: 324 | F63: 5,611,437 | G63: 5,573,160 | H63: 5,909,380 | I63: 6,219,213 | J63: 5,529,428 | K63: 5,913,343 | L63: 5,913,343 | M63: 357,190,858 | N63: 357,190,858 | O63: 0.016555 | P63: 0.016555 | Q63: 6,621 | R63: 6,173 | S63: 6,117 | T63: 110 | U63: 102 | V63: 101 | W63: 14 | X63: 28 | Y63: 28 | Z63: 30 | AA63: 31 | AB63: 33 | AC63: 34 | AD63: 31 | AE63: 34 | AF63: 34 | AG63: 34 | AH63: 34 | AI63: Existing Unit | AJ63: Existing Unit
A64: McWilliams | B64: Alabama | C64: 533 | D64: **V2 | E64: 325 | F64: 5,623,085 | G64: 5,503,561 | H64: 6,392,736 | I64: 6,319,913 | J64: 6,081,831 | K64: 6,264,827 | L64: 6,264,827 | M64: 357,190,858 | N64: 357,190,858 | O64: 0.017539 | P64: 0.017539 | Q64: 6,621 | R64: 6,173 | S64: 6,117 | T64: 116 | U64: 108 | V64: 107 | W64: 16 | X64: 34 | Y64: 33 | Z64: 30 | AA64: 30 | AB64: 36 | AC64: 35 | AD64: 34 | AE64: 36 | AF64: 36 | AG64: 36 | AH64: 36 | AI64: Existing Unit | AJ64: Existing Unit
A65: Morgan Energy Center | B65: Alabama | C65: 55293 | D65: CT-1 | E65: 4462 | F65: 4,092,458 | G65: 5,295,470 | H65: 3,938,858 | I65: 3,120,962 | J65: 4,273,228 | K65: 4,553,719 | L65: 4,553,719 | M65: 357,190,858 | N65: 357,190,858 | O65: 0.012749 | P65: 0.012749 | Q65: 6,621 | R65: 6,173 | S65: 6,117 | T65: 84 | U65: 79 | V65: 78 | W65: 19 | X65: 19 | Y65: 19 | Z65: 16 | AA65: 19 | AB65: 17 | AC65: 10 | AD65: 11 | AE65: 19 | AF65: 19 | AG65: 19 | AH65: 19 | AI65: Existing Unit | AJ65: Existing Unit
A66: Morgan Energy Center | B66: Alabama | C66: 55293 | D66: CT-2 | E66: 4463 | F66: 5,273,807 | G66: 3,882,804 | H66: 4,261,718 | I66: 3,359,057 | J66: 4,278,585 | K66: 4,604,703 | L66: 4,604,703 | M66: 357,190,858 | N66: 357,190,858 | O66: 0.012891 | P66: 0.012891 | Q66: 6,621 | R66: 6,173 | S66: 6,117 | T66: 85 | U66: 80 | V66: 79 | W66: 21 | X66: 20 | Y66: 20 | Z66: 20 | AA66: 16 | AB66: 16 | AC66: 13 | AD66: 15 | AE66: 21 | AF66: 21 | AG66: 21 | AH66: 21 | AI66: Existing Unit | AJ66: Existing Unit
A67: Morgan Energy Center | B67: Alabama | C67: 55293 | D67: CT-3 | E67: 4464 | F67: 3,436,508 | G67: 5,707,636 | H67: 3,194,857 | I67: 3,449,963 | J67: 3,980,535 | K67: 4,379,378 | L67: 4,379,378 | M67: 357,190,858 | N67: 357,190,858 | O67: 0.012261 | P67: 0.012261 | Q67: 6,621 | R67: 6,173 | S67: 6,117 | T67: 81 | U67: 76 | V67: 75 | W67: 24 | X67: 19 | Y67: 15 | Z67: 13 | AA67: 19 | AB67: 13 | AC67: 12 | AD67: 14 | AE67: 24 | AF67: 24 | AG67: 24 | AH67: 24 | AI67: Existing Unit | AJ67: Existing Unit
A68: Plant H. Allen Franklin | B68: Alabama | C68: 7710 | D68: 1A | E68: 3285 | F68: 5,820,063 | G68: 5,976,134 | H68: 6,521,608 | I68: 6,267,288 | J68: 5,683,094 | K68: 6,255,010 | L68: 6,255,010 | M68: 357,190,858 | N68: 357,190,858 | O68: 0.017512 | P68: 0.017512 | Q68: 6,621 | R68: 6,173 | S68: 6,117 | T68: 116 | U68: 108 | V68: 107 | W68: 30 | X68: 25 | Y68: 26 | Z68: 26 | AA68: 27 | AB68: 27 | AC68: 26 | AD68: 27 | AE68: 30 | AF68: 30 | AG68: 30 | AH68: 30 | AI68: Existing Unit | AJ68: Existing Unit
A69: Plant H. Allen Franklin | B69: Alabama | C69: 7710 | D69: 1B | E69: 3286 | F69: 5,975,272 | G69: 5,918,323 | H69: 6,668,149 | I69: 6,255,351 | J69: 5,811,106 | K69: 6,299,591 | L69: 6,299,591 | M69: 357,190,858 | N69: 357,190,858 | O69: 0.017636 | P69: 0.017636 | Q69: 6,621 | R69: 6,173 | S69: 6,117 | T69: 117 | U69: 109 | V69: 108 | W69: 27 | X69: 24 | Y69: 25 | Z69: 25 | AA69: 25 | AB69: 27 | AC69: 26 | AD69: 27 | AE69: 27 | AF69: 27 | AG69: 27 | AH69: 27 | AI69: Existing Unit | AJ69: Existing Unit
A70: Plant H. Allen Franklin | B70: Alabama | C70: 7710 | D70: 2A | E70: 3287 | F70: 5,445,185 | G70: 6,837,262 | H70: 7,044,244 | I70: 6,967,337 | J70: 4,712,040 | K70: 6,949,614 | L70: 6,949,614 | M70: 357,190,858 | N70: 357,190,858 | O70: 0.019456 | P70: 0.019456 | Q70: 6,621 | R70: 6,173 | S70: 6,117 | T70: 129 | U70: 120 | V70: 119 | W70: 24 | X70: 26 | Y70: 27 | Z70: 24 | AA70: 29 | AB70: 30 | AC70: 29 | AD70: 22 | AE70: 30 | AF70: 30 | AG70: 30 | AH70: 30 | AI70: Existing Unit | AJ70: Existing Unit
A71: Plant H. Allen Franklin | B71: Alabama | C71: 7710 | D71: 2B | E71: 3288 | F71: 5,623,538 | G71: 6,821,636 | H71: 7,009,113 | I71: 6,926,272 | J71: 4,641,663 | K71: 6,919,007 | L71: 6,919,007 | M71: 357,190,858 | N71: 357,190,858 | O71: 0.019371 | P71: 0.019371 | Q71: 6,621 | R71: 6,173 | S71: 6,117 | T71: 128 | U71: 120 | V71: 118 | W71: 24 | X71: 24 | Y71: 29 | Z71: 24 | AA71: 28 | AB71: 29 | AC71: 29 | AD71: 21 | AE71: 29 | AF71: 29 | AG71: 29 | AH71: 29 | AI71: Existing Unit | AJ71: Existing Unit
A72: Plant H. Allen Franklin | B72: Alabama | C72: 7710 | D72: 3A | E72: 3289 | F72: 6,681,770 | G72: 6,812,554 | H72: 6,321,941 | I72: 7,078,992 | J72: 6,251,194 | K72: 6,857,772 | L72: 6,857,772 | M72: 357,190,858 | N72: 357,190,858 | O72: 0.019199 | P72: 0.019199 | Q72: 6,621 | R72: 6,173 | S72: 6,117 | T72: 127 | U72: 119 | V72: 117 | W72: 29 | X72: 25 | Y72: 25 | Z72: 31 | AA72: 30 | AB72: 27 | AC72: 29 | AD72: 26 | AE72: 31 | AF72: 31 | AG72: 31 | AH72: 31 | AI72: Existing Unit | AJ72: Existing Unit
A73: Plant H. Allen Franklin | B73: Alabama | C73: 7710 | D73: 3B | E73: 3290 | F73: 6,583,863 | G73: 6,731,290 | H73: 6,195,674 | I73: 6,899,343 | J73: 5,849,573 | K73: 6,738,166 | L73: 6,738,166 | M73: 357,190,858 | N73: 357,190,858 | O73: 0.018864 | P73: 0.018864 | Q73: 6,621 | R73: 6,173 | S73: 6,117 | T73: 125 | U73: 116 | V73: 115 | W73: 32 | X73: 26 | Y73: 26 | Z73: 31 | AA73: 32 | AB73: 27 | AC73: 29 | AD73: 28 | AE73: 32 | AF73: 32 | AG73: 32 | AH73: 32 | AI73: Existing Unit | AJ73: Existing Unit
A74: SABIC Innovative Plastics - Burkville | B74: Alabama | C74: 7698 | D74: CC1 | E74: 3140 | F74: 1,986,924 | G74: 2,791,065 | H74: 1,200,789 | I74: 2,524,401 | J74: 2,368,504 | K74: 2,561,323 | L74: 2,561,323 | M74: 357,190,858 | N74: 357,190,858 | O74: 0.007171 | P74: 0.007171 | Q74: 6,621 | R74: 6,173 | S74: 6,117 | T74: 47 | U74: 44 | V74: 44 | W74: 33 | X74: 33 | Y74: 30 | Z74: 23 | AA74: 35 | AB74: 18 | AC74: 37 | AD74: 32 | AE74: 37 | AF74: 37 | AG74: 37 | AH74: 37 | AI74: Existing Unit | AJ74: Existing Unit
A75: Tenaska Lindsay Hill Generating Station | B75: Alabama | C75: 55271 | D75: CT1 | E75: 4383 | F75: 1,389,544 | G75: 2,756,290 | H75: 2,824,792 | I75: 2,041,114 | J75: 381,101 | K75: 2,540,732 | L75: 2,540,732 | M75: 357,190,858 | N75: 357,190,858 | O75: 0.007113 | P75: 0.007113 | Q75: 6,621 | R75: 6,173 | S75: 6,117 | T75: 47 | U75: 44 | V75: 44 | W75: 18 | X75: 19 | Y75: 20 | Z75: 6 | AA75: 10 | AB75: 10 | AC75: 7 | AD75: 2 | AE75: 20 | AF75: 20 | AG75: 20 | AH75: 20 | AI75: Existing Unit | AJ75: Existing Unit
A76: Tenaska Lindsay Hill Generating Station | B76: Alabama | C76: 55271 | D76: CT2 | E76: 4384 | F76: 3,508,417 | G76: 2,695,413 | H76: 2,892,135 | I76: 2,419,743 | J76: 411,876 | K76: 3,031,988 | L76: 3,031,988 | M76: 357,190,858 | N76: 357,190,858 | O76: 0.008488 | P76: 0.008488 | Q76: 6,621 | R76: 6,173 | S76: 6,117 | T76: 56 | U76: 52 | V76: 52 | W76: 25 | X76: 20 | Y76: 20 | Z76: 14 | AA76: 10 | AB76: 11 | AC76: 9 | AD76: 2 | AE76: 25 | AF76: 25 | AG76: 25 | AH76: 25 | AI76: Existing Unit | AJ76: Existing Unit
A77: Tenaska Lindsay Hill Generating Station | B77: Alabama | C77: 55271 | D77: CT3 | E77: 4385 | F77: 1,384,028 | G77: 2,790,740 | H77: 1,607,592 | I77: 2,951,405 | J77: 6,665,235 | K77: 4,135,794 | L77: 4,135,794 | M77: 357,190,858 | N77: 357,190,858 | O77: 0.011579 | P77: 0.011579 | Q77: 6,621 | R77: 6,173 | S77: 6,117 | T77: 77 | U77: 71 | V77: 71 | W77: 20 | X77: 21 | Y77: 21 | Z77: 6 | AA77: 11 | AB77: 6 | AC77: 11 | AD77: 24 | AE77: 24 | AF77: 24 | AG77: 24 | AH77: 24 | AI77: Existing Unit | AJ77: Existing Unit
A78: Theodore Cogeneration | B78: Alabama | C78: 7721 | D78: CC1 | E78: 3151 | F78: 5,061,774 | G78: 5,649,861 | H78: 5,793,406 | I78: 5,344,014 | J78: 5,096,523 | K78: 5,595,760 | L78: 5,595,760 | M78: 357,190,858 | N78: 357,190,858 | O78: 0.015666 | P78: 0.015666 | Q78: 6,621 | R78: 6,173 | S78: 6,117 | T78: 104 | U78: 97 | V78: 96 | W78: 17 | X78: 19 | Y78: 19 | Z78: 19 | AA78: 21 | AB78: 23 | AC78: 20 | AD78: 18 | AE78: 23 | AF78: 23 | AG78: 23 | AH78: 23 | AI78: Existing Unit | AJ78: Existing Unit
A79: Washington County Cogen (Olin) | B79: Alabama | C79: 7697 | D79: CC1 | E79: 3139 | F79: 3,744,171 | G79: 3,438,128 | H79: 3,681,583 | I79: 3,813,175 | J79: 3,428,147 | K79: 3,746,310 | L79: 3,746,310 | M79: 357,190,858 | N79: 357,190,858 | O79: 0.010488 | P79: 0.010488 | Q79: 6,621 | R79: 6,173 | S79: 6,117 | T79: 69 | U79: 65 | V79: 64 | W79: 90 | X79: 82 | Y79: 71 | Z79: 73 | AA79: 62 | AB79: 73 | AC79: 70 | AD79: 42 | AE79: 90 | AF79: 90 | AG79: 90 | AH79: 90 | AI79: Existing Unit | AJ79: Existing Unit

Sheet Underlying Data for IN SIP
F1: Step 1 | N1: Steps 2 & 3 | P1: Step 4 | R1: Step 5 | T1: Step 6 | Z1: Step 7 | AH1: Step 8 | AI1: Steps 9 & 10 | AL1: Data Flags
A2: Plant Name | B2: State | C2: ORIS ID | D2: Boiler ID | E2: CAMD Unit ID | F2: 2014 Ozone Season Heat Input (mmBtu) | G2: 2015 Ozone Season Heat Input (mmBtu) | H2: 2016 Ozone Season Heat Input (mmBtu) | I2: 2017 Ozone Season Heat Input (mmBtu) | J2: 2018 Ozone Season Heat Input (mmBtu) | K2: 2019 Ozone Season Heat Input (mmBtu) | L2: 2020 Ozone Season Heat Input (mmBtu) | M2: 2021 Ozone Season Heat Input (mmBtu) | N2: Unit Level Average of 3 Highest Non-Zero Ozone Season Heat Inputs from 2014 to 2021 (mmBtu) for 2023 | O2: Unit Level Average of 3 Highest Non-Zero Ozone Season Heat Inputs from 2014 to 2021 (mmBtu) for 2024 | P2: State Level Summation of Unit Level Three Year Average Ozone Season Heat Input (mmBtu) for 2023 | Q2: State Level Summation of Unit Level Three Year Average Ozone Season Heat Input (mmBtu) for 2024 | R2: Unit 's Percentage Share of State's Ozone Season Heat Input for 2023 | S2: Unit 's Percentage Share of State's Ozone Season Heat Input for 2024 | T2: Ozone Season NOX Pro-Rated 2023 State Budget for Existing Units (tons) | U2: Ozone Season NOX 2023 State Budget for Existing Units (tons) | V2: Ozone Season NOX 2024 State Budget for Existing Units (tons) | W2: Tentative Heat Input Based Pro-Rated 2023 Ozone Season NOX Allocation (tons) | X2: Tentative Heat Input Based 2023 Ozone Season NOX Allocation (tons) | Y2: Tentative Heat Input Based 2024 Ozone Season NOX Allocation (tons) | Z2: 2014 Ozone Season NOX Emissions (tons) | AA2: 2015 Ozone Season NOX Emissions (tons) | AB2: 2016 Ozone Season NOX Emissions (tons) | AC2: 2017 Ozone Season NOX Emissions (tons) | AD2: 2018 Ozone Season NOX Emissions (tons) | AE2: 2019 Ozone Season NOX Emissions (tons) | AF2: 2020 Ozone Season NOX Emissions (tons) | AG2: 2021 Ozone Season NOX Emissions (tons) | AH2: Ozone Season NOX Maximum Historic Baseline (tons) | AI2: Unit Level NOX Ozone Season Allocation Pro-Rated 2023 (tons) | AJ2: Unit Level NOX Ozone Season Allocation 2023 (tons) | AK2: Unit Level NOX Ozone Season Allocation 2024 (tons) | AL2: Existing Unit or Retired in 2023 | AM2: Existing Unit or Retired in 2024 | AN2: Additional (Not ARP or CSAPR) Unit? | AO2: Unit Not Subject to State's SIP Authority?
A3: Calculation | N3: Average of three highest non-zero values in columns F - M for Operating units | P3: Sum column N values to get State level totals | Q3: Sum column O values to get State level totals | R3: Column N divided by column P | S3: Column O divided by column Q | W3: Column R x column T | X3: Column R x column U | Y3: Column S x column V | AH3: Highest value of columns Z - AG | AI3: (Lesser of columns AH and W + reapportionment if W < AH | AJ3: (Lesser of columns AH and X + reapportionment if X < AH | AK3: (Lesser of columns AH and Y + reapportionment if Y < AH
A4: A B Brown Generating Station | B4: Indiana | C4: 6137 | D4: 1 | E4: 2797 | F4: 7,053,263 | G4: 6,895,730 | H4: 1,807,146 | I4: 6,384,877 | J4: 7,111,880 | K4: 6,903,261 | L4: 5,945,200 | M4: 7,730,889 | N4: 7,298,677 | O4: 7,298,677 | P4: 432,241,920 | Q4: 399,794,570 | R4: 0.016886 | S4: 0.018256 | T4: 11,020 | U4: 10,928 | V4: 9,203 | W4: 186 | X4: 185 | Y4: 168 | Z4: 617 | AA4: 539 | AB4: 151 | AC4: 269 | AD4: 424 | AE4: 537 | AF4: 525 | AG4: 319 | AH4: 617 | AI4: 221 | AJ4: 219 | AK4: 202 | AL4: Existing Unit | AM4: Existing Unit
A5: A B Brown Generating Station | B5: Indiana | C5: 6137 | D5: 2 | E5: 2798 | F5: 7,370,110 | G5: 6,954,523 | H5: 7,293,656 | I5: 5,424,699 | J5: 6,103,665 | K5: 7,423,413 | L5: 6,498,848 | M5: 8,138,493 | N5: 7,644,005 | O5: 7,644,005 | P5: 432,241,920 | Q5: 399,794,570 | R5: 0.017685 | S5: 0.019120 | T5: 11,020 | U5: 10,928 | V5: 9,203 | W5: 195 | X5: 193 | Y5: 176 | Z5: 607 | AA5: 465 | AB5: 452 | AC5: 313 | AD5: 406 | AE5: 639 | AF5: 523 | AG5: 317 | AH5: 639 | AI5: 232 | AJ5: 229 | AK5: 211 | AL5: Existing Unit | AM5: Existing Unit
A6: A B Brown Generating Station | B6: Indiana | C6: 6137 | D6: 3 | E6: 2799 | F6: 8,486 | G6: 35,008 | H6: 110,572 | I6: 80,993 | J6: 103,835 | K6: 53,804 | L6: 82,885 | M6: 157,921 | N6: 124,109 | O6: 124,109 | P6: 432,241,920 | Q6: 399,794,570 | R6: 0.000287 | S6: 0.000310 | T6: 11,020 | U6: 10,928 | V6: 9,203 | W6: 3 | X6: 3 | Y6: 3 | Z6: 1 | AA6: 4 | AB6: 12 | AC6: 8 | AD6: 9 | AE6: 4 | AF6: 7 | AG6: 12 | AH6: 12 | AI6: 4 | AJ6: 4 | AK6: 3 | AL6: Existing Unit | AM6: Existing Unit
A7: A B Brown Generating Station | B7: Indiana | C7: 6137 | D7: 4 | E7: 10210 | F7: 44,278 | G7: 172,002 | H7: 142,834 | I7: 133,713 | J7: 228,709 | K7: 66,036 | L7: 84,828 | M7: 180,183 | N7: 193,631 | O7: 193,631 | P7: 432,241,920 | Q7: 399,794,570 | R7: 0.000448 | S7: 0.000484 | T7: 11,020 | U7: 10,928 | V7: 9,203 | W7: 5 | X7: 5 | Y7: 4 | Z7: 0 | AA7: 2 | AB7: 2 | AC7: 2 | AD7: 3 | AE7: 1 | AF7: 1 | AG7: 2 | AH7: 3 | AI7: 3 | AJ7: 3 | AK7: 3 | AL7: Existing Unit | AM7: Existing Unit
A8: Alcoa Allowance Management Inc | B8: Indiana | C8: 6705 | D8: 4 | E8: 2905 | F8: 9,257,163 | G8: 9,132,100 | H8: 9,835,484 | I8: 8,161,099 | J8: 9,244,813 | K8: 6,807,159 | L8: 9,867,546 | M8: 7,942,112 | N8: 9,653,398 | O8: 9,653,398 | P8: 432,241,920 | Q8: 399,794,570 | R8: 0.022333 | S8: 0.024146 | T8: 11,020 | U8: 10,928 | V8: 9,203 | W8: 246 | X8: 244 | Y8: 222 | Z8: 1,320 | AA8: 1,307 | AB8: 1,452 | AC8: 328 | AD8: 1,162 | AE8: 1,119 | AF8: 1,514 | AG8: 645 | AH8: 1,514 | AI8: 292 | AJ8: 290 | AK8: 267 | AL8: Existing Unit | AM8: Existing Unit
A9: Anderson | B9: Indiana | C9: 7336 | D9: ACT1 | E9: 3099 | F9: 3,479 | G9: 34,421 | H9: 17,279 | I9: 16,034 | J9: 17,658 | K9: 4,708 | L9: 18,437 | M9: 34,119 | N9: 28,992 | O9: 28,992 | P9: 432,241,920 | Q9: 399,794,570 | R9: 0.000067 | S9: 0.000073 | T9: 11,020 | U9: 10,928 | V9: 9,203 | W9: 1 | X9: 1 | Y9: 1 | Z9: 0 | AA9: 2 | AB9: 1 | AC9: 1 | AD9: 1 | AE9: 0 | AF9: 1 | AG9: 2 | AH9: 2 | AI9: 1 | AJ9: 1 | AK9: 1 | AL9: Existing Unit | AM9: Existing Unit
A10: Anderson | B10: Indiana | C10: 7336 | D10: ACT2 | E10: 3100 | F10: 3,295 | G10: 33,263 | H10: 17,198 | I10: 13,854 | J10: 17,161 | K10: 4,568 | L10: 25,527 | M10: 35,537 | N10: 31,442 | O10: 31,442 | P10: 432,241,920 | Q10: 399,794,570 | R10: 0.000073 | S10: 0.000079 | T10: 11,020 | U10: 10,928 | V10: 9,203 | W10: 1 | X10: 1 | Y10: 1 | Z10: 0 | AA10: 2 | AB10: 1 | AC10: 1 | AD10: 1 | AE10: 0 | AF10: 2 | AG10: 3 | AH10: 3 | AI10: 1 | AJ10: 1 | AK10: 1 | AL10: Existing Unit | AM10: Existing Unit
A11: Anderson | B11: Indiana | C11: 7336 | D11: ACT3 | E11: 9578 | F11: 8,143 | G11: 65,519 | H11: 45,366 | I11: 29,291 | J11: 82,775 | K11: 15,032 | L11: 68,090 | M11: 131,157 | N11: 94,007 | O11: 94,007 | P11: 432,241,920 | Q11: 399,794,570 | R11: 0.000217 | S11: 0.000235 | T11: 11,020 | U11: 10,928 | V11: 9,203 | W11: 2 | X11: 2 | Y11: 2 | Z11: 0 | AA11: 1 | AB11: 1 | AC11: 0 | AD11: 2 | AE11: 0 | AF11: 1 | AG11: 2 | AH11: 2 | AI11: 2 | AJ11: 2 | AK11: 2 | AL11: Existing Unit | AM11: Existing Unit
A12: Cayuga | B12: Indiana | C12: 1001 | D12: 1 | E12: 706 | F12: 13,270,828 | G12: 14,180,006 | H12: 10,363,170 | I12: 14,794,651 | J12: 10,055,334 | K12: 10,369,735 | L12: 12,925,230 | M12: 12,612,484 | N12: 14,081,828 | O12: 14,081,828 | P12: 432,241,920 | Q12: 399,794,570 | R12: 0.032579 | S12: 0.035223 | T12: 11,020 | U12: 10,928 | V12: 9,203 | W12: 359 | X12: 356 | Y12: 324 | Z12: 2,282 | AA12: 2,655 | AB12: 1,690 | AC12: 625 | AD12: 740 | AE12: 427 | AF12: 646 | AG12: 420 | AH12: 2,655 | AI12: 427 | AJ12: 423 | AK12: 389 | AL12: Existing Unit | AM12: Existing Unit
A13: Cayuga | B13: Indiana | C13: 1001 | D13: 2 | E13: 707 | F13: 10,751,160 | G13: 10,536,757 | H13: 15,407,920 | I13: 11,057,752 | J13: 13,730,374 | K13: 6,136,972 | L13: 8,429,381 | M13: 12,414,303 | N13: 13,850,866 | O13: 13,850,866 | P13: 432,241,920 | Q13: 399,794,570 | R13: 0.032044 | S13: 0.034645 | T13: 11,020 | U13: 10,928 | V13: 9,203 | W13: 353 | X13: 350 | Y13: 319 | Z13: 1,752 | AA13: 1,706 | AB13: 2,320 | AC13: 498 | AD13: 596 | AE13: 306 | AF13: 458 | AG13: 435 | AH13: 2,320 | AI13: 420 | AJ13: 416 | AK13: 383 | AL13: Existing Unit | AM13: Existing Unit
A14: Cayuga | B14: Indiana | C14: 1001 | D14: 4 | E14: 708 | F14: 25,992 | G14: 72,988 | H14: 5,998 | I14: 3,470 | J14: 1,982 | K14: 110,189 | L14: 152,088 | M14: 65,136 | N14: 111,755 | O14: 111,755 | P14: 432,241,920 | Q14: 399,794,570 | R14: 0.000259 | S14: 0.000280 | T14: 11,020 | U14: 10,928 | V14: 9,203 | W14: 3 | X14: 3 | Y14: 3 | Z14: 1 | AA14: 2 | AB14: 0 | AC14: 0 | AD14: 0 | AE14: 3 | AF14: 4 | AG14: 1 | AH14: 4 | AI14: 3 | AJ14: 3 | AK14: 3 | AL14: Existing Unit | AM14: Existing Unit
A15: Clifty Creek | B15: Indiana | C15: 983 | D15: 1 | E15: 658 | F15: 4,728,691 | G15: 4,634,125 | H15: 5,000,634 | I15: 4,837,170 | J15: 6,056,450 | K15: 4,315,401 | L15: 4,288,965 | M15: 4,847,951 | N15: 5,301,678 | O15: 5,301,678 | P15: 432,241,920 | Q15: 399,794,570 | R15: 0.012266 | S15: 0.013261 | T15: 11,020 | U15: 10,928 | V15: 9,203 | W15: 135 | X15: 134 | Y15: 122 | Z15: 505 | AA15: 475 | AB15: 653 | AC15: 179 | AD15: 209 | AE15: 144 | AF15: 192 | AG15: 157 | AH15: 653 | AI15: 161 | AJ15: 159 | AK15: 146 | AL15: Existing Unit | AM15: Existing Unit
A16: Clifty Creek | B16: Indiana | C16: 983 | D16: 2 | E16: 659 | F16: 4,353,278 | G16: 4,837,826 | H16: 5,009,274 | I16: 4,715,705 | J16: 5,007,376 | K16: 4,626,719 | L16: 3,687,739 | M16: 4,746,954 | N16: 4,951,492 | O16: 4,951,492 | P16: 432,241,920 | Q16: 399,794,570 | R16: 0.011455 | S16: 0.012385 | T16: 11,020 | U16: 10,928 | V16: 9,203 | W16: 126 | X16: 125 | Y16: 114 | Z16: 488 | AA16: 498 | AB16: 669 | AC16: 173 | AD16: 165 | AE16: 157 | AF16: 163 | AG16: 156 | AH16: 669 | AI16: 150 | AJ16: 149 | AK16: 137 | AL16: Existing Unit | AM16: Existing Unit
A17: Clifty Creek | B17: Indiana | C17: 983 | D17: 3 | E17: 660 | F17: 3,820,085 | G17: 4,047,900 | H17: 5,398,978 | I17: 4,116,727 | J17: 6,017,953 | K17: 4,958,905 | L17: 3,405,561 | M17: 4,571,962 | N17: 5,458,612 | O17: 5,458,612 | P17: 432,241,920 | Q17: 399,794,570 | R17: 0.012629 | S17: 0.013654 | T17: 11,020 | U17: 10,928 | V17: 9,203 | W17: 139 | X17: 138 | Y17: 126 | Z17: 411 | AA17: 419 | AB17: 678 | AC17: 149 | AD17: 202 | AE17: 167 | AF17: 155 | AG17: 149 | AH17: 678 | AI17: 165 | AJ17: 164 | AK17: 151 | AL17: Existing Unit | AM17: Existing Unit
A18: Clifty Creek | B18: Indiana | C18: 983 | D18: 4 | E18: 661 | F18: 5,330,320 | G18: 3,726,851 | H18: 4,947,507 | I18: 4,684,860 | J18: 5,076,260 | K18: 4,791,311 | L18: 3,687,365 | M18: 4,716,716 | N18: 5,118,029 | O18: 5,118,029 | P18: 432,241,920 | Q18: 399,794,570 | R18: 0.011841 | S18: 0.012802 | T18: 11,020 | U18: 10,928 | V18: 9,203 | W18: 130 | X18: 129 | Y18: 118 | Z18: 953 | AA18: 551 | AB18: 1,005 | AC18: 240 | AD18: 298 | AE18: 286 | AF18: 270 | AG18: 238 | AH18: 1,005 | AI18: 155 | AJ18: 154 | AK18: 141 | AL18: Existing Unit | AM18: Existing Unit
A19: Clifty Creek | B19: Indiana | C19: 983 | D19: 5 | E19: 662 | F19: 4,870,229 | G19: 4,704,461 | H19: 3,907,767 | I19: 4,762,480 | J19: 5,368,564 | K19: 4,338,348 | L19: 3,368,262 | M19: 4,587,263 | N19: 5,000,424 | O19: 5,000,424 | P19: 432,241,920 | Q19: 399,794,570 | R19: 0.011569 | S19: 0.012507 | T19: 11,020 | U19: 10,928 | V19: 9,203 | W19: 127 | X19: 126 | Y19: 115 | Z19: 887 | AA19: 677 | AB19: 770 | AC19: 227 | AD19: 321 | AE19: 261 | AF19: 254 | AG19: 228 | AH19: 887 | AI19: 151 | AJ19: 150 | AK19: 138 | AL19: Existing Unit | AM19: Existing Unit
A20: Clifty Creek | B20: Indiana | C20: 983 | D20: 6 | E20: 663 | F20: 4,290,394 | G20: 2,676,284 | H20: 4,591,688 | I20: 552,215 | J20: 1,347,040 | K20: 1,710,813 | L20: 1,154,354 | M20: 809,248 | N20: 3,852,789 | O20: 3,852,789 | P20: 432,241,920 | Q20: 399,794,570 | R20: 0.008914 | S20: 0.009637 | T20: 11,020 | U20: 10,928 | V20: 9,203 | W20: 98 | X20: 97 | Y20: 89 | Z20: 860 | AA20: 435 | AB20: 989 | AC20: 72 | AD20: 183 | AE20: 180 | AF20: 132 | AG20: 81 | AH20: 989 | AI20: 117 | AJ20: 116 | AK20: 106 | AL20: Existing Unit | AM20: Existing Unit
A21: Edwardsport Generating Station | B21: Indiana | C21: 1004 | D21: CTG1 | E21: 90673 | F21: 5,993,425 | G21: 5,844,956 | H21: 6,358,023 | I21: 6,196,079 | J21: 5,732,050 | K21: 5,653,704 | L21: 2,622,513 | M21: 6,306,616 | N21: 6,286,906 | O21: 6,286,906 | P21: 432,241,920 | Q21: 399,794,570 | R21: 0.014545 | S21: 0.015725 | T21: 11,020 | U21: 10,928 | V21: 9,203 | W21: 160 | X21: 159 | Y21: 145 | Z21: 118 | AA21: 159 | AB21: 171 | AC21: 156 | AD21: 156 | AE21: 148 | AF21: 100 | AG21: 187 | AH21: 187 | AI21: 187 | AJ21: 187 | AK21: 174 | AL21: Existing Unit | AM21: Existing Unit
A22: Edwardsport Generating Station | B22: Indiana | C22: 1004 | D22: CTG2 | E22: 90674 | F22: 5,440,460 | G22: 6,213,428 | H22: 5,877,298 | I22: 5,866,901 | J22: 6,486,783 | K22: 5,231,061 | L22: 2,562,562 | M22: 6,110,848 | N22: 6,270,353 | O22: 6,270,353 | P22: 432,241,920 | Q22: 399,794,570 | R22: 0.014507 | S22: 0.015684 | T22: 11,020 | U22: 10,928 | V22: 9,203 | W22: 160 | X22: 159 | Y22: 144 | Z22: 125 | AA22: 184 | AB22: 146 | AC22: 145 | AD22: 156 | AE22: 133 | AF22: 98 | AG22: 193 | AH22: 193 | AI22: 190 | AJ22: 188 | AK22: 173 | AL22: Existing Unit | AM22: Existing Unit
A23: F B Culley Generating Station | B23: Indiana | C23: 1012 | D23: 2 | E23: 727 | F23: 906,530 | G23: 495,697 | H23: 1,538,899 | I23: 1,253,361 | J23: 1,905,637 | K23: 1,210,523 | L23: 672,518 | M23: 1,727,272 | N23: 1,723,936 | O23: 1,723,936 | P23: 432,241,920 | Q23: 399,794,570 | R23: 0.003988 | S23: 0.004312 | T23: 11,020 | U23: 10,928 | V23: 9,203 | W23: 44 | X23: 44 | Y23: 40 | Z23: 82 | AA23: 43 | AB23: 256 | AC23: 98 | AD23: 157 | AE23: 98 | AF23: 50 | AG23: 152 | AH23: 256 | AI23: 52 | AJ23: 52 | AK23: 48 | AL23: Existing Unit | AM23: Existing Unit
A24: F B Culley Generating Station | B24: Indiana | C24: 1012 | D24: 3 | E24: 728 | F24: 8,946,133 | G24: 7,261,571 | H24: 4,185,938 | I24: 9,457,854 | J24: 9,193,235 | K24: 8,431,378 | L24: 6,145,352 | M24: 10,200,204 | N24: 9,617,098 | O24: 9,617,098 | P24: 432,241,920 | Q24: 399,794,570 | R24: 0.022249 | S24: 0.024055 | T24: 11,020 | U24: 10,928 | V24: 9,203 | W24: 245 | X24: 243 | Y24: 221 | Z24: 482 | AA24: 347 | AB24: 262 | AC24: 523 | AD24: 591 | AE24: 462 | AF24: 346 | AG24: 650 | AH24: 650 | AI24: 291 | AJ24: 289 | AK24: 266 | AL24: Existing Unit | AM24: Existing Unit
A25: Georgetown Substation | B25: Indiana | C25: 7759 | D25: GT1 | E25: 3163 | F25: 43,300 | G25: 136,658 | H25: 302,581 | I25: 197,961 | J25: 477,025 | K25: 177,782 | L25: 393,603 | M25: 483,284 | N25: 451,304 | O25: 451,304 | P25: 432,241,920 | Q25: 399,794,570 | R25: 0.001044 | S25: 0.001129 | T25: 11,020 | U25: 10,928 | V25: 9,203 | W25: 12 | X25: 11 | Y25: 10 | Z25: 1 | AA25: 2 | AB25: 3 | AC25: 2 | AD25: 6 | AE25: 2 | AF25: 5 | AG25: 6 | AH25: 6 | AI25: 6 | AJ25: 6 | AK25: 6 | AL25: Existing Unit | AM25: Existing Unit
A26: Georgetown Substation | B26: Indiana | C26: 7759 | D26: GT2 | E26: 3164 | F26: 56,193 | G26: 281,413 | H26: 417,103 | I26: 218,713 | J26: 478,044 | K26: 224,859 | L26: 544,118 | M26: 545,452 | N26: 522,538 | O26: 522,538 | P26: 432,241,920 | Q26: 399,794,570 | R26: 0.001209 | S26: 0.001307 | T26: 11,020 | U26: 10,928 | V26: 9,203 | W26: 13 | X26: 13 | Y26: 12 | Z26: 1 | AA26: 3 | AB26: 5 | AC26: 3 | AD26: 6 | AE26: 3 | AF26: 7 | AG26: 7 | AH26: 7 | AI26: 7 | AJ26: 7 | AK26: 7 | AL26: Existing Unit | AM26: Existing Unit
A27: Georgetown Substation | B27: Indiana | C27: 7759 | D27: GT3 | E27: 3165 | F27: 46,743 | G27: 256,327 | H27: 407,700 | I27: 192,945 | J27: 331,093 | K27: 203,476 | L27: 540,652 | M27: 606,005 | N27: 518,119 | O27: 518,119 | P27: 432,241,920 | Q27: 399,794,570 | R27: 0.001199 | S27: 0.001296 | T27: 11,020 | U27: 10,928 | V27: 9,203 | W27: 13 | X27: 13 | Y27: 12 | Z27: 0 | AA27: 3 | AB27: 4 | AC27: 2 | AD27: 4 | AE27: 3 | AF27: 8 | AG27: 9 | AH27: 9 | AI27: 9 | AJ27: 9 | AK27: 9 | AL27: Existing Unit | AM27: Existing Unit
A28: Georgetown Substation | B28: Indiana | C28: 7759 | D28: GT4 | E28: 3166 | F28: 38,353 | G28: 163,264 | H28: 323,862 | I28: 209,736 | J28: 493,343 | K28: 335,390 | L28: 427,851 | M28: 558,359 | N28: 493,184 | O28: 493,184 | P28: 432,241,920 | Q28: 399,794,570 | R28: 0.001141 | S28: 0.001234 | T28: 11,020 | U28: 10,928 | V28: 9,203 | W28: 13 | X28: 12 | Y28: 11 | Z28: 0 | AA28: 2 | AB28: 4 | AC28: 2 | AD28: 6 | AE28: 4 | AF28: 5 | AG28: 7 | AH28: 7 | AI28: 7 | AJ28: 7 | AK28: 7 | AL28: Existing Unit | AM28: Existing Unit
A29: Gibson | B29: Indiana | C29: 6113 | D29: 1 | E29: 2782 | F29: 16,959,409 | G29: 14,243,504 | H29: 11,733,169 | I29: 14,727,447 | J29: 14,878,492 | K29: 13,069,530 | L29: 6,293,330 | M29: 14,095,270 | N29: 15,521,783 | O29: 15,521,783 | P29: 432,241,920 | Q29: 399,794,570 | R29: 0.035910 | S29: 0.038824 | T29: 11,020 | U29: 10,928 | V29: 9,203 | W29: 396 | X29: 392 | Y29: 357 | Z29: 1,002 | AA29: 761 | AB29: 907 | AC29: 582 | AD29: 828 | AE29: 847 | AF29: 251 | AG29: 456 | AH29: 1,002 | AI29: 470 | AJ29: 466 | AK29: 429 | AL29: Existing Unit | AM29: Existing Unit
A30: Gibson | B30: Indiana | C30: 6113 | D30: 2 | E30: 2783 | F30: 15,535,196 | G30: 13,110,809 | H30: 13,855,518 | I30: 13,177,121 | J30: 10,218,529 | K30: 9,772,453 | L30: 15,478,396 | M30: 9,926,109 | N30: 14,956,370 | O30: 14,956,370 | P30: 432,241,920 | Q30: 399,794,570 | R30: 0.034602 | S30: 0.037410 | T30: 11,020 | U30: 10,928 | V30: 9,203 | W30: 381 | X30: 378 | Y30: 344 | Z30: 1,088 | AA30: 836 | AB30: 1,031 | AC30: 349 | AD30: 463 | AE30: 326 | AF30: 873 | AG30: 355 | AH30: 1,088 | AI30: 453 | AJ30: 449 | AK30: 413 | AL30: Existing Unit | AM30: Existing Unit
A31: Gibson | B31: Indiana | C31: 6113 | D31: 3 | E31: 2784 | F31: 14,307,820 | G31: 10,486,751 | H31: 16,170,258 | I31: 12,927,938 | J31: 17,430,332 | K31: 6,349,580 | L31: 12,370,508 | M31: 9,961,956 | N31: 15,969,470 | O31: 15,969,470 | P31: 432,241,920 | Q31: 399,794,570 | R31: 0.036946 | S31: 0.039944 | T31: 11,020 | U31: 10,928 | V31: 9,203 | W31: 407 | X31: 404 | Y31: 368 | Z31: 1,176 | AA31: 912 | AB31: 1,399 | AC31: 534 | AD31: 955 | AE31: 282 | AF31: 1,079 | AG31: 323 | AH31: 1,399 | AI31: 484 | AJ31: 479 | AK31: 441 | AL31: Existing Unit | AM31: Existing Unit
A32: Gibson | B32: Indiana | C32: 6113 | D32: 4 | E32: 2785 | F32: 12,757,927 | G32: 12,271,118 | H32: 13,024,583 | I32: 17,003,248 | J32: 12,518,739 | K32: 6,729,616 | L32: 15,398,301 | M32: 9,300,729 | N32: 15,142,044 | O32: 15,142,044 | P32: 432,241,920 | Q32: 399,794,570 | R32: 0.035031 | S32: 0.037875 | T32: 11,020 | U32: 10,928 | V32: 9,203 | W32: 386 | X32: 383 | Y32: 349 | Z32: 754 | AA32: 561 | AB32: 748 | AC32: 674 | AD32: 625 | AE32: 320 | AF32: 795 | AG32: 331 | AH32: 795 | AI32: 459 | AJ32: 455 | AK32: 418 | AL32: Existing Unit | AM32: Existing Unit
A33: Gibson | B33: Indiana | C33: 6113 | D33: 5 | E33: 2786 | F33: 13,982,239 | G33: 9,726,977 | H33: 12,494,537 | I33: 15,009,371 | J33: 11,342,536 | K33: 11,301,968 | L33: 11,648,556 | M33: 9,744,424 | N33: 13,828,716 | O33: 13,828,716 | P33: 432,241,920 | Q33: 399,794,570 | R33: 0.031993 | S33: 0.034590 | T33: 11,020 | U33: 10,928 | V33: 9,203 | W33: 353 | X33: 350 | Y33: 318 | Z33: 2,030 | AA33: 1,678 | AB33: 1,056 | AC33: 1,097 | AD33: 699 | AE33: 605 | AF33: 604 | AG33: 284 | AH33: 2,030 | AI33: 419 | AJ33: 415 | AK33: 382 | AL33: Existing Unit | AM33: Existing Unit
A34: Henry County Generating Station | B34: Indiana | C34: 7763 | D34: 1 | E34: 3173 | F34: 91,763 | G34: 272,909 | H34: 418,360 | I34: 467,692 | J34: 588,734 | K34: 448,007 | L34: 457,749 | M34: 287,734 | N34: 504,725 | O34: 504,725 | P34: 432,241,920 | Q34: 399,794,570 | R34: 0.001168 | S34: 0.001262 | T34: 11,020 | U34: 10,928 | V34: 9,203 | W34: 13 | X34: 13 | Y34: 12 | Z34: 4 | AA34: 12 | AB34: 18 | AC34: 20 | AD34: 25 | AE34: 19 | AF34: 19 | AG34: 12 | AH34: 25 | AI34: 15 | AJ34: 15 | AK34: 14 | AL34: Existing Unit | AM34: Existing Unit
A35: Henry County Generating Station | B35: Indiana | C35: 7763 | D35: 2 | E35: 3174 | F35: 90,449 | G35: 282,079 | H35: 294,298 | I35: 474,943 | J35: 598,170 | K35: 518,920 | L35: 466,960 | M35: 309,728 | N35: 530,678 | O35: 530,678 | P35: 432,241,920 | Q35: 399,794,570 | R35: 0.001228 | S35: 0.001327 | T35: 11,020 | U35: 10,928 | V35: 9,203 | W35: 14 | X35: 13 | Y35: 12 | Z35: 4 | AA35: 12 | AB35: 12 | AC35: 21 | AD35: 26 | AE35: 21 | AF35: 20 | AG35: 13 | AH35: 26 | AI35: 16 | AJ35: 16 | AK35: 15 | AL35: Existing Unit | AM35: Existing Unit
A36: Henry County Generating Station | B36: Indiana | C36: 7763 | D36: 3 | E36: 3175 | F36: 91,506 | G36: 277,303 | H36: 468,377 | I36: 398,733 | J36: 597,993 | K36: 528,196 | L36: 459,702 | M36: 289,349 | N36: 531,522 | O36: 531,522 | P36: 432,241,920 | Q36: 399,794,570 | R36: 0.001230 | S36: 0.001329 | T36: 11,020 | U36: 10,928 | V36: 9,203 | W36: 14 | X36: 13 | Y36: 12 | Z36: 4 | AA36: 11 | AB36: 20 | AC36: 18 | AD36: 26 | AE36: 22 | AF36: 20 | AG36: 13 | AH36: 26 | AI36: 16 | AJ36: 16 | AK36: 15 | AL36: Existing Unit | AM36: Existing Unit
A37: Hoosier Energy Lawrence Co Station | B37: Indiana | C37: 7948 | D37: 1 | E37: 8410 | F37: 59,187 | G37: 17,900 | H37: 54,527 | I37: 39,693 | J37: 131,137 | K37: 44,550 | L37: 97,316 | M37: 101,818 | N37: 110,090 | O37: 110,090 | P37: 432,241,920 | Q37: 399,794,570 | R37: 0.000255 | S37: 0.000275 | T37: 11,020 | U37: 10,928 | V37: 9,203 | W37: 3 | X37: 3 | Y37: 3 | Z37: 2 | AA37: 1 | AB37: 3 | AC37: 2 | AD37: 6 | AE37: 2 | AF37: 4 | AG37: 4 | AH37: 6 | AI37: 3 | AJ37: 3 | AK37: 3 | AL37: Existing Unit | AM37: Existing Unit
A38: Hoosier Energy Lawrence Co Station | B38: Indiana | C38: 7948 | D38: 2 | E38: 8412 | F38: 50,571 | G38: 11,653 | H38: 51,525 | I38: 43,490 | J38: 152,297 | K38: 53,738 | L38: 92,058 | M38: 94,983 | N38: 113,113 | O38: 113,113 | P38: 432,241,920 | Q38: 399,794,570 | R38: 0.000262 | S38: 0.000283 | T38: 11,020 | U38: 10,928 | V38: 9,203 | W38: 3 | X38: 3 | Y38: 3 | Z38: 2 | AA38: 0 | AB38: 2 | AC38: 2 | AD38: 6 | AE38: 2 | AF38: 4 | AG38: 4 | AH38: 6 | AI38: 3 | AJ38: 3 | AK38: 3 | AL38: Existing Unit | AM38: Existing Unit
A39: Hoosier Energy Lawrence Co Station | B39: Indiana | C39: 7948 | D39: 3 | E39: 8414 | F39: 44,608 | G39: 11,867 | H39: 52,224 | I39: 44,110 | J39: 138,300 | K39: 51,312 | L39: 89,092 | M39: 62,763 | N39: 96,718 | O39: 96,718 | P39: 432,241,920 | Q39: 399,794,570 | R39: 0.000224 | S39: 0.000242 | T39: 11,020 | U39: 10,928 | V39: 9,203 | W39: 2 | X39: 2 | Y39: 2 | Z39: 2 | AA39: 1 | AB39: 2 | AC39: 2 | AD39: 6 | AE39: 2 | AF39: 4 | AG39: 3 | AH39: 6 | AI39: 3 | AJ39: 3 | AK39: 3 | AL39: Existing Unit | AM39: Existing Unit
A40: Hoosier Energy Lawrence Co Station | B40: Indiana | C40: 7948 | D40: 4 | E40: 8416 | F40: 43,792 | G40: 8,521 | H40: 48,283 | I40: 47,056 | J40: 141,279 | K40: 48,418 | L40: 97,896 | M40: 101,617 | N40: 113,597 | O40: 113,597 | P40: 432,241,920 | Q40: 399,794,570 | R40: 0.000263 | S40: 0.000284 | T40: 11,020 | U40: 10,928 | V40: 9,203 | W40: 3 | X40: 3 | Y40: 3 | Z40: 2 | AA40: 0 | AB40: 2 | AC40: 2 | AD40: 6 | AE40: 2 | AF40: 4 | AG40: 5 | AH40: 6 | AI40: 3 | AJ40: 3 | AK40: 3 | AL40: Existing Unit | AM40: Existing Unit
A41: Hoosier Energy Lawrence Co Station | B41: Indiana | C41: 7948 | D41: 5 | E41: 88290 | F41: 35,742 | G41: 7,114 | H41: 42,151 | I41: 63,918 | J41: 184,210 | K41: 51,881 | L41: 95,917 | M41: 92,941 | N41: 124,356 | O41: 124,356 | P41: 432,241,920 | Q41: 399,794,570 | R41: 0.000288 | S41: 0.000311 | T41: 11,020 | U41: 10,928 | V41: 9,203 | W41: 3 | X41: 3 | Y41: 3 | Z41: 1 | AA41: 0 | AB41: 2 | AC41: 3 | AD41: 9 | AE41: 2 | AF41: 4 | AG41: 4 | AH41: 9 | AI41: 4 | AJ41: 4 | AK41: 3 | AL41: Existing Unit | AM41: Existing Unit
A42: Hoosier Energy Lawrence Co Station | B42: Indiana | C42: 7948 | D42: 6 | E42: 88291 | F42: 32,234 | G42: 6,703 | H42: 67,903 | I42: 69,124 | J42: 202,817 | K42: 51,401 | L42: 88,646 | M42: 100,089 | N42: 130,518 | O42: 130,518 | P42: 432,241,920 | Q42: 399,794,570 | R42: 0.000302 | S42: 0.000326 | T42: 11,020 | U42: 10,928 | V42: 9,203 | W42: 3 | X42: 3 | Y42: 3 | Z42: 1 | AA42: 0 | AB42: 3 | AC42: 4 | AD42: 10 | AE42: 3 | AF42: 4 | AG42: 4 | AH42: 10 | AI42: 4 | AJ42: 4 | AK42: 4 | AL42: Existing Unit | AM42: Existing Unit
A43: IPL - Eagle Valley Generating Station | B43: Indiana | C43: 991 | D43: GT1 | E43: 91143 | J43: 5,033,104 | K43: 6,804,537 | L43: 7,110,576 | M43: 13,746 | N43: 6,316,073 | O43: 6,316,073 | P43: 432,241,920 | Q43: 399,794,570 | R43: 0.014612 | S43: 0.015798 | T43: 11,020 | U43: 10,928 | V43: 9,203 | W43: 161 | X43: 160 | Y43: 145 | AD43: 15 | AE43: 24 | AF43: 22 | AG43: 2 | AH43: 24 | AI43: 24 | AJ43: 24 | AK43: 24 | AL43: Existing Unit | AM43: Existing Unit
A44: IPL - Eagle Valley Generating Station | B44: Indiana | C44: 991 | D44: GT2 | E44: 91144 | J44: 4,159,972 | K44: 7,236,089 | L44: 7,187,842 | M44: 16,338 | N44: 6,194,634 | O44: 6,194,634 | P44: 432,241,920 | Q44: 399,794,570 | R44: 0.014331 | S44: 0.015495 | T44: 11,020 | U44: 10,928 | V44: 9,203 | W44: 158 | X44: 157 | Y44: 143 | AD44: 12 | AE44: 24 | AF44: 24 | AG44: 2 | AH44: 24 | AI44: 24 | AJ44: 24 | AK44: 24 | AL44: Existing Unit | AM44: Existing Unit
A45: IPL - Harding Street Station (EW Stout) | B45: Indiana | C45: 990 | D45: 50 | E45: 675 | F45: 2,693,793 | G45: 1,671,902 | H45: 1,817,615 | I45: 665,238 | J45: 646,049 | K45: 555,266 | L45: 1,500,646 | M45: 1,062,616 | N45: 2,061,103 | O45: 2,061,103 | P45: 432,241,920 | Q45: 399,794,570 | R45: 0.004768 | S45: 0.005155 | T45: 11,020 | U45: 10,928 | V45: 9,203 | W45: 53 | X45: 52 | Y45: 47 | Z45: 352 | AA45: 213 | AB45: 36 | AC45: 11 | AD45: 10 | AE45: 10 | AF45: 27 | AG45: 18 | AH45: 352 | AI45: 62 | AJ45: 62 | AK45: 57 | AL45: Existing Unit | AM45: Existing Unit
A46: IPL - Harding Street Station (EW Stout) | B46: Indiana | C46: 990 | D46: 60 | E46: 677 | F46: 2,767,492 | G46: 1,676,562 | H46: 1,868,679 | I46: 474,952 | J46: 560,967 | K46: 514,603 | L46: 1,381,783 | M46: 1,127,518 | N46: 2,104,244 | O46: 2,104,244 | P46: 432,241,920 | Q46: 399,794,570 | R46: 0.004868 | S46: 0.005263 | T46: 11,020 | U46: 10,928 | V46: 9,203 | W46: 54 | X46: 53 | Y46: 48 | Z46: 340 | AA46: 202 | AB46: 32 | AC46: 8 | AD46: 9 | AE46: 8 | AF46: 32 | AG46: 22 | AH46: 340 | AI46: 64 | AJ46: 63 | AK46: 58 | AL46: Existing Unit | AM46: Existing Unit
A47: IPL - Harding Street Station (EW Stout) | B47: Indiana | C47: 990 | D47: 70 | E47: 679 | F47: 12,135,395 | G47: 11,132,251 | H47: 5,101,900 | I47: 4,530,588 | J47: 4,840,836 | K47: 5,514,026 | L47: 6,010,073 | M47: 4,410,469 | N47: 9,759,240 | O47: 9,759,240 | P47: 432,241,920 | Q47: 399,794,570 | R47: 0.022578 | S47: 0.024411 | T47: 11,020 | U47: 10,928 | V47: 9,203 | W47: 249 | X47: 247 | Y47: 225 | Z47: 813 | AA47: 591 | AB47: 191 | AC47: 199 | AD47: 196 | AE47: 258 | AF47: 199 | AG47: 73 | AH47: 813 | AI47: 296 | AJ47: 293 | AK47: 270 | AL47: Existing Unit | AM47: Existing Unit
A48: IPL - Harding Street Station (EW Stout) | B48: Indiana | C48: 990 | D48: GT4 | E48: 682 | F48: 52,396 | G48: 281,050 | H48: 393,809 | I48: 177,865 | J48: 473,785 | K48: 156,810 | L48: 341,026 | M48: 425,780 | N48: 431,125 | O48: 431,125 | P48: 432,241,920 | Q48: 399,794,570 | R48: 0.000997 | S48: 0.001078 | T48: 11,020 | U48: 10,928 | V48: 9,203 | W48: 11 | X48: 11 | Y48: 10 | Z48: 4 | AA48: 21 | AB48: 31 | AC48: 13 | AD48: 37 | AE48: 12 | AF48: 25 | AG48: 31 | AH48: 37 | AI48: 13 | AJ48: 13 | AK48: 12 | AL48: Existing Unit | AM48: Existing Unit
A49: IPL - Harding Street Station (EW Stout) | B49: Indiana | C49: 990 | D49: GT5 | E49: 683 | F49: 38,495 | G49: 289,529 | H49: 357,672 | I49: 186,212 | J49: 518,290 | K49: 224,549 | L49: 308,650 | M49: 476,789 | N49: 450,917 | O49: 450,917 | P49: 432,241,920 | Q49: 399,794,570 | R49: 0.001043 | S49: 0.001128 | T49: 11,020 | U49: 10,928 | V49: 9,203 | W49: 11 | X49: 11 | Y49: 10 | Z49: 2 | AA49: 18 | AB49: 23 | AC49: 12 | AD49: 33 | AE49: 17 | AF49: 23 | AG49: 36 | AH49: 36 | AI49: 14 | AJ49: 14 | AK49: 12 | AL49: Existing Unit | AM49: Existing Unit
A50: IPL - Harding Street Station (EW Stout) | B50: Indiana | C50: 990 | D50: GT6 | E50: 684 | F50: 164,166 | G50: 1,103,879 | H50: 1,039,926 | I50: 1,178,091 | J50: 914,420 | K50: 760,281 | L50: 1,104,429 | M50: 1,099,834 | N50: 1,128,800 | O50: 1,128,800 | P50: 432,241,920 | Q50: 399,794,570 | R50: 0.002611 | S50: 0.002823 | T50: 11,020 | U50: 10,928 | V50: 9,203 | W50: 29 | X50: 29 | Y50: 26 | Z50: 3 | AA50: 17 | AB50: 15 | AC50: 17 | AD50: 17 | AE50: 14 | AF50: 19 | AG50: 24 | AH50: 24 | AI50: 24 | AJ50: 24 | AK50: 24 | AL50: Existing Unit | AM50: Existing Unit
A51: IPL - Petersburg Generating Station | B51: Indiana | C51: 994 | D51: 1 | E51: 692 | F51: 7,916,868 | G51: 7,893,846 | H51: 7,268,225 | I51: 6,857,198 | J51: 8,487,521 | K51: 4,215,491 | L51: 3,464,853 | M51: 1,807,937 | P51: 432,241,920 | Q51: 399,794,570 | T51: 11,020 | U51: 10,928 | V51: 9,203 | Z51: 830 | AA51: 1,121 | AB51: 760 | AC51: 781 | AD51: 905 | AE51: 473 | AF51: 365 | AG51: 186 | AH51: 1,121 | AL51: Retired | AM51: Retired
A52: IPL - Petersburg Generating Station | B52: Indiana | C52: 994 | D52: 2 | E52: 693 | F52: 12,883,441 | G52: 12,210,481 | H52: 12,633,662 | I52: 11,206,674 | J52: 9,217,978 | K52: 11,924,238 | L52: 9,627,548 | M52: 10,002,590 | N52: 12,575,861 | P52: 432,241,920 | Q52: 399,794,570 | R52: 0.029094 | T52: 11,020 | U52: 10,928 | V52: 9,203 | W52: 321 | X52: 318 | Z52: 1,328 | AA52: 1,256 | AB52: 935 | AC52: 471 | AD52: 414 | AE52: 516 | AF52: 387 | AG52: 443 | AH52: 1,328 | AI52: 381 | AJ52: 378 | AL52: Existing Unit | AM52: Retired
A53: IPL - Petersburg Generating Station | B53: Indiana | C53: 994 | D53: 3 | E53: 694 | F53: 13,316,471 | G53: 7,105,947 | H53: 16,057,203 | I53: 13,691,470 | J53: 10,946,837 | K53: 12,973,801 | L53: 7,453,913 | M53: 14,687,681 | N53: 14,812,118 | O53: 14,812,118 | P53: 432,241,920 | Q53: 399,794,570 | R53: 0.034268 | S53: 0.037049 | T53: 11,020 | U53: 10,928 | V53: 9,203 | W53: 378 | X53: 374 | Y53: 341 | Z53: 998 | AA53: 996 | AB53: 1,527 | AC53: 527 | AD53: 447 | AE53: 587 | AF53: 280 | AG53: 638 | AH53: 1,527 | AI53: 449 | AJ53: 445 | AK53: 409 | AL53: Existing Unit | AM53: Existing Unit
A54: IPL - Petersburg Generating Station | B54: Indiana | C54: 994 | D54: 4 | E54: 695 | F54: 17,585,704 | G54: 14,894,589 | H54: 13,910,929 | I54: 13,970,903 | J54: 15,984,245 | K54: 9,676,056 | L54: 9,756,384 | M54: 13,116,240 | N54: 16,154,846 | O54: 16,154,846 | P54: 432,241,920 | Q54: 399,794,570 | R54: 0.037375 | S54: 0.040408 | T54: 11,020 | U54: 10,928 | V54: 9,203 | W54: 412 | X54: 408 | Y54: 372 | Z54: 2,217 | AA54: 1,946 | AB54: 1,966 | AC54: 1,696 | AD54: 1,821 | AE54: 1,009 | AF54: 890 | AG54: 1,185 | AH54: 2,217 | AI54: 489 | AJ54: 485 | AK54: 446 | AL54: Existing Unit | AM54: Existing Unit
A55: Lawrenceburg Energy Facility | B55: Indiana | C55: 55502 | D55: 1 | E55: 8612 | F55: 2,203,359 | G55: 4,334,675 | H55: 6,345,253 | I55: 4,724,027 | J55: 5,256,734 | K55: 6,100,027 | L55: 6,290,339 | M55: 5,297,146 | N55: 6,245,206 | O55: 6,245,206 | P55: 432,241,920 | Q55: 399,794,570 | R55: 0.014448 | S55: 0.015621 | T55: 11,020 | U55: 10,928 | V55: 9,203 | W55: 159 | X55: 158 | Y55: 144 | Z55: 34 | AA55: 39 | AB55: 36 | AC55: 58 | AD55: 31 | AE55: 32 | AF55: 30 | AG55: 25 | AH55: 58 | AI55: 58 | AJ55: 58 | AK55: 58 | AL55: Existing Unit | AM55: Existing Unit
A56: Lawrenceburg Energy Facility | B56: Indiana | C56: 55502 | D56: 2 | E56: 8614 | F56: 2,142,667 | G56: 4,173,989 | H56: 6,121,572 | I56: 4,805,292 | J56: 5,369,600 | K56: 6,039,496 | L56: 6,178,883 | M56: 5,344,909 | N56: 6,113,317 | O56: 6,113,317 | P56: 432,241,920 | Q56: 399,794,570 | R56: 0.014143 | S56: 0.015291 | T56: 11,020 | U56: 10,928 | V56: 9,203 | W56: 156 | X56: 155 | Y56: 141 | Z56: 38 | AA56: 34 | AB56: 31 | AC56: 31 | AD56: 30 | AE56: 33 | AF56: 28 | AG56: 25 | AH56: 38 | AI56: 38 | AJ56: 38 | AK56: 38 | AL56: Existing Unit | AM56: Existing Unit
A57: Lawrenceburg Energy Facility | B57: Indiana | C57: 55502 | D57: 3 | E57: 8616 | F57: 1,565,171 | G57: 3,963,659 | H57: 5,787,319 | I57: 5,283,176 | J57: 5,403,700 | K57: 6,025,348 | L57: 6,359,702 | M57: 5,571,686 | N57: 6,057,456 | O57: 6,057,456 | P57: 432,241,920 | Q57: 399,794,570 | R57: 0.014014 | S57: 0.015151 | T57: 11,020 | U57: 10,928 | V57: 9,203 | W57: 154 | X57: 153 | Y57: 139 | Z57: 18 | AA57: 26 | AB57: 43 | AC57: 28 | AD57: 27 | AE57: 33 | AF57: 30 | AG57: 25 | AH57: 43 | AI57: 43 | AJ57: 43 | AK57: 43 | AL57: Existing Unit | AM57: Existing Unit
A58: Lawrenceburg Energy Facility | B58: Indiana | C58: 55502 | D58: 4 | E58: 8618 | F58: 1,673,393 | G58: 3,971,066 | H58: 6,057,217 | I58: 5,229,074 | J58: 5,460,037 | K58: 5,858,522 | L58: 6,265,358 | M58: 5,791,878 | N58: 6,060,366 | O58: 6,060,366 | P58: 432,241,920 | Q58: 399,794,570 | R58: 0.014021 | S58: 0.015159 | T58: 11,020 | U58: 10,928 | V58: 9,203 | W58: 155 | X58: 153 | Y58: 140 | Z58: 33 | AA58: 30 | AB58: 40 | AC58: 26 | AD58: 27 | AE58: 31 | AF58: 28 | AG58: 25 | AH58: 40 | AI58: 40 | AJ58: 40 | AK58: 40 | AL58: Existing Unit | AM58: Existing Unit
A59: Merom | B59: Indiana | C59: 6213 | D59: 1SG1 | E59: 2853 | F59: 15,533,359 | G59: 10,323,171 | H59: 16,355,060 | I59: 11,638,322 | J59: 14,580,091 | K59: 11,197,431 | L59: 7,686,728 | M59: 15,344,474 | P59: 432,241,920 | Q59: 399,794,570 | T59: 11,020 | U59: 10,928 | V59: 9,203 | Z59: 475 | AA59: 313 | AB59: 494 | AC59: 352 | AD59: 440 | AE59: 337 | AF59: 234 | AG59: 460 | AH59: 494 | AL59: Retired | AM59: Retired
A60: Merom | B60: Indiana | C60: 6213 | D60: 2SG1 | E60: 2854 | F60: 14,759,482 | G60: 11,460,731 | H60: 12,551,885 | I60: 12,871,175 | J60: 13,017,534 | K60: 8,598,208 | L60: 6,739,565 | M60: 16,945,882 | P60: 432,241,920 | Q60: 399,794,570 | T60: 11,020 | U60: 10,928 | V60: 9,203 | Z60: 451 | AA60: 331 | AB60: 378 | AC60: 387 | AD60: 394 | AE60: 258 | AF60: 202 | AG60: 506 | AH60: 506 | AL60: Retired | AM60: Retired
A61: Michigan City Generating Station | B61: Indiana | C61: 997 | D61: 12 | E61: 702 | F61: 11,157,684 | G61: 8,773,529 | H61: 11,675,210 | I61: 2,330,802 | J61: 8,863,669 | K61: 6,867,941 | L61: 6,452,152 | M61: 6,798,658 | N61: 10,565,521 | O61: 10,565,521 | P61: 432,241,920 | Q61: 399,794,570 | R61: 0.024444 | S61: 0.026427 | T61: 11,020 | U61: 10,928 | V61: 9,203 | W61: 269 | X61: 267 | Y61: 243 | Z61: 528 | AA61: 404 | AB61: 482 | AC61: 115 | AD61: 398 | AE61: 302 | AF61: 292 | AG61: 351 | AH61: 528 | AI61: 320 | AJ61: 317 | AK61: 292 | AL61: Existing Unit | AM61: Existing Unit
A62: Montpelier Electric Gen Station | B62: Indiana | C62: 55229 | D62: G1CT1 | E62: 4220 | F62: 40,880 | G62: 21,623 | H62: 167,746 | I62: 108,145 | J62: 158,138 | K62: 121,467 | L62: 142,753 | M62: 280,205 | N62: 202,030 | O62: 202,030 | P62: 432,241,920 | Q62: 399,794,570 | R62: 0.000467 | S62: 0.000505 | T62: 11,020 | U62: 10,928 | V62: 9,203 | W62: 5 | X62: 5 | Y62: 5 | Z62: 3 | AA62: 5 | AB62: 11 | AC62: 6 | AD62: 7 | AE62: 9 | AF62: 12 | AG62: 20 | AH62: 20 | AI62: 6 | AJ62: 6 | AK62: 6 | AL62: Existing Unit | AM62: Existing Unit
A63: Montpelier Electric Gen Station | B63: Indiana | C63: 55229 | D63: G1CT2 | E63: 4221 | F63: 42,015 | G63: 45,803 | H63: 4,565 | I63: 109,554 | J63: 150,640 | K63: 119,290 | L63: 143,233 | M63: 272,464 | N63: 188,779 | O63: 188,779 | P63: 432,241,920 | Q63: 399,794,570 | R63: 0.000437 | S63: 0.000472 | T63: 11,020 | U63: 10,928 | V63: 9,203 | W63: 5 | X63: 5 | Y63: 4 | Z63: 3 | AA63: 8 | AB63: 0 | AC63: 5 | AD63: 7 | AE63: 9 | AF63: 12 | AG63: 20 | AH63: 20 | AI63: 6 | AJ63: 6 | AK63: 5 | AL63: Existing Unit | AM63: Existing Unit
A64: Montpelier Electric Gen Station | B64: Indiana | C64: 55229 | D64: G2CT1 | E64: 4222 | F64: 48,978 | G64: 48,009 | H64: 4,191 | I64: 81,692 | J64: 174,203 | K64: 147,960 | L64: 145,240 | M64: 289,223 | N64: 203,796 | O64: 203,796 | P64: 432,241,920 | Q64: 399,794,570 | R64: 0.000471 | S64: 0.000510 | T64: 11,020 | U64: 10,928 | V64: 9,203 | W64: 5 | X64: 5 | Y64: 5 | Z64: 5 | AA64: 9 | AB64: 0 | AC64: 6 | AD64: 8 | AE64: 11 | AF64: 12 | AG64: 20 | AH64: 20 | AI64: 6 | AJ64: 6 | AK64: 6 | AL64: Existing Unit | AM64: Existing Unit
A65: Montpelier Electric Gen Station | B65: Indiana | C65: 55229 | D65: G2CT2 | E65: 4223 | F65: 48,046 | G65: 44,569 | H65: 159,097 | I65: 83,575 | J65: 185,691 | K65: 146,734 | L65: 143,698 | M65: 224,939 | N65: 189,909 | O65: 189,909 | P65: 432,241,920 | Q65: 399,794,570 | R65: 0.000439 | S65: 0.000475 | T65: 11,020 | U65: 10,928 | V65: 9,203 | W65: 5 | X65: 5 | Y65: 4 | Z65: 4 | AA65: 7 | AB65: 10 | AC65: 5 | AD65: 8 | AE65: 11 | AF65: 13 | AG65: 17 | AH65: 17 | AI65: 6 | AJ65: 6 | AK65: 5 | AL65: Existing Unit | AM65: Existing Unit
A66: Montpelier Electric Gen Station | B66: Indiana | C66: 55229 | D66: G3CT1 | E66: 4224 | F66: 47,771 | G66: 53,051 | H66: 4,264 | I66: 108,113 | J66: 175,390 | K66: 144,291 | L66: 107,138 | M66: 287,754 | N66: 202,478 | O66: 202,478 | P66: 432,241,920 | Q66: 399,794,570 | R66: 0.000468 | S66: 0.000506 | T66: 11,020 | U66: 10,928 | V66: 9,203 | W66: 5 | X66: 5 | Y66: 5 | Z66: 4 | AA66: 8 | AB66: 0 | AC66: 6 | AD66: 8 | AE66: 10 | AF66: 9 | AG66: 24 | AH66: 24 | AI66: 6 | AJ66: 6 | AK66: 6 | AL66: Existing Unit | AM66: Existing Unit
A67: Montpelier Electric Gen Station | B67: Indiana | C67: 55229 | D67: G3CT2 | E67: 4225 | F67: 47,762 | G67: 46,427 | H67: 180,316 | I67: 99,515 | J67: 161,477 | K67: 142,562 | L67: 25,997 | M67: 288,006 | N67: 209,933 | O67: 209,933 | P67: 432,241,920 | Q67: 399,794,570 | R67: 0.000486 | S67: 0.000525 | T67: 11,020 | U67: 10,928 | V67: 9,203 | W67: 5 | X67: 5 | Y67: 5 | Z67: 3 | AA67: 8 | AB67: 11 | AC67: 6 | AD67: 7 | AE67: 10 | AF67: 3 | AG67: 21 | AH67: 21 | AI67: 6 | AJ67: 6 | AK67: 6 | AL67: Existing Unit | AM67: Existing Unit
A68: Montpelier Electric Gen Station | B68: Indiana | C68: 55229 | D68: G4CT1 | E68: 4226 | F68: 48,291 | G68: 50,368 | H68: 161,367 | I68: 100,116 | J68: 162,680 | K68: 140,682 | L68: 155,187 | M68: 267,626 | N68: 197,224 | O68: 197,224 | P68: 432,241,920 | Q68: 399,794,570 | R68: 0.000456 | S68: 0.000493 | T68: 11,020 | U68: 10,928 | V68: 9,203 | W68: 5 | X68: 5 | Y68: 5 | Z68: 4 | AA68: 10 | AB68: 11 | AC68: 6 | AD68: 7 | AE68: 10 | AF68: 12 | AG68: 30 | AH68: 30 | AI68: 6 | AJ68: 6 | AK68: 5 | AL68: Existing Unit | AM68: Existing Unit
A69: Montpelier Electric Gen Station | B69: Indiana | C69: 55229 | D69: G4CT2 | E69: 4227 | F69: 45,003 | G69: 346 | H69: 174,963 | I69: 111,803 | J69: 173,770 | K69: 138,807 | L69: 152,094 | M69: 306,523 | N69: 218,419 | O69: 218,419 | P69: 432,241,920 | Q69: 399,794,570 | R69: 0.000505 | S69: 0.000546 | T69: 11,020 | U69: 10,928 | V69: 9,203 | W69: 6 | X69: 6 | Y69: 5 | Z69: 4 | AA69: 0 | AB69: 10 | AC69: 6 | AD69: 8 | AE69: 10 | AF69: 13 | AG69: 21 | AH69: 21 | AI69: 7 | AJ69: 7 | AK69: 6 | AL69: Existing Unit | AM69: Existing Unit
A70: Noblesville | B70: Indiana | C70: 1007 | D70: CT3 | E70: 8288 | F70: 547,616 | G70: 506,605 | H70: 1,184,474 | I70: 577,343 | J70: 1,714,968 | K70: 1,462,522 | L70: 1,896,678 | M70: 1,533,613 | N70: 1,715,086 | O70: 1,715,086 | P70: 432,241,920 | Q70: 399,794,570 | R70: 0.003968 | S70: 0.004290 | T70: 11,020 | U70: 10,928 | V70: 9,203 | W70: 44 | X70: 43 | Y70: 39 | Z70: 6 | AA70: 5 | AB70: 11 | AC70: 4 | AD70: 9 | AE70: 8 | AF70: 11 | AG70: 13 | AH70: 13 | AI70: 13 | AJ70: 13 | AK70: 13 | AL70: Existing Unit | AM70: Existing Unit
A71: Noblesville | B71: Indiana | C71: 1007 | D71: CT4 | E71: 8290 | F71: 563,856 | G71: 665,050 | H71: 1,197,140 | I71: 619,139 | J71: 1,708,040 | K71: 1,613,254 | L71: 1,968,949 | M71: 1,590,312 | N71: 1,763,414 | O71: 1,763,414 | P71: 432,241,920 | Q71: 399,794,570 | R71: 0.004080 | S71: 0.004411 | T71: 11,020 | U71: 10,928 | V71: 9,203 | W71: 45 | X71: 45 | Y71: 41 | Z71: 6 | AA71: 6 | AB71: 10 | AC71: 5 | AD71: 11 | AE71: 10 | AF71: 11 | AG71: 13 | AH71: 13 | AI71: 13 | AJ71: 13 | AK71: 13 | AL71: Existing Unit | AM71: Existing Unit
A72: Noblesville | B72: Indiana | C72: 1007 | D72: CT5 | E72: 8292 | F72: 579,685 | G72: 627,742 | H72: 1,181,145 | I72: 648,478 | J72: 2,245,882 | K72: 772,994 | L72: 1,921,304 | M72: 1,368,046 | N72: 1,845,077 | O72: 1,845,077 | P72: 432,241,920 | Q72: 399,794,570 | R72: 0.004269 | S72: 0.004615 | T72: 11,020 | U72: 10,928 | V72: 9,203 | W72: 47 | X72: 47 | Y72: 42 | Z72: 7 | AA72: 7 | AB72: 11 | AC72: 6 | AD72: 11 | AE72: 4 | AF72: 10 | AG72: 11 | AH72: 11 | AI72: 11 | AJ72: 11 | AK72: 11 | AL72: Existing Unit | AM72: Existing Unit
A73: R Gallagher | B73: Indiana | C73: 1008 | D73: 4 | E73: 719 | F73: 1,225,469 | G73: 1,551,165 | H73: 1,342,506 | I73: 710,293 | J73: 379,321 | K73: 145,180 | L73: 285,037 | M73: 29,276 | P73: 432,241,920 | Q73: 399,794,570 | T73: 11,020 | U73: 10,928 | V73: 9,203 | Z73: 191 | AA73: 247 | AB73: 220 | AC73: 115 | AD73: 64 | AE73: 24 | AF73: 49 | AG73: 7 | AH73: 247 | AL73: Retired | AM73: Retired
A74: R M Schahfer Generating Station | B74: Indiana | C74: 6085 | D74: 15 | E74: 2763 | F74: 12,742,500 | G74: 11,337,420 | H74: 9,218,838 | I74: 5,559,580 | J74: 12,001,138 | K74: 8,569,156 | L74: 1,755,147 | M74: 10,091,917 | P74: 432,241,920 | Q74: 399,794,570 | T74: 11,020 | U74: 10,928 | V74: 9,203 | Z74: 825 | AA74: 666 | AB74: 566 | AC74: 340 | AD74: 765 | AE74: 540 | AF74: 117 | AG74: 674 | AH74: 825 | AL74: Retired | AM74: Retired
A75: R M Schahfer Generating Station | B75: Indiana | C75: 6085 | D75: 16A | E75: 9095 | F75: 22,194 | G75: 173,085 | H75: 93,754 | I75: 150,575 | J75: 88,185 | K75: 20,726 | L75: 49,159 | M75: 110,849 | N75: 144,837 | O75: 144,837 | P75: 432,241,920 | Q75: 399,794,570 | R75: 0.000335 | S75: 0.000362 | T75: 11,020 | U75: 10,928 | V75: 9,203 | W75: 4 | X75: 4 | Y75: 3 | Z75: 3 | AA75: 24 | AB75: 13 | AC75: 18 | AD75: 11 | AE75: 2 | AF75: 6 | AG75: 11 | AH75: 24 | AI75: 4 | AJ75: 4 | AK75: 4 | AL75: Existing Unit | AM75: Existing Unit
A76: R M Schahfer Generating Station | B76: Indiana | C76: 6085 | D76: 16B | E76: 9096 | F76: 19,847 | G76: 212,462 | I76: 64,985 | J76: 158,458 | K76: 54,206 | L76: 1,234 | M76: 33,944 | N76: 145,302 | O76: 145,302 | P76: 432,241,920 | Q76: 399,794,570 | R76: 0.000336 | S76: 0.000363 | T76: 11,020 | U76: 10,928 | V76: 9,203 | W76: 4 | X76: 4 | Y76: 3 | Z76: 2 | AA76: 28 | AC76: 6 | AD76: 16 | AE76: 6 | AF76: 0 | AG76: 4 | AH76: 28 | AI76: 4 | AJ76: 4 | AK76: 4 | AL76: Existing Unit | AM76: Existing Unit
A77: R M Schahfer Generating Station | B77: Indiana | C77: 6085 | D77: 17 | E77: 2764 | F77: 9,146,350 | G77: 7,044,537 | H77: 10,183,639 | I77: 7,244,989 | J77: 9,693,877 | K77: 6,321,304 | L77: 5,722,942 | M77: 7,646,473 | N77: 9,674,622 | P77: 432,241,920 | Q77: 399,794,570 | R77: 0.022382 | T77: 11,020 | U77: 10,928 | V77: 9,203 | W77: 247 | X77: 245 | Z77: 826 | AA77: 622 | AB77: 900 | AC77: 646 | AD77: 856 | AE77: 536 | AF77: 485 | AG77: 641 | AH77: 900 | AI77: 293 | AJ77: 290 | AL77: Existing Unit | AM77: Retired
A78: R M Schahfer Generating Station | B78: Indiana | C78: 6085 | D78: 18 | E78: 2765 | F78: 10,368,030 | G78: 9,152,069 | H78: 5,711,370 | I78: 11,070,500 | J78: 8,264,605 | K78: 6,693,770 | L78: 6,286,371 | M78: 8,812,442 | N78: 10,196,866 | P78: 432,241,920 | Q78: 399,794,570 | R78: 0.023591 | T78: 11,020 | U78: 10,928 | V78: 9,203 | W78: 260 | X78: 258 | Z78: 948 | AA78: 829 | AB78: 527 | AC78: 969 | AD78: 726 | AE78: 578 | AF78: 540 | AG78: 762 | AH78: 969 | AI78: 309 | AJ78: 306 | AL78: Existing Unit | AM78: Retired
A79: Richmond (IN) | B79: Indiana | C79: 7335 | D79: RCT1 | E79: 3097 | F79: 1,117 | G79: 28,602 | H79: 17,398 | I79: 35,519 | J79: 17,511 | K79: 4,853 | L79: 24,314 | M79: 46,016 | N79: 36,712 | O79: 36,712 | P79: 432,241,920 | Q79: 399,794,570 | R79: 0.000085 | S79: 0.000092 | T79: 11,020 | U79: 10,928 | V79: 9,203 | W79: 1 | X79: 1 | Y79: 1 | Z79: 0 | AA79: 2 | AB79: 1 | AC79: 2 | AD79: 1 | AE79: 0 | AF79: 2 | AG79: 3 | AH79: 3 | AI79: 1 | AJ79: 1 | AK79: 1 | AL79: Existing Unit | AM79: Existing Unit
A80: Richmond (IN) | B80: Indiana | C80: 7335 | D80: RCT2 | E80: 3098 | F80: 1,224 | G80: 28,907 | H80: 17,838 | I80: 35,899 | J80: 17,224 | K80: 6,006 | L80: 24,213 | M80: 46,899 | N80: 37,235 | O80: 37,235 | P80: 432,241,920 | Q80: 399,794,570 | R80: 0.000086 | S80: 0.000093 | T80: 11,020 | U80: 10,928 | V80: 9,203 | W80: 1 | X80: 1 | Y80: 1 | Z80: 0 | AA80: 2 | AB80: 1 | AC80: 2 | AD80: 1 | AE80: 0 | AF80: 1 | AG80: 3 | AH80: 3 | AI80: 1 | AJ80: 1 | AK80: 1 | AL80: Existing Unit | AM80: Existing Unit
A81: Rockport | B81: Indiana | C81: 6166 | D81: MB1 | E81: 2819 | F81: 28,815,019 | G81: 35,939,424 | H81: 24,235,306 | I81: 17,889,290 | J81: 27,874,043 | K81: 20,724,649 | L81: 6,062,223 | M81: 19,104,937 | N81: 30,876,162 | O81: 30,876,162 | P81: 432,241,920 | Q81: 399,794,570 | R81: 0.071433 | S81: 0.077230 | T81: 11,020 | U81: 10,928 | V81: 9,203 | W81: 787 | X81: 781 | Y81: 711 | Z81: 3,317 | AA81: 3,976 | AB81: 2,578 | AC81: 1,673 | AD81: 1,698 | AE81: 1,232 | AF81: 272 | AG81: 673 | AH81: 3,976 | AI81: 935 | AJ81: 927 | AK81: 853 | AL81: Existing Unit | AM81: Existing Unit
A82: Rockport | B82: Indiana | C82: 6166 | D82: MB2 | E82: 2820 | F82: 39,108,295 | G82: 33,351,884 | H82: 32,753,365 | I82: 31,381,260 | J82: 23,709,814 | K82: 15,600,635 | L82: 19,880,011 | M82: 14,703,849 | N82: 35,071,181 | O82: 35,071,181 | P82: 432,241,920 | Q82: 399,794,570 | R82: 0.081138 | S82: 0.087723 | T82: 11,020 | U82: 10,928 | V82: 9,203 | W82: 894 | X82: 887 | Y82: 807 | Z82: 4,536 | AA82: 3,677 | AB82: 3,444 | AC82: 3,421 | AD82: 1,954 | AE82: 1,323 | AF82: 825 | AG82: 526 | AH82: 4,536 | AI82: 1,062 | AJ82: 1,053 | AK82: 969 | AL82: Existing Unit | AM82: Existing Unit
A83: St. Joseph Energy Center LLC | B83: Indiana | C83: 57794 | D83: CTG01A | E83: 90857 | J83: 7,780,498 | K83: 8,305,326 | L83: 6,239,393 | M83: 6,743,265 | N83: 7,609,696 | O83: 7,609,696 | P83: 432,241,920 | Q83: 399,794,570 | R83: 0.017605 | S83: 0.019034 | T83: 11,020 | U83: 10,928 | V83: 9,203 | W83: 194 | X83: 192 | Y83: 175 | AD83: 24 | AE83: 25 | AF83: 20 | AG83: 23 | AH83: 25 | AI83: 25 | AJ83: 25 | AK83: 25 | AL83: Existing Unit | AM83: Existing Unit
A84: St. Joseph Energy Center LLC | B84: Indiana | C84: 57794 | D84: CTG01B | E84: 90856 | J84: 7,596,726 | K84: 8,365,798 | L84: 6,664,090 | M84: 6,829,362 | N84: 7,597,295 | O84: 7,597,295 | P84: 432,241,920 | Q84: 399,794,570 | R84: 0.017576 | S84: 0.019003 | T84: 11,020 | U84: 10,928 | V84: 9,203 | W84: 194 | X84: 192 | Y84: 175 | AD84: 24 | AE84: 26 | AF84: 25 | AG84: 24 | AH84: 26 | AI84: 26 | AJ84: 26 | AK84: 26 | AL84: Existing Unit | AM84: Existing Unit
A85: Sugar Creek Generating Station | B85: Indiana | C85: 55364 | D85: CT11 | E85: 4555 | F85: 2,265,424 | G85: 5,753,582 | H85: 5,625,464 | I85: 5,355,770 | J85: 5,129,546 | K85: 5,351,061 | L85: 5,705,153 | M85: 3,624,167 | N85: 5,694,733 | O85: 5,694,733 | P85: 432,241,920 | Q85: 399,794,570 | R85: 0.013175 | S85: 0.014244 | T85: 11,020 | U85: 10,928 | V85: 9,203 | W85: 145 | X85: 144 | Y85: 131 | Z85: 14 | AA85: 21 | AB85: 21 | AC85: 26 | AD85: 22 | AE85: 22 | AF85: 25 | AG85: 23 | AH85: 26 | AI85: 26 | AJ85: 26 | AK85: 26 | AL85: Existing Unit | AM85: Existing Unit
A86: Sugar Creek Generating Station | B86: Indiana | C86: 55364 | D86: CT12 | E86: 4556 | F86: 2,358,481 | G86: 5,713,854 | H86: 5,606,259 | I86: 5,292,826 | J86: 5,291,845 | K86: 5,251,524 | L86: 5,485,074 | M86: 3,583,276 | N86: 5,601,729 | O86: 5,601,729 | P86: 432,241,920 | Q86: 399,794,570 | R86: 0.012960 | S86: 0.014012 | T86: 11,020 | U86: 10,928 | V86: 9,203 | W86: 143 | X86: 142 | Y86: 129 | Z86: 15 | AA86: 21 | AB86: 22 | AC86: 25 | AD86: 22 | AE86: 22 | AF86: 24 | AG86: 22 | AH86: 25 | AI86: 25 | AJ86: 25 | AK86: 25 | AL86: Existing Unit | AM86: Existing Unit
A87: Vermillion Generating Station | B87: Indiana | C87: 55111 | D87: 1 | E87: 3920 | F87: 9,292 | G87: 110,396 | H87: 155,419 | I87: 93,337 | J87: 274,586 | K87: 103,941 | L87: 257,267 | M87: 217,665 | N87: 249,839 | O87: 249,839 | P87: 432,241,920 | Q87: 399,794,570 | R87: 0.000578 | S87: 0.000625 | T87: 11,020 | U87: 10,928 | V87: 9,203 | W87: 6 | X87: 6 | Y87: 6 | Z87: 0 | AA87: 2 | AB87: 3 | AC87: 2 | AD87: 5 | AE87: 2 | AF87: 4 | AG87: 3 | AH87: 5 | AI87: 5 | AJ87: 5 | AK87: 5 | AL87: Existing Unit | AM87: Existing Unit
A88: Vermillion Generating Station | B88: Indiana | C88: 55111 | D88: 2 | E88: 3921 | F88: 16,211 | G88: 102,783 | H88: 174,750 | I88: 27,260 | J88: 268,335 | K88: 100,446 | L88: 261,694 | M88: 226,314 | N88: 252,115 | O88: 252,115 | P88: 432,241,920 | Q88: 399,794,570 | R88: 0.000583 | S88: 0.000631 | T88: 11,020 | U88: 10,928 | V88: 9,203 | W88: 6 | X88: 6 | Y88: 6 | Z88: 0 | AA88: 2 | AB88: 3 | AC88: 1 | AD88: 4 | AE88: 2 | AF88: 4 | AG88: 4 | AH88: 4 | AI88: 4 | AJ88: 4 | AK88: 4 | AL88: Existing Unit | AM88: Existing Unit
A89: Vermillion Generating Station | B89: Indiana | C89: 55111 | D89: 3 | E89: 3922 | F89: 25,132 | G89: 84,973 | H89: 140,632 | I89: 41,839 | J89: 247,402 | K89: 108,152 | L89: 266,850 | M89: 223,921 | N89: 246,057 | O89: 246,057 | P89: 432,241,920 | Q89: 399,794,570 | R89: 0.000569 | S89: 0.000615 | T89: 11,020 | U89: 10,928 | V89: 9,203 | W89: 6 | X89: 6 | Y89: 6 | Z89: 0 | AA89: 1 | AB89: 2 | AC89: 1 | AD89: 4 | AE89: 2 | AF89: 4 | AG89: 3 | AH89: 4 | AI89: 4 | AJ89: 4 | AK89: 4 | AL89: Existing Unit | AM89: Existing Unit
A90: Vermillion Generating Station | B90: Indiana | C90: 55111 | D90: 4 | E90: 3923 | F90: 19,022 | G90: 103,333 | H90: 166,340 | I90: 76,021 | J90: 265,593 | K90: 73,103 | L90: 261,383 | M90: 239,339 | N90: 255,438 | O90: 255,438 | P90: 432,241,920 | Q90: 399,794,570 | R90: 0.000591 | S90: 0.000639 | T90: 11,020 | U90: 10,928 | V90: 9,203 | W90: 7 | X90: 6 | Y90: 6 | Z90: 0 | AA90: 2 | AB90: 3 | AC90: 1 | AD90: 4 | AE90: 1 | AF90: 4 | AG90: 4 | AH90: 4 | AI90: 4 | AJ90: 4 | AK90: 4 | AL90: Existing Unit | AM90: Existing Unit
A91: Vermillion Generating Station | B91: Indiana | C91: 55111 | D91: 5 | E91: 3924 | F91: 14,422 | G91: 65,024 | H91: 204,117 | I91: 62,291 | J91: 253,666 | K91: 61,360 | L91: 213,717 | M91: 222,326 | N91: 229,903 | O91: 229,903 | P91: 432,241,920 | Q91: 399,794,570 | R91: 0.000532 | S91: 0.000575 | T91: 11,020 | U91: 10,928 | V91: 9,203 | W91: 6 | X91: 6 | Y91: 5 | Z91: 0 | AA91: 1 | AB91: 4 | AC91: 1 | AD91: 4 | AE91: 1 | AF91: 3 | AG91: 3 | AH91: 4 | AI91: 4 | AJ91: 4 | AK91: 4 | AL91: Existing Unit | AM91: Existing Unit
A92: Vermillion Generating Station | B92: Indiana | C92: 55111 | D92: 6 | E92: 3925 | F92: 19,023 | G92: 84,725 | H92: 161,085 | I92: 55,991 | J92: 298,317 | K92: 128,413 | L92: 106,575 | M92: 207,672 | N92: 222,358 | O92: 222,358 | P92: 432,241,920 | Q92: 399,794,570 | R92: 0.000514 | S92: 0.000556 | T92: 11,020 | U92: 10,928 | V92: 9,203 | W92: 6 | X92: 6 | Y92: 5 | Z92: 0 | AA92: 2 | AB92: 3 | AC92: 1 | AD92: 5 | AE92: 2 | AF92: 2 | AG92: 4 | AH92: 5 | AI92: 5 | AJ92: 5 | AK92: 5 | AL92: Existing Unit | AM92: Existing Unit
A93: Vermillion Generating Station | B93: Indiana | C93: 55111 | D93: 7 | E93: 3926 | F93: 20,108 | G93: 111,223 | H93: 145,638 | I93: 71,587 | J93: 283,280 | K93: 109,056 | L93: 250,638 | M93: 201,119 | N93: 245,012 | O93: 245,012 | P93: 432,241,920 | Q93: 399,794,570 | R93: 0.000567 | S93: 0.000613 | T93: 11,020 | U93: 10,928 | V93: 9,203 | W93: 6 | X93: 6 | Y93: 6 | Z93: 0 | AA93: 2 | AB93: 2 | AC93: 1 | AD93: 4 | AE93: 2 | AF93: 4 | AG93: 3 | AH93: 4 | AI93: 4 | AJ93: 4 | AK93: 4 | AL93: Existing Unit | AM93: Existing Unit
A94: Vermillion Generating Station | B94: Indiana | C94: 55111 | D94: 8 | E94: 3927 | F94: 14,395 | G94: 57,046 | H94: 118,656 | I94: 34,994 | J94: 195,219 | K94: 72,483 | L94: 243,076 | M94: 189,167 | N94: 209,154 | O94: 209,154 | P94: 432,241,920 | Q94: 399,794,570 | R94: 0.000484 | S94: 0.000523 | T94: 11,020 | U94: 10,928 | V94: 9,203 | W94: 5 | X94: 5 | Y94: 5 | Z94: 0 | AA94: 1 | AB94: 2 | AC94: 1 | AD94: 3 | AE94: 1 | AF94: 4 | AG94: 3 | AH94: 4 | AI94: 4 | AJ94: 4 | AK94: 4 | AL94: Existing Unit | AM94: Existing Unit
A95: Wabash River Highland Plant | B95: Indiana | C95: 57842 | D95: 1 | E95: 720 | F95: 5,043,448 | G95: 4,875,927 | H95: 243,843 | I95: 307,930 | J95: 619,192 | K95: 613,179 | L95: 675,851 | M95: 421,592 | N95: 3,531,742 | O95: 3,531,742 | P95: 432,241,920 | Q95: 399,794,570 | R95: 0.008171 | S95: 0.008834 | T95: 11,020 | U95: 10,928 | V95: 9,203 | W95: 90 | X95: 89 | Y95: 81 | Z95: 183 | AA95: 198 | AB95: 12 | AC95: 7 | AD95: 13 | AE95: 13 | AF95: 13 | AG95: 10 | AH95: 198 | AI95: 107 | AJ95: 106 | AK95: 98 | AL95: Existing Unit | AM95: Existing Unit
A96: Wheatland Generating Facility LLC | B96: Indiana | C96: 55224 | D96: EU-01 | E96: 4183 | F96: 55,437 | G96: 185,183 | H96: 417,560 | I96: 182,542 | J96: 602,450 | K96: 307,375 | L96: 311,435 | M96: 392,553 | N96: 470,854 | O96: 470,854 | P96: 432,241,920 | Q96: 399,794,570 | R96: 0.001089 | S96: 0.001178 | T96: 11,020 | U96: 10,928 | V96: 9,203 | W96: 12 | X96: 12 | Y96: 11 | Z96: 4 | AA96: 13 | AB96: 27 | AC96: 12 | AD96: 38 | AE96: 29 | AF96: 26 | AG96: 33 | AH96: 38 | AI96: 14 | AJ96: 14 | AK96: 13 | AL96: Existing Unit | AM96: Existing Unit
A97: Wheatland Generating Facility LLC | B97: Indiana | C97: 55224 | D97: EU-02 | E97: 4184 | F97: 61,668 | G97: 164,903 | H97: 383,200 | I97: 221,904 | J97: 613,733 | K97: 330,705 | L97: 331,498 | M97: 364,141 | N97: 453,691 | O97: 453,691 | P97: 432,241,920 | Q97: 399,794,570 | R97: 0.001050 | S97: 0.001135 | T97: 11,020 | U97: 10,928 | V97: 9,203 | W97: 12 | X97: 11 | Y97: 10 | Z97: 4 | AA97: 10 | AB97: 21 | AC97: 13 | AD97: 33 | AE97: 23 | AF97: 25 | AG97: 28 | AH97: 33 | AI97: 14 | AJ97: 14 | AK97: 13 | AL97: Existing Unit | AM97: Existing Unit
A98: Wheatland Generating Facility LLC | B98: Indiana | C98: 55224 | D98: EU-03 | E98: 4185 | F98: 47,229 | H98: 6,804 | I98: 146,680 | J98: 531,029 | K98: 197,481 | L98: 314,783 | M98: 320,091 | N98: 388,634 | O98: 388,634 | P98: 432,241,920 | Q98: 399,794,570 | R98: 0.000899 | S98: 0.000972 | T98: 11,020 | U98: 10,928 | V98: 9,203 | W98: 10 | X98: 10 | Y98: 9 | Z98: 3 | AB98: 0 | AC98: 9 | AD98: 29 | AE98: 17 | AF98: 26 | AG98: 29 | AH98: 29 | AI98: 12 | AJ98: 12 | AK98: 11 | AL98: Existing Unit | AM98: Existing Unit
A99: Wheatland Generating Facility LLC | B99: Indiana | C99: 55224 | D99: EU-04 | E99: 4186 | F99: 43,660 | G99: 175,054 | H99: 339,512 | I99: 182,851 | J99: 237,538 | K99: 253,164 | L99: 320,940 | M99: 413,949 | N99: 358,134 | O99: 358,134 | P99: 432,241,920 | Q99: 399,794,570 | R99: 0.000829 | S99: 0.000896 | T99: 11,020 | U99: 10,928 | V99: 9,203 | W99: 9 | X99: 9 | Y99: 8 | Z99: 3 | AA99: 10 | AB99: 18 | AC99: 11 | AD99: 12 | AE99: 16 | AF99: 20 | AG99: 26 | AH99: 26 | AI99: 11 | AJ99: 11 | AK99: 10 | AL99: Existing Unit | AM99: Existing Unit
A100: Whitewater Valley | B100: Indiana | C100: 1040 | D100: 1 | E100: 729 | F100: 91,779 | G100: 106,679 | H100: 210,987 | I100: 94,089 | J100: 95,233 | K100: 108,649 | L100: 127,131 | M100: 107,362 | N100: 148,922 | O100: 148,922 | P100: 432,241,920 | Q100: 399,794,570 | R100: 0.000345 | S100: 0.000372 | T100: 11,020 | U100: 10,928 | V100: 9,203 | W100: 4 | X100: 4 | Y100: 3 | Z100: 15 | AA100: 15 | AB100: 26 | AC100: 16 | AD100: 16 | AE100: 19 | AF100: 20 | AG100: 17 | AH100: 26 | AI100: 5 | AJ100: 4 | AK100: 4 | AL100: Existing Unit | AM100: Existing Unit
A101: Whitewater Valley | B101: Indiana | C101: 1040 | D101: 2 | E101: 730 | F101: 202,050 | G101: 270,608 | H101: 357,274 | I101: 220,586 | J101: 251,810 | K101: 265,440 | L101: 334,054 | M101: 220,761 | N101: 320,645 | O101: 320,645 | P101: 432,241,920 | Q101: 399,794,570 | R101: 0.000742 | S101: 0.000802 | T101: 11,020 | U101: 10,928 | V101: 9,203 | W101: 8 | X101: 8 | Y101: 7 | Z101: 35 | AA101: 40 | AB101: 49 | AC101: 40 | AD101: 46 | AE101: 51 | AF101: 65 | AG101: 37 | AH101: 65 | AI101: 10 | AJ101: 10 | AK101: 9 | AL101: Existing Unit | AM101: Existing Unit
A102: Whiting Clean Energy, Inc. | B102: Indiana | C102: 55259 | D102: CT1 | E102: 4357 | F102: 3,734,843 | G102: 4,550,719 | H102: 4,611,635 | I102: 3,415,231 | J102: 3,909,025 | K102: 4,014,720 | L102: 5,176,208 | M102: 5,531,026 | N102: 5,106,290 | O102: 5,106,290 | P102: 432,241,920 | Q102: 399,794,570 | R102: 0.011813 | S102: 0.012772 | T102: 11,020 | U102: 10,928 | V102: 9,203 | W102: 130 | X102: 129 | Y102: 118 | Z102: 17 | AA102: 19 | AB102: 20 | AC102: 14 | AD102: 17 | AE102: 16 | AF102: 21 | AG102: 22 | AH102: 22 | AI102: 22 | AJ102: 22 | AK102: 22 | AL102: Existing Unit | AM102: Existing Unit
A103: Whiting Clean Energy, Inc. | B103: Indiana | C103: 55259 | D103: CT2 | E103: 4358 | F103: 5,301,724 | G103: 1,847,391 | H103: 5,486,447 | I103: 3,546,183 | J103: 5,252,714 | K103: 5,698,561 | L103: 5,935,138 | M103: 5,167,454 | N103: 5,706,715 | O103: 5,706,715 | P103: 432,241,920 | Q103: 399,794,570 | R103: 0.013203 | S103: 0.014274 | T103: 11,020 | U103: 10,928 | V103: 9,203 | W103: 145 | X103: 144 | Y103: 131 | Z103: 24 | AA103: 8 | AB103: 22 | AC103: 16 | AD103: 22 | AE103: 24 | AF103: 24 | AG103: 21 | AH103: 24 | AI103: 24 | AJ103: 24 | AK103: 24 | AL103: Existing Unit | AM103: Existing Unit
A104: Worthington Generation | B104: Indiana | C104: 55148 | D104: 1 | E104: 4017 | F104: 5,644 | G104: 65,159 | H104: 128,558 | I104: 103,753 | J104: 257,636 | K104: 135,369 | L104: 174,023 | M104: 244,982 | N104: 225,547 | O104: 225,547 | P104: 432,241,920 | Q104: 399,794,570 | R104: 0.000522 | S104: 0.000564 | T104: 11,020 | U104: 10,928 | V104: 9,203 | W104: 6 | X104: 6 | Y104: 5 | Z104: 0 | AA104: 3 | AB104: 5 | AC104: 4 | AD104: 11 | AE104: 6 | AF104: 7 | AG104: 11 | AH104: 11 | AI104: 7 | AJ104: 7 | AK104: 6 | AL104: Existing Unit | AM104: Existing Unit
A105: Worthington Generation | B105: Indiana | C105: 55148 | D105: 2 | E105: 4018 | F105: 2,073 | G105: 43,211 | H105: 110,618 | I105: 91,228 | J105: 219,100 | K105: 116,545 | L105: 168,578 | M105: 218,157 | N105: 201,945 | O105: 201,945 | P105: 432,241,920 | Q105: 399,794,570 | R105: 0.000467 | S105: 0.000505 | T105: 11,020 | U105: 10,928 | V105: 9,203 | W105: 5 | X105: 5 | Y105: 5 | Z105: 0 | AA105: 2 | AB105: 5 | AC105: 4 | AD105: 9 | AE105: 5 | AF105: 7 | AG105: 10 | AH105: 10 | AI105: 6 | AJ105: 6 | AK105: 6 | AL105: Existing Unit | AM105: Existing Unit
A106: Worthington Generation | B106: Indiana | C106: 55148 | D106: 3 | E106: 4019 | F106: 9,558 | G106: 38,309 | H106: 83,572 | I106: 62,570 | J106: 212,535 | K106: 112,936 | L106: 177,665 | M106: 220,658 | N106: 203,619 | O106: 203,619 | P106: 432,241,920 | Q106: 399,794,570 | R106: 0.000471 | S106: 0.000509 | T106: 11,020 | U106: 10,928 | V106: 9,203 | W106: 5 | X106: 5 | Y106: 5 | Z106: 0 | AA106: 2 | AB106: 3 | AC106: 2 | AD106: 9 | AE106: 5 | AF106: 8 | AG106: 9 | AH106: 9 | AI106: 6 | AJ106: 6 | AK106: 6 | AL106: Existing Unit | AM106: Existing Unit
A107: Worthington Generation | B107: Indiana | C107: 55148 | D107: 4 | E107: 4020 | F107: 8,644 | G107: 57,492 | H107: 100,038 | I107: 100,060 | J107: 227,903 | K107: 121,985 | L107: 168,141 | M107: 231,220 | N107: 209,088 | O107: 209,088 | P107: 432,241,920 | Q107: 399,794,570 | R107: 0.000484 | S107: 0.000523 | T107: 11,020 | U107: 10,928 | V107: 9,203 | W107: 5 | X107: 5 | Y107: 5 | Z107: 0 | AA107: 2 | AB107: 4 | AC107: 4 | AD107: 10 | AE107: 5 | AF107: 7 | AG107: 10 | AH107: 10 | AI107: 6 | AJ107: 6 | AK107: 6 | AL107: Existing Unit | AM107: Existing Unit

Sheet Underlying Data for NY SIP
A1: Plant Name | B1: State | C1: ORIS ID | D1: Boiler ID | E1: CAMD Unit ID | F1: 2019 Ozone Season NOX Emissions (tons) | G1: 2020 Ozone Season NOX Emissions (tons) | H1: 2021 Ozone Season NOX Emissions (tons) | I1: 2019 to 2021 Ozone Season NOx Emissions Average (tons) for 2023 | J1: 2019 to 2021 Ozone Season NOx Emissions Average (tons) for 2024 | K1: Unit Level NOX Ozone Season Allocation Pro-Rated 2023 (tons) | L1: Unit Level NOX Ozone Season Allocation 2023 (tons) | M1: Unit Level NOX Ozone Season Allocation 2024 (tons) | N1: Data Flags
A2: Calculation | I2: Average of three values in columns F - H, including zeroes for Operating units | K2: Ratioed value from column I after holding out 15% per NY SIP | L2: Ratioed value from column I after holding out 15% per NY SIP | M2: Ratioed value from column J after holding out 15% per NY SIP | N2: Existing Unit or Retired in 2023 | O2: Existing Unit or Retired in 2024 | P2: Additional (Not ARP or CSAPR) Unit? | Q2: Unit Not Subject to State's SIP Authority? | T2: Pro-Rated 2023 | U2: 2023 | V2: 2024
A3: 23rd and 3rd | B3: New York | C3: 7910 | D3: 2301 | E3: 8384 | F3: 2 | G3: 1 | H3: 2 | I3: 2 | J3: 2 | K3: 1 | L3: 1 | M3: 1 | N3: Existing Unit | O3: Existing Unit | S3: NY Budget | T3: 3,741 | U3: 3,763 | V3: 3,763
A4: 23rd and 3rd | B4: New York | C4: 7910 | D4: 2302 | E4: 8386 | F4: 2 | G4: 2 | H4: 2 | I4: 2 | J4: 2 | K4: 2 | L4: 2 | M4: 2 | N4: Existing Unit | O4: Existing Unit | S4: Hold Out 15% | T4: 3,179 | U4: 3,199 | V4: 3,199 | W4: Step 2
A5: 74th Street | B5: New York | C5: 2504 | D5: 120 | E5: 1714 | F5: 3 | G5: 0 | H5: 2 | I5: 2 | J5: 2 | K5: 2 | L5: 2 | M5: 2 | N5: Existing Unit | O5: Existing Unit | S5: Raw Total | T5: 3,459 | U5: 3,459 | V5: 3,459 | W5: Step 3
A6: 74th Street | B6: New York | C6: 2504 | D6: 122 | E6: 1716 | F6: 0 | G6: 1 | H6: 0 | I6: 0 | J6: 0 | K6: 0 | L6: 0 | M6: 0 | N6: Existing Unit | O6: Existing Unit | S6: Adjust Ratio | T6: 91.9% | U6: 92.5% | V6: 92.5% | W6: Step 5
A7: Allegany Station No. 133 | B7: New York | C7: 10619 | D7: 00001 | E7: 3562 | F7: 1 | G7: 1 | H7: 1 | I7: 1 | J7: 1 | K7: 1 | L7: 1 | M7: 1 | N7: Existing Unit | O7: Existing Unit | S7: NYSERDA | T7: 374 | U7: 376 | V7: 376 | W7: Step 6
A8: Arthur Kill | B8: New York | C8: 2490 | D8: 20 | E8: 1610 | F8: 138 | G8: 121 | H8: 194 | I8: 151 | J8: 151 | K8: 139 | L8: 139 | M8: 139 | N8: Existing Unit | O8: Existing Unit
A9: Arthur Kill | B9: New York | C9: 2490 | D9: 30 | E9: 1611 | F9: 66 | G9: 121 | H9: 59 | I9: 82 | J9: 82 | K9: 76 | L9: 76 | M9: 76 | N9: Existing Unit | O9: Existing Unit
A10: Astoria Energy | B10: New York | C10: 55375 | D10: CT1 | E10: 4581 | F10: 16 | G10: 15 | H10: 15 | I10: 15 | J10: 15 | K10: 14 | L10: 14 | M10: 14 | N10: Existing Unit | O10: Existing Unit
A11: Astoria Energy | B11: New York | C11: 55375 | D11: CT2 | E11: 4582 | F11: 15 | G11: 14 | H11: 14 | I11: 14 | J11: 14 | K11: 13 | L11: 13 | M11: 13 | N11: Existing Unit | O11: Existing Unit
A12: Astoria Energy | B12: New York | C12: 55375 | D12: CT3 | E12: 4583 | F12: 20 | G12: 20 | H12: 17 | I12: 19 | J12: 19 | K12: 17 | L12: 18 | M12: 18 | N12: Existing Unit | O12: Existing Unit
A13: Astoria Energy | B13: New York | C13: 55375 | D13: CT4 | E13: 4584 | F13: 22 | G13: 21 | H13: 18 | I13: 20 | J13: 20 | K13: 19 | L13: 19 | M13: 19 | N13: Existing Unit | O13: Existing Unit
A14: Astoria Gas Turbine Power | B14: New York | C14: 55243 | D14: CT2-1A | E14: 3498 | F14: 1 | G14: 2 | H14: 4 | N14: Retired | O14: Retired
A15: Astoria Gas Turbine Power | B15: New York | C15: 55243 | D15: CT2-1B | E15: 10215 | F15: 1 | G15: 2 | H15: 4 | N15: Retired | O15: Retired
A16: Astoria Gas Turbine Power | B16: New York | C16: 55243 | D16: CT2-2A | E16: 3499 | F16: 2 | G16: 1 | H16: 3 | N16: Retired | O16: Retired
A17: Astoria Gas Turbine Power | B17: New York | C17: 55243 | D17: CT2-2B | E17: 10217 | F17: 2 | G17: 1 | H17: 3 | N17: Retired | O17: Retired
A18: Astoria Gas Turbine Power | B18: New York | C18: 55243 | D18: CT2-3A | E18: 3500 | F18: 3 | G18: 2 | H18: 4 | N18: Retired | O18: Retired
A19: Astoria Gas Turbine Power | B19: New York | C19: 55243 | D19: CT2-3B | E19: 10219 | F19: 3 | G19: 2 | H19: 4 | N19: Retired | O19: Retired
A20: Astoria Gas Turbine Power | B20: New York | C20: 55243 | D20: CT2-4A | E20: 3501 | F20: 1 | G20: 1 | H20: 2 | N20: Retired | O20: Retired
A21: Astoria Gas Turbine Power | B21: New York | C21: 55243 | D21: CT2-4B | E21: 10221 | F21: 1 | G21: 1 | H21: 2 | N21: Retired | O21: Retired
A22: Astoria Gas Turbine Power | B22: New York | C22: 55243 | D22: CT3-1A | E22: 3502 | F22: 1 | G22: 1 | H22: 2 | N22: Retired | O22: Retired
A23: Astoria Gas Turbine Power | B23: New York | C23: 55243 | D23: CT3-1B | E23: 10223 | F23: 1 | G23: 1 | H23: 2 | N23: Retired | O23: Retired
A24: Astoria Gas Turbine Power | B24: New York | C24: 55243 | D24: CT3-2A | E24: 3503 | F24: 1 | G24: 2 | H24: 3 | N24: Retired | O24: Retired
A25: Astoria Gas Turbine Power | B25: New York | C25: 55243 | D25: CT3-2B | E25: 10225 | F25: 1 | G25: 2 | H25: 3 | N25: Retired | O25: Retired
A26: Astoria Gas Turbine Power | B26: New York | C26: 55243 | D26: CT3-3A | E26: 3504 | F26: 1 | G26: 2 | H26: 4 | N26: Retired | O26: Retired
A27: Astoria Gas Turbine Power | B27: New York | C27: 55243 | D27: CT3-3B | E27: 10227 | F27: 1 | G27: 2 | H27: 4 | N27: Retired | O27: Retired
A28: Astoria Gas Turbine Power | B28: New York | C28: 55243 | D28: CT3-4A | E28: 3505 | F28: 2 | G28: 1 | H28: 5 | N28: Retired | O28: Retired
A29: Astoria Gas Turbine Power | B29: New York | C29: 55243 | D29: CT3-4B | E29: 10229 | F29: 2 | G29: 1 | H29: 5 | N29: Retired | O29: Retired
A30: Astoria Gas Turbine Power | B30: New York | C30: 55243 | D30: CT4-1A | E30: 3506 | F30: 3 | G30: 2 | H30: 2 | N30: Retired | O30: Retired
A31: Astoria Gas Turbine Power | B31: New York | C31: 55243 | D31: CT4-1B | E31: 10231 | F31: 3 | G31: 2 | H31: 2 | N31: Retired | O31: Retired
A32: Astoria Gas Turbine Power | B32: New York | C32: 55243 | D32: CT4-2A | E32: 3507 | F32: 2 | G32: 1 | H32: 2 | N32: Retired | O32: Retired
A33: Astoria Gas Turbine Power | B33: New York | C33: 55243 | D33: CT4-2B | E33: 10233 | F33: 2 | G33: 1 | H33: 2 | N33: Retired | O33: Retired
A34: Astoria Gas Turbine Power | B34: New York | C34: 55243 | D34: CT4-3A | E34: 3508 | F34: 1 | G34: 1 | H34: 4 | N34: Retired | O34: Retired
A35: Astoria Gas Turbine Power | B35: New York | C35: 55243 | D35: CT4-3B | E35: 10235 | F35: 1 | G35: 1 | H35: 4 | N35: Retired | O35: Retired
A36: Astoria Gas Turbine Power | B36: New York | C36: 55243 | D36: CT4-4A | E36: 3509 | F36: 1 | G36: 0 | H36: 2 | N36: Retired | O36: Retired
A37: Astoria Gas Turbine Power | B37: New York | C37: 55243 | D37: CT4-4B | E37: 10237 | F37: 1 | G37: 0 | H37: 2 | N37: Retired | O37: Retired
A38: Astoria Generating Station | B38: New York | C38: 8906 | D38: 20 | E38: 3485 | F38: 2 | G38: 1 | H38: 3 | I38: 2 | J38: 2 | K38: 2 | L38: 2 | M38: 2 | N38: Existing Unit | O38: Existing Unit
A39: Astoria Generating Station | B39: New York | C39: 8906 | D39: 31RH | E39: 90457 | F39: 40 | G39: 19 | H39: 19 | I39: 26 | J39: 26 | K39: 24 | L39: 24 | M39: 24 | N39: Existing Unit | O39: Existing Unit
A40: Astoria Generating Station | B40: New York | C40: 8906 | D40: 32SH | E40: 90458 | F40: 41 | G40: 18 | H40: 19 | I40: 26 | J40: 26 | K40: 24 | L40: 24 | M40: 24 | N40: Existing Unit | O40: Existing Unit
A41: Astoria Generating Station | B41: New York | C41: 8906 | D41: 51RH | E41: 90461 | F41: 21 | G41: 40 | H41: 39 | I41: 33 | J41: 33 | K41: 31 | L41: 31 | M41: 31 | N41: Existing Unit | O41: Existing Unit
A42: Astoria Generating Station | B42: New York | C42: 8906 | D42: 52SH | E42: 90462 | F42: 21 | G42: 41 | H42: 44 | I42: 35 | J42: 35 | K42: 32 | L42: 33 | M42: 33 | N42: Existing Unit | O42: Existing Unit
A43: Athens Generating Company | B43: New York | C43: 55405 | D43: 1 | E43: 8542 | F43: 17 | G43: 1 | H43: 14 | I43: 11 | J43: 11 | K43: 10 | L43: 10 | M43: 10 | N43: Existing Unit | O43: Existing Unit
A44: Athens Generating Company | B44: New York | C44: 55405 | D44: 2 | E44: 8544 | F44: 15 | G44: 14 | H44: 5 | I44: 11 | J44: 11 | K44: 10 | L44: 11 | M44: 11 | N44: Existing Unit | O44: Existing Unit
A45: Athens Generating Company | B45: New York | C45: 55405 | D45: 3 | E45: 8546 | F45: 16 | G45: 20 | H45: 19 | I45: 18 | J45: 18 | K45: 17 | L45: 17 | M45: 17 | N45: Existing Unit | O45: Existing Unit
A46: Batavia Energy | B46: New York | C46: 54593 | D46: 1 | E46: 3784 | F46: 1 | G46: 4 | H46: 9 | I46: 5 | J46: 5 | K46: 4 | L46: 4 | M46: 4 | N46: Existing Unit | O46: Existing Unit
A47: Bayswater Peaking Facility | B47: New York | C47: 55699 | D47: 1 | E47: 8958 | F47: 4 | G47: 2 | H47: 2 | I47: 3 | J47: 3 | K47: 3 | L47: 3 | M47: 3 | N47: Existing Unit | O47: Existing Unit
A48: Bayswater Peaking Facility | B48: New York | C48: 55699 | D48: 2 | E48: 88310 | F48: 1 | G48: 2 | H48: 1 | I48: 1 | J48: 1 | K48: 1 | L48: 1 | M48: 1 | N48: Existing Unit | O48: Existing Unit
A49: Beaver Falls, LLC | B49: New York | C49: 10617 | D49: 1 | E49: 3560 | F49: 0 | G49: 0 | H49: 1 | I49: 0 | J49: 0 | K49: 0 | L49: 0 | M49: 0 | N49: Existing Unit | O49: Existing Unit
A50: Bethlehem Energy Center (Albany) | B50: New York | C50: 2539 | D50: 10001 | E50: 1771 | F50: 17 | G50: 16 | H50: 18 | I50: 17 | J50: 17 | K50: 15 | L50: 15 | M50: 15 | N50: Existing Unit | O50: Existing Unit
A51: Bethlehem Energy Center (Albany) | B51: New York | C51: 2539 | D51: 10002 | E51: 1772 | F51: 14 | G51: 18 | H51: 19 | I51: 17 | J51: 17 | K51: 16 | L51: 16 | M51: 16 | N51: Existing Unit | O51: Existing Unit
A52: Bethlehem Energy Center (Albany) | B52: New York | C52: 2539 | D52: 10003 | E52: 1773 | F52: 14 | G52: 19 | H52: 22 | I52: 18 | J52: 18 | K52: 17 | L52: 17 | M52: 17 | N52: Existing Unit | O52: Existing Unit
A53: Bethpage Energy Center | B53: New York | C53: 50292 | D53: GT2 | E53: 3648 | F53: 20 | G53: 24 | H53: 41 | I53: 28 | J53: 28 | K53: 26 | L53: 26 | M53: 26 | N53: Existing Unit | O53: Existing Unit
A54: Bethpage Energy Center | B54: New York | C54: 50292 | D54: GT3 | E54: 8438 | F54: 1 | G54: 2 | H54: 2 | I54: 2 | J54: 2 | K54: 2 | L54: 2 | M54: 2 | N54: Existing Unit | O54: Existing Unit
A55: Bethpage Energy Center | B55: New York | C55: 50292 | D55: GT4 | E55: 89507 | F55: 2 | G55: 8 | H55: 4 | I55: 5 | J55: 5 | K55: 4 | L55: 4 | M55: 4 | N55: Existing Unit | O55: Existing Unit
A56: Black River Generation, LLC | B56: New York | C56: 10464 | D56: E0001 | E56: 3547 | F56: 51 | G56: 54 | H56: 64 | I56: 57 | J56: 57 | K56: 52 | L56: 52 | M56: 52 | N56: Existing Unit | O56: Existing Unit
A57: Black River Generation, LLC | B57: New York | C57: 10464 | D57: E0002 | E57: 3548 | F57: 53 | G57: 57 | H57: 64 | I57: 58 | J57: 58 | K57: 53 | L57: 54 | M57: 54 | N57: Existing Unit | O57: Existing Unit
A58: Black River Generation, LLC | B58: New York | C58: 10464 | D58: E0003 | E58: 3549 | F58: 52 | G58: 58 | H58: 66 | I58: 59 | J58: 59 | K58: 54 | L58: 54 | M58: 54 | N58: Existing Unit | O58: Existing Unit
A59: Bowline Generating Station | B59: New York | C59: 2625 | D59: 1 | E59: 1793 | F59: 75 | G59: 196 | H59: 178 | I59: 150 | J59: 150 | K59: 138 | L59: 138 | M59: 138 | N59: Existing Unit | O59: Existing Unit
A60: Bowline Generating Station | B60: New York | C60: 2625 | D60: 2 | E60: 1794 | F60: 87 | G60: 117 | H60: 120 | I60: 108 | J60: 108 | K60: 99 | L60: 100 | M60: 100 | N60: Existing Unit | O60: Existing Unit
A61: Brentwood | B61: New York | C61: 7912 | D61: BW01 | E61: 8390 | F61: 2 | G61: 3 | H61: 2 | I61: 2 | J61: 2 | K61: 2 | L61: 2 | M61: 2 | N61: Existing Unit | O61: Existing Unit
A62: Brooklyn Navy Yard Cogeneration | B62: New York | C62: 54914 | D62: 1 | E62: 3809 | F62: 11 | G62: 13 | H62: 11 | I62: 12 | J62: 12 | K62: 11 | L62: 11 | M62: 11 | N62: Existing Unit | O62: Existing Unit
A63: Brooklyn Navy Yard Cogeneration | B63: New York | C63: 54914 | D63: 2 | E63: 3810 | F63: 10 | G63: 13 | H63: 10 | I63: 11 | J63: 11 | K63: 10 | L63: 10 | M63: 10 | N63: Existing Unit | O63: Existing Unit
A64: Caithness Long Island Energy Center | B64: New York | C64: 56234 | D64: 0001 | E64: 89547 | F64: 24 | G64: 20 | H64: 22 | I64: 22 | J64: 22 | K64: 20 | L64: 21 | M64: 21 | N64: Existing Unit | O64: Existing Unit
A65: Carr Street Generating Station | B65: New York | C65: 50978 | D65: A | E65: 3708 | F65: 2 | G65: 4 | H65: 7 | I65: 4 | J65: 4 | K65: 4 | L65: 4 | M65: 4 | N65: Existing Unit | O65: Existing Unit
A66: Carr Street Generating Station | B66: New York | C66: 50978 | D66: B | E66: 3709 | F66: 3 | G66: 4 | H66: 7 | I66: 5 | J66: 5 | K66: 4 | L66: 4 | M66: 4 | N66: Existing Unit | O66: Existing Unit
A67: Carthage Energy | B67: New York | C67: 10620 | D67: 1 | E67: 3563 | F67: 2 | G67: 3 | H67: 9 | I67: 4 | J67: 4 | K67: 4 | L67: 4 | M67: 4 | N67: Existing Unit | O67: Existing Unit
A68: Castleton Power, LLC | B68: New York | C68: 10190 | D68: 1 | E68: 3532 | F68: 13 | G68: 12 | H68: 8 | I68: 11 | J68: 11 | K68: 10 | L68: 10 | M68: 10 | N68: Existing Unit | O68: Existing Unit
A69: Cricket Valley Energy Center | B69: New York | C69: 57185 | D69: U001 | E69: 91214 | G69: 16 | H69: 16 | I69: 11 | J69: 11 | K69: 10 | L69: 10 | M69: 10 | N69: Existing Unit | O69: Existing Unit
A70: Cricket Valley Energy Center | B70: New York | C70: 57185 | D70: U002 | E70: 91215 | G70: 19 | H70: 18 | I70: 12 | J70: 12 | K70: 11 | L70: 11 | M70: 11 | N70: Existing Unit | O70: Existing Unit
A71: Cricket Valley Energy Center | B71: New York | C71: 57185 | D71: U003 | E71: 91216 | G71: 14 | H71: 17 | I71: 10 | J71: 10 | K71: 10 | L71: 10 | M71: 10 | N71: Existing Unit | O71: Existing Unit
A72: Danskammer Generating Station | B72: New York | C72: 2480 | D72: 1 | E72: 1606 | F72: 0 | G72: 1 | H72: 1 | I72: 1 | J72: 1 | K72: 0 | L72: 0 | M72: 0 | N72: Existing Unit | O72: Existing Unit
A73: Danskammer Generating Station | B73: New York | C73: 2480 | D73: 2 | E73: 1607 | F73: 0 | G73: 0 | H73: 0 | I73: 0 | J73: 0 | K73: 0 | L73: 0 | M73: 0 | N73: Existing Unit | O73: Existing Unit
A74: Danskammer Generating Station | B74: New York | C74: 2480 | D74: 3 | E74: 1608 | F74: 1 | G74: 1 | H74: 1 | I74: 1 | J74: 1 | K74: 1 | L74: 1 | M74: 1 | N74: Existing Unit | O74: Existing Unit
A75: Danskammer Generating Station | B75: New York | C75: 2480 | D75: 4 | E75: 1609 | F75: 1 | G75: 3 | H75: 2 | I75: 2 | J75: 2 | K75: 2 | L75: 2 | M75: 2 | N75: Existing Unit | O75: Existing Unit
A76: E F Barrett | B76: New York | C76: 2511 | D76: 10 | E76: 1719 | F76: 169 | G76: 157 | H76: 151 | I76: 159 | J76: 159 | K76: 146 | L76: 147 | M76: 147 | N76: Existing Unit | O76: Existing Unit
A77: E F Barrett | B77: New York | C77: 2511 | D77: 20 | E77: 1720 | F77: 77 | G77: 91 | H77: 109 | I77: 92 | J77: 92 | K77: 85 | L77: 85 | M77: 85 | N77: Existing Unit | O77: Existing Unit
A78: E F Barrett | B78: New York | C78: 2511 | D78: U00012 | E78: 1729 | F78: 14 | G78: 14 | H78: 24 | I78: 17 | J78: 17 | K78: 16 | L78: 16 | M78: 16 | N78: Existing Unit | O78: Existing Unit
A79: E F Barrett | B79: New York | C79: 2511 | D79: U00013 | E79: 1730 | F79: 14 | G79: 14 | H79: 24 | I79: 17 | J79: 17 | K79: 16 | L79: 16 | M79: 16 | N79: Existing Unit | O79: Existing Unit
A80: E F Barrett | B80: New York | C80: 2511 | D80: U00014 | E80: 1731 | F80: 12 | G80: 13 | H80: 26 | I80: 17 | J80: 17 | K80: 16 | L80: 16 | M80: 16 | N80: Existing Unit | O80: Existing Unit
A81: E F Barrett | B81: New York | C81: 2511 | D81: U00015 | E81: 1732 | F81: 12 | G81: 13 | H81: 26 | I81: 17 | J81: 17 | K81: 16 | L81: 16 | M81: 16 | N81: Existing Unit | O81: Existing Unit
A82: E F Barrett | B82: New York | C82: 2511 | D82: U00016 | E82: 1733 | F82: 24 | G82: 24 | H82: 36 | I82: 28 | J82: 28 | K82: 25 | L82: 26 | M82: 26 | N82: Existing Unit | O82: Existing Unit
A83: E F Barrett | B83: New York | C83: 2511 | D83: U00017 | E83: 1734 | F83: 24 | G83: 24 | H83: 36 | I83: 28 | J83: 28 | K83: 25 | L83: 26 | M83: 26 | N83: Existing Unit | O83: Existing Unit
A84: E F Barrett | B84: New York | C84: 2511 | D84: U00018 | E84: 1735 | F84: 15 | G84: 14 | H84: 32 | I84: 20 | J84: 20 | K84: 19 | L84: 19 | M84: 19 | N84: Existing Unit | O84: Existing Unit
A85: E F Barrett | B85: New York | C85: 2511 | D85: U00019 | E85: 1736 | F85: 15 | G85: 14 | H85: 32 | I85: 20 | J85: 20 | K85: 19 | L85: 19 | M85: 19 | N85: Existing Unit | O85: Existing Unit
